Workbook

Sheet Disclaimer
A1: Disclaimer for Software
A2: Important: This Excel Model ("Software") is the property of the Society of Actuaries (SOA) and is protected under U.S. and international copyright laws.
A3: The Software has been developed for the benefit of actuaries FOR EDUCATIONAL USE ONLY, although others may find it useful. SOA and the author make the Software available to individual users for their personal use on a non–exclusive basis. No commercial use, reproduction or distribution is permitted whatsoever.
A4: SOA and the author make no warranty, guarantee, or representation, either expressed or implied, regarding the Software, including its quality, accuracy, reliability, or suitability, and HEREBY DISCLAIM ANY WARRANTY REGARDING THE SOFTWARE'S MERCHANTABILITY OR FITNESS FOR ANY PARTICULAR PURPOSE. SOA and the author make no warranty that the Software is free from errors, defects, worms, viruses or other elements or codes that manifest contaminating or destructive properties. In no event shall SOA or the author be liable for any damages (including any lost profits, lost savings, or direct, indirect, incidental, consequential or other damages) in connection with or resulting from the use, misuse, reliance on, or performance of any aspect of the Software including any instructions or documentation accompanying the Software. SOA and the author make no representation or warranty of non–infringement of proprietary rights of others with respect to the Software. The entire risk as to the uses, outputs, analyses, results and performance of the Software is assumed by the user. This Disclaimer applies regardless of whether the Software is used alone or with other software.
A5: The model, accompanying documentation, and methodologies contained herein do not represent an official position, statement, or endorsement on behalf of the Society of Actuaries or its members, nor should the material be construed to do so. It is the product of a research effort commissioned by the Society of Actuaries to add to the library of resource tools. The model is neither intended to preclude the use of other methodologies for any purpose nor provide a statement or position on the use, application, or preferability of other methodologies as compared to the methodology described herein.

Sheet Introduction (hidden)
A1: LDI Analysis Illustration Tool
A2: This EXCEL tool covers the whole process of LDI analysis, including liability projection, economic scenario generation, asset projection, funding level projection and asset allocation plan evaluation.
A3: For questions, you may contact Kailan Shang at klshang81@gmail.com
A4: Legend: | B4: Assumption | C4: Data Input | D4: Calculation | E4: Macro Output | F4: Output | G4: Interim Step
A6: Quick Links: | B6: DB Plan Information | D6: Liability Projection | F6: Economic Scenario Generation | H6: Bond Fund Projection | J6: Asset Projection | L6: LDI Analysis
B7: Plan | D7: Actuarial Assumption | F7: EconRiskMap | G7: Scn Q Rand | H7: Bond Fund | J7: Asset | L7: Stochastic Funding
D8: IndLiab | F8: EconRiskFac | G8: Scn Q | H8: BFReturns | J8: Asset Sensitivity | L8: Allocation Plans
D9: Liability | F9: ShockScn | G9: Scn Y | H9: BFReturns-fixed | J9: Hedging Portfolio | L9: PlanEval
D10: Census | F10: EconRF Rand | G10: Curve Fitting | H10: BFReturns-bh | J10: Economic Capital | L10: Efficient Frontier
D11: Stochastic Liab | F11: Scn Q Pred
A13: Function | B13: Sheet | D13: Description | H13: Macro
A14: DB Plan Information | B14: Plan | D14: Plan Asset, Plan Liability, Asset Allocation Plan, Plan Management Target
A15: Liability Projection | B15: Actuarial Assumption | D15: Assumption setting: mortality rate, mortality improvement, salary growth, turnover rate, and benefit payment option.
B16: IndLiab | D16: Projecting pension payments, liability value (PBO/TPBO) and plan cost for individual plan participants. PBO includes the future benefits accrued till now. TPBO inludes all the future benefits assuming the participant will work till the retirement age. | H16: Dynamic Liab Projection: Projecting future value of liability considering future services and economic scenarios.
B17: Liability | D17: Aggregating individual liability projection and liability sensitivity test. | H17: Aggregate Liability: Aggregating individual liability projection and scaling them to match initial pension liability value (PBO). Sensitivity Analysis: Liability sensitivity tests w.r.t. fundamental risk factors such as interest rate, inflation, credit spread, and economic growth.
B18: Census | D18: Individual plan participant information. They could be grouped to reduce calculation.
B19: Stochastic Liab | D19: Stochastic and dynamic liability projection: pension payment, plan cost and liability value. | H19: Stochastic Liab: Projecting future pension liabilities using stochastic scenarios.
A20: Economic Scenario Generation | B20: EconRiskMap | D20: Relationship between economic variables and fundamental economic factors including GDP growth rate, interest rate, credit spread, inflation rate, consumption, investment, and import/export. The relationship is determined outside this Excel tool using linear regression models based on historical data.
B21: EconRiskFac | D21: Stochastic economic risk factors generated on the fly. It considers the dynamic time point, the status of the economy (expansion or recession) and the corresponding dependency.
B22: ShockScn | D22: Scenarios for sensitivity test w.r.t. fundamental economic factors.
B23: EconRF Rand | D23: Correlated idiosyncratic parts of fundamental economic factors generated outside this Excel tool.
B24: Scn Q Pred | D24: Systemic component of Quarterly stochastic scenarios generated on the fly. The systemic component is determined based on fundamental economic factors and the relationships input in Sheet "EconRiskMap".
B25: Scn Q Rand | D25: Correlated idiosyncratic parts of economic variables generated outside this Excel tool.
B26: Scn Q | D26: Quarterly stochastic scenarios incorporating systemic compoent, idiosyncratic component, and appropriate correlation adjustment based on the economic status.
B27: Scn Y | D27: Yearly stochastic scenarios derived from Quarterly stochastic scenarios.
B28: Curve Fitting | D28: Yield curve interpolation and extrapolation using two methods: 1. Linear interpolation and constant forward rate extrapolation. 2. Cubic spline interpolation and Nelson-Siegel extrapolation. | H28: Cubic Spline Interpolation: Illustrating the cubic spline method using market data. Nelson-Siegel Optimization: Illustrating the calibration of Nelson-Siegel function.
A29: Bond Fund Projection | B29: Bond Fund | D29: Bond fund return projection based on bond type (Treasury bond/Corporate bond), bond rating, maturity mix, rebalance strategy, and reinvestment strategy. | H29: Bond Fund Return: Dynamically projecting bond fund return based on investment strategy and economic scenario. Bond Fund Return Simulation: Stochastic and dynamic bond fund return projection. Results are output into Sheet "BFReturns". Bond Fund Sensitivity: Bond fund sensitivity tests w.r.t. fundamental risk factors such as interest rate, inflation, credit spread, and economic growth. The output is saved in Cols K:P, Sheet "Asset Sensitivity".
B30: BFReturns | D30: Stochastic bond fund returns generated by Macro "Bond Fund Return Simulation" in Sheet "Bond Fund".
B31: BFReturns-fixed | D31: Stochastic bond fund returns with rebalancing to a fixed asset mix. The values are copied from Sheet "BFReturns" and saved here to avoid rerunning the stochastic process again.
B32: BFReturns-bh | D32: Stochastic bond fund returns with a buy and hold strategy. The values are copied from Sheet "BFReturns" and saved here to avoid rerunning the stochastic process again.
A33: Asset Projection | B33: Asset | D33: Projecting asset value, cash flow, buy & sell, and funding status. | H33: Asset Sensitivity: Asset sensitivity test w.r.t. fundamental economic factors such as interest rate, inflation, credit spread, and economic growth.
B34: Asset Sensitivity | D34: Asset sensitivity results using Macro "Asset Sensitivity" and "Bond Fund Sensitivity"
B35: Hedging Portfolio | D35: Preparing data inputs for quadratic programming to derive hedging portfolio | H35: Prepare Data Input: Preparing data inputs for deriving optimal hedging portfolio.
B36: Economic Capital | D36: Simplified economic capital calculation including economic risk, insurance risk and operational risk using 1-year mark-to-market approach
A37: LDI Analysis | B37: Stochastic Funding | D37: Stochastic funding projection for a specific asset allocation plan | H37: Stochastic Funding Projection: Projecting asset portfolio and funding status for a chosen asset allocation plan. It also calculate the discounted value of future plan contributions and economic capital.
B38: Allocation Plans | D38: Different asset allocation plans to be evaluated.
B39: PlanEval | D39: Asset allocation plan evaluation results including funding ratio, shortfall, plan contribution and economic capital. | H39: Asset Allocation Evaluation: Evaluating each asset allocation plan listed in Sheet "Allocation Plans".
B40: Efficient Frontier | D40: Constructing an efficient frontier for different asset allocation plans with chosen return and risk measures. Both funding ratio and surplus can be used to assess LDI strategies.

Sheet Plan (hidden)
A1: ="INSTRUCTIONS: Defined Benefit Plan Information" -> INSTRUCTIONS: Defined Benefit Plan Information
A2: Index Page
A3: Valuation Date | B3: 2016-12-31
A4: Scenario | B4: 0
A5: Dynamic Time in Future | B5: 0 | C5: year(s)
A6: Shock | B6: 1 | C6: =VLOOKUP(B6,ShockScn!$A$4:$B$53,2,FALSE) -> IR level up
A7: Yield Curve Extension | B7: 2 - Constant Forward | C7: =_xlfn.NUMBERVALUE(LEFT(B7,1)) -> 2 | D7: =IF(ycext=1,"Cubic Spline Interpolation & Nelson-Siegel Extrapolation","Linear Interpolation & Constant Forward Rate Extrapolation") -> Linear Interpolation & Constant Forward Rate Extrapolation
A9: Plan Asset | B9: 10000000
A10: Plan Liability | B10: 10000000
A11: Funding Ratio | B11: =B9/B10 -> 1
A13: Plan Asset | B13: 18 | G13: Plan Liability | J13: Plan Target
A14: Asset Class | B14: U.S. | C14: Canada | D14: Total | G14: Basic Salary Growth Rate | H14: 0.02 | J14: Confidence Level | K14: 0.99
A15: Cash | B15: =INDEX('Allocation Plans'!$B$4:$U$23,$E15,Plan!$B$13+1) -> 0 | C15: 0 | D15: =B15+C15 -> 0 | E15: 1 | G15: Salary Average Period | H15: 5 | I15: Years | J15: Target Funding Ratio | K15: 1
A16: Government Bond | B16: =INDEX('Allocation Plans'!$B$4:$U$23,$E16,Plan!$B$13+1) -> 1.69260501e-16 | C16: 0 | D16: =B16+C16 -> 1.69260501e-16 | E16: 2 | G16: Benefit Rate | H16: 0.01 | J16: Minimum Funding Ratio | K16: 0.7
A17: Corporate Bond - AAA Rated | B17: =INDEX('Allocation Plans'!$B$4:$U$23,$E17,Plan!$B$13+1) -> -1.037008261e-16 | C17: 0 | D17: =B17+C17 -> -1.037008261e-16 | E17: 3 | G17: COLA Ratio (% of CPI) | H17: 0.8 | J17: Max Annual Contribution/Capital | K17: 0.1
A18: Corporate Bond - AA Rated | B18: =INDEX('Allocation Plans'!$B$4:$U$23,$E18,Plan!$B$13+1) -> 0.9234961437 | C18: 0 | D18: 0.9234961437 | E18: 4 | G18: Max COLA Rate | H18: 0.05
A19: Corporate Bond - A Rated | B19: =INDEX('Allocation Plans'!$B$4:$U$23,$E19,Plan!$B$13+1) -> 4.131363514e-17 | C19: 0 | D19: 4.131363514e-17 | E19: 5 | G19: Vesting Period | H19: 3 | I19: Years | J19: Plan Sponsor Risk Profile
A20: Corporate Bond - BBB Rated | B20: =INDEX('Allocation Plans'!$B$4:$U$23,$E20,Plan!$B$13+1) -> -7.208910815e-18 | C20: 0 | D20: -7.208910815e-18 | E20: 6 | G20: Lump Sum Discount Rate | H20: 0.04 | J20: Risk Factor | K20: Sensitivity (+1%)
A21: Corporate Bond - Total | B21: =SUM(B17:B20) -> 0.9234961437 | C21: =SUM(C17:C20) -> 0 | D21: =B21+C21 -> 0.9234961437 | E21: 7 | J21: Economic Growth (GDP, Consumption, Investment) | K21: =SUM(EconRiskMap!G48:I48,EconRiskMap!J48:L48,EconRiskMap!AB48:AD48) -> 3.028639295
A22: Public Equity - Large Cap | B22: =INDEX('Allocation Plans'!$B$4:$U$23,$E22,Plan!$B$13+1) -> -2.996429012e-18 | C22: 0 | D22: -2.996429012e-18 | E22: 8 | G22: Plan Cost | J22: Short-Term Interest Rate | K22: =SUM(EconRiskMap!S48:U48) -> 0
A23: Public Equity - Mid Cap | B23: =INDEX('Allocation Plans'!$B$4:$U$23,$E23,Plan!$B$13+1) -> -4.052742123e-18 | C23: 0 | D23: -4.052742123e-18 | E23: 9 | G23: Discount Rate | H23: 2 - Expected Asset Return | I23: =_xlfn.NUMBERVALUE(LEFT(H23,1)) -> 2 | J23: Long-Term Interest Rate | K23: =SUM(EconRiskMap!V48:X48) -> 0.5962446507
A24: Public Equity - Small Cap | B24: =INDEX('Allocation Plans'!$B$4:$U$23,$E24,Plan!$B$13+1) -> 0 | C24: 0 | D24: 0 | E24: 10 | G24: Adjustment Factor | H24: 0 | J24: Inflation | K24: =SUM(EconRiskMap!M48:O48) -> 3.687639968
A25: Public Equity - High Dividend | B25: =INDEX('Allocation Plans'!$B$4:$U$23,$E25,Plan!$B$13+1) -> 0.01933003293 | C25: 0 | D25: 0.01933003293 | E25: 11 | J25: Unemployment | K25: =SUM(EconRiskMap!P48:R48) -> 0.2716846672
A26: Public Equity - Total | B26: =SUM(B22:B25) -> 0.01933003293 | C26: =SUM(C22:C25) -> 0 | D26: 0.01933003293 | E26: 12 | J26: Credit Spread | K26: =SUM(EconRiskMap!Y48:AA48) -> -2.209591537
A27: Equity REITs | B27: =INDEX('Allocation Plans'!$B$4:$U$23,$E27,Plan!$B$13+1) -> 0.01296607787 | C27: 0 | D27: 0.01296607787 | E27: 13
A28: Mortgage REITs | B28: =INDEX('Allocation Plans'!$B$4:$U$23,$E28,Plan!$B$13+1) -> 0.01299901289 | C28: 0 | D28: 0.01299901289 | E28: 14
A29: Private Equity | B29: =INDEX('Allocation Plans'!$B$4:$U$23,$E29,Plan!$B$13+1) -> 2.61211129e-17 | C29: 0 | D29: 2.61211129e-17 | E29: 15
A30: Infrastructure | B30: =INDEX('Allocation Plans'!$B$4:$U$23,$E30,Plan!$B$13+1) -> 0.0124290952 | C30: 0 | D30: 0.0124290952 | E30: 16
A31: Oil | B31: =INDEX('Allocation Plans'!$B$4:$U$23,$E31,Plan!$B$13+1) -> 0.0009939673873 | C31: 0 | D31: 0.0009939673873 | E31: 17
A32: Gold | B32: =INDEX('Allocation Plans'!$B$4:$U$23,$E32,Plan!$B$13+1) -> 0.01778567003 | C32: 0 | D32: 0.01778567003 | E32: 18
A33: Commodity Index | B33: =INDEX('Allocation Plans'!$B$4:$U$23,$E33,Plan!$B$13+1) -> -4.198361118e-18 | C33: 0 | D33: 0 | E33: 19
A34: Total | B34: =SUM(B15,B16,B21,B26,B27:B33) -> 1 | C34: =SUM(B15,C16,C21,C26,C27:C33) -> 0 | D34: 1 | E34: 20
A36: Reinvestment
B37: Positive Cash Flow | D37: Negative Cash Flow
A38: Asset Class | B38: U.S. | C38: Canada | D38: U.S. | E38: Canada
A39: Cash | B39: 0 | C39: 0 | D39: 0 | E39: 0
A40: Government Bond | B40: =B16 -> 1.69260501e-16 | C40: 0 | D40: 0.4 | E40: 0
A41: Corporate Bond - AAA Rated | B41: -1.037008261e-16 | C41: 0 | D41: 0.02 | E41: 0
A42: Corporate Bond - AA Rated | B42: 0.9234961437 | C42: 0 | D42: 0.5 | E42: 0
A43: Corporate Bond - A Rated | B43: 4.131363514e-17 | C43: 0 | D43: 0.04 | E43: 0
A44: Corporate Bond - BBB Rated | B44: -7.208910815e-18 | C44: 0 | D44: 0.04 | E44: 0
A45: Corporate Bond - Total | B45: 0.9234961437 | C45: 0 | D45: =SUM(D41:D44) -> 0.6 | E45: =SUM(E41:E44) -> 0
A46: Public Equity - Large Cap | B46: -2.996429012e-18 | C46: 0 | D46: 0 | E46: 0
A47: Public Equity - Mid Cap | B47: -4.052742123e-18 | C47: 0 | D47: 0 | E47: 0
A48: Public Equity - Small Cap | B48: 0 | C48: 0 | D48: 0 | E48: 0
A49: Public Equity - High Dividend | B49: 0.01933003293 | C49: 0 | D49: 0 | E49: 0
A50: Public Equity - Total | B50: 0.01933003293 | C50: 0 | D50: =SUM(D46:D49) -> 0 | E50: =SUM(E46:E49) -> 0
A51: Equity REITs | B51: 0.01296607787 | C51: 0 | D51: 0 | E51: 0
A52: Mortgage REITs | B52: 0.01299901289 | C52: 0 | D52: 0 | E52: 0
A53: Private Equity | B53: 2.61211129e-17 | C53: 0 | D53: 0 | E53: 0
A54: Infrastructure | B54: 0.0124290952 | C54: 0 | D54: 0 | E54: 0
A55: Oil | B55: 0.0009939673873 | C55: 0 | D55: 0 | E55: 0
A56: Gold | B56: 0.01778567003 | C56: 0 | D56: 0 | E56: 0
A57: Commodity Index | B57: 0 | C57: 0 | D57: 0 | E57: 0
A58: Total | B58: =SUM(B39,B40,B45,B50:B57) -> 1 | C58: =SUM(C39,C40,C45,C50:C57) -> 0 | D58: =SUM(D39,D40,D45,D50:D57) -> 1 | E58: =SUM(E39,E40,E45,E50:E57) -> 0
A60: Annual Rebalance
A61: Type | B61: 1 - Fixed | C61: =_xlfn.NUMBERVALUE(LEFT(B61,1)) -> 1

Sheet Actuarial Assumption (hidden)
A1: ="INSTRUCTIONS: This sheet is used to provide actuarial assumptions as of "&TEXT(Plan!B3,"[$-409]mmmm d, yyyy;@") -> INSTRUCTIONS: This sheet is used to provide actuarial assumptions as of December 31, 2016
A2: Index Page
A3: Basic Mortality Table | E3: Vesting Period Turnover Assumption | H3: Assumption Shock (Multiple)
A4: Age | B4: Male | C4: Female | E4: Occupation Type | F4: Turnover Rate | H4: Mortality | I4: 1
A5: 0 | B5: 0.00573 | C5: 0.00524 | E5: I | F5: 0.05 | H5: Mortality Improvement | I5: 1
A6: 1 | B6: 0.000968 | C6: 0.000904 | E6: II | F6: 0.04 | H6: Turnover | I6: 1
A7: 2 | B7: 0.000752 | C7: 0.000624 | E7: III | F7: 0.03 | H7: Salary Growth | I7: 1
A8: 3 | B8: 0.000584 | C8: 0.00044 | E8: IV | F8: 0.02
A9: 4 | B9: 0.000472 | C9: 0.000328 | E9: V | F9: 0.01
A10: 5 | B10: 0.000392 | C10: 0.00028
A11: 6 | B11: 0.000352 | C11: 0.000248 | E11: Salary Growth Multiple Assumption | H11: Benefit Payment Option
A12: 7 | B12: 0.000328 | C12: 0.000224 | E12: Occupation Type | F12: Multiple of Basic | H12: Lump Sum | I12: 0.1
A13: 8 | B13: 0.00032 | C13: 0.000208 | E13: I | F13: 0.9 | H13: Life Payment | I13: 0.9
A14: 9 | B14: 0.000312 | C14: 0.000192 | E14: II | F14: 1
A15: 10 | B15: 0.000296 | C15: 0.000192 | E15: III | F15: 1.1
A16: 11 | B16: 0.000288 | C16: 0.000192 | E16: IV | F16: 1.2
A17: 12 | B17: 0.000304 | C17: 0.000216 | E17: V | F17: 1.5
A18: 13 | B18: 0.000376 | C18: 0.000248
A19: 14 | B19: 0.000528 | C19: 0.000296 | E19: Mortality Improvement Assumption
A20: 15 | B20: 0.000752 | C20: 0.000344 | E20: Male | F20: Female
A21: 16 | B21: 0.001016 | C21: 0.000392 | E21: 0.01 | F21: 0.01
A22: 17 | B22: 0.00126 | C22: 0.000433
A23: 18 | B23: 0.001288 | C23: 0.000481
A24: 19 | B24: 0.001305 | C24: 0.000513
A25: 20 | B25: 0.001313 | C25: 0.00053
A26: 21 | B26: 0.001315 | C26: 0.000536
A27: 22 | B27: 0.001312 | C27: 0.000533
A28: 23 | B28: 0.001307 | C28: 0.000525
A29: 24 | B29: 0.001301 | C29: 0.000515
A30: 25 | B30: 0.001298 | C30: 0.000507
A31: 26 | B31: 0.001299 | C31: 0.000504
A32: 27 | B32: 0.001307 | C32: 0.00051
A33: 28 | B33: 0.001323 | C33: 0.000527
A34: 29 | B34: 0.001351 | C34: 0.000556
A35: 30 | B35: 0.001393 | C35: 0.000593
A36: 31 | B36: 0.001452 | C36: 0.000638
A37: 32 | B37: 0.00153 | C37: 0.000688
A38: 33 | B38: 0.00163 | C38: 0.000743
A39: 34 | B39: 0.00175 | C39: 0.000802
A40: 35 | B40: 0.001886 | C40: 0.000865
A41: 36 | B41: 0.002037 | C41: 0.000931
A42: 37 | B42: 0.002201 | C42: 0.001001
A43: 38 | B43: 0.002374 | C43: 0.001074
A44: 39 | B44: 0.00256 | C44: 0.001153
A45: 40 | B45: 0.002761 | C45: 0.00124
A46: 41 | B46: 0.00298 | C46: 0.001336
A47: 42 | B47: 0.00322 | C47: 0.001445
A48: 43 | B48: 0.003484 | C48: 0.001567
A49: 44 | B49: 0.003771 | C49: 0.001707
A50: 45 | B50: 0.004084 | C50: 0.001867
A51: 46 | B51: 0.004421 | C51: 0.002049
A52: 47 | B52: 0.004784 | C52: 0.002257
A53: 48 | B53: 0.005175 | C53: 0.002491
A54: 49 | B54: 0.005597 | C54: 0.002747
A55: 50 | B55: 0.006056 | C55: 0.003017
A56: 51 | B56: 0.006558 | C56: 0.003294
A57: 52 | B57: 0.007108 | C57: 0.003572
A58: 53 | B58: 0.007713 | C58: 0.003848
A59: 54 | B59: 0.00838 | C59: 0.00414
A60: 55 | B60: 0.009118 | C60: 0.004469
A61: 56 | B61: 0.009935 | C61: 0.004858
A62: 57 | B62: 0.010839 | C62: 0.005327
A63: 58 | B63: 0.01184 | C63: 0.005895
A64: 59 | B64: 0.012944 | C64: 0.006554
A65: 60 | B65: 0.014158 | C65: 0.007293
A66: 61 | B66: 0.015488 | C66: 0.008101
A67: 62 | B67: 0.016942 | C67: 0.008966
A68: 63 | B68: 0.018528 | C68: 0.009882
A69: 64 | B69: 0.020261 | C69: 0.010867
A70: 65 | B70: 0.022157 | C70: 0.011942
A71: 66 | B71: 0.024233 | C71: 0.01313
A72: 67 | B72: 0.026505 | C72: 0.014453
A73: 68 | B73: 0.028992 | C73: 0.015934
A74: 69 | B74: 0.031715 | C74: 0.017588
A75: 70 | B75: 0.034698 | C75: 0.019431
A76: 71 | B76: 0.037963 | C76: 0.021478
A77: 72 | B77: 0.041535 | C77: 0.023745
A78: 73 | B78: 0.045436 | C78: 0.026248
A79: 74 | B79: 0.049701 | C79: 0.029016
A80: 75 | B80: 0.054363 | C80: 0.032079
A81: 76 | B81: 0.059457 | C81: 0.035466
A82: 77 | B82: 0.065016 | C82: 0.039208
A83: 78 | B83: 0.071077 | C83: 0.043337
A84: 79 | B84: 0.077686 | C84: 0.047896
A85: 80 | B85: 0.084889 | C85: 0.052932
A86: 81 | B86: 0.092734 | C86: 0.058489
A87: 82 | B87: 0.101268 | C87: 0.064614
A88: 83 | B88: 0.110542 | C88: 0.071356
A89: 84 | B89: 0.120611 | C89: 0.078778
A90: 85 | B90: 0.131536 | C90: 0.086946
A91: 86 | B91: 0.143375 | C91: 0.095925
A92: 87 | B92: 0.156188 | C92: 0.105783
A93: 88 | B93: 0.170033 | C93: 0.116587
A94: 89 | B94: 0.18497 | C94: 0.128419
A95: 90 | B95: 0.201055 | C95: 0.141361
A96: 91 | B96: 0.218348 | C96: 0.155497
A97: 92 | B97: 0.236907 | C97: 0.170909
A98: 93 | B98: 0.256783 | C98: 0.187681
A99: 94 | B99: 0.278003 | C99: 0.205885
A100: 95 | B100: 0.300589 | C100: 0.225596
A101: 96 | B101: 0.324559 | C101: 0.246887
A102: 97 | B102: 0.349936 | C102: 0.26983
A103: 98 | B103: 0.376717 | C103: 0.29448
A104: 99 | B104: 0.404815 | C104: 0.320809
A105: 100 | B105: 0.434119 | C105: 0.348771
A106: 101 | B106: 0.46452 | C106: 0.378319
A107: 102 | B107: 0.495908 | C107: 0.409406
A108: 103 | B108: 0.528175 | C108: 0.441987
A109: 104 | B109: 0.561225 | C109: 0.47603
A110: 105 | B110: 0.594967 | C110: 0.511501
A111: 106 | B111: 0.629307 | C111: 0.548371
A112: 107 | B112: 0.664152 | C112: 0.586607
A113: 108 | B113: 0.698078 | C113: 0.624558
A114: 109 | B114: 0.731384 | C114: 0.662588
A115: 110 | B115: 1 | C115: 1

Sheet IndLiab (hidden)
A1: ="INSTRUCTIONS: This sheet is used to project liability cash flows for individual plan participants from "&TEXT(Plan!B3,"[$-409]mmmm d, yyyy;@") -> INSTRUCTIONS: This sheet is used to project liability cash flows for individual plan participants from December 31, 2016
A2: Index Page | M2: Weighted Liability Value | Z2: This part needs macro run
A3: ID | B3: Service Period | C3: Salary | D3: Retired? | E3: Retirement Age | F3: Gender | G3: Occupation | H3: Weight | I3: Salary Growth Multiple | J3: Turnover Rate | K3: Lumpsum Payment (Accumulated) | L3: Lumpsum Payment (Projected) | M3: Accumulated Liability (PBO) | N3: Projected Liability (TPBO) | O3: ="Discounted Benefit Payments @ expected asset return" -> Discounted Benefit Payments @ expected asset return | P3: Discounted Plan Cost @ Corporate AA rate | Q3: Discounted plan cost @ expected asset return | Z3: ="Accumulated Liability @ year "&DynYear -> Accumulated Liability @ year 0 | AG3: Dynamic Curve
A4: 9 | B4: =IF(D4="Y",YEAR(VLOOKUP(ID,Census!$A$3:$I$1005,7,FALSE))-YEAR(VLOOKUP(ID,Census!$A$3:$I$1003,5,FALSE)),YEAR(ValDate)-YEAR(VLOOKUP(ID,Census!$A$3:$I$1003,5,FALSE))) -> 25 | C4: =VLOOKUP(ID,Census!$A$3:$I$1005,6,FALSE) -> 95000 | D4: =VLOOKUP(ID,Census!$A$3:$I$1005,2,FALSE) -> N | E4: =YEAR(VLOOKUP(ID,Census!$A$3:$I$1005,7,FALSE))-YEAR(VLOOKUP(ID,Census!$A$3:$I$1003,4,FALSE)) -> 64 | F4: =VLOOKUP(ID,Census!$A$3:$I$1005,3,FALSE) -> M | G4: =VLOOKUP(ID,Census!$A$3:$I$1005,8,FALSE) -> IV | H4: =VLOOKUP(ID,Census!$A$3:$I$1005,9,FALSE) -> 0.1 | I4: =VLOOKUP(G4,'Actuarial Assumption'!$E$12:$F$17,2,FALSE) -> 1.2 | J4: =VLOOKUP($G$4,'Actuarial Assumption'!$E$4:$F$9,2,FALSE) -> 0.02 | K4: =IF(D4="N",SUMPRODUCT(D8:D98,J8:J98,O8:O98,P8:P98)/VLOOKUP(E4,$C$7:$P$98,13,FALSE)/VLOOKUP(E4,$C$7:$P$98,14,FALSE),0) -> 428836.9606 | L4: =IF(D4="N",SUMPRODUCT(D8:D98,K8:K98,O8:O98,P8:P98)/VLOOKUP(E4,$C$7:$P$98,13,FALSE)/VLOOKUP(E4,$C$7:$P$98,14,FALSE),0) -> 668985.6585 | M4: =SUMPRODUCT(R8:R98,W8:W98) -> 28483.28001 | N4: =SUMPRODUCT(R8:R98,X8:X98) -> 44433.91681 | O4: =SUMPRODUCT(T8:T98,X8:X98) -> 34067.28638 | P4: =SUMPRODUCT(R8:R98,Y8:Y98) -> 14214.00157 | Q4: =SUMPRODUCT(T8:T98,Y8:Y98) -> 13202.6266 | Z4: =SUMPRODUCT(AB8:AB98,AD8:AD98)/INDEX($O$8:$O$98,DynYear+1) -> 51243.29314 | AG4: Yield Curve | AH4: 1 | AI4: 2 | AJ4: 3 | AK4: 5 | AL4: 7 | AM4: 10 | AN4: 20 | AO4: 30
A5: =COUNT(Census!A4:A1003) -> 10 | Z5: ="Dynamic Calculation: @ year "&DynYear -> Dynamic Calculation: @ year 0 | AH5: =INDEX('Scn Y'!$C$5:$J$106,IF(Scn>0,1,0)*51+DynYear+1,1) -> 1.155251182 | AI5: =INDEX('Scn Y'!$C$5:$J$106,IF(Scn>0,1,0)*51+DynYear+1,2) -> 1.537124113 | AJ5: =INDEX('Scn Y'!$C$5:$J$106,IF(Scn>0,1,0)*51+DynYear+1,3) -> 1.815407286 | AK5: =INDEX('Scn Y'!$C$5:$J$106,IF(Scn>0,1,0)*51+DynYear+1,4) -> 2.24964201 | AL5: =INDEX('Scn Y'!$C$5:$J$106,IF(Scn>0,1,0)*51+DynYear+1,5) -> 2.537656063 | AM5: =INDEX('Scn Y'!$C$5:$J$106,IF(Scn>0,1,0)*51+DynYear+1,6) -> 2.7 | AN5: =INDEX('Scn Y'!$C$5:$J$106,IF(Scn>0,1,0)*51+DynYear+1,7) -> 2.973702259 | AO5: =INDEX('Scn Y'!$C$5:$J$106,IF(Scn>0,1,0)*51+DynYear+1,8) -> 3.2256488
J6: Retirement Benefit | L6: Survivorship | P6: Lump Sum | Q6: Liability Discounting | S6: Funding Discounting | U6: Benefit Payment | W6: Benefit Payment × Weight | Z6: Accumulated Retirement Benefit | AG6: AA Credit Spread | AH6: =INDEX('Scn Y'!$C$5:$AN$106,IF(Scn>0,1,0)*51+DynYear+1,12) -> 0.3011184145
A7: Year | B7: Term | C7: Age | D7: Retired? | E7: Service Period | F7: Wage Index | G7: COLA | H7: Salary | I7: ="Average "&Plan!$H$15&"-year Salary" -> Average 5-year Salary | J7: Accumulated | K7: Projected | L7: Base Mortality | M7: Mortality Improvement | N7: Mortality | O7: Survivorship | P7: Discount Factor | Q7: Rate (AA Bond Yield) | R7: Discount Factor | S7: Expected Investment Return | T7: Discount Factor | U7: Accumulated | V7: Projected | W7: Accumulated | X7: Projected | Y7: Plan Cost | Z7: Base | AA7: Payment | AB7: Payment * Weight | AC7: Discount Rate | AD7: Discount Factor | AE7: Dynamic PBO | AH7: TB | AI7: AAA | AJ7: AA | AK7: A | AL7: BBB | AM7: Junk
A8: =YEAR(ValDate) -> 2016 | B8: 0 | C8: =YEAR(ValDate)-YEAR(VLOOKUP(ID,Census!$A$3:$I$1003,4,FALSE)) -> 50 | D8: =IF($D$4="Y",1,IF(C8<=$E$4,0,1)) -> 0 | E8: =B4 -> 25 | F8: 1 | G8: 1 | H8: =C4 -> 95000 | I8: =IF(D8=1,-PV(Plan!$H$14,MAX(0,Plan!$H$15-B8),IndLiab!$H$8,,0)/MIN(E8,Plan!$H$15),IF(B8<Plan!$H$15,-PV(Plan!$H$14,MAX(0,Plan!$H$15-B8-1),IndLiab!$H$8,,0)+SUM($H$8:H8),SUM(OFFSET($H$8,COUNT($H$8:H8)-Plan!$H$15,0,Plan!$H$15)))/MIN(E8,Plan!$H$15)) -> 91346.84527 | J8: =I8*$E$8*Plan!$H$16*G8 -> 22836.71132 | K8: =I8*E8*Plan!$H$16*G8 -> 22836.71132 | L8: =MIN(1,VLOOKUP(MIN(110,C8),'Actuarial Assumption'!$A$4:$C$115,IF(IndLiab!$F$4="M",2,3),FALSE)*Mort_S) -> 0.006056 | M8: =IF(F4="M",'Actuarial Assumption'!$E$21*MI_S,'Actuarial Assumption'!$F$21*MI_S) -> 0.01 | N8: =MIN(1,L8*(1-M8)) -> 0.00599544 | O8: 1 | P8: 1 | R8: 1 | T8: 1 | U8: =(1-$J$4)^MAX(0,Plan!$H$19-IndLiab!$B$4)*(D8*J8*O8*'Actuarial Assumption'!$I$13+IF(AND(D7=0,D8=1),'Actuarial Assumption'!$I$12*$K$4,0)) -> 0 | V8: =(1-$J$4)^MAX(0,Plan!$H$19-IndLiab!$B$4)*(D8*K8*O8*'Actuarial Assumption'!$I$13+IF(AND(D7=0,D8=1),'Actuarial Assumption'!$I$12*$L$4,0)) -> 0 | W8: =U8*$H$4 -> 0 | X8: =V8*$H$4 -> 0 | Y8: 0 | Z8: =I8*MIN(E8,$B$4+DynYear)*Plan!$H$16*G8 -> 22836.71132 | AA8: =(1-$J$4)^MAX(0,Plan!$H$19-IndLiab!$B$4)*(D8*Z8*O8*'Actuarial Assumption'!$I$13+IF(AND(D7=0,D8=1),'Actuarial Assumption'!$I$12*$K$4,0))*IF(B8<DynYear,0,1) -> 0 | AB8: =AA8*$H$4 -> 0 | AD8: 1 | AE8: 15225.15592 | AG8: Credit Spread | AH8: 0 | AI8: =INDEX('Scn Y'!$C$5:$AN$106,IF(Scn>0,1,0)*51+DynYear+1,10) -> 0.6105698202 | AJ8: =INDEX('Scn Y'!$C$5:$AN$106,IF(Scn>0,1,0)*51+DynYear+1,12) -> 0.3011184145 | AK8: =INDEX('Scn Y'!$C$5:$AN$106,IF(Scn>0,1,0)*51+DynYear+1,14) -> 0.6369947316 | AL8: =INDEX('Scn Y'!$C$5:$AN$106,IF(Scn>0,1,0)*51+DynYear+1,16) -> 1.286010723 | AM8: =AL8+2.499197 -> 3.785207723
A9: =A8+1 -> 2017 | B9: 1 | C9: =C8+1 -> 51 | D9: =IF($D$4="Y",1,IF(C9<=$E$4,0,1)) -> 0 | E9: =IF(D9=1,E8,E8+1) -> 26 | F9: =F8*(1+INDEX('Scn Y'!$A$5:$AR$106,IF(Scn>0,1,0)*51+MIN(51,IndLiab!B9+1),40)/100*$I$4) -> 1.042312084 | G9: =IF(D9<1,1,G8*(1+MIN(Plan!$H$18,Plan!$H$17*INDEX('Scn Y'!$A$5:$AR$106,IF(Scn>0,1,0)*51+MIN(IndLiab!B9,50),11)/100))) -> 1 | H9: =IF(D9=1,H8,$H$8*F9) -> 99019.64802 | I9: =IF(D9=1,I8,IF(B9<Plan!$H$15,-PV(Plan!$H$14,MAX(0,Plan!$H$15-B9-1),IndLiab!$H$8,,0)+SUM($H$8:H9),SUM(OFFSET($H$8,COUNT($H$8:H9)-Plan!$H$15,0,Plan!$H$15)))/MIN(E9,Plan!$H$15)) -> 93597.71178 | J9: =I9*$E$8*Plan!$H$16*G9 -> 23399.42795 | K9: =I9*E9*Plan!$H$16*G9 -> 24335.40506 | L9: =MIN(1,VLOOKUP(MIN(110,C9),'Actuarial Assumption'!$A$4:$C$115,IF(IndLiab!$F$4="M",2,3),FALSE)*Mort_S) -> 0.006558 | M9: =IF(E6="M",'Actuarial Assumption'!$E$21*MI_S,'Actuarial Assumption'!$F$21*MI_S) -> 0.01 | N9: =MIN(1,L9*(1-M9)) -> 0.00649242 | O9: =O8*(1-N8) -> 0.99400456 | P9: =P8/(1+Plan!$H$20) -> 0.9615384615 | Q9: =IF(Plan!$C$7=1,CurveFitting!AM8,CurveFitting!AS8) -> 0.0114 | R9: =R8/(1+Q9) -> 0.9887284952 | S9: =IF(Scn=0,'Scn Y'!BC6,'Scn Y'!BC57)/100 -> -0.02860976054 | T9: =T8/(1+S9) -> 1.029452386 | U9: =(1-$J$4)^MAX(0,Plan!$H$19-IndLiab!$B$4)*(D9*J9*O9*'Actuarial Assumption'!$I$13+IF(AND(D8=0,D9=1),'Actuarial Assumption'!$I$12*$K$4,0)) -> 0 | V9: =(1-$J$4)^MAX(0,Plan!$H$19-IndLiab!$B$4)*(D9*K9*O9*'Actuarial Assumption'!$I$13+IF(AND(D8=0,D9=1),'Actuarial Assumption'!$I$12*$L$4,0)) -> 0 | W9: 0 | X9: 0 | Y9: =IF(D9=0,1/MAX($E$8:$E$98)*IF(Plan!$I$23=1,$N$4,$O$4)/IF(Plan!$I$23=1,R9,T9)/O9,0) -> 853.64695 | Z9: =I9*MIN(E9,$B$4+DynYear)*Plan!$H$16*G9 -> 23399.42795 | AA9: =(1-$J$4)^MAX(0,Plan!$H$19-IndLiab!$B$4)*(D9*Z9*O9*'Actuarial Assumption'!$I$13+IF(AND(D8=0,D9=1),'Actuarial Assumption'!$I$12*$K$4,0))*IF(B9<DynYear,0,1) -> 0 | AB9: 0 | AD9: =AD8/(1+AC9) -> 1 | AE9: 14249.48359 | AG9: Default Rate | AH9: 0 | AI9: =INDEX('Scn Y'!$C$5:$AN$106,IF(Scn>0,1,0)*51+DynYear+1,11) -> 0 | AJ9: =INDEX('Scn Y'!$C$5:$AN$106,IF(Scn>0,1,0)*51+DynYear+1,13) -> 0 | AK9: =INDEX('Scn Y'!$C$5:$AN$106,IF(Scn>0,1,0)*51+DynYear+1,15) -> 0 | AL9: =INDEX('Scn Y'!$C$5:$AN$106,IF(Scn>0,1,0)*51+DynYear+1,17) -> 0
A10: =A9+1 -> 2018 | B10: 2 | C10: =C9+1 -> 52 | D10: 0 | E10: =IF(D10=1,E9,E9+1) -> 27 | F10: =F9*(1+INDEX('Scn Y'!$A$5:$AR$106,IF(Scn>0,1,0)*51+MIN(51,IndLiab!B10+1),40)/100*$I$4) -> 1.078965331 | G10: =IF(D10<1,1,G9*(1+MIN(Plan!$H$18,Plan!$H$17*INDEX('Scn Y'!$A$5:$AR$106,IF(Scn>0,1,0)*51+MIN(IndLiab!B10,50),11)/100))) -> 1 | H10: 102501.7064 | I10: =IF(D10=1,I9,IF(B10<Plan!$H$15,-PV(Plan!$H$14,MAX(0,Plan!$H$15-B10-1),IndLiab!$H$8,,0)+SUM($H$8:H10),SUM(OFFSET($H$8,COUNT($H$8:H10)-Plan!$H$15,0,Plan!$H$15)))/MIN(E10,Plan!$H$15)) -> 96193.92872 | J10: =I10*$E$8*Plan!$H$16*G10 -> 24048.48218 | K10: =I10*E10*Plan!$H$16*G10 -> 25972.36075 | L10: =MIN(1,VLOOKUP(MIN(110,C10),'Actuarial Assumption'!$A$4:$C$115,IF(IndLiab!$F$4="M",2,3),FALSE)*Mort_S) -> 0.007108 | M10: =IF(E7="M",'Actuarial Assumption'!$E$21*MI_S,'Actuarial Assumption'!$F$21*MI_S) -> 0.01 | N10: 0.00703692 | O10: =O9*(1-N9) -> 0.9875510649 | P10: =P9/(1+Plan!$H$20) -> 0.924556213 | Q10: =IF(Plan!$C$7=1,CurveFitting!AM9,CurveFitting!AS9) -> 0.0149 | R10: =R9/(1+Q10) -> 0.9742127255 | S10: =IF(Scn=0,'Scn Y'!BC7,'Scn Y'!BC58)/100 -> 0.0182501851 | T10: 1.011001423 | U10: =(1-$J$4)^MAX(0,Plan!$H$19-IndLiab!$B$4)*(D10*J10*O10*'Actuarial Assumption'!$I$13+IF(AND(D9=0,D10=1),'Actuarial Assumption'!$I$12*$K$4,0)) -> 0 | V10: =(1-$J$4)^MAX(0,Plan!$H$19-IndLiab!$B$4)*(D10*K10*O10*'Actuarial Assumption'!$I$13+IF(AND(D9=0,D10=1),'Actuarial Assumption'!$I$12*$L$4,0)) -> 0 | W10: 0 | X10: 0 | Y10: =IF(D10=0,1/MAX($E$8:$E$98)*IF(Plan!$I$23=1,$N$4,$O$4)/IF(Plan!$I$23=1,R10,T10)/O10,0) -> 874.9064248 | Z10: =I10*MIN(E10,$B$4+DynYear)*Plan!$H$16*G10 -> 24048.48218 | AA10: =(1-$J$4)^MAX(0,Plan!$H$19-IndLiab!$B$4)*(D10*Z10*O10*'Actuarial Assumption'!$I$13+IF(AND(D9=0,D10=1),'Actuarial Assumption'!$I$12*$K$4,0))*IF(B10<DynYear,0,1) -> 0 | AB10: 0 | AD10: =AD9/(1+AC10) -> 1 | AE10: 14873.20704
A11: 2019 | B11: 3 | C11: 53 | D11: 0 | E11: 28 | F11: =F10*(1+INDEX('Scn Y'!$A$5:$AR$106,IF(Scn>0,1,0)*51+MIN(51,IndLiab!B11+1),40)/100*$I$4) -> 1.113786216 | G11: =IF(D11<1,1,G10*(1+MIN(Plan!$H$18,Plan!$H$17*INDEX('Scn Y'!$A$5:$AR$106,IF(Scn>0,1,0)*51+MIN(IndLiab!B11,50),11)/100))) -> 1 | H11: 105809.6905 | I11: =IF(D11=1,I10,IF(B11<Plan!$H$15,-PV(Plan!$H$14,MAX(0,Plan!$H$15-B11-1),IndLiab!$H$8,,0)+SUM($H$8:H11),SUM(OFFSET($H$8,COUNT($H$8:H11)-Plan!$H$15,0,Plan!$H$15)))/MIN(E11,Plan!$H$15)) -> 99093.65998 | J11: =I11*$E$8*Plan!$H$16*G11 -> 24773.41499 | K11: =I11*E11*Plan!$H$16*G11 -> 27746.22479 | L11: =MIN(1,VLOOKUP(MIN(110,C11),'Actuarial Assumption'!$A$4:$C$115,IF(IndLiab!$F$4="M",2,3),FALSE)*Mort_S) -> 0.007713 | M11: =IF(E8="M",'Actuarial Assumption'!$E$21*MI_S,'Actuarial Assumption'!$F$21*MI_S) -> 0.01 | N11: 0.00763587 | O11: 0.9806017471 | P11: =P10/(1+Plan!$H$20) -> 0.8889963587 | Q11: =IF(Plan!$C$7=1,CurveFitting!AM10,CurveFitting!AS10) -> 0.0176 | R11: 0.9573631344 | S11: =IF(Scn=0,'Scn Y'!BC8,'Scn Y'!BC59)/100 -> 0.04043154382 | T11: 0.9717135444 | U11: =(1-$J$4)^MAX(0,Plan!$H$19-IndLiab!$B$4)*(D11*J11*O11*'Actuarial Assumption'!$I$13+IF(AND(D10=0,D11=1),'Actuarial Assumption'!$I$12*$K$4,0)) -> 0 | V11: =(1-$J$4)^MAX(0,Plan!$H$19-IndLiab!$B$4)*(D11*K11*O11*'Actuarial Assumption'!$I$13+IF(AND(D10=0,D11=1),'Actuarial Assumption'!$I$12*$L$4,0)) -> 0 | W11: 0 | X11: 0 | Y11: =IF(D11=0,1/MAX($E$8:$E$98)*IF(Plan!$I$23=1,$N$4,$O$4)/IF(Plan!$I$23=1,R11,T11)/O11,0) -> 916.7312065 | Z11: =I11*MIN(E11,$B$4+DynYear)*Plan!$H$16*G11 -> 24773.41499 | AA11: =(1-$J$4)^MAX(0,Plan!$H$19-IndLiab!$B$4)*(D11*Z11*O11*'Actuarial Assumption'!$I$13+IF(AND(D10=0,D11=1),'Actuarial Assumption'!$I$12*$K$4,0))*IF(B11<DynYear,0,1) -> 0 | AB11: 0 | AD11: 1 | AE11: 16212.79643
A12: 2020 | B12: 4 | C12: 54 | D12: 0 | E12: 29 | F12: =F11*(1+INDEX('Scn Y'!$A$5:$AR$106,IF(Scn>0,1,0)*51+MIN(51,IndLiab!B12+1),40)/100*$I$4) -> 1.148821163 | G12: =IF(D12<1,1,G11*(1+MIN(Plan!$H$18,Plan!$H$17*INDEX('Scn Y'!$A$5:$AR$106,IF(Scn>0,1,0)*51+MIN(IndLiab!B12,50),11)/100))) -> 1 | H12: 109138.0105 | I12: =IF(D12=1,I11,IF(B12<Plan!$H$15,-PV(Plan!$H$14,MAX(0,Plan!$H$15-B12-1),IndLiab!$H$8,,0)+SUM($H$8:H12),SUM(OFFSET($H$8,COUNT($H$8:H12)-Plan!$H$15,0,Plan!$H$15)))/MIN(E12,Plan!$H$15)) -> 102293.8111 | J12: =I12*$E$8*Plan!$H$16*G12 -> 25573.45277 | K12: =I12*E12*Plan!$H$16*G12 -> 29665.20522 | L12: =MIN(1,VLOOKUP(MIN(110,C12),'Actuarial Assumption'!$A$4:$C$115,IF(IndLiab!$F$4="M",2,3),FALSE)*Mort_S) -> 0.00838 | M12: =IF(E9="M",'Actuarial Assumption'!$E$21*MI_S,'Actuarial Assumption'!$F$21*MI_S) -> 0.01 | N12: 0.0082962 | O12: 0.9731139996 | P12: =P11/(1+Plan!$H$20) -> 0.854804191 | Q12: =IF(Plan!$C$7=1,CurveFitting!AM11,CurveFitting!AS11) -> 0.0199 | R12: 0.938683336 | S12: =IF(Scn=0,'Scn Y'!BC9,'Scn Y'!BC60)/100 -> 0.04979304158 | T12: 0.9256239143 | U12: =(1-$J$4)^MAX(0,Plan!$H$19-IndLiab!$B$4)*(D12*J12*O12*'Actuarial Assumption'!$I$13+IF(AND(D11=0,D12=1),'Actuarial Assumption'!$I$12*$K$4,0)) -> 0 | V12: =(1-$J$4)^MAX(0,Plan!$H$19-IndLiab!$B$4)*(D12*K12*O12*'Actuarial Assumption'!$I$13+IF(AND(D11=0,D12=1),'Actuarial Assumption'!$I$12*$L$4,0)) -> 0 | W12: 0 | X12: 0 | Y12: =IF(D12=0,1/MAX($E$8:$E$98)*IF(Plan!$I$23=1,$N$4,$O$4)/IF(Plan!$I$23=1,R12,T12)/O12,0) -> 969.7831798 | Z12: =I12*MIN(E12,$B$4+DynYear)*Plan!$H$16*G12 -> 25573.45277 | AA12: =(1-$J$4)^MAX(0,Plan!$H$19-IndLiab!$B$4)*(D12*Z12*O12*'Actuarial Assumption'!$I$13+IF(AND(D11=0,D12=1),'Actuarial Assumption'!$I$12*$K$4,0))*IF(B12<DynYear,0,1) -> 0 | AB12: 0 | AD12: 1 | AE12: 17894.07385
A13: 2021 | B13: 5 | C13: 55 | D13: 0 | E13: 30 | F13: =F12*(1+INDEX('Scn Y'!$A$5:$AR$106,IF(Scn>0,1,0)*51+MIN(51,IndLiab!B13+1),40)/100*$I$4) -> 1.185481693 | G13: =IF(D13<1,1,G12*(1+MIN(Plan!$H$18,Plan!$H$17*INDEX('Scn Y'!$A$5:$AR$106,IF(Scn>0,1,0)*51+MIN(IndLiab!B13,50),11)/100))) -> 1 | H13: 112620.7608 | I13: =IF(D13=1,I12,IF(B13<Plan!$H$15,-PV(Plan!$H$14,MAX(0,Plan!$H$15-B13-1),IndLiab!$H$8,,0)+SUM($H$8:H13),SUM(OFFSET($H$8,COUNT($H$8:H13)-Plan!$H$15,0,Plan!$H$15)))/MIN(E13,Plan!$H$15)) -> 105817.9633 | J13: =I13*$E$8*Plan!$H$16*G13 -> 26454.49081 | K13: =I13*E13*Plan!$H$16*G13 -> 31745.38898 | L13: =MIN(1,VLOOKUP(MIN(110,C13),'Actuarial Assumption'!$A$4:$C$115,IF(IndLiab!$F$4="M",2,3),FALSE)*Mort_S) -> 0.009118 | M13: =IF(E10="M",'Actuarial Assumption'!$E$21*MI_S,'Actuarial Assumption'!$F$21*MI_S) -> 0.01 | N13: 0.00902682 | O13: 0.9650408512 | P13: =P12/(1+Plan!$H$20) -> 0.8219271068 | Q13: =IF(Plan!$C$7=1,CurveFitting!AM12,CurveFitting!AS12) -> 0.0222 | R13: 0.9182971395 | S13: =IF(Scn=0,'Scn Y'!BC10,'Scn Y'!BC61)/100 -> 0.04991584592 | T13: 0.8816172438 | U13: =(1-$J$4)^MAX(0,Plan!$H$19-IndLiab!$B$4)*(D13*J13*O13*'Actuarial Assumption'!$I$13+IF(AND(D12=0,D13=1),'Actuarial Assumption'!$I$12*$K$4,0)) -> 0 | V13: =(1-$J$4)^MAX(0,Plan!$H$19-IndLiab!$B$4)*(D13*K13*O13*'Actuarial Assumption'!$I$13+IF(AND(D12=0,D13=1),'Actuarial Assumption'!$I$12*$L$4,0)) -> 0 | W13: 0 | X13: 0 | Y13: =IF(D13=0,1/MAX($E$8:$E$98)*IF(Plan!$I$23=1,$N$4,$O$4)/IF(Plan!$I$23=1,R13,T13)/O13,0) -> 1026.708507 | Z13: =I13*MIN(E13,$B$4+DynYear)*Plan!$H$16*G13 -> 26454.49081 | AA13: =(1-$J$4)^MAX(0,Plan!$H$19-IndLiab!$B$4)*(D13*Z13*O13*'Actuarial Assumption'!$I$13+IF(AND(D12=0,D13=1),'Actuarial Assumption'!$I$12*$K$4,0))*IF(B13<DynYear,0,1) -> 0 | AB13: 0 | AD13: 1 | AE13: 19620.60328
A14: 2022 | B14: 6 | C14: 56 | D14: 0 | E14: 31 | F14: =F13*(1+INDEX('Scn Y'!$A$5:$AR$106,IF(Scn>0,1,0)*51+MIN(51,IndLiab!B14+1),40)/100*$I$4) -> 1.224452527 | G14: =IF(D14<1,1,G13*(1+MIN(Plan!$H$18,Plan!$H$17*INDEX('Scn Y'!$A$5:$AR$106,IF(Scn>0,1,0)*51+MIN(IndLiab!B14,50),11)/100))) -> 1 | H14: 116322.9901 | I14: =IF(D14=1,I13,IF(B14<Plan!$H$15,-PV(Plan!$H$14,MAX(0,Plan!$H$15-B14-1),IndLiab!$H$8,,0)+SUM($H$8:H14),SUM(OFFSET($H$8,COUNT($H$8:H14)-Plan!$H$15,0,Plan!$H$15)))/MIN(E14,Plan!$H$15)) -> 109278.6317 | J14: =I14*$E$8*Plan!$H$16*G14 -> 27319.65792 | K14: =I14*E14*Plan!$H$16*G14 -> 33876.37582 | L14: =MIN(1,VLOOKUP(MIN(110,C14),'Actuarial Assumption'!$A$4:$C$115,IF(IndLiab!$F$4="M",2,3),FALSE)*Mort_S) -> 0.009935 | M14: =IF(E11="M",'Actuarial Assumption'!$E$21*MI_S,'Actuarial Assumption'!$F$21*MI_S) -> 0.01 | N14: 0.00983565 | O14: 0.9563296012 | P14: =P13/(1+Plan!$H$20) -> 0.7903145257 | Q14: =IF(Plan!$C$7=1,CurveFitting!AM13,CurveFitting!AS13) -> 0.0238 | R14: 0.8969497358 | S14: =IF(Scn=0,'Scn Y'!BC11,'Scn Y'!BC62)/100 -> 0.04577793915 | T14: 0.8430252837 | U14: =(1-$J$4)^MAX(0,Plan!$H$19-IndLiab!$B$4)*(D14*J14*O14*'Actuarial Assumption'!$I$13+IF(AND(D13=0,D14=1),'Actuarial Assumption'!$I$12*$K$4,0)) -> 0 | V14: =(1-$J$4)^MAX(0,Plan!$H$19-IndLiab!$B$4)*(D14*K14*O14*'Actuarial Assumption'!$I$13+IF(AND(D13=0,D14=1),'Actuarial Assumption'!$I$12*$L$4,0)) -> 0 | W14: 0 | X14: 0 | Y14: =IF(D14=0,1/MAX($E$8:$E$98)*IF(Plan!$I$23=1,$N$4,$O$4)/IF(Plan!$I$23=1,R14,T14)/O14,0) -> 1083.489572 | Z14: =I14*MIN(E14,$B$4+DynYear)*Plan!$H$16*G14 -> 27319.65792 | AA14: =(1-$J$4)^MAX(0,Plan!$H$19-IndLiab!$B$4)*(D14*Z14*O14*'Actuarial Assumption'!$I$13+IF(AND(D13=0,D14=1),'Actuarial Assumption'!$I$12*$K$4,0))*IF(B14<DynYear,0,1) -> 0 | AB14: 0 | AD14: 1 | AE14: 21237.98537
A15: 2023 | B15: 7 | C15: 57 | D15: 0 | E15: 32 | F15: =F14*(1+INDEX('Scn Y'!$A$5:$AR$106,IF(Scn>0,1,0)*51+MIN(51,IndLiab!B15+1),40)/100*$I$4) -> 1.265850303 | G15: =IF(D15<1,1,G14*(1+MIN(Plan!$H$18,Plan!$H$17*INDEX('Scn Y'!$A$5:$AR$106,IF(Scn>0,1,0)*51+MIN(IndLiab!B15,50),11)/100))) -> 1 | H15: 120255.7788 | I15: =IF(D15=1,I14,IF(B15<Plan!$H$15,-PV(Plan!$H$14,MAX(0,Plan!$H$15-B15-1),IndLiab!$H$8,,0)+SUM($H$8:H15),SUM(OFFSET($H$8,COUNT($H$8:H15)-Plan!$H$15,0,Plan!$H$15)))/MIN(E15,Plan!$H$15)) -> 112829.4461 | J15: =I15*$E$8*Plan!$H$16*G15 -> 28207.36154 | K15: =I15*E15*Plan!$H$16*G15 -> 36105.42277 | L15: =MIN(1,VLOOKUP(MIN(110,C15),'Actuarial Assumption'!$A$4:$C$115,IF(IndLiab!$F$4="M",2,3),FALSE)*Mort_S) -> 0.010839 | M15: =IF(E12="M",'Actuarial Assumption'!$E$21*MI_S,'Actuarial Assumption'!$F$21*MI_S) -> 0.01 | N15: 0.01073061 | O15: 0.9469234779 | P15: =P14/(1+Plan!$H$20) -> 0.7599178132 | Q15: =IF(Plan!$C$7=1,CurveFitting!AM14,CurveFitting!AS14) -> 0.0254 | R15: 0.8747315543 | S15: =IF(Scn=0,'Scn Y'!BC12,'Scn Y'!BC63)/100 -> 0.04124182379 | T15: 0.8096344811 | U15: =(1-$J$4)^MAX(0,Plan!$H$19-IndLiab!$B$4)*(D15*J15*O15*'Actuarial Assumption'!$I$13+IF(AND(D14=0,D15=1),'Actuarial Assumption'!$I$12*$K$4,0)) -> 0 | V15: =(1-$J$4)^MAX(0,Plan!$H$19-IndLiab!$B$4)*(D15*K15*O15*'Actuarial Assumption'!$I$13+IF(AND(D14=0,D15=1),'Actuarial Assumption'!$I$12*$L$4,0)) -> 0 | W15: 0 | X15: 0 | Y15: =IF(D15=0,1/MAX($E$8:$E$98)*IF(Plan!$I$23=1,$N$4,$O$4)/IF(Plan!$I$23=1,R15,T15)/O15,0) -> 1139.381212 | Z15: =I15*MIN(E15,$B$4+DynYear)*Plan!$H$16*G15 -> 28207.36154 | AA15: =(1-$J$4)^MAX(0,Plan!$H$19-IndLiab!$B$4)*(D15*Z15*O15*'Actuarial Assumption'!$I$13+IF(AND(D14=0,D15=1),'Actuarial Assumption'!$I$12*$K$4,0))*IF(B15<DynYear,0,1) -> 0 | AB15: 0 | AD15: 1 | AE15: 22734.60719
A16: 2024 | B16: 8 | C16: 58 | D16: 0 | E16: 33 | F16: =F15*(1+INDEX('Scn Y'!$A$5:$AR$106,IF(Scn>0,1,0)*51+MIN(51,IndLiab!B16+1),40)/100*$I$4) -> 1.309480224 | G16: =IF(D16<1,1,G15*(1+MIN(Plan!$H$18,Plan!$H$17*INDEX('Scn Y'!$A$5:$AR$106,IF(Scn>0,1,0)*51+MIN(IndLiab!B16,50),11)/100))) -> 1 | H16: 124400.6212 | I16: =IF(D16=1,I15,IF(B16<Plan!$H$15,-PV(Plan!$H$14,MAX(0,Plan!$H$15-B16-1),IndLiab!$H$8,,0)+SUM($H$8:H16),SUM(OFFSET($H$8,COUNT($H$8:H16)-Plan!$H$15,0,Plan!$H$15)))/MIN(E16,Plan!$H$15)) -> 116547.6323 | J16: =I16*$E$8*Plan!$H$16*G16 -> 29136.90807 | K16: 18480.69955 | L16: 0.029016 | M16: 0.01 | N16: 0.02872584 | O16: 0.9367624114 | P16: =P15/(1+Plan!$H$20) -> 0.730690205 | Q16: =IF(Plan!$C$7=1,CurveFitting!AM15,CurveFitting!AS15) -> 0.02606666667 | R16: 0.852509474 | S16: =IF(Scn=0,'Scn Y'!BC13,'Scn Y'!BC64)/100 -> 0.03829614522 | T16: 0.7797722112 | U16: =(1-$J$4)^MAX(0,Plan!$H$19-IndLiab!$B$4)*(D16*J16*O16*'Actuarial Assumption'!$I$13+IF(AND(D15=0,D16=1),'Actuarial Assumption'!$I$12*$K$4,0)) -> 0 | V16: =(1-$J$4)^MAX(0,Plan!$H$19-IndLiab!$B$4)*(D16*K16*O16*'Actuarial Assumption'!$I$13+IF(AND(D15=0,D16=1),'Actuarial Assumption'!$I$12*$L$4,0)) -> 0 | W16: 0 | X16: 0 | Y16: =IF(D16=0,1/MAX($E$8:$E$98)*IF(Plan!$I$23=1,$N$4,$O$4)/IF(Plan!$I$23=1,R16,T16)/O16,0) -> 1195.847292 | Z16: =I16*MIN(E16,$B$4+DynYear)*Plan!$H$16*G16 -> 29136.90807 | AA16: =(1-$J$4)^MAX(0,Plan!$H$19-IndLiab!$B$4)*(D16*Z16*O16*'Actuarial Assumption'!$I$13+IF(AND(D15=0,D16=1),'Actuarial Assumption'!$I$12*$K$4,0))*IF(B16<DynYear,0,1) -> 0 | AB16: 0 | AD16: 1 | AE16: 24185.52574
A17: 2025 | B17: 9 | C17: 59 | D17: 0 | E17: 34 | F17: =F16*(1+INDEX('Scn Y'!$A$5:$AR$106,IF(Scn>0,1,0)*51+MIN(51,IndLiab!B17+1),40)/100*$I$4) -> 1.355062809 | G17: =IF(D17<1,1,G16*(1+MIN(Plan!$H$18,Plan!$H$17*INDEX('Scn Y'!$A$5:$AR$106,IF(Scn>0,1,0)*51+MIN(IndLiab!B17,50),11)/100))) -> 1 | H17: 128730.9669 | I17: =IF(D17=1,I16,IF(B17<Plan!$H$15,-PV(Plan!$H$14,MAX(0,Plan!$H$15-B17-1),IndLiab!$H$8,,0)+SUM($H$8:H17),SUM(OFFSET($H$8,COUNT($H$8:H17)-Plan!$H$15,0,Plan!$H$15)))/MIN(E17,Plan!$H$15)) -> 120466.2236 | J17: =I17*$E$8*Plan!$H$16*G17 -> 30116.55589 | K17: =I17*E17*Plan!$H$16*G17 -> 40958.51601 | L17: =MIN(1,VLOOKUP(MIN(110,C17),'Actuarial Assumption'!$A$4:$C$115,IF(IndLiab!$F$4="M",2,3),FALSE)*Mort_S) -> 0.012944 | M17: =IF(E14="M",'Actuarial Assumption'!$E$21*MI_S,'Actuarial Assumption'!$F$21*MI_S) -> 0.01 | N17: 0.01281456 | O17: 0.9098531243 | P17: =P16/(1+Plan!$H$20) -> 0.7025867356 | Q17: =IF(Plan!$C$7=1,CurveFitting!AM16,CurveFitting!AS16) -> 0.02673333333 | R17: 0.8303124544 | S17: =IF(Scn=0,'Scn Y'!BC14,'Scn Y'!BC65)/100 -> 0.03734808701 | T17: 0.7516977387 | U17: =(1-$J$4)^MAX(0,Plan!$H$19-IndLiab!$B$4)*(D17*J17*O17*'Actuarial Assumption'!$I$13+IF(AND(D16=0,D17=1),'Actuarial Assumption'!$I$12*$K$4,0)) -> 0 | V17: =(1-$J$4)^MAX(0,Plan!$H$19-IndLiab!$B$4)*(D17*K17*O17*'Actuarial Assumption'!$I$13+IF(AND(D16=0,D17=1),'Actuarial Assumption'!$I$12*$L$4,0)) -> 0 | W17: 0 | X17: 0 | Y17: =IF(D17=0,1/MAX($E$8:$E$98)*IF(Plan!$I$23=1,$N$4,$O$4)/IF(Plan!$I$23=1,R17,T17)/O17,0) -> 1277.1985 | Z17: =I17*MIN(E17,$B$4+DynYear)*Plan!$H$16*G17 -> 30116.55589 | AA17: =(1-$J$4)^MAX(0,Plan!$H$19-IndLiab!$B$4)*(D17*Z17*O17*'Actuarial Assumption'!$I$13+IF(AND(D16=0,D17=1),'Actuarial Assumption'!$I$12*$K$4,0))*IF(B17<DynYear,0,1) -> 0 | AB17: 0 | AD17: 1 | AE17: 25686.37967
A18: 2026 | B18: 10 | C18: 60 | D18: 0 | E18: 35 | F18: =F17*(1+INDEX('Scn Y'!$A$5:$AR$106,IF(Scn>0,1,0)*51+MIN(51,IndLiab!B18+1),40)/100*$I$4) -> 1.40237649 | G18: =IF(D18<1,1,G17*(1+MIN(Plan!$H$18,Plan!$H$17*INDEX('Scn Y'!$A$5:$AR$106,IF(Scn>0,1,0)*51+MIN(IndLiab!B18,50),11)/100))) -> 1 | H18: 133225.7665 | I18: =IF(D18=1,I17,IF(B18<Plan!$H$15,-PV(Plan!$H$14,MAX(0,Plan!$H$15-B18-1),IndLiab!$H$8,,0)+SUM($H$8:H18),SUM(OFFSET($H$8,COUNT($H$8:H18)-Plan!$H$15,0,Plan!$H$15)))/MIN(E18,Plan!$H$15)) -> 124587.2247 | J18: =I18*$E$8*Plan!$H$16*G18 -> 31146.80618 | K18: =I18*E18*Plan!$H$16*G18 -> 43605.52865 | L18: =MIN(1,VLOOKUP(MIN(110,C18),'Actuarial Assumption'!$A$4:$C$115,IF(IndLiab!$F$4="M",2,3),FALSE)*Mort_S) -> 0.014158 | M18: =IF(E15="M",'Actuarial Assumption'!$E$21*MI_S,'Actuarial Assumption'!$F$21*MI_S) -> 0.01 | N18: 0.01401642 | O18: 0.8981937568 | P18: =P17/(1+Plan!$H$20) -> 0.6755641688 | Q18: =IF(Plan!$C$7=1,CurveFitting!AM17,CurveFitting!AS17) -> 0.0274 | R18: 0.8081686338 | S18: =IF(Scn=0,'Scn Y'!BC15,'Scn Y'!BC66)/100 -> 0.03790967695 | T18: 0.72424196 | U18: =(1-$J$4)^MAX(0,Plan!$H$19-IndLiab!$B$4)*(D18*J18*O18*'Actuarial Assumption'!$I$13+IF(AND(D17=0,D18=1),'Actuarial Assumption'!$I$12*$K$4,0)) -> 0 | V18: =(1-$J$4)^MAX(0,Plan!$H$19-IndLiab!$B$4)*(D18*K18*O18*'Actuarial Assumption'!$I$13+IF(AND(D17=0,D18=1),'Actuarial Assumption'!$I$12*$L$4,0)) -> 0 | W18: 0 | X18: 0 | Y18: =IF(D18=0,1/MAX($E$8:$E$98)*IF(Plan!$I$23=1,$N$4,$O$4)/IF(Plan!$I$23=1,R18,T18)/O18,0) -> 1342.824386 | Z18: =I18*MIN(E18,$B$4+DynYear)*Plan!$H$16*G18 -> 31146.80618 | AA18: =(1-$J$4)^MAX(0,Plan!$H$19-IndLiab!$B$4)*(D18*Z18*O18*'Actuarial Assumption'!$I$13+IF(AND(D17=0,D18=1),'Actuarial Assumption'!$I$12*$K$4,0))*IF(B18<DynYear,0,1) -> 0 | AB18: 0 | AD18: 1 | AE18: 27312.18922
A19: 2027 | B19: 11 | C19: 61 | D19: 0 | E19: 36 | F19: =F18*(1+INDEX('Scn Y'!$A$5:$AR$106,IF(Scn>0,1,0)*51+MIN(51,IndLiab!B19+1),40)/100*$I$4) -> 1.451313714 | G19: =IF(D19<1,1,G18*(1+MIN(Plan!$H$18,Plan!$H$17*INDEX('Scn Y'!$A$5:$AR$106,IF(Scn>0,1,0)*51+MIN(IndLiab!B19,50),11)/100))) -> 1 | H19: 137874.8028 | I19: =IF(D19=1,I18,IF(B19<Plan!$H$15,-PV(Plan!$H$14,MAX(0,Plan!$H$15-B19-1),IndLiab!$H$8,,0)+SUM($H$8:H19),SUM(OFFSET($H$8,COUNT($H$8:H19)-Plan!$H$15,0,Plan!$H$15)))/MIN(E19,Plan!$H$15)) -> 128897.5873 | J19: =I19*$E$8*Plan!$H$16*G19 -> 32224.39681 | K19: =I19*E19*Plan!$H$16*G19 -> 46403.13141 | L19: =MIN(1,VLOOKUP(MIN(110,C19),'Actuarial Assumption'!$A$4:$C$115,IF(IndLiab!$F$4="M",2,3),FALSE)*Mort_S) -> 0.015488 | M19: =IF(E16="M",'Actuarial Assumption'!$E$21*MI_S,'Actuarial Assumption'!$F$21*MI_S) -> 0.01 | N19: 0.01533312 | O19: 0.8856042959 | P19: =P18/(1+Plan!$H$20) -> 0.6495809316 | Q19: =IF(Plan!$C$7=1,CurveFitting!AM18,CurveFitting!AS18) -> 0.02774 | R19: 0.7863551422 | S19: =IF(Scn=0,'Scn Y'!BC16,'Scn Y'!BC67)/100 -> 0.03922856739 | T19: 0.6969034365 | U19: =(1-$J$4)^MAX(0,Plan!$H$19-IndLiab!$B$4)*(D19*J19*O19*'Actuarial Assumption'!$I$13+IF(AND(D18=0,D19=1),'Actuarial Assumption'!$I$12*$K$4,0)) -> 0 | V19: =(1-$J$4)^MAX(0,Plan!$H$19-IndLiab!$B$4)*(D19*K19*O19*'Actuarial Assumption'!$I$13+IF(AND(D18=0,D19=1),'Actuarial Assumption'!$I$12*$L$4,0)) -> 0 | W19: 0 | X19: 0 | Y19: =IF(D19=0,1/MAX($E$8:$E$98)*IF(Plan!$I$23=1,$N$4,$O$4)/IF(Plan!$I$23=1,R19,T19)/O19,0) -> 1415.339456 | Z19: =I19*MIN(E19,$B$4+DynYear)*Plan!$H$16*G19 -> 32224.39681 | AA19: =(1-$J$4)^MAX(0,Plan!$H$19-IndLiab!$B$4)*(D19*Z19*O19*'Actuarial Assumption'!$I$13+IF(AND(D18=0,D19=1),'Actuarial Assumption'!$I$12*$K$4,0))*IF(B19<DynYear,0,1) -> 0 | AB19: 0 | AD19: 1 | AE19: 29104.77792
A20: 2028 | B20: 12 | C20: 62 | D20: 0 | E20: 37 | F20: =F19*(1+INDEX('Scn Y'!$A$5:$AR$106,IF(Scn>0,1,0)*51+MIN(51,IndLiab!B20+1),40)/100*$I$4) -> 1.501875332 | G20: =IF(D20<1,1,G19*(1+MIN(Plan!$H$18,Plan!$H$17*INDEX('Scn Y'!$A$5:$AR$106,IF(Scn>0,1,0)*51+MIN(IndLiab!B20,50),11)/100))) -> 1 | H20: 142678.1566 | I20: =IF(D20=1,I19,IF(B20<Plan!$H$15,-PV(Plan!$H$14,MAX(0,Plan!$H$15-B20-1),IndLiab!$H$8,,0)+SUM($H$8:H20),SUM(OFFSET($H$8,COUNT($H$8:H20)-Plan!$H$15,0,Plan!$H$15)))/MIN(E20,Plan!$H$15)) -> 133382.0628 | J20: =I20*$E$8*Plan!$H$16*G20 -> 33345.5157 | K20: =I20*E20*Plan!$H$16*G20 -> 49351.36324 | L20: =MIN(1,VLOOKUP(MIN(110,C20),'Actuarial Assumption'!$A$4:$C$115,IF(IndLiab!$F$4="M",2,3),FALSE)*Mort_S) -> 0.016942 | M20: =IF(E17="M",'Actuarial Assumption'!$E$21*MI_S,'Actuarial Assumption'!$F$21*MI_S) -> 0.01 | N20: 0.01677258 | O20: 0.8720252189 | P20: =P19/(1+Plan!$H$20) -> 0.6245970496 | Q20: =IF(Plan!$C$7=1,CurveFitting!AM19,CurveFitting!AS19) -> 0.02808 | R20: 0.7648773852 | S20: =IF(Scn=0,'Scn Y'!BC17,'Scn Y'!BC68)/100 -> 0.0406738444 | T20: 0.6696655636 | U20: =(1-$J$4)^MAX(0,Plan!$H$19-IndLiab!$B$4)*(D20*J20*O20*'Actuarial Assumption'!$I$13+IF(AND(D19=0,D20=1),'Actuarial Assumption'!$I$12*$K$4,0)) -> 0 | V20: =(1-$J$4)^MAX(0,Plan!$H$19-IndLiab!$B$4)*(D20*K20*O20*'Actuarial Assumption'!$I$13+IF(AND(D19=0,D20=1),'Actuarial Assumption'!$I$12*$L$4,0)) -> 0 | W20: 0 | X20: 0 | Y20: =IF(D20=0,1/MAX($E$8:$E$98)*IF(Plan!$I$23=1,$N$4,$O$4)/IF(Plan!$I$23=1,R20,T20)/O20,0) -> 1495.842688 | Z20: =I20*MIN(E20,$B$4+DynYear)*Plan!$H$16*G20 -> 33345.5157 | AA20: =(1-$J$4)^MAX(0,Plan!$H$19-IndLiab!$B$4)*(D20*Z20*O20*'Actuarial Assumption'!$I$13+IF(AND(D19=0,D20=1),'Actuarial Assumption'!$I$12*$K$4,0))*IF(B20<DynYear,0,1) -> 0 | AB20: 0 | AD20: 1 | AE20: 31076.08515
A21: 2029 | B21: 13 | C21: 63 | D21: 0 | E21: 38 | F21: =F20*(1+INDEX('Scn Y'!$A$5:$AR$106,IF(Scn>0,1,0)*51+MIN(51,IndLiab!B21+1),40)/100*$I$4) -> 1.554134904 | G21: =IF(D21<1,1,G20*(1+MIN(Plan!$H$18,Plan!$H$17*INDEX('Scn Y'!$A$5:$AR$106,IF(Scn>0,1,0)*51+MIN(IndLiab!B21,50),11)/100))) -> 1 | H21: 147642.8159 | I21: =IF(D21=1,I20,IF(B21<Plan!$H$15,-PV(Plan!$H$14,MAX(0,Plan!$H$15-B21-1),IndLiab!$H$8,,0)+SUM($H$8:H21),SUM(OFFSET($H$8,COUNT($H$8:H21)-Plan!$H$15,0,Plan!$H$15)))/MIN(E21,Plan!$H$15)) -> 138030.5017 | J21: =I21*$E$8*Plan!$H$16*G21 -> 34507.62543 | K21: =I21*E21*Plan!$H$16*G21 -> 52451.59066 | L21: =MIN(1,VLOOKUP(MIN(110,C21),'Actuarial Assumption'!$A$4:$C$115,IF(IndLiab!$F$4="M",2,3),FALSE)*Mort_S) -> 0.018528 | M21: =IF(E18="M",'Actuarial Assumption'!$E$21*MI_S,'Actuarial Assumption'!$F$21*MI_S) -> 0.01 | N21: 0.01834272 | O21: 0.8573991062 | P21: =P20/(1+Plan!$H$20) -> 0.6005740861 | Q21: =IF(Plan!$C$7=1,CurveFitting!AM20,CurveFitting!AS20) -> 0.02842 | R21: 0.7437402863 | S21: =IF(Scn=0,'Scn Y'!BC18,'Scn Y'!BC69)/100 -> 0.04187807805 | T21: 0.6427484921 | U21: =(1-$J$4)^MAX(0,Plan!$H$19-IndLiab!$B$4)*(D21*J21*O21*'Actuarial Assumption'!$I$13+IF(AND(D20=0,D21=1),'Actuarial Assumption'!$I$12*$K$4,0)) -> 0 | V21: =(1-$J$4)^MAX(0,Plan!$H$19-IndLiab!$B$4)*(D21*K21*O21*'Actuarial Assumption'!$I$13+IF(AND(D20=0,D21=1),'Actuarial Assumption'!$I$12*$L$4,0)) -> 0 | W21: 0 | X21: 0 | Y21: =IF(D21=0,1/MAX($E$8:$E$98)*IF(Plan!$I$23=1,$N$4,$O$4)/IF(Plan!$I$23=1,R21,T21)/O21,0) -> 1585.071442 | Z21: =I21*MIN(E21,$B$4+DynYear)*Plan!$H$16*G21 -> 34507.62543 | AA21: =(1-$J$4)^MAX(0,Plan!$H$19-IndLiab!$B$4)*(D21*Z21*O21*'Actuarial Assumption'!$I$13+IF(AND(D20=0,D21=1),'Actuarial Assumption'!$I$12*$K$4,0))*IF(B21<DynYear,0,1) -> 0 | AB21: 0 | AD21: 1 | AE21: 33223.51457
A22: 2030 | B22: 14 | C22: 64 | D22: 0 | E22: 39 | F22: =F21*(1+INDEX('Scn Y'!$A$5:$AR$106,IF(Scn>0,1,0)*51+MIN(51,IndLiab!B22+1),40)/100*$I$4) -> 1.608198621 | G22: =IF(D22<1,1,G21*(1+MIN(Plan!$H$18,Plan!$H$17*INDEX('Scn Y'!$A$5:$AR$106,IF(Scn>0,1,0)*51+MIN(IndLiab!B22,50),11)/100))) -> 1 | H22: 152778.869 | I22: =IF(D22=1,I21,IF(B22<Plan!$H$15,-PV(Plan!$H$14,MAX(0,Plan!$H$15-B22-1),IndLiab!$H$8,,0)+SUM($H$8:H22),SUM(OFFSET($H$8,COUNT($H$8:H22)-Plan!$H$15,0,Plan!$H$15)))/MIN(E22,Plan!$H$15)) -> 142840.0822 | J22: =I22*$E$8*Plan!$H$16*G22 -> 35710.02054 | K22: =I22*E22*Plan!$H$16*G22 -> 55707.63204 | L22: =MIN(1,VLOOKUP(MIN(110,C22),'Actuarial Assumption'!$A$4:$C$115,IF(IndLiab!$F$4="M",2,3),FALSE)*Mort_S) -> 0.020261 | M22: =IF(E19="M",'Actuarial Assumption'!$E$21*MI_S,'Actuarial Assumption'!$F$21*MI_S) -> 0.01 | N22: 0.02005839 | O22: 0.8416720745 | P22: =P21/(1+Plan!$H$20) -> 0.5774750828 | Q22: =IF(Plan!$C$7=1,CurveFitting!AM21,CurveFitting!AS21) -> 0.02876 | R22: 0.7229482934 | S22: =IF(Scn=0,'Scn Y'!BC19,'Scn Y'!BC70)/100 -> 0.04271959326 | T22: 0.6164154738 | U22: =(1-$J$4)^MAX(0,Plan!$H$19-IndLiab!$B$4)*(D22*J22*O22*'Actuarial Assumption'!$I$13+IF(AND(D21=0,D22=1),'Actuarial Assumption'!$I$12*$K$4,0)) -> 0 | V22: =(1-$J$4)^MAX(0,Plan!$H$19-IndLiab!$B$4)*(D22*K22*O22*'Actuarial Assumption'!$I$13+IF(AND(D21=0,D22=1),'Actuarial Assumption'!$I$12*$L$4,0)) -> 0 | W22: 0 | X22: 0 | Y22: =IF(D22=0,1/MAX($E$8:$E$98)*IF(Plan!$I$23=1,$N$4,$O$4)/IF(Plan!$I$23=1,R22,T22)/O22,0) -> 1683.668102 | Z22: =I22*MIN(E22,$B$4+DynYear)*Plan!$H$16*G22 -> 35710.02054 | AA22: =(1-$J$4)^MAX(0,Plan!$H$19-IndLiab!$B$4)*(D22*Z22*O22*'Actuarial Assumption'!$I$13+IF(AND(D21=0,D22=1),'Actuarial Assumption'!$I$12*$K$4,0))*IF(B22<DynYear,0,1) -> 0 | AB22: 0 | AD22: 1 | AE22: 35540.44727
A23: 2031 | B23: 15 | C23: 65 | D23: 1 | E23: 39 | F23: =F22*(1+INDEX('Scn Y'!$A$5:$AR$106,IF(Scn>0,1,0)*51+MIN(51,IndLiab!B23+1),40)/100*$I$4) -> 1.664175475 | G23: =IF(D23<1,1,G22*(1+MIN(Plan!$H$18,Plan!$H$17*INDEX('Scn Y'!$A$5:$AR$106,IF(Scn>0,1,0)*51+MIN(IndLiab!B23,50),11)/100))) -> 1.013948791 | H23: 152778.869 | I23: =IF(D23=1,I22,IF(B23<Plan!$H$15,-PV(Plan!$H$14,MAX(0,Plan!$H$15-B23-1),IndLiab!$H$8,,0)+SUM($H$8:H23),SUM(OFFSET($H$8,COUNT($H$8:H23)-Plan!$H$15,0,Plan!$H$15)))/MIN(E23,Plan!$H$15)) -> 142840.0822 | J23: =I23*$E$8*Plan!$H$16*G23 -> 36208.13215 | K23: =I23*E23*Plan!$H$16*G23 -> 56484.68615 | L23: =MIN(1,VLOOKUP(MIN(110,C23),'Actuarial Assumption'!$A$4:$C$115,IF(IndLiab!$F$4="M",2,3),FALSE)*Mort_S) -> 0.022157 | M23: =IF(E20="M",'Actuarial Assumption'!$E$21*MI_S,'Actuarial Assumption'!$F$21*MI_S) -> 0.01 | N23: 0.02193543 | O23: 0.8247894877 | P23: =P22/(1+Plan!$H$20) -> 0.5552645027 | Q23: =IF(Plan!$C$7=1,CurveFitting!AM22,CurveFitting!AS22) -> 0.0291 | R23: 0.7025053866 | S23: =IF(Scn=0,'Scn Y'!BC20,'Scn Y'!BC71)/100 -> 0.04323561813 | T23: 0.590868892 | U23: =(1-$J$4)^MAX(0,Plan!$H$19-IndLiab!$B$4)*(D23*J23*O23*'Actuarial Assumption'!$I$13+IF(AND(D22=0,D23=1),'Actuarial Assumption'!$I$12*$K$4,0)) -> 69761.37415 | V23: =(1-$J$4)^MAX(0,Plan!$H$19-IndLiab!$B$4)*(D23*K23*O23*'Actuarial Assumption'!$I$13+IF(AND(D22=0,D23=1),'Actuarial Assumption'!$I$12*$L$4,0)) -> 108827.7437 | W23: 6976.137415 | X23: 10882.77437 | Y23: =IF(D23=0,1/MAX($E$8:$E$98)*IF(Plan!$I$23=1,$N$4,$O$4)/IF(Plan!$I$23=1,R23,T23)/O23,0) -> 0 | Z23: =I23*MIN(E23,$B$4+DynYear)*Plan!$H$16*G23 -> 36208.13215 | AA23: =(1-$J$4)^MAX(0,Plan!$H$19-IndLiab!$B$4)*(D23*Z23*O23*'Actuarial Assumption'!$I$13+IF(AND(D22=0,D23=1),'Actuarial Assumption'!$I$12*$K$4,0))*IF(B23<DynYear,0,1) -> 69761.37415 | AB23: 6976.137415 | AD23: 1 | AE23: 38018.60387
A24: 2032 | B24: 16 | C24: 66 | D24: 1 | E24: 39 | F24: =F23*(1+INDEX('Scn Y'!$A$5:$AR$106,IF(Scn>0,1,0)*51+MIN(51,IndLiab!B24+1),40)/100*$I$4) -> 1.722162003 | G24: =IF(D24<1,1,G23*(1+MIN(Plan!$H$18,Plan!$H$17*INDEX('Scn Y'!$A$5:$AR$106,IF(Scn>0,1,0)*51+MIN(IndLiab!B24,50),11)/100))) -> 1.028139895 | H24: 152778.869 | I24: =IF(D24=1,I23,IF(B24<Plan!$H$15,-PV(Plan!$H$14,MAX(0,Plan!$H$15-B24-1),IndLiab!$H$8,,0)+SUM($H$8:H24),SUM(OFFSET($H$8,COUNT($H$8:H24)-Plan!$H$15,0,Plan!$H$15)))/MIN(E24,Plan!$H$15)) -> 142840.0822 | J24: =I24*$E$8*Plan!$H$16*G24 -> 36714.89676 | K24: =I24*E24*Plan!$H$16*G24 -> 57275.23895 | L24: =MIN(1,VLOOKUP(MIN(110,C24),'Actuarial Assumption'!$A$4:$C$115,IF(IndLiab!$F$4="M",2,3),FALSE)*Mort_S) -> 0.024233 | M24: =IF(E21="M",'Actuarial Assumption'!$E$21*MI_S,'Actuarial Assumption'!$F$21*MI_S) -> 0.01 | N24: 0.02399067 | O24: 0.8066973757 | P24: =P23/(1+Plan!$H$20) -> 0.5339081757 | Q24: =IF(Plan!$C$7=1,CurveFitting!AM23,CurveFitting!AS23) -> 0.02944 | R24: 0.6824150865 | S24: =IF(Scn=0,'Scn Y'!BC21,'Scn Y'!BC72)/100 -> 0.0435302632 | T24: 0.5662211369 | U24: =(1-$J$4)^MAX(0,Plan!$H$19-IndLiab!$B$4)*(D24*J24*O24*'Actuarial Assumption'!$I$13+IF(AND(D23=0,D24=1),'Actuarial Assumption'!$I$12*$K$4,0)) -> 26656.02978 | V24: =(1-$J$4)^MAX(0,Plan!$H$19-IndLiab!$B$4)*(D24*K24*O24*'Actuarial Assumption'!$I$13+IF(AND(D23=0,D24=1),'Actuarial Assumption'!$I$12*$L$4,0)) -> 41583.40646 | W24: 2665.602978 | X24: 4158.340646 | Y24: =IF(D24=0,1/MAX($E$8:$E$98)*IF(Plan!$I$23=1,$N$4,$O$4)/IF(Plan!$I$23=1,R24,T24)/O24,0) -> 0 | Z24: =I24*MIN(E24,$B$4+DynYear)*Plan!$H$16*G24 -> 36714.89676 | AA24: =(1-$J$4)^MAX(0,Plan!$H$19-IndLiab!$B$4)*(D24*Z24*O24*'Actuarial Assumption'!$I$13+IF(AND(D23=0,D24=1),'Actuarial Assumption'!$I$12*$K$4,0))*IF(B24<DynYear,0,1) -> 26656.02978 | AB24: 2665.602978 | AD24: 1 | AE24: 40657.31904
A25: 2033 | B25: 17 | C25: 67 | D25: 1 | E25: 39 | F25: =F24*(1+INDEX('Scn Y'!$A$5:$AR$106,IF(Scn>0,1,0)*51+MIN(51,IndLiab!B25+1),40)/100*$I$4) -> 1.78223924 | G25: =IF(D25<1,1,G24*(1+MIN(Plan!$H$18,Plan!$H$17*INDEX('Scn Y'!$A$5:$AR$106,IF(Scn>0,1,0)*51+MIN(IndLiab!B25,50),11)/100))) -> 1.042574064 | H25: 152778.869 | I25: =IF(D25=1,I24,IF(B25<Plan!$H$15,-PV(Plan!$H$14,MAX(0,Plan!$H$15-B25-1),IndLiab!$H$8,,0)+SUM($H$8:H25),SUM(OFFSET($H$8,COUNT($H$8:H25)-Plan!$H$15,0,Plan!$H$15)))/MIN(E25,Plan!$H$15)) -> 142840.0822 | J25: =I25*$E$8*Plan!$H$16*G25 -> 37230.34126 | K25: =I25*E25*Plan!$H$16*G25 -> 58079.33236 | L25: =MIN(1,VLOOKUP(MIN(110,C25),'Actuarial Assumption'!$A$4:$C$115,IF(IndLiab!$F$4="M",2,3),FALSE)*Mort_S) -> 0.026505 | M25: =IF(E22="M",'Actuarial Assumption'!$E$21*MI_S,'Actuarial Assumption'!$F$21*MI_S) -> 0.01 | N25: 0.02623995 | O25: 0.7873441651 | P25: =P24/(1+Plan!$H$20) -> 0.5133732459 | Q25: =IF(Plan!$C$7=1,CurveFitting!AM24,CurveFitting!AS24) -> 0.02978 | R25: 0.6626804623 | S25: =IF(Scn=0,'Scn Y'!BC22,'Scn Y'!BC73)/100 -> 0.04370905385 | T25: 0.5425085993 | U25: =(1-$J$4)^MAX(0,Plan!$H$19-IndLiab!$B$4)*(D25*J25*O25*'Actuarial Assumption'!$I$13+IF(AND(D24=0,D25=1),'Actuarial Assumption'!$I$12*$K$4,0)) -> 26381.78276 | V25: =(1-$J$4)^MAX(0,Plan!$H$19-IndLiab!$B$4)*(D25*K25*O25*'Actuarial Assumption'!$I$13+IF(AND(D24=0,D25=1),'Actuarial Assumption'!$I$12*$L$4,0)) -> 41155.5811 | W25: 2638.178276 | X25: 4115.55811 | Y25: =IF(D25=0,1/MAX($E$8:$E$98)*IF(Plan!$I$23=1,$N$4,$O$4)/IF(Plan!$I$23=1,R25,T25)/O25,0) -> 0 | Z25: =I25*MIN(E25,$B$4+DynYear)*Plan!$H$16*G25 -> 37230.34126 | AA25: =(1-$J$4)^MAX(0,Plan!$H$19-IndLiab!$B$4)*(D25*Z25*O25*'Actuarial Assumption'!$I$13+IF(AND(D24=0,D25=1),'Actuarial Assumption'!$I$12*$K$4,0))*IF(B25<DynYear,0,1) -> 26381.78276 | AB25: 2638.178276 | AD25: 1 | AE25: 43457.34947
A26: 2034 | B26: 18 | C26: 68 | D26: 1 | E26: 39 | F26: =F25*(1+INDEX('Scn Y'!$A$5:$AR$106,IF(Scn>0,1,0)*51+MIN(51,IndLiab!B26+1),40)/100*$I$4) -> 1.844476896 | G26: =IF(D26<1,1,G25*(1+MIN(Plan!$H$18,Plan!$H$17*INDEX('Scn Y'!$A$5:$AR$106,IF(Scn>0,1,0)*51+MIN(IndLiab!B26,50),11)/100))) -> 1.057249709 | H26: 152778.869 | I26: =IF(D26=1,I25,IF(B26<Plan!$H$15,-PV(Plan!$H$14,MAX(0,Plan!$H$15-B26-1),IndLiab!$H$8,,0)+SUM($H$8:H26),SUM(OFFSET($H$8,COUNT($H$8:H26)-Plan!$H$15,0,Plan!$H$15)))/MIN(E26,Plan!$H$15)) -> 142840.0822 | J26: =I26*$E$8*Plan!$H$16*G26 -> 37754.40884 | K26: =I26*E26*Plan!$H$16*G26 -> 58896.87779 | L26: =MIN(1,VLOOKUP(MIN(110,C26),'Actuarial Assumption'!$A$4:$C$115,IF(IndLiab!$F$4="M",2,3),FALSE)*Mort_S) -> 0.028992 | M26: =IF(E23="M",'Actuarial Assumption'!$E$21*MI_S,'Actuarial Assumption'!$F$21*MI_S) -> 0.01 | N26: 0.02870208 | O26: 0.7666842936 | P26: =P25/(1+Plan!$H$20) -> 0.493628121 | Q26: =IF(Plan!$C$7=1,CurveFitting!AM25,CurveFitting!AS25) -> 0.03012 | R26: 0.6433041416 | S26: =IF(Scn=0,'Scn Y'!BC23,'Scn Y'!BC74)/100 -> 0.04384683463 | T26: 0.5197205005 | U26: =(1-$J$4)^MAX(0,Plan!$H$19-IndLiab!$B$4)*(D26*J26*O26*'Actuarial Assumption'!$I$13+IF(AND(D25=0,D26=1),'Actuarial Assumption'!$I$12*$K$4,0)) -> 26051.14105 | V26: =(1-$J$4)^MAX(0,Plan!$H$19-IndLiab!$B$4)*(D26*K26*O26*'Actuarial Assumption'!$I$13+IF(AND(D25=0,D26=1),'Actuarial Assumption'!$I$12*$L$4,0)) -> 40639.78003 | W26: 2605.114105 | X26: 4063.978003 | Y26: =IF(D26=0,1/MAX($E$8:$E$98)*IF(Plan!$I$23=1,$N$4,$O$4)/IF(Plan!$I$23=1,R26,T26)/O26,0) -> 0 | Z26: =I26*MIN(E26,$B$4+DynYear)*Plan!$H$16*G26 -> 37754.40884 | AA26: =(1-$J$4)^MAX(0,Plan!$H$19-IndLiab!$B$4)*(D26*Z26*O26*'Actuarial Assumption'!$I$13+IF(AND(D25=0,D26=1),'Actuarial Assumption'!$I$12*$K$4,0))*IF(B26<DynYear,0,1) -> 26051.14105 | AB26: 2605.114105 | AD26: 1 | AE26: 46424.35555
A27: 2035 | B27: 19 | C27: 69 | D27: 1 | E27: 39 | F27: =F26*(1+INDEX('Scn Y'!$A$5:$AR$106,IF(Scn>0,1,0)*51+MIN(51,IndLiab!B27+1),40)/100*$I$4) -> 1.90893992 | G27: =IF(D27<1,1,G26*(1+MIN(Plan!$H$18,Plan!$H$17*INDEX('Scn Y'!$A$5:$AR$106,IF(Scn>0,1,0)*51+MIN(IndLiab!B27,50),11)/100))) -> 1.072164424 | H27: 152778.869 | I27: =IF(D27=1,I26,IF(B27<Plan!$H$15,-PV(Plan!$H$14,MAX(0,Plan!$H$15-B27-1),IndLiab!$H$8,,0)+SUM($H$8:H27),SUM(OFFSET($H$8,COUNT($H$8:H27)-Plan!$H$15,0,Plan!$H$15)))/MIN(E27,Plan!$H$15)) -> 142840.0822 | J27: =I27*$E$8*Plan!$H$16*G27 -> 38287.01361 | K27: =I27*E27*Plan!$H$16*G27 -> 59727.74123 | L27: =MIN(1,VLOOKUP(MIN(110,C27),'Actuarial Assumption'!$A$4:$C$115,IF(IndLiab!$F$4="M",2,3),FALSE)*Mort_S) -> 0.031715 | M27: =IF(E24="M",'Actuarial Assumption'!$E$21*MI_S,'Actuarial Assumption'!$F$21*MI_S) -> 0.01 | N27: 0.03139785 | O27: 0.7446788597 | P27: =P26/(1+Plan!$H$20) -> 0.474642424 | Q27: =IF(Plan!$C$7=1,CurveFitting!AM26,CurveFitting!AS26) -> 0.03046 | R27: 0.6242883193 | S27: =IF(Scn=0,'Scn Y'!BC24,'Scn Y'!BC75)/100 -> 0.04398184506 | T27: 0.4978252284 | U27: =(1-$J$4)^MAX(0,Plan!$H$19-IndLiab!$B$4)*(D27*J27*O27*'Actuarial Assumption'!$I$13+IF(AND(D26=0,D27=1),'Actuarial Assumption'!$I$12*$K$4,0)) -> 25660.37667 | V27: =(1-$J$4)^MAX(0,Plan!$H$19-IndLiab!$B$4)*(D27*K27*O27*'Actuarial Assumption'!$I$13+IF(AND(D26=0,D27=1),'Actuarial Assumption'!$I$12*$L$4,0)) -> 40030.18761 | W27: 2566.037667 | X27: 4003.018761 | Y27: =IF(D27=0,1/MAX($E$8:$E$98)*IF(Plan!$I$23=1,$N$4,$O$4)/IF(Plan!$I$23=1,R27,T27)/O27,0) -> 0 | Z27: =I27*MIN(E27,$B$4+DynYear)*Plan!$H$16*G27 -> 38287.01361 | AA27: =(1-$J$4)^MAX(0,Plan!$H$19-IndLiab!$B$4)*(D27*Z27*O27*'Actuarial Assumption'!$I$13+IF(AND(D26=0,D27=1),'Actuarial Assumption'!$I$12*$K$4,0))*IF(B27<DynYear,0,1) -> 25660.37667 | AB27: 2566.037667 | AD27: 1 | AE27: 49566.50374
A28: 2036 | B28: 20 | C28: 70 | D28: 1 | E28: 39 | F28: =F27*(1+INDEX('Scn Y'!$A$5:$AR$106,IF(Scn>0,1,0)*51+MIN(51,IndLiab!B28+1),40)/100*$I$4) -> 1.975694276 | G28: =IF(D28<1,1,G27*(1+MIN(Plan!$H$18,Plan!$H$17*INDEX('Scn Y'!$A$5:$AR$106,IF(Scn>0,1,0)*51+MIN(IndLiab!B28,50),11)/100))) -> 1.08731616 | H28: 152778.869 | I28: =IF(D28=1,I27,IF(B28<Plan!$H$15,-PV(Plan!$H$14,MAX(0,Plan!$H$15-B28-1),IndLiab!$H$8,,0)+SUM($H$8:H28),SUM(OFFSET($H$8,COUNT($H$8:H28)-Plan!$H$15,0,Plan!$H$15)))/MIN(E28,Plan!$H$15)) -> 142840.0822 | J28: =I28*$E$8*Plan!$H$16*G28 -> 38828.0824 | K28: =I28*E28*Plan!$H$16*G28 -> 60571.80855 | L28: =MIN(1,VLOOKUP(MIN(110,C28),'Actuarial Assumption'!$A$4:$C$115,IF(IndLiab!$F$4="M",2,3),FALSE)*Mort_S) -> 0.034698 | M28: =IF(E25="M",'Actuarial Assumption'!$E$21*MI_S,'Actuarial Assumption'!$F$21*MI_S) -> 0.01 | N28: 0.03435102 | O28: 0.7212975445 | P28: =P27/(1+Plan!$H$20) -> 0.4563869462 | Q28: =IF(Plan!$C$7=1,CurveFitting!AM27,CurveFitting!AS27) -> 0.0308 | R28: 0.6056347685 | S28: =IF(Scn=0,'Scn Y'!BC25,'Scn Y'!BC76)/100 -> 0.0441242472 | T28: 0.4767873457 | U28: =(1-$J$4)^MAX(0,Plan!$H$19-IndLiab!$B$4)*(D28*J28*O28*'Actuarial Assumption'!$I$13+IF(AND(D27=0,D28=1),'Actuarial Assumption'!$I$12*$K$4,0)) -> 25205.94045 | V28: =(1-$J$4)^MAX(0,Plan!$H$19-IndLiab!$B$4)*(D28*K28*O28*'Actuarial Assumption'!$I$13+IF(AND(D27=0,D28=1),'Actuarial Assumption'!$I$12*$L$4,0)) -> 39321.2671 | W28: 2520.594045 | X28: 3932.12671 | Y28: =IF(D28=0,1/MAX($E$8:$E$98)*IF(Plan!$I$23=1,$N$4,$O$4)/IF(Plan!$I$23=1,R28,T28)/O28,0) -> 0 | Z28: =I28*MIN(E28,$B$4+DynYear)*Plan!$H$16*G28 -> 38828.0824 | AA28: =(1-$J$4)^MAX(0,Plan!$H$19-IndLiab!$B$4)*(D28*Z28*O28*'Actuarial Assumption'!$I$13+IF(AND(D27=0,D28=1),'Actuarial Assumption'!$I$12*$K$4,0))*IF(B28<DynYear,0,1) -> 25205.94045 | AB28: 2520.594045 | AD28: 1 | AE28: 51664.83942
A29: 2037 | B29: 21 | C29: 71 | D29: 1 | E29: 39 | F29: =F28*(1+INDEX('Scn Y'!$A$5:$AR$106,IF(Scn>0,1,0)*51+MIN(51,IndLiab!B29+1),40)/100*$I$4) -> 2.04481052 | G29: =IF(D29<1,1,G28*(1+MIN(Plan!$H$18,Plan!$H$17*INDEX('Scn Y'!$A$5:$AR$106,IF(Scn>0,1,0)*51+MIN(IndLiab!B29,50),11)/100))) -> 1.102703833 | H29: 152778.869 | I29: =IF(D29=1,I28,IF(B29<Plan!$H$15,-PV(Plan!$H$14,MAX(0,Plan!$H$15-B29-1),IndLiab!$H$8,,0)+SUM($H$8:H29),SUM(OFFSET($H$8,COUNT($H$8:H29)-Plan!$H$15,0,Plan!$H$15)))/MIN(E29,Plan!$H$15)) -> 142840.0822 | J29: =I29*$E$8*Plan!$H$16*G29 -> 39377.57654 | K29: =I29*E29*Plan!$H$16*G29 -> 61429.0194 | L29: =MIN(1,VLOOKUP(MIN(110,C29),'Actuarial Assumption'!$A$4:$C$115,IF(IndLiab!$F$4="M",2,3),FALSE)*Mort_S) -> 0.037963 | M29: =IF(E26="M",'Actuarial Assumption'!$E$21*MI_S,'Actuarial Assumption'!$F$21*MI_S) -> 0.01 | N29: 0.03758337 | O29: 0.6965202382 | P29: =P28/(1+Plan!$H$20) -> 0.4388336021 | Q29: =IF(Plan!$C$7=1,CurveFitting!AM28,CurveFitting!AS28) -> 0.03107 | R29: 0.5873847251 | S29: =IF(Scn=0,'Scn Y'!BC26,'Scn Y'!BC77)/100 -> 0.04426889533 | T29: 0.4565752632 | U29: =(1-$J$4)^MAX(0,Plan!$H$19-IndLiab!$B$4)*(D29*J29*O29*'Actuarial Assumption'!$I$13+IF(AND(D28=0,D29=1),'Actuarial Assumption'!$I$12*$K$4,0)) -> 24684.55109 | V29: =(1-$J$4)^MAX(0,Plan!$H$19-IndLiab!$B$4)*(D29*K29*O29*'Actuarial Assumption'!$I$13+IF(AND(D28=0,D29=1),'Actuarial Assumption'!$I$12*$L$4,0)) -> 38507.8997 | W29: 2468.455109 | X29: 3850.78997 | Y29: =IF(D29=0,1/MAX($E$8:$E$98)*IF(Plan!$I$23=1,$N$4,$O$4)/IF(Plan!$I$23=1,R29,T29)/O29,0) -> 0 | Z29: =I29*MIN(E29,$B$4+DynYear)*Plan!$H$16*G29 -> 39377.57654 | AA29: =(1-$J$4)^MAX(0,Plan!$H$19-IndLiab!$B$4)*(D29*Z29*O29*'Actuarial Assumption'!$I$13+IF(AND(D28=0,D29=1),'Actuarial Assumption'!$I$12*$K$4,0))*IF(B29<DynYear,0,1) -> 24684.55109 | AB29: 2468.455109 | AD29: 1 | AE29: 48003.45493
A30: 2038 | B30: 22 | C30: 72 | D30: 1 | E30: 39 | F30: =F29*(1+INDEX('Scn Y'!$A$5:$AR$106,IF(Scn>0,1,0)*51+MIN(51,IndLiab!B30+1),40)/100*$I$4) -> 2.116365165 | G30: =IF(D30<1,1,G29*(1+MIN(Plan!$H$18,Plan!$H$17*INDEX('Scn Y'!$A$5:$AR$106,IF(Scn>0,1,0)*51+MIN(IndLiab!B30,50),11)/100))) -> 1.118327449 | H30: 152778.869 | I30: =IF(D30=1,I29,IF(B30<Plan!$H$15,-PV(Plan!$H$14,MAX(0,Plan!$H$15-B30-1),IndLiab!$H$8,,0)+SUM($H$8:H30),SUM(OFFSET($H$8,COUNT($H$8:H30)-Plan!$H$15,0,Plan!$H$15)))/MIN(E30,Plan!$H$15)) -> 142840.0822 | J30: =I30*$E$8*Plan!$H$16*G30 -> 39935.49616 | K30: =I30*E30*Plan!$H$16*G30 -> 62299.37402 | L30: =MIN(1,VLOOKUP(MIN(110,C30),'Actuarial Assumption'!$A$4:$C$115,IF(IndLiab!$F$4="M",2,3),FALSE)*Mort_S) -> 0.041535 | M30: =IF(E27="M",'Actuarial Assumption'!$E$21*MI_S,'Actuarial Assumption'!$F$21*MI_S) -> 0.01 | N30: 0.04111965 | O30: 0.6703426603 | P30: =P29/(1+Plan!$H$20) -> 0.4219553867 | Q30: =IF(Plan!$C$7=1,CurveFitting!AM29,CurveFitting!AS29) -> 0.03134 | R30: 0.569535483 | S30: =IF(Scn=0,'Scn Y'!BC27,'Scn Y'!BC78)/100 -> 0.04440610546 | T30: 0.4371625757 | U30: =(1-$J$4)^MAX(0,Plan!$H$19-IndLiab!$B$4)*(D30*J30*O30*'Actuarial Assumption'!$I$13+IF(AND(D29=0,D30=1),'Actuarial Assumption'!$I$12*$K$4,0)) -> 24093.42007 | V30: =(1-$J$4)^MAX(0,Plan!$H$19-IndLiab!$B$4)*(D30*K30*O30*'Actuarial Assumption'!$I$13+IF(AND(D29=0,D30=1),'Actuarial Assumption'!$I$12*$L$4,0)) -> 37585.7353 | W30: 2409.342007 | X30: 3758.57353 | Y30: =IF(D30=0,1/MAX($E$8:$E$98)*IF(Plan!$I$23=1,$N$4,$O$4)/IF(Plan!$I$23=1,R30,T30)/O30,0) -> 0 | Z30: =I30*MIN(E30,$B$4+DynYear)*Plan!$H$16*G30 -> 39935.49616 | AA30: =(1-$J$4)^MAX(0,Plan!$H$19-IndLiab!$B$4)*(D30*Z30*O30*'Actuarial Assumption'!$I$13+IF(AND(D29=0,D30=1),'Actuarial Assumption'!$I$12*$K$4,0))*IF(B30<DynYear,0,1) -> 24093.42007 | AB30: 2409.342007 | AD30: 1 | AE30: 47046.75757
A31: 2039 | B31: 23 | C31: 73 | D31: 1 | E31: 39 | F31: =F30*(1+INDEX('Scn Y'!$A$5:$AR$106,IF(Scn>0,1,0)*51+MIN(51,IndLiab!B31+1),40)/100*$I$4) -> 2.190440503 | G31: =IF(D31<1,1,G30*(1+MIN(Plan!$H$18,Plan!$H$17*INDEX('Scn Y'!$A$5:$AR$106,IF(Scn>0,1,0)*51+MIN(IndLiab!B31,50),11)/100))) -> 1.134187926 | H31: 152778.869 | I31: =IF(D31=1,I30,IF(B31<Plan!$H$15,-PV(Plan!$H$14,MAX(0,Plan!$H$15-B31-1),IndLiab!$H$8,,0)+SUM($H$8:H31),SUM(OFFSET($H$8,COUNT($H$8:H31)-Plan!$H$15,0,Plan!$H$15)))/MIN(E31,Plan!$H$15)) -> 142840.0822 | J31: =I31*$E$8*Plan!$H$16*G31 -> 40501.87412 | K31: =I31*E31*Plan!$H$16*G31 -> 63182.92363 | L31: =MIN(1,VLOOKUP(MIN(110,C31),'Actuarial Assumption'!$A$4:$C$115,IF(IndLiab!$F$4="M",2,3),FALSE)*Mort_S) -> 0.045436 | M31: =IF(E28="M",'Actuarial Assumption'!$E$21*MI_S,'Actuarial Assumption'!$F$21*MI_S) -> 0.01 | N31: 0.04498164 | O31: 0.6427784048 | P31: =P30/(1+Plan!$H$20) -> 0.4057263333 | Q31: =IF(Plan!$C$7=1,CurveFitting!AM30,CurveFitting!AS30) -> 0.03161 | R31: 0.5520841045 | S31: =IF(Scn=0,'Scn Y'!BC28,'Scn Y'!BC79)/100 -> 0.04452807279 | T31: 0.4185264016 | U31: =(1-$J$4)^MAX(0,Plan!$H$19-IndLiab!$B$4)*(D31*J31*O31*'Actuarial Assumption'!$I$13+IF(AND(D30=0,D31=1),'Actuarial Assumption'!$I$12*$K$4,0)) -> 23430.35703 | V31: =(1-$J$4)^MAX(0,Plan!$H$19-IndLiab!$B$4)*(D31*K31*O31*'Actuarial Assumption'!$I$13+IF(AND(D30=0,D31=1),'Actuarial Assumption'!$I$12*$L$4,0)) -> 36551.35697 | W31: 2343.035703 | X31: 3655.135697 | Y31: =IF(D31=0,1/MAX($E$8:$E$98)*IF(Plan!$I$23=1,$N$4,$O$4)/IF(Plan!$I$23=1,R31,T31)/O31,0) -> 0 | Z31: =I31*MIN(E31,$B$4+DynYear)*Plan!$H$16*G31 -> 40501.87412 | AA31: =(1-$J$4)^MAX(0,Plan!$H$19-IndLiab!$B$4)*(D31*Z31*O31*'Actuarial Assumption'!$I$13+IF(AND(D30=0,D31=1),'Actuarial Assumption'!$I$12*$K$4,0))*IF(B31<DynYear,0,1) -> 23430.35703 | AB31: 2343.035703 | AD31: 1 | AE31: 46059.06224
A32: 2040 | B32: 24 | C32: 74 | D32: 1 | E32: 39 | F32: =F31*(1+INDEX('Scn Y'!$A$5:$AR$106,IF(Scn>0,1,0)*51+MIN(51,IndLiab!B32+1),40)/100*$I$4) -> 2.267123729 | G32: =IF(D32<1,1,G31*(1+MIN(Plan!$H$18,Plan!$H$17*INDEX('Scn Y'!$A$5:$AR$106,IF(Scn>0,1,0)*51+MIN(IndLiab!B32,50),11)/100))) -> 1.150286825 | H32: 152778.869 | I32: =IF(D32=1,I31,IF(B32<Plan!$H$15,-PV(Plan!$H$14,MAX(0,Plan!$H$15-B32-1),IndLiab!$H$8,,0)+SUM($H$8:H32),SUM(OFFSET($H$8,COUNT($H$8:H32)-Plan!$H$15,0,Plan!$H$15)))/MIN(E32,Plan!$H$15)) -> 142840.0822 | J32: =I32*$E$8*Plan!$H$16*G32 -> 41076.76615 | K32: =I32*E32*Plan!$H$16*G32 -> 64079.75519 | L32: =MIN(1,VLOOKUP(MIN(110,C32),'Actuarial Assumption'!$A$4:$C$115,IF(IndLiab!$F$4="M",2,3),FALSE)*Mort_S) -> 0.049701 | M32: =IF(E29="M",'Actuarial Assumption'!$E$21*MI_S,'Actuarial Assumption'!$F$21*MI_S) -> 0.01 | N32: 0.04920399 | O32: 0.613865178 | P32: =P31/(1+Plan!$H$20) -> 0.3901214743 | Q32: =IF(Plan!$C$7=1,CurveFitting!AM31,CurveFitting!AS31) -> 0.03188 | R32: 0.53502743 | S32: =IF(Scn=0,'Scn Y'!BC29,'Scn Y'!BC80)/100 -> 0.04463119478 | T32: 0.4006451308 | U32: =(1-$J$4)^MAX(0,Plan!$H$19-IndLiab!$B$4)*(D32*J32*O32*'Actuarial Assumption'!$I$13+IF(AND(D31=0,D32=1),'Actuarial Assumption'!$I$12*$K$4,0)) -> 22694.03673 | V32: =(1-$J$4)^MAX(0,Plan!$H$19-IndLiab!$B$4)*(D32*K32*O32*'Actuarial Assumption'!$I$13+IF(AND(D31=0,D32=1),'Actuarial Assumption'!$I$12*$L$4,0)) -> 35402.69729 | W32: 2269.403673 | X32: 3540.269729 | Y32: =IF(D32=0,1/MAX($E$8:$E$98)*IF(Plan!$I$23=1,$N$4,$O$4)/IF(Plan!$I$23=1,R32,T32)/O32,0) -> 0 | Z32: =I32*MIN(E32,$B$4+DynYear)*Plan!$H$16*G32 -> 41076.76615 | AA32: =(1-$J$4)^MAX(0,Plan!$H$19-IndLiab!$B$4)*(D32*Z32*O32*'Actuarial Assumption'!$I$13+IF(AND(D31=0,D32=1),'Actuarial Assumption'!$I$12*$K$4,0))*IF(B32<DynYear,0,1) -> 22694.03673 | AB32: 2269.403673 | AD32: 1 | AE32: 45041.28677
A33: 2041 | B33: 25 | C33: 75 | D33: 1 | E33: 39 | F33: =F32*(1+INDEX('Scn Y'!$A$5:$AR$106,IF(Scn>0,1,0)*51+MIN(51,IndLiab!B33+1),40)/100*$I$4) -> 2.346505987 | G33: =IF(D33<1,1,G32*(1+MIN(Plan!$H$18,Plan!$H$17*INDEX('Scn Y'!$A$5:$AR$106,IF(Scn>0,1,0)*51+MIN(IndLiab!B33,50),11)/100))) -> 1.166626099 | H33: 152778.869 | I33: =IF(D33=1,I32,IF(B33<Plan!$H$15,-PV(Plan!$H$14,MAX(0,Plan!$H$15-B33-1),IndLiab!$H$8,,0)+SUM($H$8:H33),SUM(OFFSET($H$8,COUNT($H$8:H33)-Plan!$H$15,0,Plan!$H$15)))/MIN(E33,Plan!$H$15)) -> 142840.0822 | J33: =I33*$E$8*Plan!$H$16*G33 -> 41660.24197 | K33: =I33*E33*Plan!$H$16*G33 -> 64989.97748 | L33: =MIN(1,VLOOKUP(MIN(110,C33),'Actuarial Assumption'!$A$4:$C$115,IF(IndLiab!$F$4="M",2,3),FALSE)*Mort_S) -> 0.054363 | M33: =IF(E30="M",'Actuarial Assumption'!$E$21*MI_S,'Actuarial Assumption'!$F$21*MI_S) -> 0.01 | N33: 0.05381937 | O33: 0.5836605619 | P33: =P32/(1+Plan!$H$20) -> 0.3751168023 | Q33: =IF(Plan!$C$7=1,CurveFitting!AM32,CurveFitting!AS32) -> 0.03215 | R33: 0.5183620889 | S33: =IF(Scn=0,'Scn Y'!BC30,'Scn Y'!BC81)/100 -> 0.04471572194 | T33: 0.3834967947 | U33: =(1-$J$4)^MAX(0,Plan!$H$19-IndLiab!$B$4)*(D33*J33*O33*'Actuarial Assumption'!$I$13+IF(AND(D32=0,D33=1),'Actuarial Assumption'!$I$12*$K$4,0)) -> 21883.89622 | V33: =(1-$J$4)^MAX(0,Plan!$H$19-IndLiab!$B$4)*(D33*K33*O33*'Actuarial Assumption'!$I$13+IF(AND(D32=0,D33=1),'Actuarial Assumption'!$I$12*$L$4,0)) -> 34138.8781 | W33: 2188.389622 | X33: 3413.88781 | Y33: =IF(D33=0,1/MAX($E$8:$E$98)*IF(Plan!$I$23=1,$N$4,$O$4)/IF(Plan!$I$23=1,R33,T33)/O33,0) -> 0 | Z33: =I33*MIN(E33,$B$4+DynYear)*Plan!$H$16*G33 -> 41660.24197 | AA33: =(1-$J$4)^MAX(0,Plan!$H$19-IndLiab!$B$4)*(D33*Z33*O33*'Actuarial Assumption'!$I$13+IF(AND(D32=0,D33=1),'Actuarial Assumption'!$I$12*$K$4,0))*IF(B33<DynYear,0,1) -> 21883.89622 | AB33: 2188.389622 | AD33: 1 | AE33: 43994.71561
A34: 2042 | B34: 26 | C34: 76 | D34: 1 | E34: 39 | F34: =F33*(1+INDEX('Scn Y'!$A$5:$AR$106,IF(Scn>0,1,0)*51+MIN(51,IndLiab!B34+1),40)/100*$I$4) -> 2.428681722 | G34: =IF(D34<1,1,G33*(1+MIN(Plan!$H$18,Plan!$H$17*INDEX('Scn Y'!$A$5:$AR$106,IF(Scn>0,1,0)*51+MIN(IndLiab!B34,50),11)/100))) -> 1.183207924 | H34: 152778.869 | I34: =IF(D34=1,I33,IF(B34<Plan!$H$15,-PV(Plan!$H$14,MAX(0,Plan!$H$15-B34-1),IndLiab!$H$8,,0)+SUM($H$8:H34),SUM(OFFSET($H$8,COUNT($H$8:H34)-Plan!$H$15,0,Plan!$H$15)))/MIN(E34,Plan!$H$15)) -> 142840.0822 | J34: =I34*$E$8*Plan!$H$16*G34 -> 42252.37926 | K34: =I34*E34*Plan!$H$16*G34 -> 65913.71165 | L34: =MIN(1,VLOOKUP(MIN(110,C34),'Actuarial Assumption'!$A$4:$C$115,IF(IndLiab!$F$4="M",2,3),FALSE)*Mort_S) -> 0.059457 | M34: =IF(E31="M",'Actuarial Assumption'!$E$21*MI_S,'Actuarial Assumption'!$F$21*MI_S) -> 0.01 | N34: 0.05886243 | O34: 0.5522483181 | P34: =P33/(1+Plan!$H$20) -> 0.3606892329 | Q34: =IF(Plan!$C$7=1,CurveFitting!AM33,CurveFitting!AS33) -> 0.03242 | R34: 0.5020845091 | S34: =IF(Scn=0,'Scn Y'!BC31,'Scn Y'!BC82)/100 -> 0.04478426157 | T34: 0.3670583572 | U34: =(1-$J$4)^MAX(0,Plan!$H$19-IndLiab!$B$4)*(D34*J34*O34*'Actuarial Assumption'!$I$13+IF(AND(D33=0,D34=1),'Actuarial Assumption'!$I$12*$K$4,0)) -> 21000.42485 | V34: =(1-$J$4)^MAX(0,Plan!$H$19-IndLiab!$B$4)*(D34*K34*O34*'Actuarial Assumption'!$I$13+IF(AND(D33=0,D34=1),'Actuarial Assumption'!$I$12*$L$4,0)) -> 32760.66276 | W34: 2100.042485 | X34: 3276.066276 | Y34: =IF(D34=0,1/MAX($E$8:$E$98)*IF(Plan!$I$23=1,$N$4,$O$4)/IF(Plan!$I$23=1,R34,T34)/O34,0) -> 0 | Z34: =I34*MIN(E34,$B$4+DynYear)*Plan!$H$16*G34 -> 42252.37926 | AA34: =(1-$J$4)^MAX(0,Plan!$H$19-IndLiab!$B$4)*(D34*Z34*O34*'Actuarial Assumption'!$I$13+IF(AND(D33=0,D34=1),'Actuarial Assumption'!$I$12*$K$4,0))*IF(B34<DynYear,0,1) -> 21000.42485 | AB34: 2100.042485 | AD34: 1 | AE34: 42921.03399
A35: 2043 | B35: 27 | C35: 77 | D35: 1 | E35: 39 | F35: =F34*(1+INDEX('Scn Y'!$A$5:$AR$106,IF(Scn>0,1,0)*51+MIN(51,IndLiab!B35+1),40)/100*$I$4) -> 2.513748409 | G35: =IF(D35<1,1,G34*(1+MIN(Plan!$H$18,Plan!$H$17*INDEX('Scn Y'!$A$5:$AR$106,IF(Scn>0,1,0)*51+MIN(IndLiab!B35,50),11)/100))) -> 1.200034612 | H35: 152778.869 | I35: =IF(D35=1,I34,IF(B35<Plan!$H$15,-PV(Plan!$H$14,MAX(0,Plan!$H$15-B35-1),IndLiab!$H$8,,0)+SUM($H$8:H35),SUM(OFFSET($H$8,COUNT($H$8:H35)-Plan!$H$15,0,Plan!$H$15)))/MIN(E35,Plan!$H$15)) -> 142840.0822 | J35: =I35*$E$8*Plan!$H$16*G35 -> 42853.26064 | K35: =I35*E35*Plan!$H$16*G35 -> 66851.08661 | L35: =MIN(1,VLOOKUP(MIN(110,C35),'Actuarial Assumption'!$A$4:$C$115,IF(IndLiab!$F$4="M",2,3),FALSE)*Mort_S) -> 0.065016 | M35: =IF(E32="M",'Actuarial Assumption'!$E$21*MI_S,'Actuarial Assumption'!$F$21*MI_S) -> 0.01 | N35: 0.06436584 | O35: 0.5197416402 | P35: =P34/(1+Plan!$H$20) -> 0.3468165701 | Q35: =IF(Plan!$C$7=1,CurveFitting!AM34,CurveFitting!AS34) -> 0.03269 | R35: 0.4861909277 | S35: =IF(Scn=0,'Scn Y'!BC32,'Scn Y'!BC83)/100 -> 0.04484022477 | T35: 0.3513057294 | U35: =(1-$J$4)^MAX(0,Plan!$H$19-IndLiab!$B$4)*(D35*J35*O35*'Actuarial Assumption'!$I$13+IF(AND(D34=0,D35=1),'Actuarial Assumption'!$I$12*$K$4,0)) -> 20045.36158 | V35: =(1-$J$4)^MAX(0,Plan!$H$19-IndLiab!$B$4)*(D35*K35*O35*'Actuarial Assumption'!$I$13+IF(AND(D34=0,D35=1),'Actuarial Assumption'!$I$12*$L$4,0)) -> 31270.76406 | W35: 2004.536158 | X35: 3127.076406 | Y35: =IF(D35=0,1/MAX($E$8:$E$98)*IF(Plan!$I$23=1,$N$4,$O$4)/IF(Plan!$I$23=1,R35,T35)/O35,0) -> 0 | Z35: =I35*MIN(E35,$B$4+DynYear)*Plan!$H$16*G35 -> 42853.26064 | AA35: =(1-$J$4)^MAX(0,Plan!$H$19-IndLiab!$B$4)*(D35*Z35*O35*'Actuarial Assumption'!$I$13+IF(AND(D34=0,D35=1),'Actuarial Assumption'!$I$12*$K$4,0))*IF(B35<DynYear,0,1) -> 20045.36158 | AB35: 2004.536158 | AD35: 1 | AE35: 41822.18924
A36: 2044 | B36: 28 | C36: 78 | D36: 1 | E36: 39 | F36: =F35*(1+INDEX('Scn Y'!$A$5:$AR$106,IF(Scn>0,1,0)*51+MIN(51,IndLiab!B36+1),40)/100*$I$4) -> 2.601806593 | G36: =IF(D36<1,1,G35*(1+MIN(Plan!$H$18,Plan!$H$17*INDEX('Scn Y'!$A$5:$AR$106,IF(Scn>0,1,0)*51+MIN(IndLiab!B36,50),11)/100))) -> 1.217108594 | H36: 152778.869 | I36: =IF(D36=1,I35,IF(B36<Plan!$H$15,-PV(Plan!$H$14,MAX(0,Plan!$H$15-B36-1),IndLiab!$H$8,,0)+SUM($H$8:H36),SUM(OFFSET($H$8,COUNT($H$8:H36)-Plan!$H$15,0,Plan!$H$15)))/MIN(E36,Plan!$H$15)) -> 142840.0822 | J36: =I36*$E$8*Plan!$H$16*G36 -> 43462.97288 | K36: =I36*E36*Plan!$H$16*G36 -> 67802.23769 | L36: =MIN(1,VLOOKUP(MIN(110,C36),'Actuarial Assumption'!$A$4:$C$115,IF(IndLiab!$F$4="M",2,3),FALSE)*Mort_S) -> 0.071077 | M36: =IF(E33="M",'Actuarial Assumption'!$E$21*MI_S,'Actuarial Assumption'!$F$21*MI_S) -> 0.01 | N36: 0.07036623 | O36: 0.4862880329 | P36: =P35/(1+Plan!$H$20) -> 0.3334774713 | Q36: =IF(Plan!$C$7=1,CurveFitting!AM35,CurveFitting!AS35) -> 0.03296 | R36: 0.4706774005 | S36: =IF(Scn=0,'Scn Y'!BC33,'Scn Y'!BC84)/100 -> 0.04488675345 | T36: 0.336214167 | U36: =(1-$J$4)^MAX(0,Plan!$H$19-IndLiab!$B$4)*(D36*J36*O36*'Actuarial Assumption'!$I$13+IF(AND(D35=0,D36=1),'Actuarial Assumption'!$I$12*$K$4,0)) -> 19021.97123 | V36: =(1-$J$4)^MAX(0,Plan!$H$19-IndLiab!$B$4)*(D36*K36*O36*'Actuarial Assumption'!$I$13+IF(AND(D35=0,D36=1),'Actuarial Assumption'!$I$12*$L$4,0)) -> 29674.27512 | W36: 1902.197123 | X36: 2967.427512 | Y36: =IF(D36=0,1/MAX($E$8:$E$98)*IF(Plan!$I$23=1,$N$4,$O$4)/IF(Plan!$I$23=1,R36,T36)/O36,0) -> 0 | Z36: =I36*MIN(E36,$B$4+DynYear)*Plan!$H$16*G36 -> 43462.97288 | AA36: =(1-$J$4)^MAX(0,Plan!$H$19-IndLiab!$B$4)*(D36*Z36*O36*'Actuarial Assumption'!$I$13+IF(AND(D35=0,D36=1),'Actuarial Assumption'!$I$12*$K$4,0))*IF(B36<DynYear,0,1) -> 19021.97123 | AB36: 1902.197123 | AD36: 1 | AE36: 40700.29978
A37: 2045 | B37: 29 | C37: 79 | D37: 1 | E37: 39 | F37: =F36*(1+INDEX('Scn Y'!$A$5:$AR$106,IF(Scn>0,1,0)*51+MIN(51,IndLiab!B37+1),40)/100*$I$4) -> 2.692960112 | G37: =IF(D37<1,1,G36*(1+MIN(Plan!$H$18,Plan!$H$17*INDEX('Scn Y'!$A$5:$AR$106,IF(Scn>0,1,0)*51+MIN(IndLiab!B37,50),11)/100))) -> 1.234432423 | H37: 152778.869 | I37: =IF(D37=1,I36,IF(B37<Plan!$H$15,-PV(Plan!$H$14,MAX(0,Plan!$H$15-B37-1),IndLiab!$H$8,,0)+SUM($H$8:H37),SUM(OFFSET($H$8,COUNT($H$8:H37)-Plan!$H$15,0,Plan!$H$15)))/MIN(E37,Plan!$H$15)) -> 142840.0822 | J37: =I37*$E$8*Plan!$H$16*G37 -> 44081.60717 | K37: =I37*E37*Plan!$H$16*G37 -> 68767.30718 | L37: =MIN(1,VLOOKUP(MIN(110,C37),'Actuarial Assumption'!$A$4:$C$115,IF(IndLiab!$F$4="M",2,3),FALSE)*Mort_S) -> 0.077686 | M37: =IF(E34="M",'Actuarial Assumption'!$E$21*MI_S,'Actuarial Assumption'!$F$21*MI_S) -> 0.01 | N37: 0.07690914 | O37: 0.4520697774 | P37: =P36/(1+Plan!$H$20) -> 0.3206514147 | Q37: =IF(Plan!$C$7=1,CurveFitting!AM36,CurveFitting!AS36) -> 0.03323 | R37: 0.4555398126 | S37: =IF(Scn=0,'Scn Y'!BC34,'Scn Y'!BC85)/100 -> 0.04492622913 | T37: 0.3217587592 | U37: =(1-$J$4)^MAX(0,Plan!$H$19-IndLiab!$B$4)*(D37*J37*O37*'Actuarial Assumption'!$I$13+IF(AND(D36=0,D37=1),'Actuarial Assumption'!$I$12*$K$4,0)) -> 17935.1661 | V37: =(1-$J$4)^MAX(0,Plan!$H$19-IndLiab!$B$4)*(D37*K37*O37*'Actuarial Assumption'!$I$13+IF(AND(D36=0,D37=1),'Actuarial Assumption'!$I$12*$L$4,0)) -> 27978.85912 | W37: 1793.51661 | X37: 2797.885912 | Y37: =IF(D37=0,1/MAX($E$8:$E$98)*IF(Plan!$I$23=1,$N$4,$O$4)/IF(Plan!$I$23=1,R37,T37)/O37,0) -> 0 | Z37: =I37*MIN(E37,$B$4+DynYear)*Plan!$H$16*G37 -> 44081.60717 | AA37: =(1-$J$4)^MAX(0,Plan!$H$19-IndLiab!$B$4)*(D37*Z37*O37*'Actuarial Assumption'!$I$13+IF(AND(D36=0,D37=1),'Actuarial Assumption'!$I$12*$K$4,0))*IF(B37<DynYear,0,1) -> 17935.1661 | AB37: 1793.51661 | AD37: 1 | AE37: 39557.51607
A38: 2046 | B38: 30 | C38: 80 | D38: 1 | E38: 39 | F38: =F37*(1+INDEX('Scn Y'!$A$5:$AR$106,IF(Scn>0,1,0)*51+MIN(51,IndLiab!B38+1),40)/100*$I$4) -> 2.78731638 | G38: =IF(D38<1,1,G37*(1+MIN(Plan!$H$18,Plan!$H$17*INDEX('Scn Y'!$A$5:$AR$106,IF(Scn>0,1,0)*51+MIN(IndLiab!B38,50),11)/100))) -> 1.252008792 | H38: 152778.869 | I38: =IF(D38=1,I37,IF(B38<Plan!$H$15,-PV(Plan!$H$14,MAX(0,Plan!$H$15-B38-1),IndLiab!$H$8,,0)+SUM($H$8:H38),SUM(OFFSET($H$8,COUNT($H$8:H38)-Plan!$H$15,0,Plan!$H$15)))/MIN(E38,Plan!$H$15)) -> 142840.0822 | J38: =I38*$E$8*Plan!$H$16*G38 -> 44709.25968 | K38: =I38*E38*Plan!$H$16*G38 -> 69746.44511 | L38: =MIN(1,VLOOKUP(MIN(110,C38),'Actuarial Assumption'!$A$4:$C$115,IF(IndLiab!$F$4="M",2,3),FALSE)*Mort_S) -> 0.084889 | M38: =IF(E35="M",'Actuarial Assumption'!$E$21*MI_S,'Actuarial Assumption'!$F$21*MI_S) -> 0.01 | N38: 0.08404011 | O38: 0.4173014796 | P38: =P37/(1+Plan!$H$20) -> 0.308318668 | Q38: =IF(Plan!$C$7=1,CurveFitting!AM37,CurveFitting!AS37) -> 0.0335 | R38: 0.4407738873 | S38: =IF(Scn=0,'Scn Y'!BC35,'Scn Y'!BC86)/100 -> 0.04496022556 | T38: 0.3079148386 | U38: =(1-$J$4)^MAX(0,Plan!$H$19-IndLiab!$B$4)*(D38*J38*O38*'Actuarial Assumption'!$I$13+IF(AND(D37=0,D38=1),'Actuarial Assumption'!$I$12*$K$4,0)) -> 16791.51619 | V38: =(1-$J$4)^MAX(0,Plan!$H$19-IndLiab!$B$4)*(D38*K38*O38*'Actuarial Assumption'!$I$13+IF(AND(D37=0,D38=1),'Actuarial Assumption'!$I$12*$L$4,0)) -> 26194.76526 | W38: 1679.151619 | X38: 2619.476526 | Y38: =IF(D38=0,1/MAX($E$8:$E$98)*IF(Plan!$I$23=1,$N$4,$O$4)/IF(Plan!$I$23=1,R38,T38)/O38,0) -> 0 | Z38: =I38*MIN(E38,$B$4+DynYear)*Plan!$H$16*G38 -> 44709.25968 | AA38: =(1-$J$4)^MAX(0,Plan!$H$19-IndLiab!$B$4)*(D38*Z38*O38*'Actuarial Assumption'!$I$13+IF(AND(D37=0,D38=1),'Actuarial Assumption'!$I$12*$K$4,0))*IF(B38<DynYear,0,1) -> 16791.51619 | AB38: 1679.151619 | AD38: 1 | AE38: 38396.40124
A39: 2047 | B39: 31 | C39: 81 | D39: 1 | E39: 39 | F39: =F38*(1+INDEX('Scn Y'!$A$5:$AR$106,IF(Scn>0,1,0)*51+MIN(51,IndLiab!B39+1),40)/100*$I$4) -> 2.884986653 | G39: =IF(D39<1,1,G38*(1+MIN(Plan!$H$18,Plan!$H$17*INDEX('Scn Y'!$A$5:$AR$106,IF(Scn>0,1,0)*51+MIN(IndLiab!B39,50),11)/100))) -> 1.269840545 | H39: 152778.869 | I39: =IF(D39=1,I38,IF(B39<Plan!$H$15,-PV(Plan!$H$14,MAX(0,Plan!$H$15-B39-1),IndLiab!$H$8,,0)+SUM($H$8:H39),SUM(OFFSET($H$8,COUNT($H$8:H39)-Plan!$H$15,0,Plan!$H$15)))/MIN(E39,Plan!$H$15)) -> 142840.0822 | J39: =I39*$E$8*Plan!$H$16*G39 -> 45346.03195 | K39: =I39*E39*Plan!$H$16*G39 -> 70739.80984 | L39: =MIN(1,VLOOKUP(MIN(110,C39),'Actuarial Assumption'!$A$4:$C$115,IF(IndLiab!$F$4="M",2,3),FALSE)*Mort_S) -> 0.092734 | M39: =IF(E36="M",'Actuarial Assumption'!$E$21*MI_S,'Actuarial Assumption'!$F$21*MI_S) -> 0.01 | N39: 0.09180666 | O39: 0.3822314173 | P39: =P38/(1+Plan!$H$20) -> 0.2964602577 | Q39: =IF(Plan!$C$7=1,CurveFitting!AM38,CurveFitting!AS38) -> 0.0336744362 | R39: 0.4264146156 | S39: =IF(Scn=0,'Scn Y'!BC36,'Scn Y'!BC87)/100 -> 0.04498969669 | T39: 0.2946582532 | U39: =(1-$J$4)^MAX(0,Plan!$H$19-IndLiab!$B$4)*(D39*J39*O39*'Actuarial Assumption'!$I$13+IF(AND(D38=0,D39=1),'Actuarial Assumption'!$I$12*$K$4,0)) -> 15599.41026 | V39: =(1-$J$4)^MAX(0,Plan!$H$19-IndLiab!$B$4)*(D39*K39*O39*'Actuarial Assumption'!$I$13+IF(AND(D38=0,D39=1),'Actuarial Assumption'!$I$12*$L$4,0)) -> 24335.08 | W39: 1559.941026 | X39: 2433.508 | Y39: =IF(D39=0,1/MAX($E$8:$E$98)*IF(Plan!$I$23=1,$N$4,$O$4)/IF(Plan!$I$23=1,R39,T39)/O39,0) -> 0 | Z39: =I39*MIN(E39,$B$4+DynYear)*Plan!$H$16*G39 -> 45346.03195 | AA39: =(1-$J$4)^MAX(0,Plan!$H$19-IndLiab!$B$4)*(D39*Z39*O39*'Actuarial Assumption'!$I$13+IF(AND(D38=0,D39=1),'Actuarial Assumption'!$I$12*$K$4,0))*IF(B39<DynYear,0,1) -> 15599.41026 | AB39: 1559.941026 | AC39: 0.01668628269 | AD39: 0.9835875796 | AE39: 0
A40: 2048 | B40: 32 | C40: 82 | D40: 1 | E40: 39 | F40: =F39*(1+INDEX('Scn Y'!$A$5:$AR$106,IF(Scn>0,1,0)*51+MIN(51,IndLiab!B40+1),40)/100*$I$4) -> 2.986086232 | G40: =IF(D40<1,1,G39*(1+MIN(Plan!$H$18,Plan!$H$17*INDEX('Scn Y'!$A$5:$AR$106,IF(Scn>0,1,0)*51+MIN(IndLiab!B40,50),11)/100))) -> 1.287930674 | H40: 152778.869 | I40: =IF(D40=1,I39,IF(B40<Plan!$H$15,-PV(Plan!$H$14,MAX(0,Plan!$H$15-B40-1),IndLiab!$H$8,,0)+SUM($H$8:H40),SUM(OFFSET($H$8,COUNT($H$8:H40)-Plan!$H$15,0,Plan!$H$15)))/MIN(E40,Plan!$H$15)) -> 142840.0822 | J40: =I40*$E$8*Plan!$H$16*G40 -> 45992.03082 | K40: =I40*E40*Plan!$H$16*G40 -> 71747.56808 | L40: =MIN(1,VLOOKUP(MIN(110,C40),'Actuarial Assumption'!$A$4:$C$115,IF(IndLiab!$F$4="M",2,3),FALSE)*Mort_S) -> 0.101268 | M40: =IF(E37="M",'Actuarial Assumption'!$E$21*MI_S,'Actuarial Assumption'!$F$21*MI_S) -> 0.01 | N40: 0.10025532 | O40: 0.3471400275 | P40: =P39/(1+Plan!$H$20) -> 0.2850579401 | Q40: =IF(Plan!$C$7=1,CurveFitting!AM39,CurveFitting!AS39) -> 0.03383799688 | R40: 0.4124578675 | S40: =IF(Scn=0,'Scn Y'!BC37,'Scn Y'!BC88)/100 -> 0.04501522424 | T40: 0.2819655124 | U40: =(1-$J$4)^MAX(0,Plan!$H$19-IndLiab!$B$4)*(D40*J40*O40*'Actuarial Assumption'!$I$13+IF(AND(D39=0,D40=1),'Actuarial Assumption'!$I$12*$K$4,0)) -> 14369.10736 | V40: =(1-$J$4)^MAX(0,Plan!$H$19-IndLiab!$B$4)*(D40*K40*O40*'Actuarial Assumption'!$I$13+IF(AND(D39=0,D40=1),'Actuarial Assumption'!$I$12*$L$4,0)) -> 22415.80748 | W40: =U40*$H$4 -> 1436.910736 | X40: =V40*$H$4 -> 2241.580748 | Y40: =IF(D40=0,1/MAX($E$8:$E$98)*IF(Plan!$I$23=1,$N$4,$O$4)/IF(Plan!$I$23=1,R40,T40)/O40,0) -> 0 | Z40: =I40*MIN(E40,$B$4+DynYear)*Plan!$H$16*G40 -> 45992.03082 | AA40: =(1-$J$4)^MAX(0,Plan!$H$19-IndLiab!$B$4)*(D40*Z40*O40*'Actuarial Assumption'!$I$13+IF(AND(D39=0,D40=1),'Actuarial Assumption'!$I$12*$K$4,0))*IF(B40<DynYear,0,1) -> 14369.10736 | AB40: =AA40*$H$4 -> 1436.910736 | AC40: 0.02008737701 | AD40: 0.96421895 | AE40: 0
A41: 2049 | B41: 33 | C41: 83 | D41: 1 | E41: 39 | F41: =F40*(1+INDEX('Scn Y'!$A$5:$AR$106,IF(Scn>0,1,0)*51+MIN(51,IndLiab!B41+1),40)/100*$I$4) -> 3.090734625 | G41: =IF(D41<1,1,G40*(1+MIN(Plan!$H$18,Plan!$H$17*INDEX('Scn Y'!$A$5:$AR$106,IF(Scn>0,1,0)*51+MIN(IndLiab!B41,50),11)/100))) -> 1.306282312 | H41: =IF(D41=1,H40,$H$8*F41) -> 152778.869 | I41: =IF(D41=1,I40,IF(B41<Plan!$H$15,-PV(Plan!$H$14,MAX(0,Plan!$H$15-B41-1),IndLiab!$H$8,,0)+SUM($H$8:H41),SUM(OFFSET($H$8,COUNT($H$8:H41)-Plan!$H$15,0,Plan!$H$15)))/MIN(E41,Plan!$H$15)) -> 142840.0822 | J41: =I41*$E$8*Plan!$H$16*G41 -> 46647.36819 | K41: =I41*E41*Plan!$H$16*G41 -> 72769.89438 | L41: =MIN(1,VLOOKUP(MIN(110,C41),'Actuarial Assumption'!$A$4:$C$115,IF(IndLiab!$F$4="M",2,3),FALSE)*Mort_S) -> 0.110542 | M41: =IF(E38="M",'Actuarial Assumption'!$E$21*MI_S,'Actuarial Assumption'!$F$21*MI_S) -> 0.01 | N41: 0.10943658 | O41: 0.312337393 | P41: =P40/(1+Plan!$H$20) -> 0.2740941731 | Q41: =IF(Plan!$C$7=1,CurveFitting!AM40,CurveFitting!AS40) -> 0.03399166837 | R41: 0.3988986373 | S41: =IF(Scn=0,'Scn Y'!BC38,'Scn Y'!BC89)/100 -> 0.04503722081 | T41: 0.2698138466 | U41: =(1-$J$4)^MAX(0,Plan!$H$19-IndLiab!$B$4)*(D41*J41*O41*'Actuarial Assumption'!$I$13+IF(AND(D40=0,D41=1),'Actuarial Assumption'!$I$12*$K$4,0)) -> 13112.74563 | V41: =(1-$J$4)^MAX(0,Plan!$H$19-IndLiab!$B$4)*(D41*K41*O41*'Actuarial Assumption'!$I$13+IF(AND(D40=0,D41=1),'Actuarial Assumption'!$I$12*$L$4,0)) -> 20455.88319 | W41: 1311.274563 | X41: 2045.588319 | Y41: =IF(D41=0,1/MAX($E$8:$E$98)*IF(Plan!$I$23=1,$N$4,$O$4)/IF(Plan!$I$23=1,R41,T41)/O41,0) -> 0 | Z41: =I41*MIN(E41,$B$4+DynYear)*Plan!$H$16*G41 -> 46647.36819 | AA41: =(1-$J$4)^MAX(0,Plan!$H$19-IndLiab!$B$4)*(D41*Z41*O41*'Actuarial Assumption'!$I$13+IF(AND(D40=0,D41=1),'Actuarial Assumption'!$I$12*$K$4,0))*IF(B41<DynYear,0,1) -> 13112.74563 | AB41: 1311.274563 | AC41: 0.02275127206 | AD41: 0.9427697392 | AE41: 0
A42: 2050 | B42: 34 | C42: 84 | D42: 1 | E42: 39 | F42: =F41*(1+INDEX('Scn Y'!$A$5:$AR$106,IF(Scn>0,1,0)*51+MIN(51,IndLiab!B42+1),40)/100*$I$4) -> 3.199055676 | G42: =IF(D42<1,1,G41*(1+MIN(Plan!$H$18,Plan!$H$17*INDEX('Scn Y'!$A$5:$AR$106,IF(Scn>0,1,0)*51+MIN(IndLiab!B42,50),11)/100))) -> 1.324898721 | H42: 152778.869 | I42: =IF(D42=1,I41,IF(B42<Plan!$H$15,-PV(Plan!$H$14,MAX(0,Plan!$H$15-B42-1),IndLiab!$H$8,,0)+SUM($H$8:H42),SUM(OFFSET($H$8,COUNT($H$8:H42)-Plan!$H$15,0,Plan!$H$15)))/MIN(E42,Plan!$H$15)) -> 142840.0822 | J42: =I42*$E$8*Plan!$H$16*G42 -> 47312.16056 | K42: =I42*E42*Plan!$H$16*G42 -> 73806.97047 | L42: =MIN(1,VLOOKUP(MIN(110,C42),'Actuarial Assumption'!$A$4:$C$115,IF(IndLiab!$F$4="M",2,3),FALSE)*Mort_S) -> 0.120611 | M42: =IF(E39="M",'Actuarial Assumption'!$E$21*MI_S,'Actuarial Assumption'!$F$21*MI_S) -> 0.01 | N42: 0.11940489 | O42: 0.2781562569 | P42: =P41/(1+Plan!$H$20) -> 0.2635520896 | Q42: =IF(Plan!$C$7=1,CurveFitting!AM41,CurveFitting!AS41) -> 0.03413632122 | R42: 0.3857311934 | S42: =IF(Scn=0,'Scn Y'!BC39,'Scn Y'!BC90)/100 -> 0.04505605217 | T42: 0.2581812201 | U42: =(1-$J$4)^MAX(0,Plan!$H$19-IndLiab!$B$4)*(D42*J42*O42*'Actuarial Assumption'!$I$13+IF(AND(D41=0,D42=1),'Actuarial Assumption'!$I$12*$K$4,0)) -> 11844.15614 | V42: =(1-$J$4)^MAX(0,Plan!$H$19-IndLiab!$B$4)*(D42*K42*O42*'Actuarial Assumption'!$I$13+IF(AND(D41=0,D42=1),'Actuarial Assumption'!$I$12*$L$4,0)) -> 18476.88357 | W42: 1184.415614 | X42: 1847.688357 | Y42: =IF(D42=0,1/MAX($E$8:$E$98)*IF(Plan!$I$23=1,$N$4,$O$4)/IF(Plan!$I$23=1,R42,T42)/O42,0) -> 0 | Z42: =I42*MIN(E42,$B$4+DynYear)*Plan!$H$16*G42 -> 47312.16056 | AA42: =(1-$J$4)^MAX(0,Plan!$H$19-IndLiab!$B$4)*(D42*Z42*O42*'Actuarial Assumption'!$I$13+IF(AND(D41=0,D42=1),'Actuarial Assumption'!$I$12*$K$4,0))*IF(B42<DynYear,0,1) -> 11844.15614 | AB42: 1184.415614 | AC42: 0.02565371069 | AD42: 0.9191891273 | AE42: 0
A43: 2051 | B43: 35 | C43: 85 | D43: 1 | E43: 39 | F43: =F42*(1+INDEX('Scn Y'!$A$5:$AR$106,IF(Scn>0,1,0)*51+MIN(51,IndLiab!B43+1),40)/100*$I$4) -> 3.311177676 | G43: =IF(D43<1,1,G42*(1+MIN(Plan!$H$18,Plan!$H$17*INDEX('Scn Y'!$A$5:$AR$106,IF(Scn>0,1,0)*51+MIN(IndLiab!B43,50),11)/100))) -> 1.34378328 | H43: 152778.869 | I43: =IF(D43=1,I42,IF(B43<Plan!$H$15,-PV(Plan!$H$14,MAX(0,Plan!$H$15-B43-1),IndLiab!$H$8,,0)+SUM($H$8:H43),SUM(OFFSET($H$8,COUNT($H$8:H43)-Plan!$H$15,0,Plan!$H$15)))/MIN(E43,Plan!$H$15)) -> 142840.0822 | J43: =I43*$E$8*Plan!$H$16*G43 -> 47986.52855 | K43: =I43*E43*Plan!$H$16*G43 -> 74858.98453 | L43: =MIN(1,VLOOKUP(MIN(110,C43),'Actuarial Assumption'!$A$4:$C$115,IF(IndLiab!$F$4="M",2,3),FALSE)*Mort_S) -> 0.131536 | M43: =IF(E40="M",'Actuarial Assumption'!$E$21*MI_S,'Actuarial Assumption'!$F$21*MI_S) -> 0.01 | N43: 0.13022064 | O43: 0.2449430396 | P43: =P42/(1+Plan!$H$20) -> 0.2534154707 | Q43: =IF(Plan!$C$7=1,CurveFitting!AM42,CurveFitting!AS42) -> 0.03427272673 | R43: 0.3729492072 | S43: =IF(Scn=0,'Scn Y'!BC40,'Scn Y'!BC91)/100 -> 0.04507208617 | T43: 0.2470463268 | U43: =(1-$J$4)^MAX(0,Plan!$H$19-IndLiab!$B$4)*(D43*J43*O43*'Actuarial Assumption'!$I$13+IF(AND(D42=0,D43=1),'Actuarial Assumption'!$I$12*$K$4,0)) -> 10578.56955 | V43: =(1-$J$4)^MAX(0,Plan!$H$19-IndLiab!$B$4)*(D43*K43*O43*'Actuarial Assumption'!$I$13+IF(AND(D42=0,D43=1),'Actuarial Assumption'!$I$12*$L$4,0)) -> 16502.56849 | W43: 1057.856955 | X43: 1650.256849 | Y43: =IF(D43=0,1/MAX($E$8:$E$98)*IF(Plan!$I$23=1,$N$4,$O$4)/IF(Plan!$I$23=1,R43,T43)/O43,0) -> 0 | Z43: =I43*MIN(E43,$B$4+DynYear)*Plan!$H$16*G43 -> 47986.52855 | AA43: =(1-$J$4)^MAX(0,Plan!$H$19-IndLiab!$B$4)*(D43*Z43*O43*'Actuarial Assumption'!$I$13+IF(AND(D42=0,D43=1),'Actuarial Assumption'!$I$12*$K$4,0))*IF(B43<DynYear,0,1) -> 10578.56955 | AB43: 1057.856955 | AC43: 0.02855614933 | AD43: 0.8936693712 | AE43: 0
A44: 2052 | B44: 36 | C44: 86 | D44: 1 | E44: 39 | F44: =F43*(1+INDEX('Scn Y'!$A$5:$AR$106,IF(Scn>0,1,0)*51+MIN(51,IndLiab!B44+1),40)/100*$I$4) -> 3.427233485 | G44: =IF(D44<1,1,G43*(1+MIN(Plan!$H$18,Plan!$H$17*INDEX('Scn Y'!$A$5:$AR$106,IF(Scn>0,1,0)*51+MIN(IndLiab!B44,50),11)/100))) -> 1.362939471 | H44: 152778.869 | I44: =IF(D44=1,I43,IF(B44<Plan!$H$15,-PV(Plan!$H$14,MAX(0,Plan!$H$15-B44-1),IndLiab!$H$8,,0)+SUM($H$8:H44),SUM(OFFSET($H$8,COUNT($H$8:H44)-Plan!$H$15,0,Plan!$H$15)))/MIN(E44,Plan!$H$15)) -> 142840.0822 | J44: =I44*$E$8*Plan!$H$16*G44 -> 48670.59652 | K44: =I44*E44*Plan!$H$16*G44 -> 75926.13057 | L44: =MIN(1,VLOOKUP(MIN(110,C44),'Actuarial Assumption'!$A$4:$C$115,IF(IndLiab!$F$4="M",2,3),FALSE)*Mort_S) -> 0.143375 | M44: =IF(E41="M",'Actuarial Assumption'!$E$21*MI_S,'Actuarial Assumption'!$F$21*MI_S) -> 0.01 | N44: 0.14194125 | O44: 0.2130464003 | P44: =P43/(1+Plan!$H$20) -> 0.2436687219 | Q44: =IF(Plan!$C$7=1,CurveFitting!AM43,CurveFitting!AS43) -> 0.03440157068 | R44: 0.3605458632 | S44: =IF(Scn=0,'Scn Y'!BC41,'Scn Y'!BC92)/100 -> 0.04508569473 | T44: 0.2363885833 | U44: =(1-$J$4)^MAX(0,Plan!$H$19-IndLiab!$B$4)*(D44*J44*O44*'Actuarial Assumption'!$I$13+IF(AND(D43=0,D44=1),'Actuarial Assumption'!$I$12*$K$4,0)) -> 9332.185848 | V44: =(1-$J$4)^MAX(0,Plan!$H$19-IndLiab!$B$4)*(D44*K44*O44*'Actuarial Assumption'!$I$13+IF(AND(D43=0,D44=1),'Actuarial Assumption'!$I$12*$L$4,0)) -> 14558.20992 | W44: 933.2185848 | X44: 1455.820992 | Y44: =IF(D44=0,1/MAX($E$8:$E$98)*IF(Plan!$I$23=1,$N$4,$O$4)/IF(Plan!$I$23=1,R44,T44)/O44,0) -> 0 | Z44: =I44*MIN(E44,$B$4+DynYear)*Plan!$H$16*G44 -> 48670.59652 | AA44: =(1-$J$4)^MAX(0,Plan!$H$19-IndLiab!$B$4)*(D44*Z44*O44*'Actuarial Assumption'!$I$13+IF(AND(D43=0,D44=1),'Actuarial Assumption'!$I$12*$K$4,0))*IF(B44<DynYear,0,1) -> 9332.185848 | AB44: 933.2185848 | AC44: 0.03066512772 | AD44: 0.8670802448 | AE44: 0
A45: 2053 | B45: 37 | C45: 87 | D45: 1 | E45: 39 | F45: =F44*(1+INDEX('Scn Y'!$A$5:$AR$106,IF(Scn>0,1,0)*51+MIN(51,IndLiab!B45+1),40)/100*$I$4) -> 3.54736067 | G45: =IF(D45<1,1,G44*(1+MIN(Plan!$H$18,Plan!$H$17*INDEX('Scn Y'!$A$5:$AR$106,IF(Scn>0,1,0)*51+MIN(IndLiab!B45,50),11)/100))) -> 1.382370873 | H45: 152778.869 | I45: =IF(D45=1,I44,IF(B45<Plan!$H$15,-PV(Plan!$H$14,MAX(0,Plan!$H$15-B45-1),IndLiab!$H$8,,0)+SUM($H$8:H45),SUM(OFFSET($H$8,COUNT($H$8:H45)-Plan!$H$15,0,Plan!$H$15)))/MIN(E45,Plan!$H$15)) -> 142840.0822 | J45: =I45*$E$8*Plan!$H$16*G45 -> 49364.49226 | K45: =I45*E45*Plan!$H$16*G45 -> 77008.60792 | L45: =MIN(1,VLOOKUP(MIN(110,C45),'Actuarial Assumption'!$A$4:$C$115,IF(IndLiab!$F$4="M",2,3),FALSE)*Mort_S) -> 0.156188 | M45: =IF(E42="M",'Actuarial Assumption'!$E$21*MI_S,'Actuarial Assumption'!$F$21*MI_S) -> 0.01 | N45: 0.15462612 | O45: 0.1828063279 | P45: =P44/(1+Plan!$H$20) -> 0.2342968479 | Q45: =IF(Plan!$C$7=1,CurveFitting!AM44,CurveFitting!AS44) -> 0.03452346486 | R45: 0.3485139539 | S45: =IF(Scn=0,'Scn Y'!BC42,'Scn Y'!BC93)/100 -> 0.04509723568 | T45: 0.2261881241 | U45: =(1-$J$4)^MAX(0,Plan!$H$19-IndLiab!$B$4)*(D45*J45*O45*'Actuarial Assumption'!$I$13+IF(AND(D44=0,D45=1),'Actuarial Assumption'!$I$12*$K$4,0)) -> 8121.727402 | V45: =(1-$J$4)^MAX(0,Plan!$H$19-IndLiab!$B$4)*(D45*K45*O45*'Actuarial Assumption'!$I$13+IF(AND(D44=0,D45=1),'Actuarial Assumption'!$I$12*$L$4,0)) -> 12669.89475 | W45: 812.1727402 | X45: 1266.989475 | Y45: =IF(D45=0,1/MAX($E$8:$E$98)*IF(Plan!$I$23=1,$N$4,$O$4)/IF(Plan!$I$23=1,R45,T45)/O45,0) -> 0 | Z45: =I45*MIN(E45,$B$4+DynYear)*Plan!$H$16*G45 -> 49364.49226 | AA45: =(1-$J$4)^MAX(0,Plan!$H$19-IndLiab!$B$4)*(D45*Z45*O45*'Actuarial Assumption'!$I$13+IF(AND(D44=0,D45=1),'Actuarial Assumption'!$I$12*$K$4,0))*IF(B45<DynYear,0,1) -> 8121.727402 | AB45: 812.1727402 | AC45: 0.03277410611 | AD45: 0.8395642761 | AE45: 0
A46: 2054 | B46: 38 | C46: 88 | D46: 1 | E46: 39 | F46: =F45*(1+INDEX('Scn Y'!$A$5:$AR$106,IF(Scn>0,1,0)*51+MIN(51,IndLiab!B46+1),40)/100*$I$4) -> 3.67170165 | G46: =IF(D46<1,1,G45*(1+MIN(Plan!$H$18,Plan!$H$17*INDEX('Scn Y'!$A$5:$AR$106,IF(Scn>0,1,0)*51+MIN(IndLiab!B46,50),11)/100))) -> 1.402081153 | H46: 152778.869 | I46: =IF(D46=1,I45,IF(B46<Plan!$H$15,-PV(Plan!$H$14,MAX(0,Plan!$H$15-B46-1),IndLiab!$H$8,,0)+SUM($H$8:H46),SUM(OFFSET($H$8,COUNT($H$8:H46)-Plan!$H$15,0,Plan!$H$15)))/MIN(E46,Plan!$H$15)) -> 142840.0822 | J46: =I46*$E$8*Plan!$H$16*G46 -> 50068.34675 | K46: =I46*E46*Plan!$H$16*G46 -> 78106.62094 | L46: =MIN(1,VLOOKUP(MIN(110,C46),'Actuarial Assumption'!$A$4:$C$115,IF(IndLiab!$F$4="M",2,3),FALSE)*Mort_S) -> 0.170033 | M46: =IF(E43="M",'Actuarial Assumption'!$E$21*MI_S,'Actuarial Assumption'!$F$21*MI_S) -> 0.01 | N46: 0.16833267 | O46: 0.1545396947 | P46: =P45/(1+Plan!$H$20) -> 0.2252854307 | Q46: =IF(Plan!$C$7=1,CurveFitting!AM45,CurveFitting!AS45) -> 0.03463895681 | R46: 0.3368459612 | S46: =IF(Scn=0,'Scn Y'!BC43,'Scn Y'!BC94)/100 -> 0.04510703356 | T46: 0.2164257984 | U46: =(1-$J$4)^MAX(0,Plan!$H$19-IndLiab!$B$4)*(D46*J46*O46*'Actuarial Assumption'!$I$13+IF(AND(D45=0,D46=1),'Actuarial Assumption'!$I$12*$K$4,0)) -> 6963.792319 | V46: =(1-$J$4)^MAX(0,Plan!$H$19-IndLiab!$B$4)*(D46*K46*O46*'Actuarial Assumption'!$I$13+IF(AND(D45=0,D46=1),'Actuarial Assumption'!$I$12*$L$4,0)) -> 10863.51602 | W46: 696.3792319 | X46: 1086.351602 | Y46: =IF(D46=0,1/MAX($E$8:$E$98)*IF(Plan!$I$23=1,$N$4,$O$4)/IF(Plan!$I$23=1,R46,T46)/O46,0) -> 0 | Z46: =I46*MIN(E46,$B$4+DynYear)*Plan!$H$16*G46 -> 50068.34675 | AA46: =(1-$J$4)^MAX(0,Plan!$H$19-IndLiab!$B$4)*(D46*Z46*O46*'Actuarial Assumption'!$I$13+IF(AND(D45=0,D46=1),'Actuarial Assumption'!$I$12*$K$4,0))*IF(B46<DynYear,0,1) -> 6963.792319 | AB46: 696.3792319 | AC46: 0.03388289185 | AD46: 0.8120496845 | AE46: 0
A47: 2055 | B47: 39 | C47: 89 | D47: 1 | E47: 39 | F47: =F46*(1+INDEX('Scn Y'!$A$5:$AR$106,IF(Scn>0,1,0)*51+MIN(51,IndLiab!B47+1),40)/100*$I$4) -> 3.800403863 | G47: =IF(D47<1,1,G46*(1+MIN(Plan!$H$18,Plan!$H$17*INDEX('Scn Y'!$A$5:$AR$106,IF(Scn>0,1,0)*51+MIN(IndLiab!B47,50),11)/100))) -> 1.422074065 | H47: 152778.869 | I47: =IF(D47=1,I46,IF(B47<Plan!$H$15,-PV(Plan!$H$14,MAX(0,Plan!$H$15-B47-1),IndLiab!$H$8,,0)+SUM($H$8:H47),SUM(OFFSET($H$8,COUNT($H$8:H47)-Plan!$H$15,0,Plan!$H$15)))/MIN(E47,Plan!$H$15)) -> 142840.0822 | J47: =I47*$E$8*Plan!$H$16*G47 -> 50782.29406 | K47: =I47*E47*Plan!$H$16*G47 -> 79220.37873 | L47: =MIN(1,VLOOKUP(MIN(110,C47),'Actuarial Assumption'!$A$4:$C$115,IF(IndLiab!$F$4="M",2,3),FALSE)*Mort_S) -> 0.18497 | M47: =IF(E44="M",'Actuarial Assumption'!$E$21*MI_S,'Actuarial Assumption'!$F$21*MI_S) -> 0.01 | N47: 0.1831203 | O47: 0.1285256153 | P47: =P46/(1+Plan!$H$20) -> 0.2166206064 | Q47: =IF(Plan!$C$7=1,CurveFitting!AM46,CurveFitting!AS46) -> 0.03474853802 | R47: 0.3255341262 | S47: =IF(Scn=0,'Scn Y'!BC44,'Scn Y'!BC95)/100 -> 0.04511536808 | T47: 0.2070831652 | U47: =(1-$J$4)^MAX(0,Plan!$H$19-IndLiab!$B$4)*(D47*J47*O47*'Actuarial Assumption'!$I$13+IF(AND(D46=0,D47=1),'Actuarial Assumption'!$I$12*$K$4,0)) -> 5874.14303 | V47: =(1-$J$4)^MAX(0,Plan!$H$19-IndLiab!$B$4)*(D47*K47*O47*'Actuarial Assumption'!$I$13+IF(AND(D46=0,D47=1),'Actuarial Assumption'!$I$12*$L$4,0)) -> 9163.663127 | W47: 587.414303 | X47: 916.3663127 | Y47: =IF(D47=0,1/MAX($E$8:$E$98)*IF(Plan!$I$23=1,$N$4,$O$4)/IF(Plan!$I$23=1,R47,T47)/O47,0) -> 0 | Z47: =I47*MIN(E47,$B$4+DynYear)*Plan!$H$16*G47 -> 50782.29406 | AA47: =(1-$J$4)^MAX(0,Plan!$H$19-IndLiab!$B$4)*(D47*Z47*O47*'Actuarial Assumption'!$I$13+IF(AND(D46=0,D47=1),'Actuarial Assumption'!$I$12*$K$4,0))*IF(B47<DynYear,0,1) -> 5874.14303 | AB47: 587.414303 | AC47: 0.03499167758 | AD47: 0.7845953761 | AE47: 0
A48: 2056 | B48: 40 | C48: 90 | D48: 1 | E48: 39 | F48: =F47*(1+INDEX('Scn Y'!$A$5:$AR$106,IF(Scn>0,1,0)*51+MIN(51,IndLiab!B48+1),40)/100*$I$4) -> 3.933619941 | G48: =IF(D48<1,1,G47*(1+MIN(Plan!$H$18,Plan!$H$17*INDEX('Scn Y'!$A$5:$AR$106,IF(Scn>0,1,0)*51+MIN(IndLiab!B48,50),11)/100))) -> 1.442353446 | H48: 152778.869 | I48: =IF(D48=1,I47,IF(B48<Plan!$H$15,-PV(Plan!$H$14,MAX(0,Plan!$H$15-B48-1),IndLiab!$H$8,,0)+SUM($H$8:H48),SUM(OFFSET($H$8,COUNT($H$8:H48)-Plan!$H$15,0,Plan!$H$15)))/MIN(E48,Plan!$H$15)) -> 142840.0822 | J48: =I48*$E$8*Plan!$H$16*G48 -> 51506.47118 | K48: =I48*E48*Plan!$H$16*G48 -> 80350.09504 | L48: =MIN(1,VLOOKUP(MIN(110,C48),'Actuarial Assumption'!$A$4:$C$115,IF(IndLiab!$F$4="M",2,3),FALSE)*Mort_S) -> 0.201055 | M48: =IF(E45="M",'Actuarial Assumption'!$E$21*MI_S,'Actuarial Assumption'!$F$21*MI_S) -> 0.01 | N48: 0.19904445 | O48: 0.104989966 | P48: =P47/(1+Plan!$H$20) -> 0.2082890447 | Q48: =IF(Plan!$C$7=1,CurveFitting!AM47,CurveFitting!AS47) -> 0.03485265091 | R48: 0.3145705101 | S48: =IF(Scn=0,'Scn Y'!BC45,'Scn Y'!BC96)/100 -> 0.04512247194 | T48: 0.1981424864 | U48: =(1-$J$4)^MAX(0,Plan!$H$19-IndLiab!$B$4)*(D48*J48*O48*'Actuarial Assumption'!$I$13+IF(AND(D47=0,D48=1),'Actuarial Assumption'!$I$12*$K$4,0)) -> 4866.896395 | V48: =(1-$J$4)^MAX(0,Plan!$H$19-IndLiab!$B$4)*(D48*K48*O48*'Actuarial Assumption'!$I$13+IF(AND(D47=0,D48=1),'Actuarial Assumption'!$I$12*$L$4,0)) -> 7592.358375 | W48: 486.6896395 | X48: 759.2358375 | Y48: =IF(D48=0,1/MAX($E$8:$E$98)*IF(Plan!$I$23=1,$N$4,$O$4)/IF(Plan!$I$23=1,R48,T48)/O48,0) -> 0 | Z48: =I48*MIN(E48,$B$4+DynYear)*Plan!$H$16*G48 -> 51506.47118 | AA48: =(1-$J$4)^MAX(0,Plan!$H$19-IndLiab!$B$4)*(D48*Z48*O48*'Actuarial Assumption'!$I$13+IF(AND(D47=0,D48=1),'Actuarial Assumption'!$I$12*$K$4,0))*IF(B48<DynYear,0,1) -> 4866.896395 | AB48: 486.6896395 | AC48: 0.03610046332 | AD48: 0.757258011 | AE48: 0
A49: 2057 | B49: 41 | C49: 91 | D49: 1 | E49: 39 | F49: =F48*(1+INDEX('Scn Y'!$A$5:$AR$106,IF(Scn>0,1,0)*51+MIN(51,IndLiab!B49+1),40)/100*$I$4) -> 4.071507894 | G49: =IF(D49<1,1,G48*(1+MIN(Plan!$H$18,Plan!$H$17*INDEX('Scn Y'!$A$5:$AR$106,IF(Scn>0,1,0)*51+MIN(IndLiab!B49,50),11)/100))) -> 1.462923214 | H49: 152778.869 | I49: =IF(D49=1,I48,IF(B49<Plan!$H$15,-PV(Plan!$H$14,MAX(0,Plan!$H$15-B49-1),IndLiab!$H$8,,0)+SUM($H$8:H49),SUM(OFFSET($H$8,COUNT($H$8:H49)-Plan!$H$15,0,Plan!$H$15)))/MIN(E49,Plan!$H$15)) -> 142840.0822 | J49: =I49*$E$8*Plan!$H$16*G49 -> 52241.01801 | K49: =I49*E49*Plan!$H$16*G49 -> 81495.9881 | L49: =MIN(1,VLOOKUP(MIN(110,C49),'Actuarial Assumption'!$A$4:$C$115,IF(IndLiab!$F$4="M",2,3),FALSE)*Mort_S) -> 0.218348 | M49: =IF(E46="M",'Actuarial Assumption'!$E$21*MI_S,'Actuarial Assumption'!$F$21*MI_S) -> 0.01 | N49: 0.21616452 | O49: 0.084092296 | P49: =P48/(1+Plan!$H$20) -> 0.2002779276 | Q49: =IF(Plan!$C$7=1,CurveFitting!AM48,CurveFitting!AS48) -> 0.03495169485 | R49: 0.3039470457 | S49: =IF(Scn=0,'Scn Y'!BC46,'Scn Y'!BC97)/100 -> 0.04512853537 | T49: 0.1895867156 | U49: =(1-$J$4)^MAX(0,Plan!$H$19-IndLiab!$B$4)*(D49*J49*O49*'Actuarial Assumption'!$I$13+IF(AND(D48=0,D49=1),'Actuarial Assumption'!$I$12*$K$4,0)) -> 3953.760435 | V49: =(1-$J$4)^MAX(0,Plan!$H$19-IndLiab!$B$4)*(D49*K49*O49*'Actuarial Assumption'!$I$13+IF(AND(D48=0,D49=1),'Actuarial Assumption'!$I$12*$L$4,0)) -> 6167.866279 | W49: 395.3760435 | X49: 616.7866279 | Y49: =IF(D49=0,1/MAX($E$8:$E$98)*IF(Plan!$I$23=1,$N$4,$O$4)/IF(Plan!$I$23=1,R49,T49)/O49,0) -> 0 | Z49: =I49*MIN(E49,$B$4+DynYear)*Plan!$H$16*G49 -> 52241.01801 | AA49: =(1-$J$4)^MAX(0,Plan!$H$19-IndLiab!$B$4)*(D49*Z49*O49*'Actuarial Assumption'!$I$13+IF(AND(D48=0,D49=1),'Actuarial Assumption'!$I$12*$K$4,0))*IF(B49<DynYear,0,1) -> 3953.760435 | AB49: 395.3760435 | AC49: 0.0366452501 | AD49: 0.7304890568 | AE49: 0
A50: 2058 | B50: 42 | C50: 92 | D50: 1 | E50: 39 | F50: =F49*(1+INDEX('Scn Y'!$A$5:$AR$106,IF(Scn>0,1,0)*51+MIN(51,IndLiab!B50+1),40)/100*$I$4) -> 4.214231297 | G50: =IF(D50<1,1,G49*(1+MIN(Plan!$H$18,Plan!$H$17*INDEX('Scn Y'!$A$5:$AR$106,IF(Scn>0,1,0)*51+MIN(IndLiab!B50,50),11)/100))) -> 1.483787364 | H50: 152778.869 | I50: =IF(D50=1,I49,IF(B50<Plan!$H$15,-PV(Plan!$H$14,MAX(0,Plan!$H$15-B50-1),IndLiab!$H$8,,0)+SUM($H$8:H50),SUM(OFFSET($H$8,COUNT($H$8:H50)-Plan!$H$15,0,Plan!$H$15)))/MIN(E50,Plan!$H$15)) -> 142840.0822 | J50: =I50*$E$8*Plan!$H$16*G50 -> 52986.07725 | K50: =I50*E50*Plan!$H$16*G50 -> 82658.28051 | L50: =MIN(1,VLOOKUP(MIN(110,C50),'Actuarial Assumption'!$A$4:$C$115,IF(IndLiab!$F$4="M",2,3),FALSE)*Mort_S) -> 0.236907 | M50: =IF(E47="M",'Actuarial Assumption'!$E$21*MI_S,'Actuarial Assumption'!$F$21*MI_S) -> 0.01 | N50: 0.23453793 | O50: 0.0659145252 | P50: =P49/(1+Plan!$H$20) -> 0.1925749303 | Q50: =IF(Plan!$C$7=1,CurveFitting!AM49,CurveFitting!AS49) -> 0.03504603122 | R50: 0.293655583 | S50: =IF(Scn=0,'Scn Y'!BC47,'Scn Y'!BC98)/100 -> 0.04513371384 | T50: 0.1813994832 | U50: =(1-$J$4)^MAX(0,Plan!$H$19-IndLiab!$B$4)*(D50*J50*O50*'Actuarial Assumption'!$I$13+IF(AND(D49=0,D50=1),'Actuarial Assumption'!$I$12*$K$4,0)) -> 3143.296912 | V50: =(1-$J$4)^MAX(0,Plan!$H$19-IndLiab!$B$4)*(D50*K50*O50*'Actuarial Assumption'!$I$13+IF(AND(D49=0,D50=1),'Actuarial Assumption'!$I$12*$L$4,0)) -> 4903.543182 | W50: 314.3296912 | X50: 490.3543182 | Y50: =IF(D50=0,1/MAX($E$8:$E$98)*IF(Plan!$I$23=1,$N$4,$O$4)/IF(Plan!$I$23=1,R50,T50)/O50,0) -> 0 | Z50: =I50*MIN(E50,$B$4+DynYear)*Plan!$H$16*G50 -> 52986.07725 | AA50: =(1-$J$4)^MAX(0,Plan!$H$19-IndLiab!$B$4)*(D50*Z50*O50*'Actuarial Assumption'!$I$13+IF(AND(D49=0,D50=1),'Actuarial Assumption'!$I$12*$K$4,0))*IF(B50<DynYear,0,1) -> 3143.296912 | AB50: 314.3296912 | AC50: 0.03719003687 | AD50: 0.7042962532 | AE50: 0
A51: 2059 | B51: 43 | C51: 93 | D51: 1 | E51: 39 | F51: =F50*(1+INDEX('Scn Y'!$A$5:$AR$106,IF(Scn>0,1,0)*51+MIN(51,IndLiab!B51+1),40)/100*$I$4) -> 4.361959483 | G51: =IF(D51<1,1,G50*(1+MIN(Plan!$H$18,Plan!$H$17*INDEX('Scn Y'!$A$5:$AR$106,IF(Scn>0,1,0)*51+MIN(IndLiab!B51,50),11)/100))) -> 1.50494997 | H51: 152778.869 | I51: =IF(D51=1,I50,IF(B51<Plan!$H$15,-PV(Plan!$H$14,MAX(0,Plan!$H$15-B51-1),IndLiab!$H$8,,0)+SUM($H$8:H51),SUM(OFFSET($H$8,COUNT($H$8:H51)-Plan!$H$15,0,Plan!$H$15)))/MIN(E51,Plan!$H$15)) -> 142840.0822 | J51: =I51*$E$8*Plan!$H$16*G51 -> 53741.79433 | K51: =I51*E51*Plan!$H$16*G51 -> 83837.19916 | L51: =MIN(1,VLOOKUP(MIN(110,C51),'Actuarial Assumption'!$A$4:$C$115,IF(IndLiab!$F$4="M",2,3),FALSE)*Mort_S) -> 0.256783 | M51: =IF(E48="M",'Actuarial Assumption'!$E$21*MI_S,'Actuarial Assumption'!$F$21*MI_S) -> 0.01 | N51: 0.25421517 | O51: 0.0504550689 | P51: =P50/(1+Plan!$H$20) -> 0.1851682023 | Q51: =IF(Plan!$C$7=1,CurveFitting!AM50,CurveFitting!AS50) -> 0.03513598786 | R51: 0.2836879274 | S51: =IF(Scn=0,'Scn Y'!BC48,'Scn Y'!BC99)/100 -> 0.04513813605 | T51: 0.1735650791 | U51: =(1-$J$4)^MAX(0,Plan!$H$19-IndLiab!$B$4)*(D51*J51*O51*'Actuarial Assumption'!$I$13+IF(AND(D50=0,D51=1),'Actuarial Assumption'!$I$12*$K$4,0)) -> 2440.391342 | V51: =(1-$J$4)^MAX(0,Plan!$H$19-IndLiab!$B$4)*(D51*K51*O51*'Actuarial Assumption'!$I$13+IF(AND(D50=0,D51=1),'Actuarial Assumption'!$I$12*$L$4,0)) -> 3807.010494 | W51: 244.0391342 | X51: 380.7010494 | Y51: =IF(D51=0,1/MAX($E$8:$E$98)*IF(Plan!$I$23=1,$N$4,$O$4)/IF(Plan!$I$23=1,R51,T51)/O51,0) -> 0 | Z51: =I51*MIN(E51,$B$4+DynYear)*Plan!$H$16*G51 -> 53741.79433 | AA51: =(1-$J$4)^MAX(0,Plan!$H$19-IndLiab!$B$4)*(D51*Z51*O51*'Actuarial Assumption'!$I$13+IF(AND(D50=0,D51=1),'Actuarial Assumption'!$I$12*$K$4,0))*IF(B51<DynYear,0,1) -> 2440.391342 | AB51: 244.0391342 | AC51: 0.03773482365 | AD51: 0.678686151 | AE51: 0
A52: 2060 | B52: 44 | C52: 94 | D52: 1 | E52: 39 | F52: =F51*(1+INDEX('Scn Y'!$A$5:$AR$106,IF(Scn>0,1,0)*51+MIN(51,IndLiab!B52+1),40)/100*$I$4) -> 4.514867748 | G52: =IF(D52<1,1,G51*(1+MIN(Plan!$H$18,Plan!$H$17*INDEX('Scn Y'!$A$5:$AR$106,IF(Scn>0,1,0)*51+MIN(IndLiab!B52,50),11)/100))) -> 1.52641518 | H52: 152778.869 | I52: =IF(D52=1,I51,IF(B52<Plan!$H$15,-PV(Plan!$H$14,MAX(0,Plan!$H$15-B52-1),IndLiab!$H$8,,0)+SUM($H$8:H52),SUM(OFFSET($H$8,COUNT($H$8:H52)-Plan!$H$15,0,Plan!$H$15)))/MIN(E52,Plan!$H$15)) -> 142840.0822 | J52: =I52*$E$8*Plan!$H$16*G52 -> 54508.31741 | K52: =I52*E52*Plan!$H$16*G52 -> 85032.97516 | L52: =MIN(1,VLOOKUP(MIN(110,C52),'Actuarial Assumption'!$A$4:$C$115,IF(IndLiab!$F$4="M",2,3),FALSE)*Mort_S) -> 0.278003 | M52: =IF(E49="M",'Actuarial Assumption'!$E$21*MI_S,'Actuarial Assumption'!$F$21*MI_S) -> 0.01 | N52: 0.27522297 | O52: 0.03762862498 | P52: =P51/(1+Plan!$H$20) -> 0.1780463483 | Q52: =IF(Plan!$C$7=1,CurveFitting!AM51,CurveFitting!AS51) -> 0.03522186286 | R52: 0.2740358734 | S52: =IF(Scn=0,'Scn Y'!BC49,'Scn Y'!BC100)/100 -> 0.0451419104 | T52: 0.1660684327 | U52: =(1-$J$4)^MAX(0,Plan!$H$19-IndLiab!$B$4)*(D52*J52*O52*'Actuarial Assumption'!$I$13+IF(AND(D51=0,D52=1),'Actuarial Assumption'!$I$12*$K$4,0)) -> 1845.965731 | V52: =(1-$J$4)^MAX(0,Plan!$H$19-IndLiab!$B$4)*(D52*K52*O52*'Actuarial Assumption'!$I$13+IF(AND(D51=0,D52=1),'Actuarial Assumption'!$I$12*$L$4,0)) -> 2879.70654 | W52: 184.5965731 | X52: 287.970654 | Y52: =IF(D52=0,1/MAX($E$8:$E$98)*IF(Plan!$I$23=1,$N$4,$O$4)/IF(Plan!$I$23=1,R52,T52)/O52,0) -> 0 | Z52: =I52*MIN(E52,$B$4+DynYear)*Plan!$H$16*G52 -> 54508.31741 | AA52: =(1-$J$4)^MAX(0,Plan!$H$19-IndLiab!$B$4)*(D52*Z52*O52*'Actuarial Assumption'!$I$13+IF(AND(D51=0,D52=1),'Actuarial Assumption'!$I$12*$K$4,0))*IF(B52<DynYear,0,1) -> 1845.965731 | AB52: 184.5965731 | AC52: 0.03827961042 | AD52: 0.6536641423 | AE52: 0
A53: 2061 | B53: 45 | C53: 95 | D53: 1 | E53: 39 | F53: =F52*(1+INDEX('Scn Y'!$A$5:$AR$106,IF(Scn>0,1,0)*51+MIN(51,IndLiab!B53+1),40)/100*$I$4) -> 4.673137549 | G53: =IF(D53<1,1,G52*(1+MIN(Plan!$H$18,Plan!$H$17*INDEX('Scn Y'!$A$5:$AR$106,IF(Scn>0,1,0)*51+MIN(IndLiab!B53,50),11)/100))) -> 1.548187216 | H53: 152778.869 | I53: =IF(D53=1,I52,IF(B53<Plan!$H$15,-PV(Plan!$H$14,MAX(0,Plan!$H$15-B53-1),IndLiab!$H$8,,0)+SUM($H$8:H53),SUM(OFFSET($H$8,COUNT($H$8:H53)-Plan!$H$15,0,Plan!$H$15)))/MIN(E53,Plan!$H$15)) -> 142840.0822 | J53: =I53*$E$8*Plan!$H$16*G53 -> 55285.79727 | K53: =I53*E53*Plan!$H$16*G53 -> 86245.84374 | L53: =MIN(1,VLOOKUP(MIN(110,C53),'Actuarial Assumption'!$A$4:$C$115,IF(IndLiab!$F$4="M",2,3),FALSE)*Mort_S) -> 0.300589 | M53: =IF(E50="M",'Actuarial Assumption'!$E$21*MI_S,'Actuarial Assumption'!$F$21*MI_S) -> 0.01 | N53: 0.29758311 | O53: 0.02727236306 | P53: =P52/(1+Plan!$H$20) -> 0.1711984118 | Q53: =IF(Plan!$C$7=1,CurveFitting!AM52,CurveFitting!AS52) -> 0.03530392784 | R53: 0.2646912332 | S53: =IF(Scn=0,'Scn Y'!BC50,'Scn Y'!BC101)/100 -> 0.04514512969 | T53: 0.1588950932 | U53: =(1-$J$4)^MAX(0,Plan!$H$19-IndLiab!$B$4)*(D53*J53*O53*'Actuarial Assumption'!$I$13+IF(AND(D52=0,D53=1),'Actuarial Assumption'!$I$12*$K$4,0)) -> 1356.996902 | V53: =(1-$J$4)^MAX(0,Plan!$H$19-IndLiab!$B$4)*(D53*K53*O53*'Actuarial Assumption'!$I$13+IF(AND(D52=0,D53=1),'Actuarial Assumption'!$I$12*$L$4,0)) -> 2116.915167 | W53: 135.6996902 | X53: 211.6915167 | Y53: =IF(D53=0,1/MAX($E$8:$E$98)*IF(Plan!$I$23=1,$N$4,$O$4)/IF(Plan!$I$23=1,R53,T53)/O53,0) -> 0 | Z53: =I53*MIN(E53,$B$4+DynYear)*Plan!$H$16*G53 -> 55285.79727 | AA53: =(1-$J$4)^MAX(0,Plan!$H$19-IndLiab!$B$4)*(D53*Z53*O53*'Actuarial Assumption'!$I$13+IF(AND(D52=0,D53=1),'Actuarial Assumption'!$I$12*$K$4,0))*IF(B53<DynYear,0,1) -> 1356.996902 | AB53: 135.6996902 | AC53: 0.0388243972 | AD53: 0.6292344924 | AE53: 0
A54: 2062 | B54: 46 | C54: 96 | D54: 1 | E54: 39 | F54: =F53*(1+INDEX('Scn Y'!$A$5:$AR$106,IF(Scn>0,1,0)*51+MIN(51,IndLiab!B54+1),40)/100*$I$4) -> 4.836956725 | G54: =IF(D54<1,1,G53*(1+MIN(Plan!$H$18,Plan!$H$17*INDEX('Scn Y'!$A$5:$AR$106,IF(Scn>0,1,0)*51+MIN(IndLiab!B54,50),11)/100))) -> 1.570270374 | H54: 152778.869 | I54: =IF(D54=1,I53,IF(B54<Plan!$H$15,-PV(Plan!$H$14,MAX(0,Plan!$H$15-B54-1),IndLiab!$H$8,,0)+SUM($H$8:H54),SUM(OFFSET($H$8,COUNT($H$8:H54)-Plan!$H$15,0,Plan!$H$15)))/MIN(E54,Plan!$H$15)) -> 142840.0822 | J54: =I54*$E$8*Plan!$H$16*G54 -> 56074.38731 | K54: =I54*E54*Plan!$H$16*G54 -> 87476.04421 | L54: =MIN(1,VLOOKUP(MIN(110,C54),'Actuarial Assumption'!$A$4:$C$115,IF(IndLiab!$F$4="M",2,3),FALSE)*Mort_S) -> 0.324559 | M54: =IF(E51="M",'Actuarial Assumption'!$E$21*MI_S,'Actuarial Assumption'!$F$21*MI_S) -> 0.01 | N54: 0.32131341 | O54: 0.01915656844 | P54: =P53/(1+Plan!$H$20) -> 0.1646138575 | Q54: =IF(Plan!$C$7=1,CurveFitting!AM53,CurveFitting!AS53) -> 0.03538243088 | R54: 0.2556458612 | S54: =IF(Scn=0,'Scn Y'!BC51,'Scn Y'!BC102)/100 -> 0.04514787406 | T54: 0.1520312074 | U54: =(1-$J$4)^MAX(0,Plan!$H$19-IndLiab!$B$4)*(D54*J54*O54*'Actuarial Assumption'!$I$13+IF(AND(D53=0,D54=1),'Actuarial Assumption'!$I$12*$K$4,0)) -> 966.7735546 | V54: =(1-$J$4)^MAX(0,Plan!$H$19-IndLiab!$B$4)*(D54*K54*O54*'Actuarial Assumption'!$I$13+IF(AND(D53=0,D54=1),'Actuarial Assumption'!$I$12*$L$4,0)) -> 1508.166745 | W54: 96.67735546 | X54: 150.8166745 | Y54: =IF(D54=0,1/MAX($E$8:$E$98)*IF(Plan!$I$23=1,$N$4,$O$4)/IF(Plan!$I$23=1,R54,T54)/O54,0) -> 0 | Z54: =I54*MIN(E54,$B$4+DynYear)*Plan!$H$16*G54 -> 56074.38731 | AA54: =(1-$J$4)^MAX(0,Plan!$H$19-IndLiab!$B$4)*(D54*Z54*O54*'Actuarial Assumption'!$I$13+IF(AND(D53=0,D54=1),'Actuarial Assumption'!$I$12*$K$4,0))*IF(B54<DynYear,0,1) -> 966.7735546 | AB54: 96.67735546 | AC54: 0.03936918397 | AD54: 0.6054003737 | AE54: 0
A55: 2063 | B55: 47 | C55: 97 | D55: 1 | E55: 39 | F55: =F54*(1+INDEX('Scn Y'!$A$5:$AR$106,IF(Scn>0,1,0)*51+MIN(51,IndLiab!B55+1),40)/100*$I$4) -> 5.006519713 | G55: =IF(D55<1,1,G54*(1+MIN(Plan!$H$18,Plan!$H$17*INDEX('Scn Y'!$A$5:$AR$106,IF(Scn>0,1,0)*51+MIN(IndLiab!B55,50),11)/100))) -> 1.592669023 | H55: 152778.869 | I55: =IF(D55=1,I54,IF(B55<Plan!$H$15,-PV(Plan!$H$14,MAX(0,Plan!$H$15-B55-1),IndLiab!$H$8,,0)+SUM($H$8:H55),SUM(OFFSET($H$8,COUNT($H$8:H55)-Plan!$H$15,0,Plan!$H$15)))/MIN(E55,Plan!$H$15)) -> 142840.0822 | J55: =I55*$E$8*Plan!$H$16*G55 -> 56874.24352 | K55: =I55*E55*Plan!$H$16*G55 -> 88723.81989 | L55: =MIN(1,VLOOKUP(MIN(110,C55),'Actuarial Assumption'!$A$4:$C$115,IF(IndLiab!$F$4="M",2,3),FALSE)*Mort_S) -> 0.349936 | M55: =IF(E52="M",'Actuarial Assumption'!$E$21*MI_S,'Actuarial Assumption'!$F$21*MI_S) -> 0.01 | N55: 0.34643664 | O55: 0.01300130611 | P55: =P54/(1+Plan!$H$20) -> 0.1582825553 | Q55: =IF(Plan!$C$7=1,CurveFitting!AM54,CurveFitting!AS54) -> 0.03545759893 | R55: 0.2468916752 | S55: =IF(Scn=0,'Scn Y'!BC52,'Scn Y'!BC103)/100 -> 0.04515021286 | T55: 0.1454634994 | U55: =(1-$J$4)^MAX(0,Plan!$H$19-IndLiab!$B$4)*(D55*J55*O55*'Actuarial Assumption'!$I$13+IF(AND(D54=0,D55=1),'Actuarial Assumption'!$I$12*$K$4,0)) -> 665.4955049 | V55: =(1-$J$4)^MAX(0,Plan!$H$19-IndLiab!$B$4)*(D55*K55*O55*'Actuarial Assumption'!$I$13+IF(AND(D54=0,D55=1),'Actuarial Assumption'!$I$12*$L$4,0)) -> 1038.172988 | W55: 66.54955049 | X55: 103.8172988 | Y55: =IF(D55=0,1/MAX($E$8:$E$98)*IF(Plan!$I$23=1,$N$4,$O$4)/IF(Plan!$I$23=1,R55,T55)/O55,0) -> 0 | Z55: =I55*MIN(E55,$B$4+DynYear)*Plan!$H$16*G55 -> 56874.24352 | AA55: =(1-$J$4)^MAX(0,Plan!$H$19-IndLiab!$B$4)*(D55*Z55*O55*'Actuarial Assumption'!$I$13+IF(AND(D54=0,D55=1),'Actuarial Assumption'!$I$12*$K$4,0))*IF(B55<DynYear,0,1) -> 665.4955049 | AB55: 66.54955049 | AC55: 0.03991397075 | AD55: 0.5821639008 | AE55: 0
A56: 2064 | B56: 48 | C56: 98 | D56: 1 | E56: 39 | F56: =F55*(1+INDEX('Scn Y'!$A$5:$AR$106,IF(Scn>0,1,0)*51+MIN(51,IndLiab!B56+1),40)/100*$I$4) -> 5.18202778 | G56: =IF(D56<1,1,G55*(1+MIN(Plan!$H$18,Plan!$H$17*INDEX('Scn Y'!$A$5:$AR$106,IF(Scn>0,1,0)*51+MIN(IndLiab!B56,50),11)/100))) -> 1.615387602 | H56: 152778.869 | I56: =IF(D56=1,I55,IF(B56<Plan!$H$15,-PV(Plan!$H$14,MAX(0,Plan!$H$15-B56-1),IndLiab!$H$8,,0)+SUM($H$8:H56),SUM(OFFSET($H$8,COUNT($H$8:H56)-Plan!$H$15,0,Plan!$H$15)))/MIN(E56,Plan!$H$15)) -> 142840.0822 | J56: =I56*$E$8*Plan!$H$16*G56 -> 57685.52444 | K56: =I56*E56*Plan!$H$16*G56 -> 89989.41812 | L56: =MIN(1,VLOOKUP(MIN(110,C56),'Actuarial Assumption'!$A$4:$C$115,IF(IndLiab!$F$4="M",2,3),FALSE)*Mort_S) -> 0.376717 | M56: =IF(E53="M",'Actuarial Assumption'!$E$21*MI_S,'Actuarial Assumption'!$F$21*MI_S) -> 0.01 | N56: 0.37294983 | O56: 0.008497177307 | P56: =P55/(1+Plan!$H$20) -> 0.1521947647 | Q56: =IF(Plan!$C$7=1,CurveFitting!AM55,CurveFitting!AS55) -> 0.0355296401 | R56: 0.2384206745 | S56: =IF(Scn=0,'Scn Y'!BC53,'Scn Y'!BC104)/100 -> 0.04515220591 | T56: 0.1391792493 | U56: =(1-$J$4)^MAX(0,Plan!$H$19-IndLiab!$B$4)*(D56*J56*O56*'Actuarial Assumption'!$I$13+IF(AND(D55=0,D56=1),'Actuarial Assumption'!$I$12*$K$4,0)) -> 441.1477163 | V56: =(1-$J$4)^MAX(0,Plan!$H$19-IndLiab!$B$4)*(D56*K56*O56*'Actuarial Assumption'!$I$13+IF(AND(D55=0,D56=1),'Actuarial Assumption'!$I$12*$L$4,0)) -> 688.1904374 | W56: 44.11477163 | X56: 68.81904374 | Y56: =IF(D56=0,1/MAX($E$8:$E$98)*IF(Plan!$I$23=1,$N$4,$O$4)/IF(Plan!$I$23=1,R56,T56)/O56,0) -> 0 | Z56: =I56*MIN(E56,$B$4+DynYear)*Plan!$H$16*G56 -> 57685.52444 | AA56: =(1-$J$4)^MAX(0,Plan!$H$19-IndLiab!$B$4)*(D56*Z56*O56*'Actuarial Assumption'!$I$13+IF(AND(D55=0,D56=1),'Actuarial Assumption'!$I$12*$K$4,0))*IF(B56<DynYear,0,1) -> 441.1477163 | AB56: 44.11477163 | AC56: 0.04045875753 | AD56: 0.5595261673 | AE56: 0
A57: 2065 | B57: 49 | C57: 99 | D57: 1 | E57: 39 | F57: =F56*(1+INDEX('Scn Y'!$A$5:$AR$106,IF(Scn>0,1,0)*51+MIN(51,IndLiab!B57+1),40)/100*$I$4) -> 5.363689259 | G57: =IF(D57<1,1,G56*(1+MIN(Plan!$H$18,Plan!$H$17*INDEX('Scn Y'!$A$5:$AR$106,IF(Scn>0,1,0)*51+MIN(IndLiab!B57,50),11)/100))) -> 1.638430622 | H57: 152778.869 | I57: =IF(D57=1,I56,IF(B57<Plan!$H$15,-PV(Plan!$H$14,MAX(0,Plan!$H$15-B57-1),IndLiab!$H$8,,0)+SUM($H$8:H57),SUM(OFFSET($H$8,COUNT($H$8:H57)-Plan!$H$15,0,Plan!$H$15)))/MIN(E57,Plan!$H$15)) -> 142840.0822 | J57: =I57*$E$8*Plan!$H$16*G57 -> 58508.39117 | K57: =I57*E57*Plan!$H$16*G57 -> 91273.09023 | L57: =MIN(1,VLOOKUP(MIN(110,C57),'Actuarial Assumption'!$A$4:$C$115,IF(IndLiab!$F$4="M",2,3),FALSE)*Mort_S) -> 0.404815 | M57: =IF(E54="M",'Actuarial Assumption'!$E$21*MI_S,'Actuarial Assumption'!$F$21*MI_S) -> 0.01 | N57: 0.40076685 | O57: 0.005328156475 | P57: =P56/(1+Plan!$H$20) -> 0.1463411199 | Q57: =IF(Plan!$C$7=1,CurveFitting!AM56,CurveFitting!AS56) -> 0.03559874553 | R57: 0.2302249549 | S57: =IF(Scn=0,'Scn Y'!BC54,'Scn Y'!BC105)/100 -> 0.04515390453 | T57: 0.1331662721 | U57: =(1-$J$4)^MAX(0,Plan!$H$19-IndLiab!$B$4)*(D57*J57*O57*'Actuarial Assumption'!$I$13+IF(AND(D56=0,D57=1),'Actuarial Assumption'!$I$12*$K$4,0)) -> 280.5676769 | V57: =(1-$J$4)^MAX(0,Plan!$H$19-IndLiab!$B$4)*(D57*K57*O57*'Actuarial Assumption'!$I$13+IF(AND(D56=0,D57=1),'Actuarial Assumption'!$I$12*$L$4,0)) -> 437.685576 | W57: 28.05676769 | X57: 43.7685576 | Y57: =IF(D57=0,1/MAX($E$8:$E$98)*IF(Plan!$I$23=1,$N$4,$O$4)/IF(Plan!$I$23=1,R57,T57)/O57,0) -> 0 | Z57: =I57*MIN(E57,$B$4+DynYear)*Plan!$H$16*G57 -> 58508.39117 | AA57: =(1-$J$4)^MAX(0,Plan!$H$19-IndLiab!$B$4)*(D57*Z57*O57*'Actuarial Assumption'!$I$13+IF(AND(D56=0,D57=1),'Actuarial Assumption'!$I$12*$K$4,0))*IF(B57<DynYear,0,1) -> 280.5676769 | AB57: 28.05676769 | AC57: 0.0410035443 | AD57: 0.5374872836 | AE57: 0
A58: 2066 | B58: 50 | C58: 100 | D58: 1 | E58: 39 | F58: =F57*(1+INDEX('Scn Y'!$A$5:$AR$106,IF(Scn>0,1,0)*51+MIN(51,IndLiab!B58+1),40)/100*$I$4) -> 5.551719797 | G58: =IF(D58<1,1,G57*(1+MIN(Plan!$H$18,Plan!$H$17*INDEX('Scn Y'!$A$5:$AR$106,IF(Scn>0,1,0)*51+MIN(IndLiab!B58,50),11)/100))) -> 1.661802667 | H58: 152778.869 | I58: =IF(D58=1,I57,IF(B58<Plan!$H$15,-PV(Plan!$H$14,MAX(0,Plan!$H$15-B58-1),IndLiab!$H$8,,0)+SUM($H$8:H58),SUM(OFFSET($H$8,COUNT($H$8:H58)-Plan!$H$15,0,Plan!$H$15)))/MIN(E58,Plan!$H$15)) -> 142840.0822 | J58: =I58*$E$8*Plan!$H$16*G58 -> 59343.00738 | K58: =I58*E58*Plan!$H$16*G58 -> 92575.09151 | L58: =MIN(1,VLOOKUP(MIN(110,C58),'Actuarial Assumption'!$A$4:$C$115,IF(IndLiab!$F$4="M",2,3),FALSE)*Mort_S) -> 0.434119 | M58: =IF(E55="M",'Actuarial Assumption'!$E$21*MI_S,'Actuarial Assumption'!$F$21*MI_S) -> 0.01 | N58: 0.42977781 | O58: 0.003192807988 | P58: =P57/(1+Plan!$H$20) -> 0.1407126153 | Q58: =IF(Plan!$C$7=1,CurveFitting!AM57,CurveFitting!AS57) -> 0.03566509108 | R58: 0.222296722 | S58: =IF(Scn=0,'Scn Y'!BC55,'Scn Y'!BC106)/100 -> 0.04515535252 | T58: 0.1274128978 | U58: =(1-$J$4)^MAX(0,Plan!$H$19-IndLiab!$B$4)*(D58*J58*O58*'Actuarial Assumption'!$I$13+IF(AND(D57=0,D58=1),'Actuarial Assumption'!$I$12*$K$4,0)) -> 170.5237452 | V58: =(1-$J$4)^MAX(0,Plan!$H$19-IndLiab!$B$4)*(D58*K58*O58*'Actuarial Assumption'!$I$13+IF(AND(D57=0,D58=1),'Actuarial Assumption'!$I$12*$L$4,0)) -> 266.0170425 | W58: 17.05237452 | X58: 26.60170425 | Y58: =IF(D58=0,1/MAX($E$8:$E$98)*IF(Plan!$I$23=1,$N$4,$O$4)/IF(Plan!$I$23=1,R58,T58)/O58,0) -> 0 | Z58: =I58*MIN(E58,$B$4+DynYear)*Plan!$H$16*G58 -> 59343.00738 | AA58: =(1-$J$4)^MAX(0,Plan!$H$19-IndLiab!$B$4)*(D58*Z58*O58*'Actuarial Assumption'!$I$13+IF(AND(D57=0,D58=1),'Actuarial Assumption'!$I$12*$K$4,0))*IF(B58<DynYear,0,1) -> 170.5237452 | AB58: 17.05237452 | AC58: 0.04154833108 | AD58: 0.5160464163 | AE58: 0
A59: 2067 | B59: 51 | C59: 101 | D59: 1 | E59: 39 | F59: =F58*(1+INDEX('Scn Y'!$A$5:$AR$106,IF(Scn>0,1,0)*51+MIN(51,IndLiab!B59+1),40)/100*$I$4) -> 5.746341969 | G59: =IF(D59<1,1,G58*(1+MIN(Plan!$H$18,Plan!$H$17*INDEX('Scn Y'!$A$5:$AR$106,IF(Scn>0,1,0)*51+MIN(IndLiab!B59,50),11)/100))) -> 1.685508112 | H59: 152778.869 | I59: =IF(D59=1,I58,IF(B59<Plan!$H$15,-PV(Plan!$H$14,MAX(0,Plan!$H$15-B59-1),IndLiab!$H$8,,0)+SUM($H$8:H59),SUM(OFFSET($H$8,COUNT($H$8:H59)-Plan!$H$15,0,Plan!$H$15)))/MIN(E59,Plan!$H$15)) -> 142840.0822 | J59: =I59*$E$8*Plan!$H$16*G59 -> 60189.5293 | K59: =I59*E59*Plan!$H$16*G59 -> 93895.6657 | L59: =MIN(1,VLOOKUP(MIN(110,C59),'Actuarial Assumption'!$A$4:$C$115,IF(IndLiab!$F$4="M",2,3),FALSE)*Mort_S) -> 0.46452 | M59: =IF(E56="M",'Actuarial Assumption'!$E$21*MI_S,'Actuarial Assumption'!$F$21*MI_S) -> 0.01 | N59: 0.4598748 | O59: 0.001820609963 | P59: =P58/(1+Plan!$H$20) -> 0.1353005917 | Q59: =IF(Plan!$C$7=1,CurveFitting!AM58,CurveFitting!AS58) -> 0.03572883884 | R59: 0.214628302 | S59: =S58 -> 0.04515535252 | T59: 0.1219080948 | U59: =(1-$J$4)^MAX(0,Plan!$H$19-IndLiab!$B$4)*(D59*J59*O59*'Actuarial Assumption'!$I$13+IF(AND(D58=0,D59=1),'Actuarial Assumption'!$I$12*$K$4,0)) -> 98.62349105 | V59: =(1-$J$4)^MAX(0,Plan!$H$19-IndLiab!$B$4)*(D59*K59*O59*'Actuarial Assumption'!$I$13+IF(AND(D58=0,D59=1),'Actuarial Assumption'!$I$12*$L$4,0)) -> 153.852646 | W59: 9.862349105 | X59: 15.3852646 | Y59: =IF(D59=0,1/MAX($E$8:$E$98)*IF(Plan!$I$23=1,$N$4,$O$4)/IF(Plan!$I$23=1,R59,T59)/O59,0) -> 0 | Z59: =I59*MIN(E59,$B$4+DynYear)*Plan!$H$16*G59 -> 60189.5293 | AA59: =(1-$J$4)^MAX(0,Plan!$H$19-IndLiab!$B$4)*(D59*Z59*O59*'Actuarial Assumption'!$I$13+IF(AND(D58=0,D59=1),'Actuarial Assumption'!$I$12*$K$4,0))*IF(B59<DynYear,0,1) -> 98.62349105 | AB59: 9.862349105 | AC59: 0.0416473078 | AD59: 0.4954137666 | AE59: 0
A60: 2068 | B60: 52 | C60: 102 | D60: 1 | E60: 39 | F60: =F59*(1+INDEX('Scn Y'!$A$5:$AR$106,IF(Scn>0,1,0)*51+MIN(51,IndLiab!B60+1),40)/100*$I$4) -> 5.947786854 | G60: =IF(D60<1,1,G59*(1+MIN(Plan!$H$18,Plan!$H$17*INDEX('Scn Y'!$A$5:$AR$106,IF(Scn>0,1,0)*51+MIN(IndLiab!B60,50),11)/100))) -> 1.709551712 | H60: 152778.869 | I60: =IF(D60=1,I59,IF(B60<Plan!$H$15,-PV(Plan!$H$14,MAX(0,Plan!$H$15-B60-1),IndLiab!$H$8,,0)+SUM($H$8:H60),SUM(OFFSET($H$8,COUNT($H$8:H60)-Plan!$H$15,0,Plan!$H$15)))/MIN(E60,Plan!$H$15)) -> 142840.0822 | J60: =I60*$E$8*Plan!$H$16*G60 -> 61048.12677 | K60: =I60*E60*Plan!$H$16*G60 -> 95235.07776 | L60: =MIN(1,VLOOKUP(MIN(110,C60),'Actuarial Assumption'!$A$4:$C$115,IF(IndLiab!$F$4="M",2,3),FALSE)*Mort_S) -> 0.495908 | M60: =IF(E57="M",'Actuarial Assumption'!$E$21*MI_S,'Actuarial Assumption'!$F$21*MI_S) -> 0.01 | N60: 0.49094892 | O60: 0.0009833573205 | P60: =P59/(1+Plan!$H$20) -> 0.1300967228 | Q60: =IF(Plan!$C$7=1,CurveFitting!AM59,CurveFitting!AS59) -> 0.03579013847 | R60: 0.2072121505 | S60: =S59 -> 0.04515535252 | T60: 0.1166411238 | U60: =(1-$J$4)^MAX(0,Plan!$H$19-IndLiab!$B$4)*(D60*J60*O60*'Actuarial Assumption'!$I$13+IF(AND(D59=0,D60=1),'Actuarial Assumption'!$I$12*$K$4,0)) -> 54.02891012 | V60: =(1-$J$4)^MAX(0,Plan!$H$19-IndLiab!$B$4)*(D60*K60*O60*'Actuarial Assumption'!$I$13+IF(AND(D59=0,D60=1),'Actuarial Assumption'!$I$12*$L$4,0)) -> 84.28509979 | W60: 5.402891012 | X60: 8.428509979 | Y60: =IF(D60=0,1/MAX($E$8:$E$98)*IF(Plan!$I$23=1,$N$4,$O$4)/IF(Plan!$I$23=1,R60,T60)/O60,0) -> 0 | Z60: =I60*MIN(E60,$B$4+DynYear)*Plan!$H$16*G60 -> 61048.12677 | AA60: =(1-$J$4)^MAX(0,Plan!$H$19-IndLiab!$B$4)*(D60*Z60*O60*'Actuarial Assumption'!$I$13+IF(AND(D59=0,D60=1),'Actuarial Assumption'!$I$12*$K$4,0))*IF(B60<DynYear,0,1) -> 54.02891012 | AB60: 5.402891012 | AC60: 0.04174628453 | AD60: 0.4755608674 | AE60: 0
A61: 2069 | B61: 53 | C61: 103 | D61: 1 | E61: 39 | F61: =F60*(1+INDEX('Scn Y'!$A$5:$AR$106,IF(Scn>0,1,0)*51+MIN(51,IndLiab!B61+1),40)/100*$I$4) -> 6.156293631 | G61: =IF(D61<1,1,G60*(1+MIN(Plan!$H$18,Plan!$H$17*INDEX('Scn Y'!$A$5:$AR$106,IF(Scn>0,1,0)*51+MIN(IndLiab!B61,50),11)/100))) -> 1.733938293 | H61: 152778.869 | I61: =IF(D61=1,I60,IF(B61<Plan!$H$15,-PV(Plan!$H$14,MAX(0,Plan!$H$15-B61-1),IndLiab!$H$8,,0)+SUM($H$8:H61),SUM(OFFSET($H$8,COUNT($H$8:H61)-Plan!$H$15,0,Plan!$H$15)))/MIN(E61,Plan!$H$15)) -> 142840.0822 | J61: =I61*$E$8*Plan!$H$16*G61 -> 61918.97204 | K61: =I61*E61*Plan!$H$16*G61 -> 96593.59638 | L61: =MIN(1,VLOOKUP(MIN(110,C61),'Actuarial Assumption'!$A$4:$C$115,IF(IndLiab!$F$4="M",2,3),FALSE)*Mort_S) -> 0.528175 | M61: =IF(E58="M",'Actuarial Assumption'!$E$21*MI_S,'Actuarial Assumption'!$F$21*MI_S) -> 0.01 | N61: 0.52289325 | O61: 0.000500579106 | P61: =P60/(1+Plan!$H$20) -> 0.1250930027 | Q61: =IF(Plan!$C$7=1,CurveFitting!AM60,CurveFitting!AS60) -> 0.03584912833 | R61: 0.20004086 | S61: 0.04515535252 | T61: 0.1116017092 | U61: =(1-$J$4)^MAX(0,Plan!$H$19-IndLiab!$B$4)*(D61*J61*O61*'Actuarial Assumption'!$I$13+IF(AND(D60=0,D61=1),'Actuarial Assumption'!$I$12*$K$4,0)) -> 27.8958093 | V61: =(1-$J$4)^MAX(0,Plan!$H$19-IndLiab!$B$4)*(D61*K61*O61*'Actuarial Assumption'!$I$13+IF(AND(D60=0,D61=1),'Actuarial Assumption'!$I$12*$L$4,0)) -> 43.51746251 | W61: 2.78958093 | X61: 4.351746251 | Y61: =IF(D61=0,1/MAX($E$8:$E$98)*IF(Plan!$I$23=1,$N$4,$O$4)/IF(Plan!$I$23=1,R61,T61)/O61,0) -> 0 | Z61: =I61*MIN(E61,$B$4+DynYear)*Plan!$H$16*G61 -> 61918.97204 | AA61: =(1-$J$4)^MAX(0,Plan!$H$19-IndLiab!$B$4)*(D61*Z61*O61*'Actuarial Assumption'!$I$13+IF(AND(D60=0,D61=1),'Actuarial Assumption'!$I$12*$K$4,0))*IF(B61<DynYear,0,1) -> 27.8958093 | AB61: 2.78958093 | AC61: 0.04184526126 | AD61: 0.4564601722 | AE61: 0
A62: 2070 | B62: 54 | C62: 104 | D62: 1 | E62: 39 | F62: =F61*(1+INDEX('Scn Y'!$A$5:$AR$106,IF(Scn>0,1,0)*51+MIN(51,IndLiab!B62+1),40)/100*$I$4) -> 6.372109861 | G62: =IF(D62<1,1,G61*(1+MIN(Plan!$H$18,Plan!$H$17*INDEX('Scn Y'!$A$5:$AR$106,IF(Scn>0,1,0)*51+MIN(IndLiab!B62,50),11)/100))) -> 1.758672745 | H62: 152778.869 | I62: =IF(D62=1,I61,IF(B62<Plan!$H$15,-PV(Plan!$H$14,MAX(0,Plan!$H$15-B62-1),IndLiab!$H$8,,0)+SUM($H$8:H62),SUM(OFFSET($H$8,COUNT($H$8:H62)-Plan!$H$15,0,Plan!$H$15)))/MIN(E62,Plan!$H$15)) -> 142840.0822 | J62: =I62*$E$8*Plan!$H$16*G62 -> 62802.23983 | K62: =I62*E62*Plan!$H$16*G62 -> 97971.49414 | L62: =MIN(1,VLOOKUP(MIN(110,C62),'Actuarial Assumption'!$A$4:$C$115,IF(IndLiab!$F$4="M",2,3),FALSE)*Mort_S) -> 0.561225 | M62: =IF(E59="M",'Actuarial Assumption'!$E$21*MI_S,'Actuarial Assumption'!$F$21*MI_S) -> 0.01 | N62: 0.55561275 | O62: 0.0002388296704 | P62: =P61/(1+Plan!$H$20) -> 0.1202817333 | Q62: =IF(Plan!$C$7=1,CurveFitting!AM61,CurveFitting!AS61) -> 0.03590593656 | R62: 0.1931071663 | S62: 0.04515535252 | T62: 0.1067800198 | U62: =(1-$J$4)^MAX(0,Plan!$H$19-IndLiab!$B$4)*(D62*J62*O62*'Actuarial Assumption'!$I$13+IF(AND(D61=0,D62=1),'Actuarial Assumption'!$I$12*$K$4,0)) -> 13.49913442 | V62: =(1-$J$4)^MAX(0,Plan!$H$19-IndLiab!$B$4)*(D62*K62*O62*'Actuarial Assumption'!$I$13+IF(AND(D61=0,D62=1),'Actuarial Assumption'!$I$12*$L$4,0)) -> 21.05864969 | W62: 1.349913442 | X62: 2.105864969 | Y62: =IF(D62=0,1/MAX($E$8:$E$98)*IF(Plan!$I$23=1,$N$4,$O$4)/IF(Plan!$I$23=1,R62,T62)/O62,0) -> 0 | Z62: =I62*MIN(E62,$B$4+DynYear)*Plan!$H$16*G62 -> 62802.23983 | AA62: =(1-$J$4)^MAX(0,Plan!$H$19-IndLiab!$B$4)*(D62*Z62*O62*'Actuarial Assumption'!$I$13+IF(AND(D61=0,D62=1),'Actuarial Assumption'!$I$12*$K$4,0))*IF(B62<DynYear,0,1) -> 13.49913442 | AB62: 1.349913442 | AC62: 0.04194423799 | AD62: 0.4380850295 | AE62: 0
A63: 2071 | B63: 55 | C63: 105 | D63: 1 | E63: 39 | F63: =F62*(1+INDEX('Scn Y'!$A$5:$AR$106,IF(Scn>0,1,0)*51+MIN(51,IndLiab!B63+1),40)/100*$I$4) -> 6.595491788 | G63: =IF(D63<1,1,G62*(1+MIN(Plan!$H$18,Plan!$H$17*INDEX('Scn Y'!$A$5:$AR$106,IF(Scn>0,1,0)*51+MIN(IndLiab!B63,50),11)/100))) -> 1.783760031 | H63: 152778.869 | I63: =IF(D63=1,I62,IF(B63<Plan!$H$15,-PV(Plan!$H$14,MAX(0,Plan!$H$15-B63-1),IndLiab!$H$8,,0)+SUM($H$8:H63),SUM(OFFSET($H$8,COUNT($H$8:H63)-Plan!$H$15,0,Plan!$H$15)))/MIN(E63,Plan!$H$15)) -> 142840.0822 | J63: =I63*$E$8*Plan!$H$16*G63 -> 63698.10735 | K63: =I63*E63*Plan!$H$16*G63 -> 99369.04747 | L63: =MIN(1,VLOOKUP(MIN(110,C63),'Actuarial Assumption'!$A$4:$C$115,IF(IndLiab!$F$4="M",2,3),FALSE)*Mort_S) -> 0.594967 | M63: =IF(E60="M",'Actuarial Assumption'!$E$21*MI_S,'Actuarial Assumption'!$F$21*MI_S) -> 0.01 | N63: 0.58901733 | O63: 0.0001061328604 | P63: =P62/(1+Plan!$H$20) -> 0.1156555128 | Q63: =IF(Plan!$C$7=1,CurveFitting!AM62,CurveFitting!AS62) -> 0.03596068198 | R63: 0.1864039531 | S63: 0.04515535252 | T63: 0.1021666488 | U63: =(1-$J$4)^MAX(0,Plan!$H$19-IndLiab!$B$4)*(D63*J63*O63*'Actuarial Assumption'!$I$13+IF(AND(D62=0,D63=1),'Actuarial Assumption'!$I$12*$K$4,0)) -> 6.084416104 | V63: =(1-$J$4)^MAX(0,Plan!$H$19-IndLiab!$B$4)*(D63*K63*O63*'Actuarial Assumption'!$I$13+IF(AND(D62=0,D63=1),'Actuarial Assumption'!$I$12*$L$4,0)) -> 9.491689123 | W63: 0.6084416104 | X63: 0.9491689123 | Y63: =IF(D63=0,1/MAX($E$8:$E$98)*IF(Plan!$I$23=1,$N$4,$O$4)/IF(Plan!$I$23=1,R63,T63)/O63,0) -> 0 | Z63: =I63*MIN(E63,$B$4+DynYear)*Plan!$H$16*G63 -> 63698.10735 | AA63: =(1-$J$4)^MAX(0,Plan!$H$19-IndLiab!$B$4)*(D63*Z63*O63*'Actuarial Assumption'!$I$13+IF(AND(D62=0,D63=1),'Actuarial Assumption'!$I$12*$K$4,0))*IF(B63<DynYear,0,1) -> 6.084416104 | AB63: 0.6084416104 | AC63: 0.04204321471 | AD63: 0.420409656 | AE63: 0
A64: 2072 | B64: 56 | C64: 106 | D64: 1 | E64: 39 | F64: =F63*(1+INDEX('Scn Y'!$A$5:$AR$106,IF(Scn>0,1,0)*51+MIN(51,IndLiab!B64+1),40)/100*$I$4) -> 6.826704635 | G64: =IF(D64<1,1,G63*(1+MIN(Plan!$H$18,Plan!$H$17*INDEX('Scn Y'!$A$5:$AR$106,IF(Scn>0,1,0)*51+MIN(IndLiab!B64,50),11)/100))) -> 1.809205185 | H64: 152778.869 | I64: =IF(D64=1,I63,IF(B64<Plan!$H$15,-PV(Plan!$H$14,MAX(0,Plan!$H$15-B64-1),IndLiab!$H$8,,0)+SUM($H$8:H64),SUM(OFFSET($H$8,COUNT($H$8:H64)-Plan!$H$15,0,Plan!$H$15)))/MIN(E64,Plan!$H$15)) -> 142840.0822 | J64: =I64*$E$8*Plan!$H$16*G64 -> 64606.75433 | K64: =I64*E64*Plan!$H$16*G64 -> 100786.5367 | L64: =MIN(1,VLOOKUP(MIN(110,C64),'Actuarial Assumption'!$A$4:$C$115,IF(IndLiab!$F$4="M",2,3),FALSE)*Mort_S) -> 0.629307 | M64: =IF(E61="M",'Actuarial Assumption'!$E$21*MI_S,'Actuarial Assumption'!$F$21*MI_S) -> 0.01 | N64: 0.62301393 | O64: 4.361876636e-05 | P64: =P63/(1+Plan!$H$20) -> 0.1112072239 | Q64: =IF(Plan!$C$7=1,CurveFitting!AM63,CurveFitting!AS63) -> 0.03601347495 | R64: 0.1799242554 | S64: 0.04515535252 | T64: 0.09775259584 | U64: =(1-$J$4)^MAX(0,Plan!$H$19-IndLiab!$B$4)*(D64*J64*O64*'Actuarial Assumption'!$I$13+IF(AND(D63=0,D64=1),'Actuarial Assumption'!$I$12*$K$4,0)) -> 2.53626023 | V64: =(1-$J$4)^MAX(0,Plan!$H$19-IndLiab!$B$4)*(D64*K64*O64*'Actuarial Assumption'!$I$13+IF(AND(D63=0,D64=1),'Actuarial Assumption'!$I$12*$L$4,0)) -> 3.956565959 | W64: 0.253626023 | X64: 0.3956565959 | Y64: =IF(D64=0,1/MAX($E$8:$E$98)*IF(Plan!$I$23=1,$N$4,$O$4)/IF(Plan!$I$23=1,R64,T64)/O64,0) -> 0 | Z64: =I64*MIN(E64,$B$4+DynYear)*Plan!$H$16*G64 -> 64606.75433 | AA64: =(1-$J$4)^MAX(0,Plan!$H$19-IndLiab!$B$4)*(D64*Z64*O64*'Actuarial Assumption'!$I$13+IF(AND(D63=0,D64=1),'Actuarial Assumption'!$I$12*$K$4,0))*IF(B64<DynYear,0,1) -> 2.53626023 | AB64: 0.253626023 | AC64: 0.04214219144 | AD64: 0.403409112 | AE64: 0
A65: 2073 | B65: 57 | C65: 107 | D65: 1 | E65: 39 | F65: =F64*(1+INDEX('Scn Y'!$A$5:$AR$106,IF(Scn>0,1,0)*51+MIN(51,IndLiab!B65+1),40)/100*$I$4) -> 7.066022925 | G65: =IF(D65<1,1,G64*(1+MIN(Plan!$H$18,Plan!$H$17*INDEX('Scn Y'!$A$5:$AR$106,IF(Scn>0,1,0)*51+MIN(IndLiab!B65,50),11)/100))) -> 1.835013312 | H65: 152778.869 | I65: =IF(D65=1,I64,IF(B65<Plan!$H$15,-PV(Plan!$H$14,MAX(0,Plan!$H$15-B65-1),IndLiab!$H$8,,0)+SUM($H$8:H65),SUM(OFFSET($H$8,COUNT($H$8:H65)-Plan!$H$15,0,Plan!$H$15)))/MIN(E65,Plan!$H$15)) -> 142840.0822 | J65: =I65*$E$8*Plan!$H$16*G65 -> 65528.36306 | K65: =I65*E65*Plan!$H$16*G65 -> 102224.2464 | L65: =MIN(1,VLOOKUP(MIN(110,C65),'Actuarial Assumption'!$A$4:$C$115,IF(IndLiab!$F$4="M",2,3),FALSE)*Mort_S) -> 0.664152 | M65: =IF(E62="M",'Actuarial Assumption'!$E$21*MI_S,'Actuarial Assumption'!$F$21*MI_S) -> 0.01 | N65: 0.65751048 | O65: 1.644366731e-05 | P65: =P64/(1+Plan!$H$20) -> 0.1069300229 | Q65: =IF(Plan!$C$7=1,CurveFitting!AM64,CurveFitting!AS64) -> 0.03606441808 | R65: 0.173661263 | S65: 0.04515535252 | T65: 0.0935292496 | U65: =(1-$J$4)^MAX(0,Plan!$H$19-IndLiab!$B$4)*(D65*J65*O65*'Actuarial Assumption'!$I$13+IF(AND(D64=0,D65=1),'Actuarial Assumption'!$I$12*$K$4,0)) -> 0.9697739413 | V65: =(1-$J$4)^MAX(0,Plan!$H$19-IndLiab!$B$4)*(D65*K65*O65*'Actuarial Assumption'!$I$13+IF(AND(D64=0,D65=1),'Actuarial Assumption'!$I$12*$L$4,0)) -> 1.512847348 | W65: 0.09697739413 | X65: 0.1512847348 | Y65: =IF(D65=0,1/MAX($E$8:$E$98)*IF(Plan!$I$23=1,$N$4,$O$4)/IF(Plan!$I$23=1,R65,T65)/O65,0) -> 0 | Z65: =I65*MIN(E65,$B$4+DynYear)*Plan!$H$16*G65 -> 65528.36306 | AA65: =(1-$J$4)^MAX(0,Plan!$H$19-IndLiab!$B$4)*(D65*Z65*O65*'Actuarial Assumption'!$I$13+IF(AND(D64=0,D65=1),'Actuarial Assumption'!$I$12*$K$4,0))*IF(B65<DynYear,0,1) -> 0.9697739413 | AB65: 0.09697739413 | AC65: 0.04224116817 | AD65: 0.387059276 | AE65: 0
A66: 2074 | B66: 58 | C66: 108 | D66: 1 | E66: 39 | F66: =F65*(1+INDEX('Scn Y'!$A$5:$AR$106,IF(Scn>0,1,0)*51+MIN(51,IndLiab!B66+1),40)/100*$I$4) -> 7.313730803 | G66: =IF(D66<1,1,G65*(1+MIN(Plan!$H$18,Plan!$H$17*INDEX('Scn Y'!$A$5:$AR$106,IF(Scn>0,1,0)*51+MIN(IndLiab!B66,50),11)/100))) -> 1.861189589 | H66: 152778.869 | I66: =IF(D66=1,I65,IF(B66<Plan!$H$15,-PV(Plan!$H$14,MAX(0,Plan!$H$15-B66-1),IndLiab!$H$8,,0)+SUM($H$8:H66),SUM(OFFSET($H$8,COUNT($H$8:H66)-Plan!$H$15,0,Plan!$H$15)))/MIN(E66,Plan!$H$15)) -> 142840.0822 | J66: =I66*$E$8*Plan!$H$16*G66 -> 66463.11844 | K66: =I66*E66*Plan!$H$16*G66 -> 103682.4648 | L66: =MIN(1,VLOOKUP(MIN(110,C66),'Actuarial Assumption'!$A$4:$C$115,IF(IndLiab!$F$4="M",2,3),FALSE)*Mort_S) -> 0.698078 | M66: =IF(E63="M",'Actuarial Assumption'!$E$21*MI_S,'Actuarial Assumption'!$F$21*MI_S) -> 0.01 | N66: 0.69109722 | O66: 5.631783724e-06 | P66: =P65/(1+Plan!$H$20) -> 0.1028173297 | Q66: =IF(Plan!$C$7=1,CurveFitting!AM65,CurveFitting!AS65) -> 0.03611360693 | R66: 0.167608322 | S66: 0.04515535252 | T66: 0.08948837068 | U66: =(1-$J$4)^MAX(0,Plan!$H$19-IndLiab!$B$4)*(D66*J66*O66*'Actuarial Assumption'!$I$13+IF(AND(D65=0,D66=1),'Actuarial Assumption'!$I$12*$K$4,0)) -> 0.3368753178 | V66: =(1-$J$4)^MAX(0,Plan!$H$19-IndLiab!$B$4)*(D66*K66*O66*'Actuarial Assumption'!$I$13+IF(AND(D65=0,D66=1),'Actuarial Assumption'!$I$12*$L$4,0)) -> 0.5255254958 | W66: 0.03368753178 | X66: 0.05255254958 | Y66: =IF(D66=0,1/MAX($E$8:$E$98)*IF(Plan!$I$23=1,$N$4,$O$4)/IF(Plan!$I$23=1,R66,T66)/O66,0) -> 0 | Z66: =I66*MIN(E66,$B$4+DynYear)*Plan!$H$16*G66 -> 66463.11844 | AA66: =(1-$J$4)^MAX(0,Plan!$H$19-IndLiab!$B$4)*(D66*Z66*O66*'Actuarial Assumption'!$I$13+IF(AND(D65=0,D66=1),'Actuarial Assumption'!$I$12*$K$4,0))*IF(B66<DynYear,0,1) -> 0.3368753178 | AB66: 0.03368753178 | AC66: 0.04234014489 | AD66: 0.3713368212 | AE66: 0
A67: 2075 | B67: 59 | C67: 109 | D67: 1 | E67: 39 | F67: =F66*(1+INDEX('Scn Y'!$A$5:$AR$106,IF(Scn>0,1,0)*51+MIN(51,IndLiab!B67+1),40)/100*$I$4) -> 7.570122377 | G67: =IF(D67<1,1,G66*(1+MIN(Plan!$H$18,Plan!$H$17*INDEX('Scn Y'!$A$5:$AR$106,IF(Scn>0,1,0)*51+MIN(IndLiab!B67,50),11)/100))) -> 1.887739268 | H67: 152778.869 | I67: =IF(D67=1,I66,IF(B67<Plan!$H$15,-PV(Plan!$H$14,MAX(0,Plan!$H$15-B67-1),IndLiab!$H$8,,0)+SUM($H$8:H67),SUM(OFFSET($H$8,COUNT($H$8:H67)-Plan!$H$15,0,Plan!$H$15)))/MIN(E67,Plan!$H$15)) -> 142840.0822 | J67: =I67*$E$8*Plan!$H$16*G67 -> 67411.20802 | K67: =I67*E67*Plan!$H$16*G67 -> 105161.4845 | L67: =MIN(1,VLOOKUP(MIN(110,C67),'Actuarial Assumption'!$A$4:$C$115,IF(IndLiab!$F$4="M",2,3),FALSE)*Mort_S) -> 0.731384 | M67: =IF(E64="M",'Actuarial Assumption'!$E$21*MI_S,'Actuarial Assumption'!$F$21*MI_S) -> 0.01 | N67: 0.72407016 | O67: 1.739673649e-06 | P67: =P66/(1+Plan!$H$20) -> 0.09886281706 | Q67: =IF(Plan!$C$7=1,CurveFitting!AM66,CurveFitting!AS66) -> 0.03616113058 | R67: 0.1617589359 | S67: 0.04515535252 | T67: 0.08562207566 | U67: =(1-$J$4)^MAX(0,Plan!$H$19-IndLiab!$B$4)*(D67*J67*O67*'Actuarial Assumption'!$I$13+IF(AND(D66=0,D67=1),'Actuarial Assumption'!$I$12*$K$4,0)) -> 0.105546152 | V67: =(1-$J$4)^MAX(0,Plan!$H$19-IndLiab!$B$4)*(D67*K67*O67*'Actuarial Assumption'!$I$13+IF(AND(D66=0,D67=1),'Actuarial Assumption'!$I$12*$L$4,0)) -> 0.1646519971 | W67: 0.0105546152 | X67: 0.01646519971 | Y67: =IF(D67=0,1/MAX($E$8:$E$98)*IF(Plan!$I$23=1,$N$4,$O$4)/IF(Plan!$I$23=1,R67,T67)/O67,0) -> 0 | Z67: =I67*MIN(E67,$B$4+DynYear)*Plan!$H$16*G67 -> 67411.20802 | AA67: =(1-$J$4)^MAX(0,Plan!$H$19-IndLiab!$B$4)*(D67*Z67*O67*'Actuarial Assumption'!$I$13+IF(AND(D66=0,D67=1),'Actuarial Assumption'!$I$12*$K$4,0))*IF(B67<DynYear,0,1) -> 0.105546152 | AB67: 0.0105546152 | AC67: 0.04243912162 | AD67: 0.3562191916 | AE67: 0
A68: 2076 | B68: 60 | C68: 110 | D68: 1 | E68: 39 | F68: =F67*(1+INDEX('Scn Y'!$A$5:$AR$106,IF(Scn>0,1,0)*51+MIN(51,IndLiab!B68+1),40)/100*$I$4) -> 7.835502064 | G68: =IF(D68<1,1,G67*(1+MIN(Plan!$H$18,Plan!$H$17*INDEX('Scn Y'!$A$5:$AR$106,IF(Scn>0,1,0)*51+MIN(IndLiab!B68,50),11)/100))) -> 1.914667675 | H68: 152778.869 | I68: =IF(D68=1,I67,IF(B68<Plan!$H$15,-PV(Plan!$H$14,MAX(0,Plan!$H$15-B68-1),IndLiab!$H$8,,0)+SUM($H$8:H68),SUM(OFFSET($H$8,COUNT($H$8:H68)-Plan!$H$15,0,Plan!$H$15)))/MIN(E68,Plan!$H$15)) -> 142840.0822 | J68: =I68*$E$8*Plan!$H$16*G68 -> 68372.82199 | K68: =I68*E68*Plan!$H$16*G68 -> 106661.6023 | L68: =MIN(1,VLOOKUP(MIN(110,C68),'Actuarial Assumption'!$A$4:$C$115,IF(IndLiab!$F$4="M",2,3),FALSE)*Mort_S) -> 1 | M68: =IF(E65="M",'Actuarial Assumption'!$E$21*MI_S,'Actuarial Assumption'!$F$21*MI_S) -> 0.01 | N68: 0.99 | O68: 4.800278715e-07 | P68: =P67/(1+Plan!$H$20) -> 0.09506040102 | Q68: =IF(Plan!$C$7=1,CurveFitting!AM67,CurveFitting!AS67) -> 0.03620707218 | R68: 0.156106767 | S68: 0.04515535252 | T68: 0.08192282177 | U68: =(1-$J$4)^MAX(0,Plan!$H$19-IndLiab!$B$4)*(D68*J68*O68*'Actuarial Assumption'!$I$13+IF(AND(D67=0,D68=1),'Actuarial Assumption'!$I$12*$K$4,0)) -> 0.02953877419 | V68: =(1-$J$4)^MAX(0,Plan!$H$19-IndLiab!$B$4)*(D68*K68*O68*'Actuarial Assumption'!$I$13+IF(AND(D67=0,D68=1),'Actuarial Assumption'!$I$12*$L$4,0)) -> 0.04608048774 | W68: 0.002953877419 | X68: 0.004608048774 | Y68: =IF(D68=0,1/MAX($E$8:$E$98)*IF(Plan!$I$23=1,$N$4,$O$4)/IF(Plan!$I$23=1,R68,T68)/O68,0) -> 0 | Z68: =I68*MIN(E68,$B$4+DynYear)*Plan!$H$16*G68 -> 68372.82199 | AA68: =(1-$J$4)^MAX(0,Plan!$H$19-IndLiab!$B$4)*(D68*Z68*O68*'Actuarial Assumption'!$I$13+IF(AND(D67=0,D68=1),'Actuarial Assumption'!$I$12*$K$4,0))*IF(B68<DynYear,0,1) -> 0.02953877419 | AB68: 0.002953877419 | AC68: 0.04253809835 | AD68: 0.3416845794 | AE68: 0
A69: 2077 | B69: 61 | C69: 111 | D69: 1 | E69: 39 | F69: =F68*(1+INDEX('Scn Y'!$A$5:$AR$106,IF(Scn>0,1,0)*51+MIN(51,IndLiab!B69+1),40)/100*$I$4) -> 8.110184954 | G69: =IF(D69<1,1,G68*(1+MIN(Plan!$H$18,Plan!$H$17*INDEX('Scn Y'!$A$5:$AR$106,IF(Scn>0,1,0)*51+MIN(IndLiab!B69,50),11)/100))) -> 1.941980213 | H69: 152778.869 | I69: =IF(D69=1,I68,IF(B69<Plan!$H$15,-PV(Plan!$H$14,MAX(0,Plan!$H$15-B69-1),IndLiab!$H$8,,0)+SUM($H$8:H69),SUM(OFFSET($H$8,COUNT($H$8:H69)-Plan!$H$15,0,Plan!$H$15)))/MIN(E69,Plan!$H$15)) -> 142840.0822 | J69: =I69*$E$8*Plan!$H$16*G69 -> 69348.15329 | K69: =I69*E69*Plan!$H$16*G69 -> 108183.1191 | L69: =MIN(1,VLOOKUP(MIN(110,C69),'Actuarial Assumption'!$A$4:$C$115,IF(IndLiab!$F$4="M",2,3),FALSE)*Mort_S) -> 1 | M69: =IF(E66="M",'Actuarial Assumption'!$E$21*MI_S,'Actuarial Assumption'!$F$21*MI_S) -> 0.01 | N69: 0.99 | O69: 4.800278715e-09 | P69: =P68/(1+Plan!$H$20) -> 0.09140423175 | Q69: =IF(Plan!$C$7=1,CurveFitting!AM68,CurveFitting!AS68) -> 0.03625150943 | R69: 0.1506456353 | S69: 0.04515535252 | T69: 0.07838339207 | U69: =(1-$J$4)^MAX(0,Plan!$H$19-IndLiab!$B$4)*(D69*J69*O69*'Actuarial Assumption'!$I$13+IF(AND(D68=0,D69=1),'Actuarial Assumption'!$I$12*$K$4,0)) -> 0.0002996014178 | V69: =(1-$J$4)^MAX(0,Plan!$H$19-IndLiab!$B$4)*(D69*K69*O69*'Actuarial Assumption'!$I$13+IF(AND(D68=0,D69=1),'Actuarial Assumption'!$I$12*$L$4,0)) -> 0.0004673782117 | W69: 2.996014178e-05 | X69: 4.673782117e-05 | Y69: =IF(D69=0,1/MAX($E$8:$E$98)*IF(Plan!$I$23=1,$N$4,$O$4)/IF(Plan!$I$23=1,R69,T69)/O69,0) -> 0 | Z69: =I69*MIN(E69,$B$4+DynYear)*Plan!$H$16*G69 -> 69348.15329 | AA69: =(1-$J$4)^MAX(0,Plan!$H$19-IndLiab!$B$4)*(D69*Z69*O69*'Actuarial Assumption'!$I$13+IF(AND(D68=0,D69=1),'Actuarial Assumption'!$I$12*$K$4,0))*IF(B69<DynYear,0,1) -> 0.0002996014178 | AB69: 2.996014178e-05 | AC69: 0.04260198659 | AD69: 0.3277229314 | AE69: 0
A70: 2078 | B70: 62 | C70: 112 | D70: 1 | E70: 39 | F70: =F69*(1+INDEX('Scn Y'!$A$5:$AR$106,IF(Scn>0,1,0)*51+MIN(51,IndLiab!B70+1),40)/100*$I$4) -> 8.39449718 | G70: =IF(D70<1,1,G69*(1+MIN(Plan!$H$18,Plan!$H$17*INDEX('Scn Y'!$A$5:$AR$106,IF(Scn>0,1,0)*51+MIN(IndLiab!B70,50),11)/100))) -> 1.969682362 | H70: 152778.869 | I70: =IF(D70=1,I69,IF(B70<Plan!$H$15,-PV(Plan!$H$14,MAX(0,Plan!$H$15-B70-1),IndLiab!$H$8,,0)+SUM($H$8:H70),SUM(OFFSET($H$8,COUNT($H$8:H70)-Plan!$H$15,0,Plan!$H$15)))/MIN(E70,Plan!$H$15)) -> 142840.0822 | J70: =I70*$E$8*Plan!$H$16*G70 -> 70337.3976 | K70: =I70*E70*Plan!$H$16*G70 -> 109726.3403 | L70: =MIN(1,VLOOKUP(MIN(110,C70),'Actuarial Assumption'!$A$4:$C$115,IF(IndLiab!$F$4="M",2,3),FALSE)*Mort_S) -> 1 | M70: =IF(E67="M",'Actuarial Assumption'!$E$21*MI_S,'Actuarial Assumption'!$F$21*MI_S) -> 0.01 | N70: 0.99 | O70: 4.800278715e-11 | P70: =P69/(1+Plan!$H$20) -> 0.08788868438 | Q70: =IF(Plan!$C$7=1,CurveFitting!AM69,CurveFitting!AS69) -> 0.03629451504 | R70: 0.1453695191 | S70: 0.04515535252 | T70: 0.07499688145 | U70: =(1-$J$4)^MAX(0,Plan!$H$19-IndLiab!$B$4)*(D70*J70*O70*'Actuarial Assumption'!$I$13+IF(AND(D69=0,D70=1),'Actuarial Assumption'!$I$12*$K$4,0)) -> 3.038752013e-06 | V70: =(1-$J$4)^MAX(0,Plan!$H$19-IndLiab!$B$4)*(D70*K70*O70*'Actuarial Assumption'!$I$13+IF(AND(D69=0,D70=1),'Actuarial Assumption'!$I$12*$L$4,0)) -> 4.74045314e-06 | W70: 3.038752013e-07 | X70: 4.74045314e-07 | Y70: =IF(D70=0,1/MAX($E$8:$E$98)*IF(Plan!$I$23=1,$N$4,$O$4)/IF(Plan!$I$23=1,R70,T70)/O70,0) -> 0 | Z70: =I70*MIN(E70,$B$4+DynYear)*Plan!$H$16*G70 -> 70337.3976 | AA70: =(1-$J$4)^MAX(0,Plan!$H$19-IndLiab!$B$4)*(D70*Z70*O70*'Actuarial Assumption'!$I$13+IF(AND(D69=0,D70=1),'Actuarial Assumption'!$I$12*$K$4,0))*IF(B70<DynYear,0,1) -> 3.038752013e-06 | AB70: 3.038752013e-07 | AC70: 0.04266188537 | AD70: 0.3143137157 | AE70: 0
A71: 2079 | B71: 63 | C71: 113 | D71: 1 | E71: 39 | F71: =F70*(1+INDEX('Scn Y'!$A$5:$AR$106,IF(Scn>0,1,0)*51+MIN(51,IndLiab!B71+1),40)/100*$I$4) -> 8.688776311 | G71: =IF(D71<1,1,G70*(1+MIN(Plan!$H$18,Plan!$H$17*INDEX('Scn Y'!$A$5:$AR$106,IF(Scn>0,1,0)*51+MIN(IndLiab!B71,50),11)/100))) -> 1.997779679 | H71: 152778.869 | I71: =IF(D71=1,I70,IF(B71<Plan!$H$15,-PV(Plan!$H$14,MAX(0,Plan!$H$15-B71-1),IndLiab!$H$8,,0)+SUM($H$8:H71),SUM(OFFSET($H$8,COUNT($H$8:H71)-Plan!$H$15,0,Plan!$H$15)))/MIN(E71,Plan!$H$15)) -> 142840.0822 | J71: =I71*$E$8*Plan!$H$16*G71 -> 71340.75337 | K71: =I71*E71*Plan!$H$16*G71 -> 111291.5753 | L71: =MIN(1,VLOOKUP(MIN(110,C71),'Actuarial Assumption'!$A$4:$C$115,IF(IndLiab!$F$4="M",2,3),FALSE)*Mort_S) -> 1 | M71: =IF(E68="M",'Actuarial Assumption'!$E$21*MI_S,'Actuarial Assumption'!$F$21*MI_S) -> 0.01 | N71: 0.99 | O71: 4.800278715e-13 | P71: =P70/(1+Plan!$H$20) -> 0.08450835036 | Q71: =IF(Plan!$C$7=1,CurveFitting!AM70,CurveFitting!AS70) -> 0.03633615709 | R71: 0.1402725536 | S71: 0.04515535252 | T71: 0.07175668313 | U71: =(1-$J$4)^MAX(0,Plan!$H$19-IndLiab!$B$4)*(D71*J71*O71*'Actuarial Assumption'!$I$13+IF(AND(D70=0,D71=1),'Actuarial Assumption'!$I$12*$K$4,0)) -> 3.082099499e-08 | V71: =(1-$J$4)^MAX(0,Plan!$H$19-IndLiab!$B$4)*(D71*K71*O71*'Actuarial Assumption'!$I$13+IF(AND(D70=0,D71=1),'Actuarial Assumption'!$I$12*$L$4,0)) -> 4.808075219e-08 | W71: 3.082099499e-09 | X71: 4.808075219e-09 | Y71: =IF(D71=0,1/MAX($E$8:$E$98)*IF(Plan!$I$23=1,$N$4,$O$4)/IF(Plan!$I$23=1,R71,T71)/O71,0) -> 0 | Z71: =I71*MIN(E71,$B$4+DynYear)*Plan!$H$16*G71 -> 71340.75337 | AA71: =(1-$J$4)^MAX(0,Plan!$H$19-IndLiab!$B$4)*(D71*Z71*O71*'Actuarial Assumption'!$I$13+IF(AND(D70=0,D71=1),'Actuarial Assumption'!$I$12*$K$4,0))*IF(B71<DynYear,0,1) -> 3.082099499e-08 | AB71: 3.082099499e-09 | AC71: 0.04271815706 | AD71: 0.3014368874 | AE71: 0
A72: 2080 | B72: 64 | C72: 114 | D72: 1 | E72: 39 | F72: =F71*(1+INDEX('Scn Y'!$A$5:$AR$106,IF(Scn>0,1,0)*51+MIN(51,IndLiab!B72+1),40)/100*$I$4) -> 8.993371749 | G72: =IF(D72<1,1,G71*(1+MIN(Plan!$H$18,Plan!$H$17*INDEX('Scn Y'!$A$5:$AR$106,IF(Scn>0,1,0)*51+MIN(IndLiab!B72,50),11)/100))) -> 2.026277801 | H72: 152778.869 | I72: =IF(D72=1,I71,IF(B72<Plan!$H$15,-PV(Plan!$H$14,MAX(0,Plan!$H$15-B72-1),IndLiab!$H$8,,0)+SUM($H$8:H72),SUM(OFFSET($H$8,COUNT($H$8:H72)-Plan!$H$15,0,Plan!$H$15)))/MIN(E72,Plan!$H$15)) -> 142840.0822 | J72: =I72*$E$8*Plan!$H$16*G72 -> 72358.42191 | K72: =I72*E72*Plan!$H$16*G72 -> 112879.1382 | L72: =MIN(1,VLOOKUP(MIN(110,C72),'Actuarial Assumption'!$A$4:$C$115,IF(IndLiab!$F$4="M",2,3),FALSE)*Mort_S) -> 1 | M72: =IF(E69="M",'Actuarial Assumption'!$E$21*MI_S,'Actuarial Assumption'!$F$21*MI_S) -> 0.01 | N72: 0.99 | O72: 4.800278715e-15 | P72: =P71/(1+Plan!$H$20) -> 0.08125802919 | Q72: =IF(Plan!$C$7=1,CurveFitting!AM71,CurveFitting!AS71) -> 0.03637649943 | R72: 0.1353490297 | S72: 0.04515535252 | T72: 0.06865647576 | U72: =(1-$J$4)^MAX(0,Plan!$H$19-IndLiab!$B$4)*(D72*J72*O72*'Actuarial Assumption'!$I$13+IF(AND(D71=0,D72=1),'Actuarial Assumption'!$I$12*$K$4,0)) -> 3.126065333e-10 | V72: =(1-$J$4)^MAX(0,Plan!$H$19-IndLiab!$B$4)*(D72*K72*O72*'Actuarial Assumption'!$I$13+IF(AND(D71=0,D72=1),'Actuarial Assumption'!$I$12*$L$4,0)) -> 4.876661919e-10 | W72: =U72*$H$4 -> 3.126065333e-11 | X72: =V72*$H$4 -> 4.876661919e-11 | Y72: =IF(D72=0,1/MAX($E$8:$E$98)*IF(Plan!$I$23=1,$N$4,$O$4)/IF(Plan!$I$23=1,R72,T72)/O72,0) -> 0 | Z72: =I72*MIN(E72,$B$4+DynYear)*Plan!$H$16*G72 -> 72358.42191 | AA72: =(1-$J$4)^MAX(0,Plan!$H$19-IndLiab!$B$4)*(D72*Z72*O72*'Actuarial Assumption'!$I$13+IF(AND(D71=0,D72=1),'Actuarial Assumption'!$I$12*$K$4,0))*IF(B72<DynYear,0,1) -> 3.126065333e-10 | AB72: =AA72*$H$4 -> 3.126065333e-11 | AC72: 0.04277112142 | AD72: 0.2890729147 | AE72: 0
A73: 2081 | B73: 65 | C73: 115 | D73: =IF($D$4="Y",1,IF(C73<=$E$4,0,1)) -> 1 | E73: 39 | F73: =F72*(1+INDEX('Scn Y'!$A$5:$AR$106,IF(Scn>0,1,0)*51+MIN(51,IndLiab!B73+1),40)/100*$I$4) -> 9.308645143 | G73: =IF(D73<1,1,G72*(1+MIN(Plan!$H$18,Plan!$H$17*INDEX('Scn Y'!$A$5:$AR$106,IF(Scn>0,1,0)*51+MIN(IndLiab!B73,50),11)/100))) -> 2.055182447 | H73: =IF(D73=1,H72,$H$8*F73) -> 152778.869 | I73: =IF(D73=1,I72,IF(B73<Plan!$H$15,-PV(Plan!$H$14,MAX(0,Plan!$H$15-B73-1),IndLiab!$H$8,,0)+SUM($H$8:H73),SUM(OFFSET($H$8,COUNT($H$8:H73)-Plan!$H$15,0,Plan!$H$15)))/MIN(E73,Plan!$H$15)) -> 142840.0822 | J73: =I73*$E$8*Plan!$H$16*G73 -> 73390.60738 | K73: =I73*E73*Plan!$H$16*G73 -> 114489.3475 | L73: =MIN(1,VLOOKUP(MIN(110,C73),'Actuarial Assumption'!$A$4:$C$115,IF(IndLiab!$F$4="M",2,3),FALSE)*Mort_S) -> 1 | M73: =IF(E70="M",'Actuarial Assumption'!$E$21*MI_S,'Actuarial Assumption'!$F$21*MI_S) -> 0.01 | N73: =MIN(1,L73*(1-M73)) -> 0.99 | O73: 4.800278715e-17 | P73: =P72/(1+Plan!$H$20) -> 0.07813272038 | Q73: =IF(Plan!$C$7=1,CurveFitting!AM72,CurveFitting!AS72) -> 0.03641560196 | R73: 0.1305933927 | S73: 0.04515535252 | T73: 0.06569021112 | U73: =(1-$J$4)^MAX(0,Plan!$H$19-IndLiab!$B$4)*(D73*J73*O73*'Actuarial Assumption'!$I$13+IF(AND(D72=0,D73=1),'Actuarial Assumption'!$I$12*$K$4,0)) -> 3.170658335e-12 | V73: =(1-$J$4)^MAX(0,Plan!$H$19-IndLiab!$B$4)*(D73*K73*O73*'Actuarial Assumption'!$I$13+IF(AND(D72=0,D73=1),'Actuarial Assumption'!$I$12*$L$4,0)) -> 4.946227002e-12 | W73: 3.170658335e-13 | X73: 4.946227002e-13 | Y73: =IF(D73=0,1/MAX($E$8:$E$98)*IF(Plan!$I$23=1,$N$4,$O$4)/IF(Plan!$I$23=1,R73,T73)/O73,0) -> 0 | Z73: =I73*MIN(E73,$B$4+DynYear)*Plan!$H$16*G73 -> 73390.60738 | AA73: =(1-$J$4)^MAX(0,Plan!$H$19-IndLiab!$B$4)*(D73*Z73*O73*'Actuarial Assumption'!$I$13+IF(AND(D72=0,D73=1),'Actuarial Assumption'!$I$12*$K$4,0))*IF(B73<DynYear,0,1) -> 3.170658335e-12 | AB73: 3.170658335e-13 | AC73: 0.04282106172 | AD73: 0.2772027966 | AE73: 0
A74: =A73+1 -> 2082 | B74: 66 | C74: =C73+1 -> 116 | D74: 1 | E74: =IF(D74=1,E73,E73+1) -> 39 | F74: =F73*(1+INDEX('Scn Y'!$A$5:$AR$106,IF(Scn>0,1,0)*51+MIN(51,IndLiab!B74+1),40)/100*$I$4) -> 9.634970824 | G74: =IF(D74<1,1,G73*(1+MIN(Plan!$H$18,Plan!$H$17*INDEX('Scn Y'!$A$5:$AR$106,IF(Scn>0,1,0)*51+MIN(IndLiab!B74,50),11)/100))) -> 2.084499414 | H74: 152778.869 | I74: =IF(D74=1,I73,IF(B74<Plan!$H$15,-PV(Plan!$H$14,MAX(0,Plan!$H$15-B74-1),IndLiab!$H$8,,0)+SUM($H$8:H74),SUM(OFFSET($H$8,COUNT($H$8:H74)-Plan!$H$15,0,Plan!$H$15)))/MIN(E74,Plan!$H$15)) -> 142840.0822 | J74: =I74*$E$8*Plan!$H$16*G74 -> 74437.51688 | K74: =I74*E74*Plan!$H$16*G74 -> 116122.5263 | L74: =MIN(1,VLOOKUP(MIN(110,C74),'Actuarial Assumption'!$A$4:$C$115,IF(IndLiab!$F$4="M",2,3),FALSE)*Mort_S) -> 1 | M74: =IF(E71="M",'Actuarial Assumption'!$E$21*MI_S,'Actuarial Assumption'!$F$21*MI_S) -> 0.01 | N74: 0.99 | O74: =O73*(1-N73) -> 4.800278715e-19 | P74: =P73/(1+Plan!$H$20) -> 0.07512761575 | Q74: =IF(Plan!$C$7=1,CurveFitting!AM73,CurveFitting!AS73) -> 0.03645352097 | R74: =R73/(1+Q74) -> 0.1260002403 | S74: 0.04515535252 | T74: 0.06285210228 | U74: =(1-$J$4)^MAX(0,Plan!$H$19-IndLiab!$B$4)*(D74*J74*O74*'Actuarial Assumption'!$I$13+IF(AND(D73=0,D74=1),'Actuarial Assumption'!$I$12*$K$4,0)) -> 3.215887451e-14 | V74: =(1-$J$4)^MAX(0,Plan!$H$19-IndLiab!$B$4)*(D74*K74*O74*'Actuarial Assumption'!$I$13+IF(AND(D73=0,D74=1),'Actuarial Assumption'!$I$12*$L$4,0)) -> 5.016784423e-14 | W74: 3.215887451e-15 | X74: 5.016784423e-15 | Y74: =IF(D74=0,1/MAX($E$8:$E$98)*IF(Plan!$I$23=1,$N$4,$O$4)/IF(Plan!$I$23=1,R74,T74)/O74,0) -> 0 | Z74: =I74*MIN(E74,$B$4+DynYear)*Plan!$H$16*G74 -> 74437.51688 | AA74: =(1-$J$4)^MAX(0,Plan!$H$19-IndLiab!$B$4)*(D74*Z74*O74*'Actuarial Assumption'!$I$13+IF(AND(D73=0,D74=1),'Actuarial Assumption'!$I$12*$K$4,0))*IF(B74<DynYear,0,1) -> 3.215887451e-14 | AB74: 3.215887451e-15 | AC74: 0.04286822974 | AD74: =AD73/(1+AC74) -> 0.265808075 | AE74: 0
A75: 2083 | B75: 67 | C75: 117 | D75: 1 | E75: 39 | F75: =F74*(1+INDEX('Scn Y'!$A$5:$AR$106,IF(Scn>0,1,0)*51+MIN(51,IndLiab!B75+1),40)/100*$I$4) -> 9.972736241 | G75: =IF(D75<1,1,G74*(1+MIN(Plan!$H$18,Plan!$H$17*INDEX('Scn Y'!$A$5:$AR$106,IF(Scn>0,1,0)*51+MIN(IndLiab!B75,50),11)/100))) -> 2.114234584 | H75: 152778.869 | I75: =IF(D75=1,I74,IF(B75<Plan!$H$15,-PV(Plan!$H$14,MAX(0,Plan!$H$15-B75-1),IndLiab!$H$8,,0)+SUM($H$8:H75),SUM(OFFSET($H$8,COUNT($H$8:H75)-Plan!$H$15,0,Plan!$H$15)))/MIN(E75,Plan!$H$15)) -> 142840.0822 | J75: =I75*$E$8*Plan!$H$16*G75 -> 75499.36043 | K75: =I75*E75*Plan!$H$16*G75 -> 117779.0023 | L75: =MIN(1,VLOOKUP(MIN(110,C75),'Actuarial Assumption'!$A$4:$C$115,IF(IndLiab!$F$4="M",2,3),FALSE)*Mort_S) -> 1 | M75: =IF(E72="M",'Actuarial Assumption'!$E$21*MI_S,'Actuarial Assumption'!$F$21*MI_S) -> 0.01 | N75: 0.99 | O75: 4.800278715e-21 | P75: =P74/(1+Plan!$H$20) -> 0.07223809207 | Q75: =IF(Plan!$C$7=1,CurveFitting!AM74,CurveFitting!AS74) -> 0.0364903094 | R75: 0.1215643206 | S75: 0.04515535252 | T75: 0.06013661235 | U75: =(1-$J$4)^MAX(0,Plan!$H$19-IndLiab!$B$4)*(D75*J75*O75*'Actuarial Assumption'!$I$13+IF(AND(D74=0,D75=1),'Actuarial Assumption'!$I$12*$K$4,0)) -> 3.261761756e-16 | V75: =(1-$J$4)^MAX(0,Plan!$H$19-IndLiab!$B$4)*(D75*K75*O75*'Actuarial Assumption'!$I$13+IF(AND(D74=0,D75=1),'Actuarial Assumption'!$I$12*$L$4,0)) -> 5.088348339e-16 | W75: 3.261761756e-17 | X75: 5.088348339e-17 | Y75: =IF(D75=0,1/MAX($E$8:$E$98)*IF(Plan!$I$23=1,$N$4,$O$4)/IF(Plan!$I$23=1,R75,T75)/O75,0) -> 0 | Z75: =I75*MIN(E75,$B$4+DynYear)*Plan!$H$16*G75 -> 75499.36043 | AA75: =(1-$J$4)^MAX(0,Plan!$H$19-IndLiab!$B$4)*(D75*Z75*O75*'Actuarial Assumption'!$I$13+IF(AND(D74=0,D75=1),'Actuarial Assumption'!$I$12*$K$4,0))*IF(B75<DynYear,0,1) -> 3.261761756e-16 | AB75: 3.261761756e-17 | AC75: 0.04291285011 | AD75: 0.2548708408 | AE75: 0
A76: 2084 | B76: 68 | C76: 118 | D76: 1 | E76: 39 | F76: =F75*(1+INDEX('Scn Y'!$A$5:$AR$106,IF(Scn>0,1,0)*51+MIN(51,IndLiab!B76+1),40)/100*$I$4) -> 10.32234243 | G76: =IF(D76<1,1,G75*(1+MIN(Plan!$H$18,Plan!$H$17*INDEX('Scn Y'!$A$5:$AR$106,IF(Scn>0,1,0)*51+MIN(IndLiab!B76,50),11)/100))) -> 2.144393924 | H76: 152778.869 | I76: =IF(D76=1,I75,IF(B76<Plan!$H$15,-PV(Plan!$H$14,MAX(0,Plan!$H$15-B76-1),IndLiab!$H$8,,0)+SUM($H$8:H76),SUM(OFFSET($H$8,COUNT($H$8:H76)-Plan!$H$15,0,Plan!$H$15)))/MIN(E76,Plan!$H$15)) -> 142840.0822 | J76: =I76*$E$8*Plan!$H$16*G76 -> 76576.35107 | K76: =I76*E76*Plan!$H$16*G76 -> 119459.1077 | L76: =MIN(1,VLOOKUP(MIN(110,C76),'Actuarial Assumption'!$A$4:$C$115,IF(IndLiab!$F$4="M",2,3),FALSE)*Mort_S) -> 1 | M76: =IF(E73="M",'Actuarial Assumption'!$E$21*MI_S,'Actuarial Assumption'!$F$21*MI_S) -> 0.01 | N76: 0.99 | O76: 4.800278715e-23 | P76: =P75/(1+Plan!$H$20) -> 0.06945970391 | Q76: =IF(Plan!$C$7=1,CurveFitting!AM75,CurveFitting!AS75) -> 0.03652601707 | R76: 0.1172805299 | S76: 0.04515535252 | T76: 0.05753844365 | U76: =(1-$J$4)^MAX(0,Plan!$H$19-IndLiab!$B$4)*(D76*J76*O76*'Actuarial Assumption'!$I$13+IF(AND(D75=0,D76=1),'Actuarial Assumption'!$I$12*$K$4,0)) -> 3.308290453e-18 | V76: =(1-$J$4)^MAX(0,Plan!$H$19-IndLiab!$B$4)*(D76*K76*O76*'Actuarial Assumption'!$I$13+IF(AND(D75=0,D76=1),'Actuarial Assumption'!$I$12*$L$4,0)) -> 5.160933107e-18 | W76: 3.308290453e-19 | X76: 5.160933107e-19 | Y76: =IF(D76=0,1/MAX($E$8:$E$98)*IF(Plan!$I$23=1,$N$4,$O$4)/IF(Plan!$I$23=1,R76,T76)/O76,0) -> 0 | Z76: =I76*MIN(E76,$B$4+DynYear)*Plan!$H$16*G76 -> 76576.35107 | AA76: =(1-$J$4)^MAX(0,Plan!$H$19-IndLiab!$B$4)*(D76*Z76*O76*'Actuarial Assumption'!$I$13+IF(AND(D75=0,D76=1),'Actuarial Assumption'!$I$12*$K$4,0))*IF(B76<DynYear,0,1) -> 3.308290453e-18 | AB76: 3.308290453e-19 | AC76: 0.0429551238 | AD76: 0.2443737367 | AE76: 0
A77: 2085 | B77: 69 | C77: 119 | D77: 1 | E77: 39 | F77: =F76*(1+INDEX('Scn Y'!$A$5:$AR$106,IF(Scn>0,1,0)*51+MIN(51,IndLiab!B77+1),40)/100*$I$4) -> 10.68420448 | G77: =IF(D77<1,1,G76*(1+MIN(Plan!$H$18,Plan!$H$17*INDEX('Scn Y'!$A$5:$AR$106,IF(Scn>0,1,0)*51+MIN(IndLiab!B77,50),11)/100))) -> 2.174983484 | H77: 152778.869 | I77: =IF(D77=1,I76,IF(B77<Plan!$H$15,-PV(Plan!$H$14,MAX(0,Plan!$H$15-B77-1),IndLiab!$H$8,,0)+SUM($H$8:H77),SUM(OFFSET($H$8,COUNT($H$8:H77)-Plan!$H$15,0,Plan!$H$15)))/MIN(E77,Plan!$H$15)) -> 142840.0822 | J77: =I77*$E$8*Plan!$H$16*G77 -> 77668.70487 | K77: =I77*E77*Plan!$H$16*G77 -> 121163.1796 | L77: =MIN(1,VLOOKUP(MIN(110,C77),'Actuarial Assumption'!$A$4:$C$115,IF(IndLiab!$F$4="M",2,3),FALSE)*Mort_S) -> 1 | M77: =IF(E74="M",'Actuarial Assumption'!$E$21*MI_S,'Actuarial Assumption'!$F$21*MI_S) -> 0.01 | N77: 0.99 | O77: 4.800278715e-25 | P77: =P76/(1+Plan!$H$20) -> 0.06678817684 | Q77: =IF(Plan!$C$7=1,CurveFitting!AM76,CurveFitting!AS76) -> 0.03656069091 | R77: 0.1131439104 | S77: 0.04515535252 | T77: 0.05505252737 | U77: =(1-$J$4)^MAX(0,Plan!$H$19-IndLiab!$B$4)*(D77*J77*O77*'Actuarial Assumption'!$I$13+IF(AND(D76=0,D77=1),'Actuarial Assumption'!$I$12*$K$4,0)) -> 3.355482877e-20 | V77: =(1-$J$4)^MAX(0,Plan!$H$19-IndLiab!$B$4)*(D77*K77*O77*'Actuarial Assumption'!$I$13+IF(AND(D76=0,D77=1),'Actuarial Assumption'!$I$12*$L$4,0)) -> 5.234553289e-20 | W77: 3.355482877e-21 | X77: 5.234553289e-21 | Y77: =IF(D77=0,1/MAX($E$8:$E$98)*IF(Plan!$I$23=1,$N$4,$O$4)/IF(Plan!$I$23=1,R77,T77)/O77,0) -> 0 | Z77: =I77*MIN(E77,$B$4+DynYear)*Plan!$H$16*G77 -> 77668.70487 | AA77: =(1-$J$4)^MAX(0,Plan!$H$19-IndLiab!$B$4)*(D77*Z77*O77*'Actuarial Assumption'!$I$13+IF(AND(D76=0,D77=1),'Actuarial Assumption'!$I$12*$K$4,0))*IF(B77<DynYear,0,1) -> 3.355482877e-20 | AB77: 3.355482877e-21 | AC77: 0.04299523119 | AD77: 0.2342999559 | AE77: 0
A78: 2086 | B78: 70 | C78: 120 | D78: 1 | E78: 39 | F78: =F77*(1+INDEX('Scn Y'!$A$5:$AR$106,IF(Scn>0,1,0)*51+MIN(51,IndLiab!B78+1),40)/100*$I$4) -> 11.05875204 | G78: =IF(D78<1,1,G77*(1+MIN(Plan!$H$18,Plan!$H$17*INDEX('Scn Y'!$A$5:$AR$106,IF(Scn>0,1,0)*51+MIN(IndLiab!B78,50),11)/100))) -> 2.2060094 | H78: 152778.869 | I78: =IF(D78=1,I77,IF(B78<Plan!$H$15,-PV(Plan!$H$14,MAX(0,Plan!$H$15-B78-1),IndLiab!$H$8,,0)+SUM($H$8:H78),SUM(OFFSET($H$8,COUNT($H$8:H78)-Plan!$H$15,0,Plan!$H$15)))/MIN(E78,Plan!$H$15)) -> 142840.0822 | J78: =I78*$E$8*Plan!$H$16*G78 -> 78776.64099 | K78: =I78*E78*Plan!$H$16*G78 -> 122891.5599 | L78: =MIN(1,VLOOKUP(MIN(110,C78),'Actuarial Assumption'!$A$4:$C$115,IF(IndLiab!$F$4="M",2,3),FALSE)*Mort_S) -> 1 | M78: =IF(E75="M",'Actuarial Assumption'!$E$21*MI_S,'Actuarial Assumption'!$F$21*MI_S) -> 0.01 | N78: 0.99 | O78: 4.800278715e-27 | P78: =P77/(1+Plan!$H$20) -> 0.0642194008 | Q78: =IF(Plan!$C$7=1,CurveFitting!AM77,CurveFitting!AS77) -> 0.03659437517 | R78: 0.1091496473 | S78: 0.04515535252 | T78: 0.05267401371 | U78: =(1-$J$4)^MAX(0,Plan!$H$19-IndLiab!$B$4)*(D78*J78*O78*'Actuarial Assumption'!$I$13+IF(AND(D77=0,D78=1),'Actuarial Assumption'!$I$12*$K$4,0)) -> 3.403348497e-22 | V78: =(1-$J$4)^MAX(0,Plan!$H$19-IndLiab!$B$4)*(D78*K78*O78*'Actuarial Assumption'!$I$13+IF(AND(D77=0,D78=1),'Actuarial Assumption'!$I$12*$L$4,0)) -> 5.309223655e-22 | W78: 3.403348497e-23 | X78: 5.309223655e-23 | Y78: =IF(D78=0,1/MAX($E$8:$E$98)*IF(Plan!$I$23=1,$N$4,$O$4)/IF(Plan!$I$23=1,R78,T78)/O78,0) -> 0 | Z78: =I78*MIN(E78,$B$4+DynYear)*Plan!$H$16*G78 -> 78776.64099 | AA78: =(1-$J$4)^MAX(0,Plan!$H$19-IndLiab!$B$4)*(D78*Z78*O78*'Actuarial Assumption'!$I$13+IF(AND(D77=0,D78=1),'Actuarial Assumption'!$I$12*$K$4,0))*IF(B78<DynYear,0,1) -> 3.403348497e-22 | AB78: 3.403348497e-23 | AC78: 0.04303333464 | AD78: 0.2246332386 | AE78: 0
A79: 2087 | B79: 71 | C79: 121 | D79: 1 | E79: 39 | F79: =F78*(1+INDEX('Scn Y'!$A$5:$AR$106,IF(Scn>0,1,0)*51+MIN(51,IndLiab!B79+1),40)/100*$I$4) -> 11.4464298 | G79: =IF(D79<1,1,G78*(1+MIN(Plan!$H$18,Plan!$H$17*INDEX('Scn Y'!$A$5:$AR$106,IF(Scn>0,1,0)*51+MIN(IndLiab!B79,50),11)/100))) -> 2.237477898 | H79: 152778.869 | I79: =IF(D79=1,I78,IF(B79<Plan!$H$15,-PV(Plan!$H$14,MAX(0,Plan!$H$15-B79-1),IndLiab!$H$8,,0)+SUM($H$8:H79),SUM(OFFSET($H$8,COUNT($H$8:H79)-Plan!$H$15,0,Plan!$H$15)))/MIN(E79,Plan!$H$15)) -> 142840.0822 | J79: =I79*$E$8*Plan!$H$16*G79 -> 79900.3817 | K79: =I79*E79*Plan!$H$16*G79 -> 124644.5955 | L79: =MIN(1,VLOOKUP(MIN(110,C79),'Actuarial Assumption'!$A$4:$C$115,IF(IndLiab!$F$4="M",2,3),FALSE)*Mort_S) -> 1 | M79: =IF(E76="M",'Actuarial Assumption'!$E$21*MI_S,'Actuarial Assumption'!$F$21*MI_S) -> 0.01 | N79: 0.99 | O79: 4.800278715e-29 | P79: =P78/(1+Plan!$H$20) -> 0.06174942385 | Q79: =IF(Plan!$C$7=1,CurveFitting!AM78,CurveFitting!AS78) -> 0.03662711164 | R79: 0.1052930664 | S79: 0.04515535252 | T79: 0.0503982624 | U79: =(1-$J$4)^MAX(0,Plan!$H$19-IndLiab!$B$4)*(D79*J79*O79*'Actuarial Assumption'!$I$13+IF(AND(D78=0,D79=1),'Actuarial Assumption'!$I$12*$K$4,0)) -> 3.451896915e-24 | V79: =(1-$J$4)^MAX(0,Plan!$H$19-IndLiab!$B$4)*(D79*K79*O79*'Actuarial Assumption'!$I$13+IF(AND(D78=0,D79=1),'Actuarial Assumption'!$I$12*$L$4,0)) -> 5.384959187e-24 | W79: 3.451896915e-25 | X79: 5.384959187e-25 | Y79: =IF(D79=0,1/MAX($E$8:$E$98)*IF(Plan!$I$23=1,$N$4,$O$4)/IF(Plan!$I$23=1,R79,T79)/O79,0) -> 0 | Z79: =I79*MIN(E79,$B$4+DynYear)*Plan!$H$16*G79 -> 79900.3817 | AA79: =(1-$J$4)^MAX(0,Plan!$H$19-IndLiab!$B$4)*(D79*Z79*O79*'Actuarial Assumption'!$I$13+IF(AND(D78=0,D79=1),'Actuarial Assumption'!$I$12*$K$4,0))*IF(B79<DynYear,0,1) -> 3.451896915e-24 | AB79: 3.451896915e-25 | AC79: 0.04306958068 | AD79: 0.2153578656 | AE79: 0
A80: 2088 | B80: 72 | C80: 122 | D80: 1 | E80: 39 | F80: =F79*(1+INDEX('Scn Y'!$A$5:$AR$106,IF(Scn>0,1,0)*51+MIN(51,IndLiab!B80+1),40)/100*$I$4) -> 11.84769808 | G80: =IF(D80<1,1,G79*(1+MIN(Plan!$H$18,Plan!$H$17*INDEX('Scn Y'!$A$5:$AR$106,IF(Scn>0,1,0)*51+MIN(IndLiab!B80,50),11)/100))) -> 2.269395291 | H80: 152778.869 | I80: =IF(D80=1,I79,IF(B80<Plan!$H$15,-PV(Plan!$H$14,MAX(0,Plan!$H$15-B80-1),IndLiab!$H$8,,0)+SUM($H$8:H80),SUM(OFFSET($H$8,COUNT($H$8:H80)-Plan!$H$15,0,Plan!$H$15)))/MIN(E80,Plan!$H$15)) -> 142840.0822 | J80: =I80*$E$8*Plan!$H$16*G80 -> 81040.15246 | K80: =I80*E80*Plan!$H$16*G80 -> 126422.6378 | L80: =MIN(1,VLOOKUP(MIN(110,C80),'Actuarial Assumption'!$A$4:$C$115,IF(IndLiab!$F$4="M",2,3),FALSE)*Mort_S) -> 1 | M80: =IF(E77="M",'Actuarial Assumption'!$E$21*MI_S,'Actuarial Assumption'!$F$21*MI_S) -> 0.01 | N80: 0.99 | O80: 4.800278715e-31 | P80: =P79/(1+Plan!$H$20) -> 0.05937444601 | Q80: =IF(Plan!$C$7=1,CurveFitting!AM79,CurveFitting!AS79) -> 0.03665893975 | R80: 0.1015696314 | S80: 0.04515535252 | T80: 0.04822083366 | U80: =(1-$J$4)^MAX(0,Plan!$H$19-IndLiab!$B$4)*(D80*J80*O80*'Actuarial Assumption'!$I$13+IF(AND(D79=0,D80=1),'Actuarial Assumption'!$I$12*$K$4,0)) -> 3.50113787e-26 | V80: =(1-$J$4)^MAX(0,Plan!$H$19-IndLiab!$B$4)*(D80*K80*O80*'Actuarial Assumption'!$I$13+IF(AND(D79=0,D80=1),'Actuarial Assumption'!$I$12*$L$4,0)) -> 5.461775078e-26 | W80: 3.50113787e-27 | X80: 5.461775078e-27 | Y80: =IF(D80=0,1/MAX($E$8:$E$98)*IF(Plan!$I$23=1,$N$4,$O$4)/IF(Plan!$I$23=1,R80,T80)/O80,0) -> 0 | Z80: =I80*MIN(E80,$B$4+DynYear)*Plan!$H$16*G80 -> 81040.15246 | AA80: =(1-$J$4)^MAX(0,Plan!$H$19-IndLiab!$B$4)*(D80*Z80*O80*'Actuarial Assumption'!$I$13+IF(AND(D79=0,D80=1),'Actuarial Assumption'!$I$12*$K$4,0))*IF(B80<DynYear,0,1) -> 3.50113787e-26 | AB80: 3.50113787e-27 | AC80: 0.04310410188 | AD80: 0.2064586509 | AE80: 0
A81: 2089 | B81: 73 | C81: 123 | D81: 1 | E81: 39 | F81: =F80*(1+INDEX('Scn Y'!$A$5:$AR$106,IF(Scn>0,1,0)*51+MIN(51,IndLiab!B81+1),40)/100*$I$4) -> 12.2630333 | G81: =IF(D81<1,1,G80*(1+MIN(Plan!$H$18,Plan!$H$17*INDEX('Scn Y'!$A$5:$AR$106,IF(Scn>0,1,0)*51+MIN(IndLiab!B81,50),11)/100))) -> 2.301767983 | H81: 152778.869 | I81: =IF(D81=1,I80,IF(B81<Plan!$H$15,-PV(Plan!$H$14,MAX(0,Plan!$H$15-B81-1),IndLiab!$H$8,,0)+SUM($H$8:H81),SUM(OFFSET($H$8,COUNT($H$8:H81)-Plan!$H$15,0,Plan!$H$15)))/MIN(E81,Plan!$H$15)) -> 142840.0822 | J81: =I81*$E$8*Plan!$H$16*G81 -> 82196.18193 | K81: =I81*E81*Plan!$H$16*G81 -> 128226.0438 | L81: =MIN(1,VLOOKUP(MIN(110,C81),'Actuarial Assumption'!$A$4:$C$115,IF(IndLiab!$F$4="M",2,3),FALSE)*Mort_S) -> 1 | M81: =IF(E78="M",'Actuarial Assumption'!$E$21*MI_S,'Actuarial Assumption'!$F$21*MI_S) -> 0.01 | N81: 0.99 | O81: 4.800278715e-33 | P81: =P80/(1+Plan!$H$20) -> 0.05709081347 | Q81: =IF(Plan!$C$7=1,CurveFitting!AM80,CurveFitting!AS80) -> 0.03668989679 | R81: 0.0979749409 | S81: 0.04515535252 | T81: 0.04613747951 | U81: =(1-$J$4)^MAX(0,Plan!$H$19-IndLiab!$B$4)*(D81*J81*O81*'Actuarial Assumption'!$I$13+IF(AND(D80=0,D81=1),'Actuarial Assumption'!$I$12*$K$4,0)) -> 3.551081243e-28 | V81: =(1-$J$4)^MAX(0,Plan!$H$19-IndLiab!$B$4)*(D81*K81*O81*'Actuarial Assumption'!$I$13+IF(AND(D80=0,D81=1),'Actuarial Assumption'!$I$12*$L$4,0)) -> 5.53968674e-28 | W81: 3.551081243e-29 | X81: 5.53968674e-29 | Y81: =IF(D81=0,1/MAX($E$8:$E$98)*IF(Plan!$I$23=1,$N$4,$O$4)/IF(Plan!$I$23=1,R81,T81)/O81,0) -> 0 | Z81: =I81*MIN(E81,$B$4+DynYear)*Plan!$H$16*G81 -> 82196.18193 | AA81: =(1-$J$4)^MAX(0,Plan!$H$19-IndLiab!$B$4)*(D81*Z81*O81*'Actuarial Assumption'!$I$13+IF(AND(D80=0,D81=1),'Actuarial Assumption'!$I$12*$K$4,0))*IF(B81<DynYear,0,1) -> 3.551081243e-28 | AB81: 3.551081243e-29 | AC81: 0.04313701852 | AD81: 0.197920932 | AE81: 0
A82: 2090 | B82: 74 | C82: 124 | D82: 1 | E82: 39 | F82: =F81*(1+INDEX('Scn Y'!$A$5:$AR$106,IF(Scn>0,1,0)*51+MIN(51,IndLiab!B82+1),40)/100*$I$4) -> 12.69292859 | G82: =IF(D82<1,1,G81*(1+MIN(Plan!$H$18,Plan!$H$17*INDEX('Scn Y'!$A$5:$AR$106,IF(Scn>0,1,0)*51+MIN(IndLiab!B82,50),11)/100))) -> 2.334602467 | H82: 152778.869 | I82: =IF(D82=1,I81,IF(B82<Plan!$H$15,-PV(Plan!$H$14,MAX(0,Plan!$H$15-B82-1),IndLiab!$H$8,,0)+SUM($H$8:H82),SUM(OFFSET($H$8,COUNT($H$8:H82)-Plan!$H$15,0,Plan!$H$15)))/MIN(E82,Plan!$H$15)) -> 142840.0822 | J82: =I82*$E$8*Plan!$H$16*G82 -> 83368.70205 | K82: =I82*E82*Plan!$H$16*G82 -> 130055.1752 | L82: =MIN(1,VLOOKUP(MIN(110,C82),'Actuarial Assumption'!$A$4:$C$115,IF(IndLiab!$F$4="M",2,3),FALSE)*Mort_S) -> 1 | M82: =IF(E79="M",'Actuarial Assumption'!$E$21*MI_S,'Actuarial Assumption'!$F$21*MI_S) -> 0.01 | N82: 0.99 | O82: 4.800278715e-35 | P82: =P81/(1+Plan!$H$20) -> 0.05489501295 | Q82: =IF(Plan!$C$7=1,CurveFitting!AM81,CurveFitting!AS81) -> 0.03672001804 | R82: 0.09450472567 | S82: 0.04515535252 | T82: 0.04414413551 | U82: =(1-$J$4)^MAX(0,Plan!$H$19-IndLiab!$B$4)*(D82*J82*O82*'Actuarial Assumption'!$I$13+IF(AND(D81=0,D82=1),'Actuarial Assumption'!$I$12*$K$4,0)) -> 3.601737054e-30 | V82: =(1-$J$4)^MAX(0,Plan!$H$19-IndLiab!$B$4)*(D82*K82*O82*'Actuarial Assumption'!$I$13+IF(AND(D81=0,D82=1),'Actuarial Assumption'!$I$12*$L$4,0)) -> 5.618709804e-30 | W82: 3.601737054e-31 | X82: 5.618709804e-31 | Y82: =IF(D82=0,1/MAX($E$8:$E$98)*IF(Plan!$I$23=1,$N$4,$O$4)/IF(Plan!$I$23=1,R82,T82)/O82,0) -> 0 | Z82: =I82*MIN(E82,$B$4+DynYear)*Plan!$H$16*G82 -> 83368.70205 | AA82: =(1-$J$4)^MAX(0,Plan!$H$19-IndLiab!$B$4)*(D82*Z82*O82*'Actuarial Assumption'!$I$13+IF(AND(D81=0,D82=1),'Actuarial Assumption'!$I$12*$K$4,0))*IF(B82<DynYear,0,1) -> 3.601737054e-30 | AB82: 3.601737054e-31 | AC82: 0.04316843991 | AD82: 0.1897305597 | AE82: 0
A83: 2091 | B83: 75 | C83: 125 | D83: 1 | E83: 39 | F83: =F82*(1+INDEX('Scn Y'!$A$5:$AR$106,IF(Scn>0,1,0)*51+MIN(51,IndLiab!B83+1),40)/100*$I$4) -> 13.13789437 | G83: =IF(D83<1,1,G82*(1+MIN(Plan!$H$18,Plan!$H$17*INDEX('Scn Y'!$A$5:$AR$106,IF(Scn>0,1,0)*51+MIN(IndLiab!B83,50),11)/100))) -> 2.367905332 | H83: 152778.869 | I83: =IF(D83=1,I82,IF(B83<Plan!$H$15,-PV(Plan!$H$14,MAX(0,Plan!$H$15-B83-1),IndLiab!$H$8,,0)+SUM($H$8:H83),SUM(OFFSET($H$8,COUNT($H$8:H83)-Plan!$H$15,0,Plan!$H$15)))/MIN(E83,Plan!$H$15)) -> 142840.0822 | J83: =I83*$E$8*Plan!$H$16*G83 -> 84557.94804 | K83: =I83*E83*Plan!$H$16*G83 -> 131910.3989 | L83: =MIN(1,VLOOKUP(MIN(110,C83),'Actuarial Assumption'!$A$4:$C$115,IF(IndLiab!$F$4="M",2,3),FALSE)*Mort_S) -> 1 | M83: =IF(E80="M",'Actuarial Assumption'!$E$21*MI_S,'Actuarial Assumption'!$F$21*MI_S) -> 0.01 | N83: 0.99 | O83: 4.800278715e-37 | P83: =P82/(1+Plan!$H$20) -> 0.0527836663 | Q83: =IF(Plan!$C$7=1,CurveFitting!AM82,CurveFitting!AS82) -> 0.0367493369 | R83: 0.09115484554 | S83: 0.04515535252 | T83: 0.04223691282 | U83: =(1-$J$4)^MAX(0,Plan!$H$19-IndLiab!$B$4)*(D83*J83*O83*'Actuarial Assumption'!$I$13+IF(AND(D82=0,D83=1),'Actuarial Assumption'!$I$12*$K$4,0)) -> 3.653115464e-32 | V83: =(1-$J$4)^MAX(0,Plan!$H$19-IndLiab!$B$4)*(D83*K83*O83*'Actuarial Assumption'!$I$13+IF(AND(D82=0,D83=1),'Actuarial Assumption'!$I$12*$L$4,0)) -> 5.698860123e-32 | W83: 3.653115464e-33 | X83: 5.698860123e-33 | Y83: =IF(D83=0,1/MAX($E$8:$E$98)*IF(Plan!$I$23=1,$N$4,$O$4)/IF(Plan!$I$23=1,R83,T83)/O83,0) -> 0 | Z83: =I83*MIN(E83,$B$4+DynYear)*Plan!$H$16*G83 -> 84557.94804 | AA83: =(1-$J$4)^MAX(0,Plan!$H$19-IndLiab!$B$4)*(D83*Z83*O83*'Actuarial Assumption'!$I$13+IF(AND(D82=0,D83=1),'Actuarial Assumption'!$I$12*$K$4,0))*IF(B83<DynYear,0,1) -> 3.653115464e-32 | AB83: 3.653115464e-33 | AC83: 0.04319846568 | AD83: 0.1818738869 | AE83: 0
A84: 2092 | B84: 76 | C84: 126 | D84: 1 | E84: 39 | F84: =F83*(1+INDEX('Scn Y'!$A$5:$AR$106,IF(Scn>0,1,0)*51+MIN(51,IndLiab!B84+1),40)/100*$I$4) -> 13.59845895 | G84: =IF(D84<1,1,G83*(1+MIN(Plan!$H$18,Plan!$H$17*INDEX('Scn Y'!$A$5:$AR$106,IF(Scn>0,1,0)*51+MIN(IndLiab!B84,50),11)/100))) -> 2.401683259 | H84: 152778.869 | I84: =IF(D84=1,I83,IF(B84<Plan!$H$15,-PV(Plan!$H$14,MAX(0,Plan!$H$15-B84-1),IndLiab!$H$8,,0)+SUM($H$8:H84),SUM(OFFSET($H$8,COUNT($H$8:H84)-Plan!$H$15,0,Plan!$H$15)))/MIN(E84,Plan!$H$15)) -> 142840.0822 | J84: =I84*$E$8*Plan!$H$16*G84 -> 85764.15851 | K84: =I84*E84*Plan!$H$16*G84 -> 133792.0873 | L84: =MIN(1,VLOOKUP(MIN(110,C84),'Actuarial Assumption'!$A$4:$C$115,IF(IndLiab!$F$4="M",2,3),FALSE)*Mort_S) -> 1 | M84: =IF(E81="M",'Actuarial Assumption'!$E$21*MI_S,'Actuarial Assumption'!$F$21*MI_S) -> 0.01 | N84: 0.99 | O84: 4.800278715e-39 | P84: =P83/(1+Plan!$H$20) -> 0.05075352529 | Q84: =IF(Plan!$C$7=1,CurveFitting!AM83,CurveFitting!AS83) -> 0.03677788501 | R84: 0.08792128657 | S84: 0.04515535252 | T84: 0.04041209062 | U84: =(1-$J$4)^MAX(0,Plan!$H$19-IndLiab!$B$4)*(D84*J84*O84*'Actuarial Assumption'!$I$13+IF(AND(D83=0,D84=1),'Actuarial Assumption'!$I$12*$K$4,0)) -> 3.705226781e-34 | V84: =(1-$J$4)^MAX(0,Plan!$H$19-IndLiab!$B$4)*(D84*K84*O84*'Actuarial Assumption'!$I$13+IF(AND(D83=0,D84=1),'Actuarial Assumption'!$I$12*$L$4,0)) -> 5.780153779e-34 | W84: 3.705226781e-35 | X84: 5.780153779e-35 | Y84: =IF(D84=0,1/MAX($E$8:$E$98)*IF(Plan!$I$23=1,$N$4,$O$4)/IF(Plan!$I$23=1,R84,T84)/O84,0) -> 0 | Z84: =I84*MIN(E84,$B$4+DynYear)*Plan!$H$16*G84 -> 85764.15851 | AA84: =(1-$J$4)^MAX(0,Plan!$H$19-IndLiab!$B$4)*(D84*Z84*O84*'Actuarial Assumption'!$I$13+IF(AND(D83=0,D84=1),'Actuarial Assumption'!$I$12*$K$4,0))*IF(B84<DynYear,0,1) -> 3.705226781e-34 | AB84: 3.705226781e-35 | AC84: 0.04322718679 | AD84: 0.1743377561 | AE84: 0
A85: 2093 | B85: 77 | C85: 127 | D85: 1 | E85: 39 | F85: =F84*(1+INDEX('Scn Y'!$A$5:$AR$106,IF(Scn>0,1,0)*51+MIN(51,IndLiab!B85+1),40)/100*$I$4) -> 14.07516919 | G85: =IF(D85<1,1,G84*(1+MIN(Plan!$H$18,Plan!$H$17*INDEX('Scn Y'!$A$5:$AR$106,IF(Scn>0,1,0)*51+MIN(IndLiab!B85,50),11)/100))) -> 2.435943025 | H85: 152778.869 | I85: =IF(D85=1,I84,IF(B85<Plan!$H$15,-PV(Plan!$H$14,MAX(0,Plan!$H$15-B85-1),IndLiab!$H$8,,0)+SUM($H$8:H85),SUM(OFFSET($H$8,COUNT($H$8:H85)-Plan!$H$15,0,Plan!$H$15)))/MIN(E85,Plan!$H$15)) -> 142840.0822 | J85: =I85*$E$8*Plan!$H$16*G85 -> 86987.57544 | K85: =I85*E85*Plan!$H$16*G85 -> 135700.6177 | L85: =MIN(1,VLOOKUP(MIN(110,C85),'Actuarial Assumption'!$A$4:$C$115,IF(IndLiab!$F$4="M",2,3),FALSE)*Mort_S) -> 1 | M85: =IF(E82="M",'Actuarial Assumption'!$E$21*MI_S,'Actuarial Assumption'!$F$21*MI_S) -> 0.01 | N85: 0.99 | O85: 4.800278715e-41 | P85: =P84/(1+Plan!$H$20) -> 0.04880146662 | Q85: =IF(Plan!$C$7=1,CurveFitting!AM84,CurveFitting!AS84) -> 0.03680569237 | R85: 0.08480015804 | S85: 0.04515535252 | T85: 0.03866610885 | U85: =(1-$J$4)^MAX(0,Plan!$H$19-IndLiab!$B$4)*(D85*J85*O85*'Actuarial Assumption'!$I$13+IF(AND(D84=0,D85=1),'Actuarial Assumption'!$I$12*$K$4,0)) -> 3.758081462e-36 | V85: =(1-$J$4)^MAX(0,Plan!$H$19-IndLiab!$B$4)*(D85*K85*O85*'Actuarial Assumption'!$I$13+IF(AND(D84=0,D85=1),'Actuarial Assumption'!$I$12*$L$4,0)) -> 5.862607081e-36 | W85: 3.758081462e-37 | X85: 5.862607081e-37 | Y85: =IF(D85=0,1/MAX($E$8:$E$98)*IF(Plan!$I$23=1,$N$4,$O$4)/IF(Plan!$I$23=1,R85,T85)/O85,0) -> 0 | Z85: =I85*MIN(E85,$B$4+DynYear)*Plan!$H$16*G85 -> 86987.57544 | AA85: =(1-$J$4)^MAX(0,Plan!$H$19-IndLiab!$B$4)*(D85*Z85*O85*'Actuarial Assumption'!$I$13+IF(AND(D84=0,D85=1),'Actuarial Assumption'!$I$12*$K$4,0))*IF(B85<DynYear,0,1) -> 3.758081462e-36 | AB85: 3.758081462e-37 | AC85: 0.04325468646 | AD85: 0.1671094876 | AE85: 0
A86: 2094 | B86: 78 | C86: 128 | D86: 1 | E86: 39 | F86: =F85*(1+INDEX('Scn Y'!$A$5:$AR$106,IF(Scn>0,1,0)*51+MIN(51,IndLiab!B86+1),40)/100*$I$4) -> 14.56859106 | G86: =IF(D86<1,1,G85*(1+MIN(Plan!$H$18,Plan!$H$17*INDEX('Scn Y'!$A$5:$AR$106,IF(Scn>0,1,0)*51+MIN(IndLiab!B86,50),11)/100))) -> 2.470691502 | H86: 152778.869 | I86: =IF(D86=1,I85,IF(B86<Plan!$H$15,-PV(Plan!$H$14,MAX(0,Plan!$H$15-B86-1),IndLiab!$H$8,,0)+SUM($H$8:H86),SUM(OFFSET($H$8,COUNT($H$8:H86)-Plan!$H$15,0,Plan!$H$15)))/MIN(E86,Plan!$H$15)) -> 142840.0822 | J86: =I86*$E$8*Plan!$H$16*G86 -> 88228.4443 | K86: =I86*E86*Plan!$H$16*G86 -> 137636.3731 | L86: =MIN(1,VLOOKUP(MIN(110,C86),'Actuarial Assumption'!$A$4:$C$115,IF(IndLiab!$F$4="M",2,3),FALSE)*Mort_S) -> 1 | M86: =IF(E83="M",'Actuarial Assumption'!$E$21*MI_S,'Actuarial Assumption'!$F$21*MI_S) -> 0.01 | N86: 0.99 | O86: 4.800278715e-43 | P86: =P85/(1+Plan!$H$20) -> 0.04692448714 | Q86: =IF(Plan!$C$7=1,CurveFitting!AM85,CurveFitting!AS85) -> 0.03683278743 | R86: 0.08178768946 | S86: 0.04515535252 | T86: 0.03699556124 | U86: =(1-$J$4)^MAX(0,Plan!$H$19-IndLiab!$B$4)*(D86*J86*O86*'Actuarial Assumption'!$I$13+IF(AND(D85=0,D86=1),'Actuarial Assumption'!$I$12*$K$4,0)) -> 3.811690109e-38 | V86: =(1-$J$4)^MAX(0,Plan!$H$19-IndLiab!$B$4)*(D86*K86*O86*'Actuarial Assumption'!$I$13+IF(AND(D85=0,D86=1),'Actuarial Assumption'!$I$12*$L$4,0)) -> 5.94623657e-38 | W86: 3.811690109e-39 | X86: 5.94623657e-39 | Y86: =IF(D86=0,1/MAX($E$8:$E$98)*IF(Plan!$I$23=1,$N$4,$O$4)/IF(Plan!$I$23=1,R86,T86)/O86,0) -> 0 | Z86: =I86*MIN(E86,$B$4+DynYear)*Plan!$H$16*G86 -> 88228.4443 | AA86: =(1-$J$4)^MAX(0,Plan!$H$19-IndLiab!$B$4)*(D86*Z86*O86*'Actuarial Assumption'!$I$13+IF(AND(D85=0,D86=1),'Actuarial Assumption'!$I$12*$K$4,0))*IF(B86<DynYear,0,1) -> 3.811690109e-38 | AB86: 3.811690109e-39 | AC86: 0.043281041 | AD86: 0.1601768661 | AE86: 0
A87: 2095 | B87: 79 | C87: 129 | D87: 1 | E87: 39 | F87: =F86*(1+INDEX('Scn Y'!$A$5:$AR$106,IF(Scn>0,1,0)*51+MIN(51,IndLiab!B87+1),40)/100*$I$4) -> 15.07931043 | G87: =IF(D87<1,1,G86*(1+MIN(Plan!$H$18,Plan!$H$17*INDEX('Scn Y'!$A$5:$AR$106,IF(Scn>0,1,0)*51+MIN(IndLiab!B87,50),11)/100))) -> 2.505935663 | H87: 152778.869 | I87: =IF(D87=1,I86,IF(B87<Plan!$H$15,-PV(Plan!$H$14,MAX(0,Plan!$H$15-B87-1),IndLiab!$H$8,,0)+SUM($H$8:H87),SUM(OFFSET($H$8,COUNT($H$8:H87)-Plan!$H$15,0,Plan!$H$15)))/MIN(E87,Plan!$H$15)) -> 142840.0822 | J87: =I87*$E$8*Plan!$H$16*G87 -> 89487.01401 | K87: =I87*E87*Plan!$H$16*G87 -> 139599.7419 | L87: =MIN(1,VLOOKUP(MIN(110,C87),'Actuarial Assumption'!$A$4:$C$115,IF(IndLiab!$F$4="M",2,3),FALSE)*Mort_S) -> 1 | M87: =IF(E84="M",'Actuarial Assumption'!$E$21*MI_S,'Actuarial Assumption'!$F$21*MI_S) -> 0.01 | N87: 0.99 | O87: 4.800278715e-45 | P87: =P86/(1+Plan!$H$20) -> 0.04511969917 | Q87: =IF(Plan!$C$7=1,CurveFitting!AM86,CurveFitting!AS86) -> 0.03685919722 | R87: 0.0788802276 | S87: 0.04515535252 | T87: 0.0353971887 | U87: =(1-$J$4)^MAX(0,Plan!$H$19-IndLiab!$B$4)*(D87*J87*O87*'Actuarial Assumption'!$I$13+IF(AND(D86=0,D87=1),'Actuarial Assumption'!$I$12*$K$4,0)) -> 3.866063478e-40 | V87: =(1-$J$4)^MAX(0,Plan!$H$19-IndLiab!$B$4)*(D87*K87*O87*'Actuarial Assumption'!$I$13+IF(AND(D86=0,D87=1),'Actuarial Assumption'!$I$12*$L$4,0)) -> 6.031059025e-40 | W87: 3.866063478e-41 | X87: 6.031059025e-41 | Y87: =IF(D87=0,1/MAX($E$8:$E$98)*IF(Plan!$I$23=1,$N$4,$O$4)/IF(Plan!$I$23=1,R87,T87)/O87,0) -> 0 | Z87: =I87*MIN(E87,$B$4+DynYear)*Plan!$H$16*G87 -> 89487.01401 | AA87: =(1-$J$4)^MAX(0,Plan!$H$19-IndLiab!$B$4)*(D87*Z87*O87*'Actuarial Assumption'!$I$13+IF(AND(D86=0,D87=1),'Actuarial Assumption'!$I$12*$K$4,0))*IF(B87<DynYear,0,1) -> 3.866063478e-40 | AB87: 3.866063478e-41 | AC87: 0.04330632046 | AD87: 0.1535281278 | AE87: 0
A88: 2096 | B88: 80 | C88: 130 | D88: 1 | E88: 39 | F88: =F87*(1+INDEX('Scn Y'!$A$5:$AR$106,IF(Scn>0,1,0)*51+MIN(51,IndLiab!B88+1),40)/100*$I$4) -> 15.60793368 | G88: =IF(D88<1,1,G87*(1+MIN(Plan!$H$18,Plan!$H$17*INDEX('Scn Y'!$A$5:$AR$106,IF(Scn>0,1,0)*51+MIN(IndLiab!B88,50),11)/100))) -> 2.541682579 | H88: 152778.869 | I88: =IF(D88=1,I87,IF(B88<Plan!$H$15,-PV(Plan!$H$14,MAX(0,Plan!$H$15-B88-1),IndLiab!$H$8,,0)+SUM($H$8:H88),SUM(OFFSET($H$8,COUNT($H$8:H88)-Plan!$H$15,0,Plan!$H$15)))/MIN(E88,Plan!$H$15)) -> 142840.0822 | J88: =I88*$E$8*Plan!$H$16*G88 -> 90763.5371 | K88: =I88*E88*Plan!$H$16*G88 -> 141591.1179 | L88: =MIN(1,VLOOKUP(MIN(110,C88),'Actuarial Assumption'!$A$4:$C$115,IF(IndLiab!$F$4="M",2,3),FALSE)*Mort_S) -> 1 | M88: =IF(E85="M",'Actuarial Assumption'!$E$21*MI_S,'Actuarial Assumption'!$F$21*MI_S) -> 0.01 | N88: 0.99 | O88: 4.800278715e-47 | P88: =P87/(1+Plan!$H$20) -> 0.04338432613 | Q88: =IF(Plan!$C$7=1,CurveFitting!AM87,CurveFitting!AS87) -> 0.03688494742 | R88: 0.0760742335 | S88: 0.04515535252 | T88: 0.03386787296 | U88: =(1-$J$4)^MAX(0,Plan!$H$19-IndLiab!$B$4)*(D88*J88*O88*'Actuarial Assumption'!$I$13+IF(AND(D87=0,D88=1),'Actuarial Assumption'!$I$12*$K$4,0)) -> 3.921212477e-42 | V88: =(1-$J$4)^MAX(0,Plan!$H$19-IndLiab!$B$4)*(D88*K88*O88*'Actuarial Assumption'!$I$13+IF(AND(D87=0,D88=1),'Actuarial Assumption'!$I$12*$L$4,0)) -> 6.117091465e-42 | W88: 3.921212477e-43 | X88: 6.117091465e-43 | Y88: =IF(D88=0,1/MAX($E$8:$E$98)*IF(Plan!$I$23=1,$N$4,$O$4)/IF(Plan!$I$23=1,R88,T88)/O88,0) -> 0 | Z88: =I88*MIN(E88,$B$4+DynYear)*Plan!$H$16*G88 -> 90763.5371 | AA88: =(1-$J$4)^MAX(0,Plan!$H$19-IndLiab!$B$4)*(D88*Z88*O88*'Actuarial Assumption'!$I$13+IF(AND(D87=0,D88=1),'Actuarial Assumption'!$I$12*$K$4,0))*IF(B88<DynYear,0,1) -> 3.921212477e-42 | AB88: 3.921212477e-43 | AC88: 0.04333058933 | AD88: 0.1471519472 | AE88: 0
A89: 2097 | B89: 81 | C89: 131 | D89: 1 | E89: 39 | F89: =F88*(1+INDEX('Scn Y'!$A$5:$AR$106,IF(Scn>0,1,0)*51+MIN(51,IndLiab!B89+1),40)/100*$I$4) -> 16.15508845 | G89: =IF(D89<1,1,G88*(1+MIN(Plan!$H$18,Plan!$H$17*INDEX('Scn Y'!$A$5:$AR$106,IF(Scn>0,1,0)*51+MIN(IndLiab!B89,50),11)/100))) -> 2.577939421 | H89: 152778.869 | I89: =IF(D89=1,I88,IF(B89<Plan!$H$15,-PV(Plan!$H$14,MAX(0,Plan!$H$15-B89-1),IndLiab!$H$8,,0)+SUM($H$8:H89),SUM(OFFSET($H$8,COUNT($H$8:H89)-Plan!$H$15,0,Plan!$H$15)))/MIN(E89,Plan!$H$15)) -> 142840.0822 | J89: =I89*$E$8*Plan!$H$16*G89 -> 92058.26966 | K89: =I89*E89*Plan!$H$16*G89 -> 143610.9007 | L89: =MIN(1,VLOOKUP(MIN(110,C89),'Actuarial Assumption'!$A$4:$C$115,IF(IndLiab!$F$4="M",2,3),FALSE)*Mort_S) -> 1 | M89: =IF(E86="M",'Actuarial Assumption'!$E$21*MI_S,'Actuarial Assumption'!$F$21*MI_S) -> 0.01 | N89: 0.99 | O89: 4.800278715e-49 | P89: =P88/(1+Plan!$H$20) -> 0.0417156982 | Q89: =IF(Plan!$C$7=1,CurveFitting!AM88,CurveFitting!AS88) -> 0.03691006242 | R89: 0.07336627954 | S89: 0.04515535252 | T89: 0.03240463045 | U89: =(1-$J$4)^MAX(0,Plan!$H$19-IndLiab!$B$4)*(D89*J89*O89*'Actuarial Assumption'!$I$13+IF(AND(D88=0,D89=1),'Actuarial Assumption'!$I$12*$K$4,0)) -> 3.977148172e-44 | V89: =(1-$J$4)^MAX(0,Plan!$H$19-IndLiab!$B$4)*(D89*K89*O89*'Actuarial Assumption'!$I$13+IF(AND(D88=0,D89=1),'Actuarial Assumption'!$I$12*$L$4,0)) -> 6.204351148e-44 | W89: 3.977148172e-45 | X89: 6.204351148e-45 | Y89: =IF(D89=0,1/MAX($E$8:$E$98)*IF(Plan!$I$23=1,$N$4,$O$4)/IF(Plan!$I$23=1,R89,T89)/O89,0) -> 0 | Z89: =I89*MIN(E89,$B$4+DynYear)*Plan!$H$16*G89 -> 92058.26966 | AA89: =(1-$J$4)^MAX(0,Plan!$H$19-IndLiab!$B$4)*(D89*Z89*O89*'Actuarial Assumption'!$I$13+IF(AND(D88=0,D89=1),'Actuarial Assumption'!$I$12*$K$4,0))*IF(B89<DynYear,0,1) -> 3.977148172e-44 | AB89: 3.977148172e-45 | AC89: 0.043353907 | AD89: 0.1410374239 | AE89: 0
A90: 2098 | B90: 82 | C90: 132 | D90: 1 | E90: 39 | F90: =F89*(1+INDEX('Scn Y'!$A$5:$AR$106,IF(Scn>0,1,0)*51+MIN(51,IndLiab!B90+1),40)/100*$I$4) -> 16.72142438 | G90: =IF(D90<1,1,G89*(1+MIN(Plan!$H$18,Plan!$H$17*INDEX('Scn Y'!$A$5:$AR$106,IF(Scn>0,1,0)*51+MIN(IndLiab!B90,50),11)/100))) -> 2.614713462 | H90: 152778.869 | I90: =IF(D90=1,I89,IF(B90<Plan!$H$15,-PV(Plan!$H$14,MAX(0,Plan!$H$15-B90-1),IndLiab!$H$8,,0)+SUM($H$8:H90),SUM(OFFSET($H$8,COUNT($H$8:H90)-Plan!$H$15,0,Plan!$H$15)))/MIN(E90,Plan!$H$15)) -> 142840.0822 | J90: =I90*$E$8*Plan!$H$16*G90 -> 93371.47144 | K90: =I90*E90*Plan!$H$16*G90 -> 145659.4955 | L90: =MIN(1,VLOOKUP(MIN(110,C90),'Actuarial Assumption'!$A$4:$C$115,IF(IndLiab!$F$4="M",2,3),FALSE)*Mort_S) -> 1 | M90: =IF(E87="M",'Actuarial Assumption'!$E$21*MI_S,'Actuarial Assumption'!$F$21*MI_S) -> 0.01 | N90: 0.99 | O90: 4.800278715e-51 | P90: =P89/(1+Plan!$H$20) -> 0.04011124827 | Q90: =IF(Plan!$C$7=1,CurveFitting!AM89,CurveFitting!AS89) -> 0.03693456545 | R90: 0.07075304651 | S90: 0.04515535252 | T90: 0.03100460651 | U90: =(1-$J$4)^MAX(0,Plan!$H$19-IndLiab!$B$4)*(D90*J90*O90*'Actuarial Assumption'!$I$13+IF(AND(D89=0,D90=1),'Actuarial Assumption'!$I$12*$K$4,0)) -> 4.033881783e-46 | V90: =(1-$J$4)^MAX(0,Plan!$H$19-IndLiab!$B$4)*(D90*K90*O90*'Actuarial Assumption'!$I$13+IF(AND(D89=0,D90=1),'Actuarial Assumption'!$I$12*$L$4,0)) -> 6.292855581e-46 | W90: 4.033881783e-47 | X90: 6.292855581e-47 | Y90: =IF(D90=0,1/MAX($E$8:$E$98)*IF(Plan!$I$23=1,$N$4,$O$4)/IF(Plan!$I$23=1,R90,T90)/O90,0) -> 0 | Z90: =I90*MIN(E90,$B$4+DynYear)*Plan!$H$16*G90 -> 93371.47144 | AA90: =(1-$J$4)^MAX(0,Plan!$H$19-IndLiab!$B$4)*(D90*Z90*O90*'Actuarial Assumption'!$I$13+IF(AND(D89=0,D90=1),'Actuarial Assumption'!$I$12*$K$4,0))*IF(B90<DynYear,0,1) -> 4.033881783e-46 | AB90: 4.033881783e-47 | AC90: 0.04337632834 | AD90: 0.1351740691 | AE90: 0
A91: 2099 | B91: 83 | C91: 133 | D91: 1 | E91: 39 | F91: =F90*(1+INDEX('Scn Y'!$A$5:$AR$106,IF(Scn>0,1,0)*51+MIN(51,IndLiab!B91+1),40)/100*$I$4) -> 17.3076139 | G91: =IF(D91<1,1,G90*(1+MIN(Plan!$H$18,Plan!$H$17*INDEX('Scn Y'!$A$5:$AR$106,IF(Scn>0,1,0)*51+MIN(IndLiab!B91,50),11)/100))) -> 2.652012082 | H91: 152778.869 | I91: =IF(D91=1,I90,IF(B91<Plan!$H$15,-PV(Plan!$H$14,MAX(0,Plan!$H$15-B91-1),IndLiab!$H$8,,0)+SUM($H$8:H91),SUM(OFFSET($H$8,COUNT($H$8:H91)-Plan!$H$15,0,Plan!$H$15)))/MIN(E91,Plan!$H$15)) -> 142840.0822 | J91: =I91*$E$8*Plan!$H$16*G91 -> 94703.40592 | K91: =I91*E91*Plan!$H$16*G91 -> 147737.3132 | L91: =MIN(1,VLOOKUP(MIN(110,C91),'Actuarial Assumption'!$A$4:$C$115,IF(IndLiab!$F$4="M",2,3),FALSE)*Mort_S) -> 1 | M91: =IF(E88="M",'Actuarial Assumption'!$E$21*MI_S,'Actuarial Assumption'!$F$21*MI_S) -> 0.01 | N91: 0.99 | O91: 4.800278715e-53 | P91: =P90/(1+Plan!$H$20) -> 0.03856850795 | Q91: =IF(Plan!$C$7=1,CurveFitting!AM90,CurveFitting!AS90) -> 0.03695847861 | R91: 0.0682313207 | S91: 0.04515535252 | T91: 0.02966506983 | U91: =(1-$J$4)^MAX(0,Plan!$H$19-IndLiab!$B$4)*(D91*J91*O91*'Actuarial Assumption'!$I$13+IF(AND(D90=0,D91=1),'Actuarial Assumption'!$I$12*$K$4,0)) -> 4.091424693e-48 | V91: =(1-$J$4)^MAX(0,Plan!$H$19-IndLiab!$B$4)*(D91*K91*O91*'Actuarial Assumption'!$I$13+IF(AND(D90=0,D91=1),'Actuarial Assumption'!$I$12*$L$4,0)) -> 6.382622521e-48 | W91: 4.091424693e-49 | X91: 6.382622521e-49 | Y91: =IF(D91=0,1/MAX($E$8:$E$98)*IF(Plan!$I$23=1,$N$4,$O$4)/IF(Plan!$I$23=1,R91,T91)/O91,0) -> 0 | Z91: =I91*MIN(E91,$B$4+DynYear)*Plan!$H$16*G91 -> 94703.40592 | AA91: =(1-$J$4)^MAX(0,Plan!$H$19-IndLiab!$B$4)*(D91*Z91*O91*'Actuarial Assumption'!$I$13+IF(AND(D90=0,D91=1),'Actuarial Assumption'!$I$12*$K$4,0))*IF(B91<DynYear,0,1) -> 4.091424693e-48 | AB91: 4.091424693e-49 | AC91: 0.04339790404 | AD91: 0.1295517928 | AE91: 0
A92: 2100 | B92: 84 | C92: 134 | D92: 1 | E92: 39 | F92: =F91*(1+INDEX('Scn Y'!$A$5:$AR$106,IF(Scn>0,1,0)*51+MIN(51,IndLiab!B92+1),40)/100*$I$4) -> 17.91435299 | G92: =IF(D92<1,1,G91*(1+MIN(Plan!$H$18,Plan!$H$17*INDEX('Scn Y'!$A$5:$AR$106,IF(Scn>0,1,0)*51+MIN(IndLiab!B92,50),11)/100))) -> 2.689842763 | H92: 152778.869 | I92: =IF(D92=1,I91,IF(B92<Plan!$H$15,-PV(Plan!$H$14,MAX(0,Plan!$H$15-B92-1),IndLiab!$H$8,,0)+SUM($H$8:H92),SUM(OFFSET($H$8,COUNT($H$8:H92)-Plan!$H$15,0,Plan!$H$15)))/MIN(E92,Plan!$H$15)) -> 142840.0822 | J92: =I92*$E$8*Plan!$H$16*G92 -> 96054.3403 | K92: =I92*E92*Plan!$H$16*G92 -> 149844.7709 | L92: =MIN(1,VLOOKUP(MIN(110,C92),'Actuarial Assumption'!$A$4:$C$115,IF(IndLiab!$F$4="M",2,3),FALSE)*Mort_S) -> 1 | M92: =IF(E89="M",'Actuarial Assumption'!$E$21*MI_S,'Actuarial Assumption'!$F$21*MI_S) -> 0.01 | N92: 0.99 | O92: 4.800278715e-55 | P92: =P91/(1+Plan!$H$20) -> 0.0370851038 | Q92: =IF(Plan!$C$7=1,CurveFitting!AM91,CurveFitting!AS91) -> 0.03698182293 | R92: 0.06579799105 | S92: 0.04515535252 | T92: 0.02838340707 | U92: =(1-$J$4)^MAX(0,Plan!$H$19-IndLiab!$B$4)*(D92*J92*O92*'Actuarial Assumption'!$I$13+IF(AND(D91=0,D92=1),'Actuarial Assumption'!$I$12*$K$4,0)) -> 4.149788447e-50 | V92: =(1-$J$4)^MAX(0,Plan!$H$19-IndLiab!$B$4)*(D92*K92*O92*'Actuarial Assumption'!$I$13+IF(AND(D91=0,D92=1),'Actuarial Assumption'!$I$12*$L$4,0)) -> 6.473669978e-50 | W92: 4.149788447e-51 | X92: 6.473669978e-51 | Y92: =IF(D92=0,1/MAX($E$8:$E$98)*IF(Plan!$I$23=1,$N$4,$O$4)/IF(Plan!$I$23=1,R92,T92)/O92,0) -> 0 | Z92: =I92*MIN(E92,$B$4+DynYear)*Plan!$H$16*G92 -> 96054.3403 | AA92: =(1-$J$4)^MAX(0,Plan!$H$19-IndLiab!$B$4)*(D92*Z92*O92*'Actuarial Assumption'!$I$13+IF(AND(D91=0,D92=1),'Actuarial Assumption'!$I$12*$K$4,0))*IF(B92<DynYear,0,1) -> 4.149788447e-50 | AB92: 4.149788447e-51 | AC92: 0.04341868106 | AD92: 0.1241608907 | AE92: 0
A93: 2101 | B93: 85 | C93: 135 | D93: 1 | E93: 39 | F93: =F92*(1+INDEX('Scn Y'!$A$5:$AR$106,IF(Scn>0,1,0)*51+MIN(51,IndLiab!B93+1),40)/100*$I$4) -> 18.54236204 | G93: =IF(D93<1,1,G92*(1+MIN(Plan!$H$18,Plan!$H$17*INDEX('Scn Y'!$A$5:$AR$106,IF(Scn>0,1,0)*51+MIN(IndLiab!B93,50),11)/100))) -> 2.728213094 | H93: 152778.869 | I93: =IF(D93=1,I92,IF(B93<Plan!$H$15,-PV(Plan!$H$14,MAX(0,Plan!$H$15-B93-1),IndLiab!$H$8,,0)+SUM($H$8:H93),SUM(OFFSET($H$8,COUNT($H$8:H93)-Plan!$H$15,0,Plan!$H$15)))/MIN(E93,Plan!$H$15)) -> 142840.0822 | J93: =I93*$E$8*Plan!$H$16*G93 -> 97424.54563 | K93: =I93*E93*Plan!$H$16*G93 -> 151982.2912 | L93: =MIN(1,VLOOKUP(MIN(110,C93),'Actuarial Assumption'!$A$4:$C$115,IF(IndLiab!$F$4="M",2,3),FALSE)*Mort_S) -> 1 | M93: =IF(E90="M",'Actuarial Assumption'!$E$21*MI_S,'Actuarial Assumption'!$F$21*MI_S) -> 0.01 | N93: 0.99 | O93: 4.800278715e-57 | P93: =P92/(1+Plan!$H$20) -> 0.03565875365 | Q93: =IF(Plan!$C$7=1,CurveFitting!AM92,CurveFitting!AS92) -> 0.03700461849 | R93: 0.06345004629 | S93: 0.04515535252 | T93: 0.02715711784 | U93: =(1-$J$4)^MAX(0,Plan!$H$19-IndLiab!$B$4)*(D93*J93*O93*'Actuarial Assumption'!$I$13+IF(AND(D92=0,D93=1),'Actuarial Assumption'!$I$12*$K$4,0)) -> 4.208984754e-52 | V93: =(1-$J$4)^MAX(0,Plan!$H$19-IndLiab!$B$4)*(D93*K93*O93*'Actuarial Assumption'!$I$13+IF(AND(D92=0,D93=1),'Actuarial Assumption'!$I$12*$L$4,0)) -> 6.566016217e-52 | W93: 4.208984754e-53 | X93: 6.566016217e-53 | Y93: =IF(D93=0,1/MAX($E$8:$E$98)*IF(Plan!$I$23=1,$N$4,$O$4)/IF(Plan!$I$23=1,R93,T93)/O93,0) -> 0 | Z93: =I93*MIN(E93,$B$4+DynYear)*Plan!$H$16*G93 -> 97424.54563 | AA93: =(1-$J$4)^MAX(0,Plan!$H$19-IndLiab!$B$4)*(D93*Z93*O93*'Actuarial Assumption'!$I$13+IF(AND(D92=0,D93=1),'Actuarial Assumption'!$I$12*$K$4,0))*IF(B93<DynYear,0,1) -> 4.208984754e-52 | AB93: 4.208984754e-53 | AC93: 0.04343870294 | AD93: 0.1189920312 | AE93: 0
A94: 2102 | B94: 86 | C94: 136 | D94: 1 | E94: 39 | F94: =F93*(1+INDEX('Scn Y'!$A$5:$AR$106,IF(Scn>0,1,0)*51+MIN(51,IndLiab!B94+1),40)/100*$I$4) -> 19.19238671 | G94: =IF(D94<1,1,G93*(1+MIN(Plan!$H$18,Plan!$H$17*INDEX('Scn Y'!$A$5:$AR$106,IF(Scn>0,1,0)*51+MIN(IndLiab!B94,50),11)/100))) -> 2.767130774 | H94: 152778.869 | I94: =IF(D94=1,I93,IF(B94<Plan!$H$15,-PV(Plan!$H$14,MAX(0,Plan!$H$15-B94-1),IndLiab!$H$8,,0)+SUM($H$8:H94),SUM(OFFSET($H$8,COUNT($H$8:H94)-Plan!$H$15,0,Plan!$H$15)))/MIN(E94,Plan!$H$15)) -> 142840.0822 | J94: =I94*$E$8*Plan!$H$16*G94 -> 98814.29679 | K94: =I94*E94*Plan!$H$16*G94 -> 154150.303 | L94: =MIN(1,VLOOKUP(MIN(110,C94),'Actuarial Assumption'!$A$4:$C$115,IF(IndLiab!$F$4="M",2,3),FALSE)*Mort_S) -> 1 | M94: =IF(E91="M",'Actuarial Assumption'!$E$21*MI_S,'Actuarial Assumption'!$F$21*MI_S) -> 0.01 | N94: 0.99 | O94: 4.800278715e-59 | P94: =P93/(1+Plan!$H$20) -> 0.03428726313 | Q94: =IF(Plan!$C$7=1,CurveFitting!AM93,CurveFitting!AS93) -> 0.0370268844 | R94: 0.06118457221 | S94: 0.04515535252 | T94: 0.02598380976 | U94: =(1-$J$4)^MAX(0,Plan!$H$19-IndLiab!$B$4)*(D94*J94*O94*'Actuarial Assumption'!$I$13+IF(AND(D93=0,D94=1),'Actuarial Assumption'!$I$12*$K$4,0)) -> 4.269025491e-54 | V94: =(1-$J$4)^MAX(0,Plan!$H$19-IndLiab!$B$4)*(D94*K94*O94*'Actuarial Assumption'!$I$13+IF(AND(D93=0,D94=1),'Actuarial Assumption'!$I$12*$L$4,0)) -> 6.659679765e-54 | W94: 4.269025491e-55 | X94: 6.659679765e-55 | Y94: =IF(D94=0,1/MAX($E$8:$E$98)*IF(Plan!$I$23=1,$N$4,$O$4)/IF(Plan!$I$23=1,R94,T94)/O94,0) -> 0 | Z94: =I94*MIN(E94,$B$4+DynYear)*Plan!$H$16*G94 -> 98814.29679 | AA94: =(1-$J$4)^MAX(0,Plan!$H$19-IndLiab!$B$4)*(D94*Z94*O94*'Actuarial Assumption'!$I$13+IF(AND(D93=0,D94=1),'Actuarial Assumption'!$I$12*$K$4,0))*IF(B94<DynYear,0,1) -> 4.269025491e-54 | AB94: 4.269025491e-55 | AC94: 0.04345801013 | AD94: 0.114036243 | AE94: 0
A95: 2103 | B95: 87 | C95: 137 | D95: 1 | E95: 39 | F95: =F94*(1+INDEX('Scn Y'!$A$5:$AR$106,IF(Scn>0,1,0)*51+MIN(51,IndLiab!B95+1),40)/100*$I$4) -> 19.86519876 | G95: =IF(D95<1,1,G94*(1+MIN(Plan!$H$18,Plan!$H$17*INDEX('Scn Y'!$A$5:$AR$106,IF(Scn>0,1,0)*51+MIN(IndLiab!B95,50),11)/100))) -> 2.806603611 | H95: 152778.869 | I95: =IF(D95=1,I94,IF(B95<Plan!$H$15,-PV(Plan!$H$14,MAX(0,Plan!$H$15-B95-1),IndLiab!$H$8,,0)+SUM($H$8:H95),SUM(OFFSET($H$8,COUNT($H$8:H95)-Plan!$H$15,0,Plan!$H$15)))/MIN(E95,Plan!$H$15)) -> 142840.0822 | J95: =I95*$E$8*Plan!$H$16*G95 -> 100223.8726 | K95: =I95*E95*Plan!$H$16*G95 -> 156349.2413 | L95: =MIN(1,VLOOKUP(MIN(110,C95),'Actuarial Assumption'!$A$4:$C$115,IF(IndLiab!$F$4="M",2,3),FALSE)*Mort_S) -> 1 | M95: =IF(E92="M",'Actuarial Assumption'!$E$21*MI_S,'Actuarial Assumption'!$F$21*MI_S) -> 0.01 | N95: 0.99 | O95: 4.800278715e-61 | P95: =P94/(1+Plan!$H$20) -> 0.03296852224 | Q95: =IF(Plan!$C$7=1,CurveFitting!AM94,CurveFitting!AS94) -> 0.03704863891 | R95: 0.05899874887 | S95: 0.04515535252 | T95: 0.02486119379 | U95: =(1-$J$4)^MAX(0,Plan!$H$19-IndLiab!$B$4)*(D95*J95*O95*'Actuarial Assumption'!$I$13+IF(AND(D94=0,D95=1),'Actuarial Assumption'!$I$12*$K$4,0)) -> 4.329922702e-56 | V95: =(1-$J$4)^MAX(0,Plan!$H$19-IndLiab!$B$4)*(D95*K95*O95*'Actuarial Assumption'!$I$13+IF(AND(D94=0,D95=1),'Actuarial Assumption'!$I$12*$L$4,0)) -> 6.754679415e-56 | W95: 4.329922702e-57 | X95: 6.754679415e-57 | Y95: =IF(D95=0,1/MAX($E$8:$E$98)*IF(Plan!$I$23=1,$N$4,$O$4)/IF(Plan!$I$23=1,R95,T95)/O95,0) -> 0 | Z95: =I95*MIN(E95,$B$4+DynYear)*Plan!$H$16*G95 -> 100223.8726 | AA95: =(1-$J$4)^MAX(0,Plan!$H$19-IndLiab!$B$4)*(D95*Z95*O95*'Actuarial Assumption'!$I$13+IF(AND(D94=0,D95=1),'Actuarial Assumption'!$I$12*$K$4,0))*IF(B95<DynYear,0,1) -> 4.329922702e-56 | AB95: 4.329922702e-57 | AC95: 0.0434766402 | AD95: 0.1092849026 | AE95: 0
A96: 2104 | B96: 88 | C96: 138 | D96: 1 | E96: 39 | F96: =F95*(1+INDEX('Scn Y'!$A$5:$AR$106,IF(Scn>0,1,0)*51+MIN(51,IndLiab!B96+1),40)/100*$I$4) -> 20.56159704 | G96: =IF(D96<1,1,G95*(1+MIN(Plan!$H$18,Plan!$H$17*INDEX('Scn Y'!$A$5:$AR$106,IF(Scn>0,1,0)*51+MIN(IndLiab!B96,50),11)/100))) -> 2.846639524 | H96: 152778.869 | I96: =IF(D96=1,I95,IF(B96<Plan!$H$15,-PV(Plan!$H$14,MAX(0,Plan!$H$15-B96-1),IndLiab!$H$8,,0)+SUM($H$8:H96),SUM(OFFSET($H$8,COUNT($H$8:H96)-Plan!$H$15,0,Plan!$H$15)))/MIN(E96,Plan!$H$15)) -> 142840.0822 | J96: =I96*$E$8*Plan!$H$16*G96 -> 101653.5559 | K96: =I96*E96*Plan!$H$16*G96 -> 158579.5472 | L96: =MIN(1,VLOOKUP(MIN(110,C96),'Actuarial Assumption'!$A$4:$C$115,IF(IndLiab!$F$4="M",2,3),FALSE)*Mort_S) -> 1 | M96: =IF(E93="M",'Actuarial Assumption'!$E$21*MI_S,'Actuarial Assumption'!$F$21*MI_S) -> 0.01 | N96: 0.99 | O96: 4.800278715e-63 | P96: =P95/(1+Plan!$H$20) -> 0.03170050215 | Q96: =IF(Plan!$C$7=1,CurveFitting!AM95,CurveFitting!AS95) -> 0.03706989944 | R96: 0.05688984793 | S96: 0.04515535252 | T96: 0.02378707981 | U96: =(1-$J$4)^MAX(0,Plan!$H$19-IndLiab!$B$4)*(D96*J96*O96*'Actuarial Assumption'!$I$13+IF(AND(D95=0,D96=1),'Actuarial Assumption'!$I$12*$K$4,0)) -> 4.391688606e-58 | V96: =(1-$J$4)^MAX(0,Plan!$H$19-IndLiab!$B$4)*(D96*K96*O96*'Actuarial Assumption'!$I$13+IF(AND(D95=0,D96=1),'Actuarial Assumption'!$I$12*$L$4,0)) -> 6.851034225e-58 | W96: 4.391688606e-59 | X96: 6.851034225e-59 | Y96: =IF(D96=0,1/MAX($E$8:$E$98)*IF(Plan!$I$23=1,$N$4,$O$4)/IF(Plan!$I$23=1,R96,T96)/O96,0) -> 0 | Z96: =I96*MIN(E96,$B$4+DynYear)*Plan!$H$16*G96 -> 101653.5559 | AA96: =(1-$J$4)^MAX(0,Plan!$H$19-IndLiab!$B$4)*(D96*Z96*O96*'Actuarial Assumption'!$I$13+IF(AND(D95=0,D96=1),'Actuarial Assumption'!$I$12*$K$4,0))*IF(B96<DynYear,0,1) -> 4.391688606e-58 | AB96: 4.391688606e-59 | AC96: 0.04349462818 | AD96: 0.1047297223 | AE96: 0
A97: 2105 | B97: 89 | C97: 139 | D97: 1 | E97: 39 | F97: =F96*(1+INDEX('Scn Y'!$A$5:$AR$106,IF(Scn>0,1,0)*51+MIN(51,IndLiab!B97+1),40)/100*$I$4) -> 21.2824084 | G97: =IF(D97<1,1,G96*(1+MIN(Plan!$H$18,Plan!$H$17*INDEX('Scn Y'!$A$5:$AR$106,IF(Scn>0,1,0)*51+MIN(IndLiab!B97,50),11)/100))) -> 2.887246546 | H97: 152778.869 | I97: =IF(D97=1,I96,IF(B97<Plan!$H$15,-PV(Plan!$H$14,MAX(0,Plan!$H$15-B97-1),IndLiab!$H$8,,0)+SUM($H$8:H97),SUM(OFFSET($H$8,COUNT($H$8:H97)-Plan!$H$15,0,Plan!$H$15)))/MIN(E97,Plan!$H$15)) -> 142840.0822 | J97: =I97*$E$8*Plan!$H$16*G97 -> 103103.6334 | K97: =I97*E97*Plan!$H$16*G97 -> 160841.6682 | L97: =MIN(1,VLOOKUP(MIN(110,C97),'Actuarial Assumption'!$A$4:$C$115,IF(IndLiab!$F$4="M",2,3),FALSE)*Mort_S) -> 1 | M97: =IF(E94="M",'Actuarial Assumption'!$E$21*MI_S,'Actuarial Assumption'!$F$21*MI_S) -> 0.01 | N97: 0.99 | O97: 4.800278715e-65 | P97: =P96/(1+Plan!$H$20) -> 0.03048125207 | Q97: =IF(Plan!$C$7=1,CurveFitting!AM96,CurveFitting!AS96) -> 0.03709068262 | R97: 0.05485523 | S97: 0.04515535252 | T97: 0.02275937233 | U97: =(1-$J$4)^MAX(0,Plan!$H$19-IndLiab!$B$4)*(D97*J97*O97*'Actuarial Assumption'!$I$13+IF(AND(D96=0,D97=1),'Actuarial Assumption'!$I$12*$K$4,0)) -> 4.454335594e-60 | V97: =(1-$J$4)^MAX(0,Plan!$H$19-IndLiab!$B$4)*(D97*K97*O97*'Actuarial Assumption'!$I$13+IF(AND(D96=0,D97=1),'Actuarial Assumption'!$I$12*$L$4,0)) -> 6.948763526e-60 | W97: 4.454335594e-61 | X97: 6.948763526e-61 | Y97: =IF(D97=0,1/MAX($E$8:$E$98)*IF(Plan!$I$23=1,$N$4,$O$4)/IF(Plan!$I$23=1,R97,T97)/O97,0) -> 0 | Z97: =I97*MIN(E97,$B$4+DynYear)*Plan!$H$16*G97 -> 103103.6334 | AA97: =(1-$J$4)^MAX(0,Plan!$H$19-IndLiab!$B$4)*(D97*Z97*O97*'Actuarial Assumption'!$I$13+IF(AND(D96=0,D97=1),'Actuarial Assumption'!$I$12*$K$4,0))*IF(B97<DynYear,0,1) -> 4.454335594e-60 | AB97: 4.454335594e-61 | AC97: 0.04351200668 | AD97: 0.1003627381 | AE97: 0
A98: 2106 | B98: 90 | C98: 140 | D98: 1 | E98: 39 | F98: =F97*(1+INDEX('Scn Y'!$A$5:$AR$106,IF(Scn>0,1,0)*51+MIN(51,IndLiab!B98+1),40)/100*$I$4) -> 22.02848866 | G98: =IF(D98<1,1,G97*(1+MIN(Plan!$H$18,Plan!$H$17*INDEX('Scn Y'!$A$5:$AR$106,IF(Scn>0,1,0)*51+MIN(IndLiab!B98,50),11)/100))) -> 2.928432822 | H98: 152778.869 | I98: =IF(D98=1,I97,IF(B98<Plan!$H$15,-PV(Plan!$H$14,MAX(0,Plan!$H$15-B98-1),IndLiab!$H$8,,0)+SUM($H$8:H98),SUM(OFFSET($H$8,COUNT($H$8:H98)-Plan!$H$15,0,Plan!$H$15)))/MIN(E98,Plan!$H$15)) -> 142840.0822 | J98: =I98*$E$8*Plan!$H$16*G98 -> 104574.3962 | K98: =I98*E98*Plan!$H$16*G98 -> 163136.0581 | L98: =MIN(1,VLOOKUP(MIN(110,C98),'Actuarial Assumption'!$A$4:$C$115,IF(IndLiab!$F$4="M",2,3),FALSE)*Mort_S) -> 1 | M98: =IF(E95="M",'Actuarial Assumption'!$E$21*MI_S,'Actuarial Assumption'!$F$21*MI_S) -> 0.01 | N98: 0.99 | O98: 4.800278715e-67 | P98: =P97/(1+Plan!$H$20) -> 0.02930889622 | Q98: =IF(Plan!$C$7=1,CurveFitting!AM97,CurveFitting!AS97) -> 0.03711100436 | R98: 0.05289234206 | S98: 0.04515535252 | T98: 0.02177606638 | U98: =(1-$J$4)^MAX(0,Plan!$H$19-IndLiab!$B$4)*(D98*J98*O98*'Actuarial Assumption'!$I$13+IF(AND(D97=0,D98=1),'Actuarial Assumption'!$I$12*$K$4,0)) -> 4.517876234e-62 | V98: =(1-$J$4)^MAX(0,Plan!$H$19-IndLiab!$B$4)*(D98*K98*O98*'Actuarial Assumption'!$I$13+IF(AND(D97=0,D98=1),'Actuarial Assumption'!$I$12*$L$4,0)) -> 7.047886926e-62 | W98: 4.517876234e-63 | X98: 7.047886926e-63 | Y98: =IF(D98=0,1/MAX($E$8:$E$98)*IF(Plan!$I$23=1,$N$4,$O$4)/IF(Plan!$I$23=1,R98,T98)/O98,0) -> 0 | Z98: =I98*MIN(E98,$B$4+DynYear)*Plan!$H$16*G98 -> 104574.3962 | AA98: =(1-$J$4)^MAX(0,Plan!$H$19-IndLiab!$B$4)*(D98*Z98*O98*'Actuarial Assumption'!$I$13+IF(AND(D97=0,D98=1),'Actuarial Assumption'!$I$12*$K$4,0))*IF(B98<DynYear,0,1) -> 4.517876234e-62 | AB98: 4.517876234e-63 | AC98: 0.04352880618 | AD98: 0.09617629867 | AE98: 0
AC99: 0.04354505513

Sheet Liability (hidden)
A1: ="INSTRUCTIONS: This sheet is used to aggregate liability cash flows from "&TEXT(Plan!B3,"[$-409]mmmm d, yyyy;@") -> INSTRUCTIONS: This sheet is used to aggregate liability cash flows from December 31, 2016
A2: Index Page
A3: Pension Liability | B3: Accumulated Liability | C3: Projected Liability | D3: Multiple
A4: =Plan!B10 -> 10000000 | B4: 10000000 | C4: 18706518.73 | D4: 55.66859801
F5: PBO | G5: =SUMPRODUCT($B$8:$B$98,G8:G98) -> 10000000 | H5: =SUMPRODUCT($B$8:$B$98,H8:H98) -> 9507487.57 | I5: =SUMPRODUCT($B$8:$B$98,I8:I98) -> 10530436.87 | BQ5: Change size | BR5: 100 | BS5: bps
B6: Benefit Payment | F6: TPBO | G6: =SUMPRODUCT($C$8:$C$98,G8:G98) -> 18706518.73 | H6: =SUMPRODUCT($C$8:$C$98,H8:H98) -> 17509743.6 | I6: 20011748.02 | J6: Interest Rate Up | N6: Interest Rate Down | R6: Credit Spread Up | V6: Credit Spread Down | Z6: Inflation Rate Up | AD6: Inflation Rate Down | AH6: GDP Growth Rate Up | AL6: GDP Growth Rate Down | AP6: Short Term IR up | AT6: Short Term IR down | AX6: Long Term IR up | BB6: Long Term IR down | BM6: Percentage | BO6: Dollar Amount | BQ6: Total Impact
A7: Year | B7: Accumulated | C7: Projected | D7: Plan Cost | E7: Dynamic PBO | F7: Disount Rate | G7: Discount Factor | H7: ="DF ("&ShockScn!C3&"bps+)" -> DF (25bps+) | I7: ="DF ("&ShockScn!C3&"bps-)" -> DF (25bps-) | J7: Accumulated | K7: Projected | L7: Plan Cost | M7: Dynamic PBO | N7: Accumulated | O7: Projected | P7: Plan Cost | Q7: Dynamic PBO | R7: Accumulated | S7: Projected | T7: Plan Cost | U7: Dynamic PBO | V7: Accumulated | W7: Projected | X7: Plan Cost | Y7: Dynamic PBO | Z7: Accumulated | AA7: Projected | AB7: Plan Cost | AC7: Dynamic PBO | AD7: Accumulated | AE7: Projected | AF7: Plan Cost | AG7: Dynamic PBO | AH7: Accumulated | AI7: Projected | AJ7: Plan Cost | AK7: Dynamic PBO | AL7: Accumulated | AM7: Projected | AN7: Plan Cost | AO7: Dynamic PBO | AP7: Accumulated | AQ7: Projected | AR7: Plan Cost | AS7: Dynamic PBO | AT7: Accumulated | AU7: Projected | AV7: Plan Cost | AW7: Dynamic PBO | AX7: Accumulated | AY7: Projected | AZ7: Plan Cost | BA7: Dynamic ABO | BB7: Accumulated | BC7: Projected | BD7: Plan Cost | BE7: Dynamic PBO | BH7: PBO | BI7: TPBO | BK7: Factor | BL7: Sensitivity Measure | BM7: PBO | BN7: TPBO | BO7: PBO | BP7: TPBO | BQ7: PBO | BR7: TPBO
A8: =YEAR(ValDate) -> 2016 | B8: 235562.1331 | C8: 235562.1331 | D8: 0 | E8: 10000000 | G8: 1 | H8: 1 | I8: 1 | J8: 235562.1331 | K8: 235562.1331 | L8: 0 | M8: 9530026.433 | N8: 235562.1331 | O8: 235562.1331 | P8: 0 | Q8: 10501897.85 | R8: 235562.1331 | S8: 235562.1331 | T8: 0 | U8: 9520510.519 | V8: 235562.1331 | W8: 235562.1331 | X8: 0 | Y8: 10514050.57 | Z8: 235562.1331 | AA8: 235562.1331 | AB8: 0 | AC8: 10010045.01 | AD8: 235562.1331 | AE8: 235562.1331 | AF8: 0 | AG8: 9989967.67 | AH8: 235562.1331 | AI8: 235562.1331 | AJ8: 0 | AK8: 10016685.86 | AL8: 235562.1331 | AM8: 235562.1331 | AN8: 0 | AO8: 9983371.606 | AP8: 235562.1331 | AQ8: 235562.1331 | AR8: 0 | AS8: 9845757.587 | AT8: 235562.1331 | AU8: 235562.1331 | AV8: 0 | AW8: 10157214.1 | AX8: 235562.1331 | AY8: 235562.1331 | AZ8: 0 | BA8: 9678122.459 | BB8: 235562.1331 | BC8: 235562.1331 | BD8: 0 | BE8: 10338065.45 | BG8: =ShockScn!B5 -> Base | BH8: 10000000 | BI8: 18706518.73 | BK8: Interest Rate | BL8: Duration | BM8: =(BH10-BH9)/BH8/(2*ShockScn!$C$3/10000) -> 19.43742837 | BN8: =(BI10-BI9)/BI8/(2*ShockScn!$C$3/10000) -> 24.39546623 | BO8: =BM8*$B$4 -> 194374283.7 | BP8: =BN8*$C$4 -> 456354245.8 | BQ8: =BO8*$BR$5/10000+BO9*($BR$5/10000)^2 -> 2199137.118 | BR8: =BP8*$BR$5/10000+BP9*($BR$5/10000)^2 -> 5249489.004
A9: =A8+1 -> 2017 | B9: 232239.6522 | C9: 232239.6522 | D9: 289812.6048 | E9: 9489954.694 | F9: =IndLiab!Q9 -> 0.0114 | G9: =G8/(1+F9) -> 0.9887284952 | H9: =H8/(1+F9+0.25%) -> 0.9862905612 | I9: =I8/(1+F9-0.25%) -> 0.9911785112 | J9: 232239.6522 | K9: 232239.6522 | L9: 399544.3028 | M9: 9169820.621 | N9: 232239.6522 | O9: 232239.6522 | P9: 454099.951 | Q9: 9826745.01 | R9: 232239.6522 | S9: 232239.6522 | T9: 397529.4072 | U9: 9363252.403 | V9: 232239.6522 | W9: 232239.6522 | X9: 456457.4685 | Y9: 9619701.925 | Z9: 232239.6522 | AA9: 232239.6522 | AB9: 426327.3687 | AC9: 9565675.753 | AD9: 232239.6522 | AE9: 232239.6522 | AF9: 425306.7492 | AG9: 9415113.984 | AH9: 232239.6522 | AI9: 232239.6522 | AJ9: 427005.025 | AK9: 9539454.051 | AL9: 232239.6522 | AM9: 232239.6522 | AN9: 424633.6872 | AO9: 9440848.744 | AP9: 232239.6522 | AQ9: 232239.6522 | AR9: 419066.2889 | AS9: 9335194.612 | AT9: 232239.6522 | AU9: 232239.6522 | AV9: 432687.9646 | AW9: 9648272.053 | AX9: 232239.6522 | AY9: 232239.6522 | AZ9: 405951.0714 | BA9: 9320601.873 | BB9: 232239.6522 | BC9: 232239.6522 | BD9: 446856.5919 | BE9: 9664199.987 | BG9: =ShockScn!B6 -> IR level up | BH9: 9530026.433 | BI9: 17608504.77 | BL9: Convexity | BM9: =(BH9+BH10-2*BH8)/BH8/(2*(ShockScn!$C$3/10000)^2) -> 255.3942803 | BN9: =(BI9+BI10-2*BI8)/BI8/(2*(ShockScn!$C$3/10000)^2) -> 366.6885087 | BO9: =BM9*$B$4 -> 2553942803 | BP9: =BN9*$C$4 -> 6859465455
A10: =A9+1 -> 2018 | B10: 231178.037 | C10: 231178.037 | D10: 296096.3102 | E10: 9762166.371 | F10: =IndLiab!Q10 -> 0.0149 | G10: 0.9742127255 | H10: =H9/(1+F10+0.25%) -> 0.9694226078 | I10: =I9/(1+F10-0.25%) -> 0.9790384347 | J10: 231276.549 | K10: 231276.549 | L10: 408195.4455 | M10: 9513689.724 | N10: 231079.564 | O10: 231079.564 | P10: 460732.0961 | Q10: 10020528.81 | R10: 230925.4164 | S10: 230925.4164 | T10: 405656.7169 | U10: 9909033.001 | V10: 231430.9008 | W10: 231430.9008 | X10: 463675.4079 | Y10: 9618075.924 | Z10: 231175.531 | AA10: 231175.531 | AB10: 433973.7506 | AC10: 9796043.421 | AD10: 231180.5387 | AE10: 231180.5387 | AF10: 433099.1672 | AG10: 9728467.369 | AH10: 231261.9489 | AI10: 231261.9489 | AJ10: 434744.9174 | AK10: 9760412.068 | AL10: 231094.1402 | AM10: 231094.1402 | AN10: 432332.867 | AO10: 9763922.051 | AP10: 231358.789 | AQ10: 231358.789 | AR10: 427704.6659 | AS10: 9612254.336 | AT10: 230997.4153 | AU10: 230997.4153 | AV10: 439456.9247 | AW10: 9915454.681 | AX10: 231095.8547 | AY10: 231095.8547 | AZ10: 413732.2306 | BA10: 9661270.438 | BB10: 231260.2434 | BC10: 231260.2434 | BD10: 454493.2145 | BE10: 9864796.168 | BG10: =ShockScn!B7 -> IR level down | BH10: 10501897.85 | BI10: 19890276 | BK10: Credit Spread | BL10: Duration | BM10: =(BH12-BH11)/BH8/(2*ShockScn!$C$3/10000) -> 19.8708011 | BN10: =(BI12-BI11)/BI8/(2*ShockScn!$C$3/10000) -> 25.66156797 | BO10: 198708011 | BP10: 480038601.7 | BQ10: =BO10*$BR$5/10000+BO11*($BR$5/10000)^2 -> 2263568.85 | BR10: =BP10*$BR$5/10000+BP11*($BR$5/10000)^2 -> 5573287.783
A11: 2019 | B11: 229886.1688 | C11: 229886.1688 | D11: 309196.7802 | E11: 10371640.8 | F11: =IndLiab!Q11 -> 0.0176 | G11: 0.9573631344 | H11: 0.9503211527 | I11: 0.9644748642 | J11: 230093.5147 | K11: 230093.5147 | L11: 418289.5759 | M11: 10156203.21 | N11: 229679.0034 | O11: 229679.0034 | P11: 468798.0246 | Q11: 10594101.48 | R11: 229563.0055 | S11: 229563.0055 | T11: 415164.384 | U11: 10623674.4 | V11: 230209.7519 | W11: 230209.7519 | X11: 472391.4162 | Y11: 10127675.54 | Z11: 229874.3786 | AA11: 229874.3786 | AB11: 443046.6661 | AC11: 10388135.5 | AD11: 229897.9552 | AE11: 229897.9552 | AF11: 442336.5652 | AG11: 10355187.79 | AH11: 229979.2268 | AI11: 229979.2268 | AJ11: 443924.4027 | AK11: 10350784.67 | AL11: 229793.1331 | AM11: 229793.1331 | AN11: 441463.9732 | AO11: 10392556.34 | AP11: 230169.2464 | AQ11: 230169.2464 | AR11: 437684.2202 | AS11: 10231937.28 | AT11: 229603.4251 | AU11: 229603.4251 | AV11: 447763.7154 | AW11: 10514185.07 | AX11: 229810.5236 | AY11: 229810.5236 | AZ11: 423046.7374 | BA11: 10294316.13 | BB11: 229961.8335 | BC11: 229961.8335 | BD11: 463456.675 | BE11: 10449903.54 | BG11: =ShockScn!B8 -> CS up | BH11: 9520510.519 | BI11: 17554728.58 | BL11: Convexity | BM11: =(BH11+BH12-2*BH8)/BH8/(2*(ShockScn!$C$3/10000)^2) -> 276.4887395 | BN11: =(BI11+BI12-2*BI8)/BI8/(2*(ShockScn!$C$3/10000)^2) -> 413.1724225 | BO11: 2764887395 | BP11: 7729017659
A12: 2020 | B12: 228220.3872 | C12: 228220.3872 | D12: 325890.3869 | E12: 11133657.75 | F12: =IndLiab!Q12 -> 0.0199 | G12: 0.938683336 | H12: 0.9295003449 | I12: 0.947980012 | J12: 228530.7115 | K12: 228530.7115 | L12: 429679.5466 | M12: 10934128.91 | N12: 227910.4749 | O12: 227910.4749 | P12: 478294.4945 | Q12: 11338812.59 | R12: 227891.7387 | S12: 227891.7387 | T12: 425987.0542 | U12: 11368821.49 | V12: 228549.4745 | W12: 228549.4745 | X12: 482509.3172 | Y12: 10905421.07 | Z12: 228201.2877 | AA12: 228201.2877 | AB12: 453486.8878 | AC12: 11143588.55 | AD12: 228239.484 | AE12: 228239.484 | AF12: 452918.168 | AG12: 11123741.34 | AH12: 228316.9254 | AI12: 228316.9254 | AJ12: 454463.1973 | AK12: 11110241.99 | AL12: 228123.8746 | AM12: 228123.8746 | AN12: 451947.2416 | AO12: 11157147.91 | AP12: 228568.3553 | AQ12: 228568.3553 | AR12: 448884.0033 | AS12: 11009413.65 | AT12: 227872.9334 | AU12: 227872.9334 | AV12: 457568.8275 | AW12: 11260059.56 | AX12: 228182.7948 | AY12: 228182.7948 | AZ12: 433785.5229 | BA12: 11057069.03 | BB12: 228257.98 | BC12: 228257.98 | BD12: 473700.1581 | BE12: 11211062.58 | BG12: =ShockScn!B9 -> CS down | BH12: 10514050.57 | BI12: 19954921.59 | BK12: Inflation | BL12: Duration | BM12: =(BH14-BH13)/BH8/(2*ShockScn!$C$3/10000) -> -0.4015468794 | BN12: =(BI14-BI13)/BI8/(2*ShockScn!$C$3/10000) -> -0.4412298215 | BO12: -4015468.794 | BP12: -8253873.919 | BQ12: =BO12*$BR$5/10000+BO13*($BR$5/10000)^2 -> -40053.21834 | BR12: =BP12*$BR$5/10000+BP13*($BR$5/10000)^2 -> -82322.55564
A13: 2021 | B13: 381307.6674 | C13: 420077.368 | D13: 278785.7845 | E13: 11841062.46 | F13: =IndLiab!Q13 -> 0.0222 | G13: 0.9182971395 | H13: 0.9070950961 | I13: 0.9296655997 | J13: 381975.8847 | K13: 420812.5375 | L13: 369799.1979 | M13: 11654449.7 | N13: 380640.7401 | O13: 419343.6372 | P13: 413182.7116 | Q13: 12032339.71 | R13: 380367.1644 | S13: 418977.5855 | T13: 365901.9872 | U13: 11993804.55 | V13: 382251.5445 | W13: 421181.2751 | X13: 417626.7283 | Y13: 11691371.27 | Z13: 381282.2606 | AA13: 420052.1022 | AB13: 391001.5837 | AC13: 11849627.44 | AD13: 381333.0711 | AE13: 420102.6304 | AF13: 390603.4212 | AG13: 11832507.16 | AH13: 381482.8829 | AI13: 420272.2827 | AJ13: 392023.7873 | AK13: 11823618.06 | AL13: 381132.5138 | AM13: 419882.5244 | AN13: 389586.7299 | AO13: 11858549.67 | AP13: 381886.4196 | AQ13: 420702.8969 | AR13: 387374.0164 | AS13: 11736705.2 | AT13: 380729.8396 | AU13: 419452.8295 | AV13: 394264.5558 | AW13: 11946909.26 | AX13: 381396.9838 | AY13: 420186.8279 | AZ13: 373056.2 | BA13: 11757677.7 | BB13: 381218.4196 | BC13: 419967.9955 | BD13: 409536.9473 | BE13: 11925330 | BG13: =ShockScn!B10 -> Inflation up | BH13: 10010045.01 | BI13: 18727166.92 | BL13: Convexity | BM13: =(BH13+BH14-2*BH8)/BH8/(2*(ShockScn!$C$3/10000)^2) -> 0.1014695961 | BN13: =(BI13+BI14-2*BI8)/BI8/(2*(ShockScn!$C$3/10000)^2) -> 0.1155658873 | BO13: 1014695.961 | BP13: 2161835.434
A14: 2022 | B14: 277942.4842 | C14: 291452.3745 | D14: 292775.5021 | E14: 12314091.66 | F14: =IndLiab!Q14 -> 0.0238 | G14: 0.8969497358 | H14: 0.8838498451 | I14: 0.9102767059 | J14: 278475.7213 | K14: 292000.2318 | L14: 381288.9486 | M14: 12143039.09 | N14: 277410.3042 | O14: 290905.5908 | P14: 423378.2201 | Q14: 12488907.66 | R14: 277455.1788 | S14: 290911.9218 | T14: 376951.4916 | U14: 12374224.36 | V14: 278431.061 | W14: 291994.3407 | X14: 428296.1623 | Y14: 12254570.33 | Z14: 277912.9379 | AA14: 291423.4292 | AB14: 401838.3758 | AC14: 12323278.52 | AD14: 277972.0302 | AE14: 291481.3192 | AF14: 401552.0459 | AG14: 12304914.97 | AH14: 278063.3708 | AI14: 291579.6912 | AJ14: 402928.5231 | AK14: 12305072.04 | AL14: 277821.6339 | AM14: 291325.0967 | AN14: 400467.4883 | AO14: 12323124.8 | AP14: 278413.7304 | AQ14: 291935.7014 | AR14: 398653.4754 | AS14: 12230175.61 | AT14: 277472.0658 | AU14: 290969.887 | AV14: 404762.9369 | AW14: 12398966.66 | AX14: 278004.3636 | AY14: 291516.7911 | AZ14: 384182.6696 | BA14: 12226027.97 | BB14: 277880.6114 | BC14: 291387.9647 | BD14: 420152.3396 | BE14: 12403081.18 | BG14: =ShockScn!B11 -> Inflation down | BH14: 9989967.67 | BI14: 18685897.55 | BK14: GDP | BL14: Duration | BM14: =(BH16-BH15)/BH8/(2*ShockScn!$C$3/10000) -> -0.6662849888 | BN14: =(BI16-BI15)/BI8/(2*ShockScn!$C$3/10000) -> -1.002278035 | BO14: -6662849.888 | BP14: -18749132.82 | BQ14: =BO14*$BR$5/10000+BO15*($BR$5/10000)^2 -> -66168.81053 | BR14: =BP14*$BR$5/10000+BP15*($BR$5/10000)^2 -> -185826.7409
A15: 2023 | B15: 275498.984 | C15: 289075.0037 | D15: 306247.3331 | E15: 12831038.36 | F15: =IndLiab!Q15 -> 0.0254 | G15: 0.8747315543 | H15: 0.8598597579 | I15: 0.8898980407 | J15: 276107.0099 | K15: 289701.6724 | L15: 393826.0665 | M15: 12680486.22 | N15: 274892.3318 | O15: 288449.7348 | P15: 434723.9506 | Q15: 12984454.24 | R15: 275032.068 | S15: 288555.5706 | T15: 389077.8156 | U15: 12819986.45 | V15: 275967.1095 | W15: 289595.8826 | X15: 440078.3819 | Y15: 12842126.46 | Z15: 275463.4873 | AA15: 289039.7981 | AB15: 413761.3539 | AC15: 12840916.91 | AD15: 275534.4817 | AE15: 289110.2101 | AF15: 413601.6588 | AG15: 12821170.92 | AH15: 275619.112 | AI15: 289201.6065 | AJ15: 414907.6315 | AK15: 12829346.47 | AL15: 275378.8922 | AM15: 288948.4398 | AN15: 412460.9154 | AO15: 12832731.85 | AP15: 276000.9464 | AQ15: 289590.8585 | AR15: 410954.1883 | AS15: 12765773.34 | AT15: 274997.9647 | AU15: 288560.1069 | AV15: 416429.4333 | AW15: 12896899.34 | AX15: 275604.8485 | AY15: 289185.6137 | AZ15: 396424.4642 | BA15: 12745051.4 | BB15: 275393.1525 | BC15: 288964.4282 | BD15: 431838.6011 | BE15: 12917877.53 | BG15: =ShockScn!B12 -> GDP up | BH15: 10016685.86 | BI15: 18753495.59 | BL15: Convexity | BM15: =(BH15+BH16-2*BH8)/BH8/(2*(ShockScn!$C$3/10000)^2) -> 0.4596883593 | BN15: =(BI15+BI16-2*BI8)/BI8/(2*(ShockScn!$C$3/10000)^2) -> 0.8898434579 | BO15: 4596883.593 | BP15: 16645873.31
A16: 2024 | B16: 272582.6446 | C16: 286218.0113 | D16: 319563.7695 | E16: 13326102.28 | F16: =IndLiab!Q16 -> 0.02606666667 | G16: 0.852509474 | H16: 0.8359786349 | I16: 0.8694089693 | J16: 273248.7807 | K16: 286906.14 | L16: 407148.1552 | M16: 13199110.46 | N16: 271918.1664 | O16: 285531.5766 | P16: 446890.4471 | Q16: 13455136.59 | R16: 272119.3369 | S16: 285702.0002 | T16: 402011.6552 | U16: 13275201.17 | V16: 273047.1592 | W16: 286735.4665 | X16: 452652.1967 | Y16: 13377173.58 | Z16: 272542.8116 | AA16: 286178.2273 | AB16: 426502.9938 | AC16: 13335952.26 | AD16: 272622.48 | AE16: 286257.7975 | AF16: 426431.2023 | AG16: 13316262.94 | AH16: 272702.967 | AI16: 286344.9082 | AJ16: 427700.1977 | AK16: 13329154.37 | AL16: 272462.3593 | AM16: 286091.1545 | AN16: 425239.5369 | AO16: 13323050.12 | AP16: 273108.6778 | AQ16: 286759.5069 | AR16: 424029.0304 | AS16: 13276158.31 | AT16: 272057.6548 | AU16: 285677.5775 | AV16: 428921.4565 | AW16: 13376416.24 | AX16: 272722.4718 | AY16: 286364.3614 | AZ16: 409474.0994 | BA16: 13248563.19 | BB16: 272442.8813 | BC16: 286071.7281 | BD16: 444316.8342 | BE16: 13404321.95 | BG16: =ShockScn!B13 -> GDP down | BH16: 9983371.606 | BI16: 18659749.93 | BK16: Short Term IR | BL16: Duration | BM16: =(BH18-BH17)/BH8/(2*ShockScn!$C$3/10000) -> 6.229130169 | BN16: =(BI18-BI17)/BI8/(2*ShockScn!$C$3/10000) -> 6.999618789 | BO16: 62291301.69 | BP16: 130938499.9 | BQ16: =BO16*$BR$5/10000+BO17*($BR$5/10000)^2 -> 646686.4792 | BR16: =BP16*$BR$5/10000+BP17*($BR$5/10000)^2 -> 1362527.415
A17: 2025 | B17: 269119.6714 | C17: 282805.0609 | D17: 333305.442 | E17: 13845317.09 | F17: =IndLiab!Q17 -> 0.02673333333 | G17: 0.8303124544 | H17: 0.8122343183 | I17: 0.8488387763 | J17: 269829.8511 | K17: 283540.029 | L17: 421323.4462 | M17: 13742380.04 | N17: 268411.3943 | O17: 282072.041 | P17: 459947.1398 | Q17: 13949630.87 | R17: 268647.8556 | S17: 282279.7407 | T17: 415823.7786 | U17: 13779951.19 | V17: 269592.7347 | W17: 283331.8715 | X17: 466084.7889 | Y17: 13910965.83 | Z17: 269076.9177 | AA17: 282762.1737 | AB17: 440134.0805 | AC17: 13854383.13 | AD17: 269162.4284 | AE17: 282847.9514 | AF17: 440107.8578 | AG17: 13836259.82 | AH17: 269240.8622 | AI17: 282932.9699 | AJ17: 441376.4962 | AK17: 13850734.68 | AL17: 268998.5194 | AM17: 282677.1938 | AN17: 438871.0613 | AO17: 13839900.17 | AP17: 269664.1493 | AQ17: 283366.3799 | AR17: 437944.7307 | AS17: 13807397.73 | AT17: 268576.323 | AU17: 282244.8932 | AV17: 442310.1064 | AW17: 13883471.26 | AX17: 269285.033 | AY17: 282978.3601 | AZ17: 423402.1288 | BA17: 13779971.76 | BB17: 268954.4034 | BC17: 282631.8598 | BD17: 457654.451 | BE17: 13911143.86 | BG17: =ShockScn!B14 -> Short Term IR up | BH17: 9845757.587 | BI17: 18382493.88 | BL17: Convexity | BM17: =(BH17+BH18-2*BH8)/BH8/(2*(ShockScn!$C$3/10000)^2) -> 23.77346227 | BN17: =(BI17+BI18-2*BI8)/BI8/(2*(ShockScn!$C$3/10000)^2) -> 28.40850108 | BO17: 237734622.7 | BP17: 531424157.4
A18: 2026 | B18: 265046.2583 | C18: 278769.9768 | D18: 348000.9916 | E18: 14423771.39 | F18: =IndLiab!Q18 -> 0.0274 | G18: 0.8081686338 | H18: 0.7886535764 | I18: 0.8282161931 | J18: 265788.8007 | K18: 279539.6602 | L18: 436430.0269 | M18: 14343371.41 | N18: 264305.8236 | O18: 278002.4553 | P18: 473973.7834 | Q18: 14505061.19 | R18: 264560.9423 | S18: 278230.0773 | T18: 430595.1706 | U18: 14358043.87 | V18: 265532.8839 | W18: 279311.4367 | X18: 480453.2964 | Y18: 14489764.99 | Z18: 265001.6764 | AA18: 278725.1233 | AB18: 454735.7401 | AC18: 14431601.88 | AD18: 265090.8443 | AE18: 278814.8344 | AF18: 454708.6317 | AG18: 14415947.26 | AH18: 265168.4119 | AI18: 278899.0095 | AJ18: 456017.0655 | AK18: 14430078.42 | AL18: 264924.1455 | AM18: 278640.9881 | AN18: 453433.0957 | AO18: 14417465.42 | AP18: 265603.8583 | AQ18: 279345.6209 | AR18: 452777.7522 | AS18: 14395380.45 | AT18: 264489.8592 | AU18: 278195.5583 | AV18: 456676.92 | AW18: 14452315.54 | AX18: 265230.807 | AY18: 278963.6106 | AZ18: 438289.3088 | BA18: 14371550.98 | BB18: 264861.8301 | BC18: 278576.4695 | BD18: 471928.8294 | BE18: 14476302.95 | BG18: =ShockScn!B15 -> Short Term IR down | BH18: 10157214.1 | BI18: 19037186.38 | BK18: Long Term IR | BL18: Duration | BM18: =(BH20-BH19)/BH8/(2*ShockScn!$C$3/10000) -> 13.19885972 | BN18: =(BI20-BI19)/BI8/(2*ShockScn!$C$3/10000) -> 17.38146754 | BO18: 131988597.2 | BP18: 325146748 | BQ18: =BO18*$BR$5/10000+BO19*($BR$5/10000)^2 -> 1449389.208 | BR18: =BP18*$BR$5/10000+BP19*($BR$5/10000)^2 -> 3621728.781
A19: 2027 | B19: 260312.5 | C19: 274060.7498 | D19: 364010.0714 | E19: 15081168.81 | F19: =IndLiab!Q19 -> 0.02774 | G19: 0.7863551422 | H19: 0.7655047138 | I19: 0.8078266485 | J19: 261077.5354 | K19: 274854.9206 | L19: 452439.689 | M19: 15020762.8 | N19: 259549.7395 | O19: 273268.916 | P19: 488877.7103 | Q19: 15142135.34 | R19: 259814.6679 | S19: 273507.274 | T19: 446276.8493 | U19: 15019138.87 | V19: 260811.7052 | W19: 274615.8576 | X19: 495688.1203 | Y19: 15143410.67 | Z19: 260266.8731 | AA19: 274014.7429 | AB19: 470225.7484 | AC19: 15087656.41 | AD19: 260358.1316 | AE19: 274106.7613 | AF19: 470197.6989 | AG19: 15074685.44 | AH19: 260435.1805 | AI19: 274190.4619 | AJ19: 471548.1069 | AK19: 15087805.72 | AL19: 260189.8622 | AM19: 273931.0837 | AN19: 468881.3086 | AO19: 15074533.01 | AP19: 260878.0103 | AQ19: 274645.3359 | AR19: 468494.7257 | AS19: 15060743.36 | AT19: 259748.2462 | AU19: 273477.4473 | AV19: 471936.8481 | AW19: 15101696.32 | AX19: 260511.5875 | AY19: 274269.8829 | AZ19: 454082.8756 | BA19: 15041054.74 | BB19: 260113.5569 | BC19: 273851.7682 | BD19: 487074.5118 | BE19: 15121472.94 | BG19: =ShockScn!B16 -> Long Term IR up | BH19: 9678122.459 | BI19: 17916793.19 | BL19: Convexity | BM19: =(BH19+BH20-2*BH8)/BH8/(2*(ShockScn!$C$3/10000)^2) -> 129.5032359 | BN19: =(BI19+BI20-2*BI8)/BI8/(2*(ShockScn!$C$3/10000)^2) -> 197.9316978 | BO19: 1295032359 | BP19: 3702613011
A20: 2028 | B20: 254881.0357 | C20: 268638.0632 | D20: 381523.9945 | E20: 15823666.69 | F20: =IndLiab!Q20 -> 0.02808 | G20: 0.7648773852 | H20: 0.7427901898 | I20: 0.7876778491 | J20: 255659.9195 | K20: 269447.775 | L20: 469441.2636 | M20: 15780538.87 | N20: 254104.5578 | O20: 267830.8268 | P20: 504745.6672 | Q20: 15867144.26 | R20: 254375.1245 | S20: 268075.6506 | T20: 462958.8226 | U20: 15763155.07 | V20: 255388.3715 | W20: 269202.1663 | X20: 511874.9132 | Y20: 15884359.8 | Z20: 254834.9231 | AA20: 268591.4808 | AB20: 486691.9074 | AC20: 15828946.57 | AD20: 254927.1534 | AE20: 268684.6506 | AF20: 486662.8556 | AG20: 15818389.48 | AH20: 255003.4807 | AI20: 268767.6666 | AJ20: 488057.6064 | AK20: 15830696.3 | AL20: 254758.6347 | AM20: 268508.5073 | AN20: 485303.3131 | AO20: 15816638.29 | AP20: 255449.4 | AQ20: 269226.3694 | AR20: 485182.7955 | AS20: 15810369.93 | AT20: 254313.9666 | AU20: 268051.082 | AV20: 488178.3073 | AW20: 15837032.34 | AX20: 255091.0817 | AY20: 268858.9797 | AZ20: 470872.3229 | BA20: 15793752.24 | BB20: 254671.155 | BC20: 268417.3204 | BD20: 503177.6466 | BE20: 15853694.54 | BG20: =ShockScn!B17 -> Long Term IR down | BH20: 10338065.45 | BI20: 19542526.93 | BK20: Interest Rate (Traditional) | BL20: Duration | BM20: =(I5-H5)/2/(ShockScn!$C$3/10000)/G5 -> 20.45898606 | BN20: =(I6-H6)/2/(ShockScn!$C$3/10000)/G6 -> 26.75008062 | BO20: 204589860.6 | BP20: 500400884.1 | BQ20: =BO20*$BR$5/10000+BO21*($BR$5/10000)^2 -> 2349294.148 | BR20: =BP20*$BR$5/10000+BP21*($BR$5/10000)^2 -> 5871642.175
A21: 2029 | B21: 248725.3488 | C21: 262473.4408 | D21: 400624.1149 | E21: 16650663.2 | F21: =IndLiab!Q21 -> 0.02842 | G21: 0.7437402863 | H21: 0.72051196 | I21: 0.7677770675 | J21: 249510.2323 | K21: 263290.5769 | L21: 487536.9298 | M21: 16622434.76 | N21: 247942.9672 | O21: 261658.8828 | P21: 521677.464 | Q21: 16679111.62 | R21: 248216.8883 | S21: 261907.8941 | T21: 480744.5744 | U21: 16587062.64 | V21: 249235.2678 | W21: 263040.717 | X21: 529112.2685 | Y21: 16714451.2 | Z21: 248679.1818 | AA21: 262426.7264 | AB21: 504235.2225 | AC21: 16654982.01 | AD21: 248771.5213 | AE21: 262520.1606 | AF21: 504205.1007 | AG21: 16646346.04 | AH21: 248846.6813 | AI21: 262602.0253 | AJ21: 505646.7789 | AK21: 16658431.23 | AL21: 248604.0611 | AM21: 262344.9047 | AN21: 502799.899 | AO21: 16642896.73 | AP21: 249291.7729 | AQ21: 263060.5159 | AR21: 502942.2336 | AS21: 16644077.22 | AT21: 248160.2424 | AU21: 261887.7153 | AV21: 505502.9924 | AW21: 16657296.69 | AX21: 248943.307 | AY21: 262702.9833 | AZ21: 488760.569 | BA21: 16628968.61 | BB21: 248507.5739 | BC21: 262244.0913 | BD21: 520337.3707 | BE21: 16672425.68 | BL21: Convexity | BM21: =(I5+H5-2*G5)/2/(ShockScn!$C$3/10000)^2/G5 -> 303.3955416 | BN21: =(I6+H6-2*G6)/2/(ShockScn!$C$3/10000)^2/G6 -> 463.8133618 | BO21: 3033955416 | BP21: 8676333338
A22: 2030 | B22: 241826.1846 | C22: 255545.508 | D22: 421350.5638 | E22: 17559837.79 | F22: =IndLiab!Q22 -> 0.02876 | G22: 0.7229482934 | H22: 0.6986714893 | I22: 0.7481311437 | J22: 242609.7696 | K22: 256362.5217 | L22: 506843.7369 | M22: 17544670.31 | N22: 241045.1633 | O22: 254731.1398 | P22: 539787.3392 | Q22: 17575148.22 | R22: 241320.2915 | S22: 254982.2112 | T22: 499752.6231 | U22: 17488756.87 | V22: 242333.5529 | W22: 256110.554 | X22: 547513.05 | Y22: 17631143.85 | Z22: 241780.3389 | AA22: 255499.0466 | AB22: 522971.3468 | AC22: 17563449.19 | AD22: 241872.036 | AE22: 255591.9749 | AF22: 522940.0801 | AG22: 17556227.38 | AH22: 241945.558 | AI22: 255672.1939 | AJ22: 524431.5142 | AK22: 17568718.19 | AL22: 241706.8562 | AM22: 255418.8706 | AN22: 521486.4767 | AO22: 17550959.59 | AP22: 242386.2089 | AQ22: 256126.7475 | AR22: 521887.8767 | AS22: 17559708.82 | AT22: 241267.485 | AU22: 254965.6268 | AV22: 524027.3289 | AW22: 17560001.55 | AX22: 242049.224 | AY22: 255780.7421 | AZ22: 507865.4869 | BA22: 17544766 | BB22: 241603.3433 | BC22: 255310.4827 | BD22: 538667.1679 | BE22: 17574951.03
A23: 2031 | B23: 625143.7065 | C23: 857756.102 | D23: 344173.5048 | E23: 18449357.56 | F23: =IndLiab!Q23 -> 0.0291 | G23: 0.7025053866 | H23: 0.6772697647 | I23: 0.7287464871 | J23: 626959.5541 | K23: 860188.9442 | L23: 419505.3208 | M23: 18445872.2 | N23: 623333.1337 | O23: 855330.1236 | P23: 448630.0017 | Q23: 18452942.66 | R23: 622223.3846 | S23: 853422.4756 | T23: 413297.4558 | U23: 18368418.39 | V23: 628077.373 | W23: 862109.9936 | X23: 455413.8169 | Y23: 18530580.89 | Z23: 625113.685 | AA23: 857733.8856 | AB23: 433763.4918 | AC23: 18452448.31 | AD23: 625173.7227 | AE23: 857778.3067 | AF23: 433738.0292 | AG23: 18446267.41 | AH23: 625567.4906 | AI23: 858359.2159 | AJ23: 435146.2011 | AK23: 18459551.7 | AL23: 624720.1353 | AM23: 857153.2988 | AN23: 432361.8876 | AO23: 18439166.54 | AP23: 626346.4233 | AQ23: 859346.2531 | AR23: 432897.0248 | AS23: 18455374.12 | AT23: 623943.3483 | AU23: 856168.9278 | AV23: 434607.2054 | AW23: 18443369.68 | AX23: 625755.6473 | AY23: 858597.2155 | AZ23: 420322.1106 | BA23: 18439833.12 | BB23: 624532.3053 | BC23: 856915.7245 | BD23: 447734.6371 | BE23: 18458907.96
A24: 2032 | B24: 376751.5055 | C24: 474898.1012 | D24: 361687.7791 | E24: 18822954.45 | F24: =IndLiab!Q24 -> 0.02944 | G24: 0.6824150865 | H24: 0.6563073092 | I24: 0.7096290797 | J24: 377899.6261 | K24: 476298.139 | L24: 435731.7497 | M24: 18828475.53 | N24: 375606.9296 | O24: 473502.234 | P24: 463940.8607 | Q24: 18817507.63 | R24: 375331.1063 | S24: 472898.9934 | T24: 429310.2675 | U24: 18734620.94 | V24: 378177.9072 | W24: 476906.0249 | X24: 470926.9648 | Y24: 18911625.45 | Z24: 376714.0993 | AA24: 474863.7343 | AB24: 449554.155 | AC24: 18825645.01 | AD24: 376788.9135 | AE24: 474932.4672 | AF24: 449527.7403 | AG24: 18820264.24 | AH24: 376982.6573 | AI24: 475202.5893 | AJ24: 450985.012 | AK24: 18834111.75 | AL24: 376520.4616 | AM24: 474593.7601 | AN24: 448103.6735 | AO24: 18811801.09 | AP24: 377532.0263 | AQ24: 475837.9146 | AR24: 448836.2661 | AS24: 18833743.35 | AT24: 375972.6598 | AU24: 473960.2108 | AV24: 450247.7281 | AW24: 18812191.4 | AX24: 377118.334 | AY24: 475357.4025 | AZ24: 436405.2141 | BA24: 18817670.55 | BB24: 376385.0063 | BC24: 474439.2041 | BD24: 463201.2242 | BE24: 18828254.59
A25: 2033 | B25: 366045.7184 | C25: 463220.141 | D25: 380424.6707 | E25: 19540532.64 | F25: =IndLiab!Q25 -> 0.02978 | G25: 0.6626804623 | H25: 0.6357841954 | I25: 0.6907844792 | J25: 367177.9177 | K25: 464607.2758 | L25: 453011.6743 | M25: 19555061.83 | N25: 364917.0643 | O25: 461837.1998 | P25: 480283.6046 | Q25: 19526069.16 | R25: 364645.0222 | S25: 461245.244 | T25: 446391.9198 | U25: 19443038 | V25: 367452.3808 | W25: 465203.8049 | X25: 487453.9222 | Y25: 19638429.14 | Z25: 366009.1089 | AA25: 463186.2033 | AB25: 466386.1208 | AC25: 19542911.79 | AD25: 366082.3297 | AE25: 463254.0779 | AF25: 466358.6883 | AG25: 19538153.64 | AH25: 366272.1688 | AI25: 463519.4626 | AJ25: 467868.0411 | AK25: 19552880.58 | AL25: 365819.3748 | AM25: 462920.9655 | AN25: 464883.7933 | AO25: 19528189.63 | AP25: 366810.071 | AQ25: 464144.8198 | AR25: 465807.5885 | AS25: 19556189.66 | AT25: 365283.0178 | AU25: 462297.3684 | AV25: 466938.8781 | AW25: 19524902.92 | AX25: 366412.7876 | AY25: 463681.6621 | AZ25: 453550.1817 | BA25: 19539390.94 | BB25: 365678.9899 | BC25: 462759.0404 | BD25: 479689.4604 | BE25: 19541685.02
A26: 2034 | B26: 354305.1488 | C26: 450299.0701 | D26: 400488.6793 | E26: 20321594.7 | F26: =IndLiab!Q26 -> 0.03012 | G26: 0.6433041416 | H26: 0.6157000595 | I26: 0.6722178229 | J26: 355413.7855 | K26: 451664.1736 | L26: 471446.2537 | M26: 20344531.87 | N26: 353200.0216 | O26: 448938.141 | P26: 497757.0029 | Q26: 20298725.03 | R26: 352928.349 | S26: 448353.9731 | T26: 464645.8152 | U26: 20215437.06 | V26: 355687.8599 | W26: 452252.8582 | X26: 505091.3053 | Y26: 20428214.46 | Z26: 354269.7331 | AA26: 450266.0093 | AB26: 484359.37 | AC26: 20323704.31 | AD26: 354340.5661 | AE26: 450332.13 | AF26: 484330.8475 | AG26: 20319485.08 | AH26: 354526.0931 | AI26: 450592.222 | AJ26: 485895.5169 | AK26: 20335087.18 | AL26: 354084.3097 | AM26: 450006.0626 | AN26: 482801.9748 | AO26: 20308108.1 | AP26: 355049.0363 | AQ26: 451203.5375 | AR26: 483909.7746 | AS26: 20341751.27 | AT26: 353562.8767 | AU26: 449396.4764 | AV26: 484781.8 | AW26: 20301469.23 | AX26: 354669.1232 | AY26: 450758.7697 | AZ26: 471859.3856 | BA26: 20324361 | BB26: 353941.5213 | BC26: 449839.8011 | BD26: 497296.973 | BE26: 20318836.23
A27: 2035 | B27: 341553.0477 | C27: 436143.8734 | D27: 422011.2576 | E27: 21171289.75 | F27: =IndLiab!Q27 -> 0.03046 | G27: 0.6242883193 | H27: 0.5960541158 | I27: 0.6539338329 | J27: 342631.1818 | K27: 437478.5992 | L27: 491148.6382 | M27: 21202138.55 | N27: 340478.3546 | O27: 434813.2645 | P27: 516471.4274 | Q27: 21140517.48 | R27: 340204.2099 | S27: 434234.068 | T27: 484187.6889 | U27: 21056972.59 | V27: 342907.7241 | W27: 438062.2686 | X27: 523946.9997 | Y27: 21286123.26 | Z27: 341519.1831 | AA27: 436112.0923 | AB27: 503585.6785 | AC27: 21173155.21 | AD27: 341586.9138 | AE27: 436175.6534 | AF27: 503555.9861 | AG27: 21169424.16 | AH27: 341767.7265 | AI27: 436429.8966 | AJ27: 505179.4884 | AK27: 21185877.4 | AL27: 341338.4722 | AM27: 435857.9923 | AN27: 501969.7141 | AO27: 21156708.89 | AP27: 342272.5457 | AQ27: 437023.4595 | AR27: 503253.2317 | AS27: 21195630.71 | AT27: 340835.1165 | AU27: 435266.1147 | AV27: 503889.6037 | AW27: 21146985.16 | AX27: 341910.9198 | AY27: 436598.0845 | AZ27: 491447.3613 | BA27: 21177780.98 | BB27: 341195.5243 | BC27: 435690.0974 | BD27: 516132.823 | BE27: 21164805.5
A28: 2036 | B28: 779527.6988 | C28: 1475060.612 | D28: 240811.0048 | E28: 21888863.12 | F28: =IndLiab!Q28 -> 0.0308 | G28: 0.6056347685 | H28: 0.5768451716 | I28: 0.6359368209 | J28: 781891.2212 | K28: 1479542.835 | L28: 290923.4853 | M28: 21926746.24 | N28: 777171.3688 | O28: 1470591.938 | P28: 310230.4246 | Q28: 21851069.39 | R28: 775233.9143 | S28: 1466011.786 | T28: 286594.7697 | U28: 21768015.76 | V28: 783842.932 | W28: 1484156.445 | X28: 314940.8586 | Y28: 22010269.38 | Z28: 779511.4916 | AA28: 1475068.823 | AB28: 300395.5053 | AC28: 21890488.25 | AD28: 779543.8929 | AE28: 1475052.364 | AF28: 300380.0131 | AG28: 21887237.74 | AH28: 780113.4361 | AI28: 1476250.338 | AJ28: 301643.8544 | AK28: 21904347.37 | AL28: 778942.2907 | AM28: 1473871.589 | AN28: 299138.3779 | AO28: 21873386.39 | AP28: 781043.6775 | AQ28: 1477897.86 | AR28: 300035.3808 | AS28: 21916835.41 | AT28: 778014.7032 | AU28: 1472228.784 | AV28: 300740.8477 | AW28: 21860932.88 | AX28: 780373.5494 | AY28: 1476702.327 | AZ28: 291261.0115 | BA28: 21898754.01 | BB28: 778682.6764 | BC28: 1473420.516 | BD28: 309861.7421 | BE28: 21878979.74
A29: 2037 | B29: 481320.149 | C29: 798266.1176 | D29: 252650.0314 | E29: 21845022.85 | F29: =IndLiab!Q29 -> 0.03107 | G29: 0.5873847251 | H29: 0.5581094378 | I29: 0.6182727679 | J29: 482805.4054 | K29: 800694.6171 | L29: 301933.467 | M29: 21886890.72 | N29: 479839.5086 | O29: 795844.9927 | P29: 320768.3034 | Q29: 21803252.18 | R29: 478929.2161 | S29: 793755.4948 | T29: 297534.421 | U29: 21723322.55 | V29: 483722.5699 | W29: 802799.4631 | X29: 325536.0033 | Y29: 21967291.69 | Z29: 481296.6424 | AA29: 798253.3805 | AB29: 311181.6356 | AC29: 21846411.94 | AD29: 481343.6511 | AE29: 798278.8402 | AF29: 311165.5877 | AG29: 21843633.45 | AH29: 481661.0244 | AI29: 798876.1897 | AJ29: 312469.5463 | AK29: 21860675.7 | AL29: 480979.4564 | AM29: 797656.3919 | AN29: 309884.5882 | AO29: 21829377.78 | AP29: 482284.8479 | AQ29: 799819.9323 | AR29: 310873.8496 | AS29: 21874800.26 | AT29: 480357.4273 | AU29: 796715.3421 | AV29: 311473.9558 | AW29: 21815290.6 | AX29: 481839.6412 | AY29: 799139.0588 | AZ29: 302220.4068 | BA29: 21857091.29 | BB29: 480801.1682 | BC29: 797394.0298 | BD29: 320454.5044 | BE29: 21832962.46
A30: 2038 | B30: 465041.7512 | C30: 778334.4338 | D30: 265212.6833 | E30: 22171737.29 | F30: =IndLiab!Q30 -> 0.03134 | G30: 0.569535483 | H30: 0.5398412112 | I30: 0.6009416118 | J30: 466481.3448 | K30: 780714.0337 | L30: 313562.7999 | M30: 22218044.4 | N30: 463606.6425 | O30: 775962.0915 | P30: 331890.6102 | Q30: 22125539.15 | R30: 462696.5785 | S30: 773891.7698 | T30: 309091.0846 | U30: 22046985.14 | V30: 467398.2601 | W30: 782799.5711 | X30: 336717.7519 | Y30: 22297078 | Z30: 465020.2685 | AA30: 778323.1458 | AB30: 322569.356 | AC30: 22172934.94 | AD30: 465063.2291 | AE30: 778345.707 | AF30: 322552.7214 | AG30: 22170539.26 | AH30: 465373.6837 | AI30: 778932.8692 | AJ30: 323893.4746 | AK30: 22187826.48 | AL30: 464709.998 | AM30: 777736.3402 | AN30: 321235.6764 | AO30: 22155656.26 | AP30: 465972.8439 | AQ30: 779851.5326 | AR30: 322315.494 | AS30: 22203690.69 | AT30: 464112.5621 | AU30: 776820.3021 | AV30: 322807.0608 | AW30: 22139833.25 | AX30: 465549.2126 | AY30: 779195.2132 | AZ30: 313797.4193 | BA30: 22186065.91 | BB30: 464534.7953 | BC30: 777474.5068 | BD30: 331633.1272 | BE30: 22157418.16
A31: 2039 | B31: 447760.6885 | C31: 756705.9592 | D31: 278564.0792 | E31: 22542663.12 | F31: =IndLiab!Q31 -> 0.03161 | G31: 0.5520841045 | H31: 0.5220346106 | I31: 0.5839430302 | J31: 449149.086 | K31: 759027.6719 | L31: 325873.2891 | M31: 22592975.13 | N31: 446376.6203 | O31: 754391.3482 | P31: 343656.8534 | Q31: 22492472.16 | R31: 445467.5725 | S31: 752342.6523 | T31: 321326.2409 | U31: 22414691.05 | V31: 450064.9545 | W31: 761091.4248 | X31: 348545.9411 | Y31: 22671244.13 | Z31: 447741.4002 | AA31: 756696.3495 | AB31: 334619.2941 | AC31: 22543702.87 | AD31: 447779.9718 | AE31: 756715.5539 | AF31: 334602.0387 | AG31: 22541622.95 | AH31: 448082.7966 | AI31: 757291.207 | AJ31: 335975.8723 | AK31: 22559197.12 | AL31: 447438.7558 | AM31: 756121.0474 | AN31: 333252.6587 | AO31: 22526137.65 | AP31: 448655.0318 | AQ31: 758181.2305 | AR31: 334421.011 | AS31: 22576612.96 | AT31: 446868.1664 | AU31: 755233.5693 | AV31: 334800.7179 | AW31: 22508766.75 | AX31: 448253.7351 | AY31: 757550.7106 | AZ31: 326053.7775 | BA31: 22558997.08 | BB31: 447268.1378 | BC31: 755862.0532 | BD31: 343457.1852 | BE31: 22526340.38
A32: 2040 | B32: 429584.189 | C32: 733449.7843 | D32: 292779.7609 | E32: 22961495.94 | F32: =IndLiab!Q32 -> 0.03188 | G32: 0.53502743 | H32: 0.5046835888 | I32: 0.5672764482 | J32: 430916.6774 | K32: 735705.4976 | L32: 338938.3943 | M32: 23015472.13 | N32: 428255.8536 | O32: 731200.983 | P32: 356137.9895 | Q32: 22907652.77 | R32: 427349.3522 | S32: 729177.3893 | T32: 334312.9383 | U32: 22830059.61 | V32: 431829.9549 | W32: 737743.9571 | X32: 361091.9443 | Y32: 23093562.66 | Z32: 429567.2039 | AA32: 733442.0077 | AB32: 347403.6268 | AC32: 22962408.77 | AD32: 429601.1689 | AE32: 733457.5459 | AF32: 347385.7127 | AG32: 22960582.64 | AH32: 429895.6506 | AI32: 734020.3271 | AJ32: 348788.489 | AK32: 22978494.39 | AL32: 429272.8983 | AM32: 732879.5709 | AN32: 346008.1328 | AO32: 22944506.39 | AP32: 430439.1431 | AQ32: 734878.6276 | AR32: 347262.6607 | AS32: 22997311.91 | AT32: 428730.9667 | AU32: 732023.7252 | AV32: 347527.0163 | AW32: 22925737.42 | AX32: 430060.7527 | AY32: 734275.0044 | AZ32: 339062.8508 | BA32: 22979624.88 | BB32: 429108.1084 | BC32: 732625.3973 | BD32: 355997.7157 | BE32: 22943380.09
A33: 2041 | B33: 410636.6493 | C33: 708655.4336 | D33: 307942.4501 | E33: 23431443.46 | F33: =IndLiab!Q33 -> 0.03215 | G33: 0.5183620889 | H33: 0.4877819445 | I33: 0.5509410461 | J33: 411909.3465 | K33: 710837.9041 | L33: 352838.1526 | M33: 23488828.06 | N33: 409367.9118 | O33: 706479.6553 | P33: 369410.9466 | Q33: 23374203.55 | R33: 408466.1545 | S33: 704485.5308 | T33: 348130.8004 | U33: 23296277.79 | V33: 412817.8175 | W33: 712846.6661 | X33: 374433.1026 | Y33: 23567262.14 | Z33: 410622.0162 | AA33: 708649.5746 | AB33: 361000.8048 | AC33: 23432256.28 | AD33: 410651.2768 | AE33: 708661.2772 | AF33: 360982.1901 | AG33: 23430630.14 | AH33: 410936.7139 | AI33: 709209.8037 | AJ33: 362409.2819 | AK33: 23448931.3 | AL33: 410336.7504 | AM33: 708101.3849 | AN33: 359581.0364 | AO33: 23413964.91 | AP33: 411450.1007 | AQ33: 710033.78 | AR33: 360918.9969 | AS33: 23469033.82 | AT33: 409824.8347 | AU33: 707279.764 | AV33: 361064.2995 | AW33: 23393914.39 | AX33: 411094.9658 | AY33: 709457.9555 | AZ33: 352904.5653 | BA33: 23451203.45 | BB33: 410178.8001 | BC33: 707853.7275 | BD33: 369331.7475 | BE33: 23411698.45
A34: 2042 | B34: 391057.0059 | C34: 682431.8033 | D34: 324142.9797 | E34: 23956251.59 | F34: =IndLiab!Q34 -> 0.03242 | G34: 0.5020845091 | H34: 0.4713233337 | I34: 0.534935768 | J34: 392266.8693 | K34: 684534.6598 | L34: 367659.3177 | M34: 24016863.99 | N34: 389850.8963 | O34: 680335.3943 | P34: 383558.6916 | Q34: 23895795.18 | R34: 388956.6928 | S34: 678375.8971 | T34: 362866.1729 | U34: 23817088.39 | V34: 393167.7028 | W34: 686508.5248 | X34: 388652.7848 | Y34: 24096091.45 | Z34: 391044.7158 | AA34: 682427.8809 | AB34: 375495.6554 | AC34: 23956986.88 | AD34: 391069.2901 | AE34: 682435.7105 | AF34: 375476.294 | AG34: 23955515.77 | AH34: 391345.004 | AI34: 682968.5967 | AJ34: 376922.5044 | AK34: 23974256.8 | AL34: 390769.1678 | AM34: 681895.3227 | AN34: 374056.7642 | AO34: 23938256.05 | AP34: 391827.382 | AQ34: 683756.1305 | AR34: 375474.9692 | AS34: 23995556.76 | AT34: 390288.1681 | AU34: 681110.0377 | AV34: 375497.2678 | AW34: 23917011.41 | AX34: 391495.6087 | AY34: 683208.7845 | AZ34: 367665.5447 | BA34: 23977521.7 | BB34: 390618.8523 | BC34: 681655.6166 | BD34: 383542.3671 | BE34: 23934998.34
A35: 2043 | B35: 370995.049 | C35: 654905.9174 | D35: 341481.3587 | E35: 24539011.77 | F35: =IndLiab!Q35 -> 0.03269 | G35: 0.4861909277 | H35: 0.4553012816 | I35: 0.5192593288 | J35: 372139.8731 | K35: 656923.664 | L35: 383495.9793 | M35: 24602734.49 | N35: 369853.7641 | O35: 652894.3522 | P35: 398670.7896 | Q35: 24475455.95 | R35: 368970.4798 | S35: 650975.3391 | T35: 378612.7445 | U35: 24395582.95 | V35: 373029.6792 | W35: 658856.7304 | X35: 403840.9454 | Y35: 24683141.78 | Z35: 370985.0373 | AA35: 654903.888 | AB35: 390979.971 | AC35: 24539687.84 | AD35: 371005.0547 | AE35: 654907.9315 | AF35: 390959.8116 | AG35: 24538335.14 | AH35: 371270.3985 | AI35: 655423.8052 | AJ35: 392419.2799 | AK35: 24557564.41 | AL35: 370719.8535 | AM35: 654388.3326 | AN35: 389527.771 | AO35: 24520469.18 | AP35: 371721.3197 | AQ35: 656173.2571 | AR35: 391022.5102 | AS35: 24579999.24 | AT35: 370270.216 | AU35: 653641.0176 | AV35: 390917.5682 | AW35: 24498092.85 | AX35: 371412.765 | AY35: 655654.8358 | AZ35: 383439.7296 | BA35: 24561707.13 | BB35: 370577.7623 | BC35: 654157.7681 | BD35: 398719.2775 | BE35: 24516335.09
A36: 2044 | B36: 350606.128 | C36: 626219.5165 | D36: 360067.4014 | E36: 25183169.26 | F36: =IndLiab!Q36 -> 0.03296 | G36: 0.4706774005 | H36: 0.4397091936 | I36: 0.5039102234 | J36: 351684.5229 | K36: 628147.527 | L36: 400449.9818 | M36: 25249938.01 | N36: 349531.0524 | O36: 624297.4044 | P36: 414843.7497 | Q36: 25116577.99 | R36: 348662.5361 | S36: 622425.3226 | T36: 395471.9703 | U36: 25035194.93 | V36: 352559.426 | W36: 630033.2996 | X36: 420094.4657 | Y36: 25331870.18 | Z36: 350598.2783 | AA36: 626219.2792 | AB36: 407552.8898 | AC36: 25183801.11 | AD36: 350613.9715 | AE36: 626219.7387 | AF36: 407531.8763 | AG36: 25182536.83 | AH36: 350868.3379 | AI36: 626717.2555 | AJ36: 408997.9652 | AK36: 25202302.24 | AL36: 350344.0656 | AM36: 625722.0699 | AN36: 406093.9698 | AO36: 25164046.74 | AP36: 351287.7921 | AQ36: 627427.4511 | AR36: 407660.9158 | AS36: 25225830.87 | AT36: 349925.8006 | AU36: 625013.8956 | AV36: 407424.1755 | AW36: 25140579.67 | AX36: 351002.0702 | AY36: 626938.1682 | AZ36: 400328.7975 | BA36: 25207233.84 | BB36: 350210.5936 | BC36: 625501.6055 | BD36: 414959.1423 | BE36: 25159125.14
A37: 2045 | B37: 330045.2579 | C37: 596525.6383 | D37: 380023.3713 | E37: 25892514.51 | F37: =IndLiab!Q37 -> 0.03323 | G37: 0.4555398126 | H37: 0.4245403663 | I37: 0.4888867341 | J37: 331056.6056 | K37: 598360.137 | L37: 418633.7389 | M37: 25962309.75 | N37: 329037.0079 | O37: 594696.7419 | P37: 432183.8334 | Q37: 25822907.06 | R37: 328187.4923 | S37: 592878.4878 | T37: 413555.8632 | U37: 25739690.41 | V37: 331912.344 | W37: 600191.6694 | X37: 437519.9867 | Y37: 26046091.58 | Z37: 330039.4081 | AA37: 596527.0412 | AB37: 425323.7056 | AC37: 25893114.71 | AD37: 330051.1015 | AE37: 596524.2204 | AF37: 425301.7763 | AG37: 25891913.69 | AH37: 330293.9303 | AI37: 597002.0813 | AJ37: 426766.9494 | AK37: 25912264.53 | AL37: 329796.7262 | AM37: 596049.4761 | AN37: 423865.5533 | AO37: 25872775.34 | AP37: 330682.3122 | AQ37: 597672.2858 | AR37: 425499.6543 | AS37: 25936864.31 | AT37: 329409.4404 | AU37: 595381.1753 | AV37: 425126.2036 | AW37: 25848240.12 | AX37: 330418.8125 | AY37: 597212.1333 | AZ37: 418444.9772 | BA37: 25917914.78 | BB37: 329672.0887 | BC37: 595839.8528 | BD37: 432368.3939 | BE37: 25867136.41
A38: 2046 | B38: 812841.6676 | C38: 2396465.828 | D38: 103980.9388 | E38: 26366683.98 | F38: =IndLiab!Q38 -> 0.0335 | G38: 0.4407738873 | H38: 0.4097879983 | I38: 0.474186939 | J38: 815239.0712 | K38: 2403487.572 | L38: 117107.0163 | M38: 26438708.17 | N38: 810451.2 | O38: 2389464.141 | P38: 122049.6661 | Q38: 26294855.59 | R38: 807896.5382 | S38: 2381420.92 | T38: 115716.6623 | U38: 26210576.13 | V38: 817811.7348 | W38: 2411587.146 | X38: 123524.176 | Y38: 26523562.93 | Z38: 812851.5181 | AA38: 2396519.225 | AB38: 119545.3482 | AC38: 26367251.37 | AD38: 812831.7959 | AE38: 2396412.363 | AF38: 119540.0092 | AG38: 26366115.96 | AH38: 813480.8694 | AI38: 2398390.382 | AJ38: 120034.4807 | AK38: 26386851.16 | AL38: 812202.83 | AM38: 2394542.381 | AN38: 119053.4738 | AO38: 26346527.94 | AP38: 814333.5667 | AQ38: 2400818.947 | AR38: 119540.8704 | AS38: 26412242.8 | AT38: 811352.4426 | AU38: 2392120.345 | AV38: 119544.5423 | AW38: 26321203.11 | AX38: 813745.4872 | AY38: 2399129.546 | AZ38: 117107.7357 | BA38: 26393102.16 | BB38: 811938.7448 | BC38: 2393804.731 | BD38: 122046.6565 | BE38: 26340289.4
A39: 2047 | B39: 470309.7762 | C39: 1194134.734 | D39: 110026.0924 | E39: 0 | F39: =IndLiab!Q39 -> 0.0336744362 | G39: 0.4264146156 | H39: 0.3954816718 | I39: 0.4598513329 | J39: 471709.3183 | K39: 1197670.245 | L39: 122776.3857 | M39: 0 | N39: 468914.3454 | O39: 1190609.484 | P39: 127522.0514 | Q39: 0 | R39: 467492.3538 | S39: 1186651.129 | T39: 121355.6733 | U39: 0 | V39: 473141.4304 | W39: 1201656.597 | X39: 129023.2297 | Y39: 0 | Z39: 470312.4211 | AA39: 1194157.434 | AB39: 125119.1042 | AC39: 0 | AD39: 470307.1196 | AE39: 1194112.001 | AF39: 125113.5163 | AG39: 0 | AH39: 470676.0991 | AI39: 1195094.874 | AJ39: 125608.3103 | AK39: 0 | AL39: 469943.6622 | AM39: 1193175.152 | AN39: 124626.8427 | AO39: 0 | AP39: 471182.213 | AQ39: 1196329.312 | AR39: 125131.4875 | AS39: 0 | AT39: 469438.9337 | AU39: 1191944.079 | AV39: 125101.1903 | AW39: 0 | AX39: 470835.886 | AY39: 1195473.161 | AZ39: 122760.4173 | BA39: 0 | BB39: 469784.1953 | BC39: 1192797.641 | BD39: 127536.3343 | BE39: 0
A40: 2048 | B40: 450233.6221 | C40: 1163034.232 | D40: 116562.6129 | E40: 0 | F40: =IndLiab!Q40 -> 0.03383799688 | G40: 0.4124578675 | H40: 0.381614563 | I40: 0.4458783971 | J40: 451569.5046 | K40: 1166474.821 | L40: 128890.1967 | M40: 0 | N40: 448901.6469 | O40: 1159603.613 | P40: 133418.4095 | Q40: 0 | R40: 447512.314 | S40: 1155720.635 | T40: 127437.4727 | U40: 0 | V40: 452968.7055 | W40: 1170385.24 | X40: 134947.8171 | Y40: 0 | Z40: 450237.5446 | AA40: 1163057.727 | AB40: 131126.9645 | AC40: 0 | AD40: 450229.688 | AE40: 1163010.704 | AF40: 131121.1082 | AG40: 0 | AH40: 450585.9442 | AI40: 1163971.019 | AJ40: 131614.4794 | AK40: 0 | AL40: 449881.5016 | AM40: 1162097.989 | AN40: 130636.051 | AO40: 0 | AP40: 451064.6045 | AQ40: 1165167.542 | AR40: 131157.2311 | AS40: 0 | AT40: 449404.1461 | AU40: 1160904.721 | AV40: 131090.906 | AW40: 0 | AX40: 450737.5736 | AY40: 1164339.073 | AZ40: 128856.4718 | BA40: 0 | BB40: 449730.177 | BC40: 1161730.692 | BD40: 133450.9734 | BE40: 0
A41: 2049 | B41: 430226.1449 | C41: 1130656.357 | D41: 123649.8187 | E41: 0 | F41: =IndLiab!Q41 -> 0.03399166837 | G41: =G40/(1+F41) -> 0.3988986373 | H41: 0.3681790936 | I41: 0.4322656312 | J41: 431499.063 | K41: 1133998.014 | L41: 135501.6216 | M41: 0 | N41: 428956.9346 | O41: 1127324.367 | P41: 139789.2665 | Q41: 0 | R41: 427605.3163 | S41: 1123526.165 | T41: 134015.0492 | U41: 0 | V41: 432860.2631 | W41: 1137823.036 | X41: 141348.6386 | Y41: 0 | Z41: 430231.0974 | AA41: 1130680.4 | AB41: 137620.7635 | AC41: 0 | AD41: 430221.1811 | AE41: 1130632.281 | AF41: 137614.6172 | AG41: 0 | AH41: 430564.203 | AI41: 1131568.367 | AJ41: 138104.6525 | AK41: 0 | AL41: 429888.2806 | AM41: 1129744.877 | AN41: 137133.1018 | AO41: 0 | AP41: 431016.4997 | AQ41: 1132726.403 | AR41: 137670.0823 | AS41: 0 | AT41: 429437.2121 | AU41: 1128589.985 | AV41: 137565.375 | AW41: 0 | AX41: 430707.8058 | AY41: 1131925.601 | AZ41: 135448.921 | BA41: 0 | BB41: 429744.9677 | BC41: 1129388.379 | BD41: 139841.2451 | BE41: 0
A42: 2050 | B42: 410334.7805 | C42: 1097045.571 | D42: 131356.5107 | E42: 0 | F42: =IndLiab!Q42 -> 0.03413632122 | G42: 0.3857311934 | H42: 0.3551670785 | I42: 0.4190097056 | J42: 411545.629 | K42: 1100284.59 | L42: 142672.2799 | M42: 0 | N42: 409127.4454 | O42: 1093815.906 | P42: 146693.1578 | Q42: 0 | R42: 407818.3008 | S42: 1090111.649 | T42: 141149.8121 | U42: 0 | V42: 412864.0379 | W42: 1104014.981 | X42: 148284.4298 | Y42: 0 | Z42: 410340.5203 | AA42: 1097069.915 | AB42: 144660.561 | AC42: 0 | AD42: 410329.0296 | AE42: 1097021.195 | AF42: 144654.1002 | AG42: 0 | AH42: 410658.3631 | AI42: 1097931.439 | AJ42: 145138.6851 | AK42: 0 | AL42: 410011.3838 | AM42: 1096160.218 | AN42: 144178.2575 | AO42: 0 | AP42: 411085.4293 | AQ42: 1099050.503 | AR42: 144730.2694 | AS42: 0 | AT42: 409585.4733 | AU42: 1095044.186 | AV42: 144584.4863 | AW42: 0 | AX42: 410794.1236 | AY42: 1098277.365 | AZ42: 142599.2114 | BA42: 0 | BB42: 409875.8984 | BC42: 1095815.005 | BD42: 146765.8513 | BE42: 0
A43: 2051 | B43: 552464.4145 | C43: 1724456.637 | D43: 43795.9566 | E43: 0 | F43: =IndLiab!Q43 -> 0.03427272673 | G43: 0.3729492072 | H43: 0.3425698509 | I43: 0.4061065918 | J43: 554007.3377 | K43: 1729197.887 | L43: 48439.41128 | M43: 0 | N43: 550925.7495 | O43: 1719728.24 | P43: 50173.61554 | Q43: 0 | R43: 549198.0142 | S43: 1714222.854 | T43: 47889.03641 | U43: 0 | V43: 555746.9715 | W43: 1734740.852 | X43: 50753.12858 | Y43: 0 | Z43: 552474.3737 | AA43: 1724496.014 | AB43: 49296.35682 | AC43: 0 | AD43: 552454.4408 | AE43: 1724417.214 | AF43: 49294.16164 | AG43: 0 | AH43: 552882.4833 | AI43: 1725761.486 | AJ43: 49494.84234 | AK43: 0 | AL43: 552046.5774 | AM43: 1723152.508 | AN43: 49096.71965 | AO43: 0 | AP43: 553419.404 | AQ43: 1727389.211 | AR43: 49310.97085 | AS43: 0 | AT43: 551511.0438 | AU43: 1721528.932 | AV43: 49279.56708 | AW43: 0 | AX43: 553051.3096 | AY43: 1726262.171 | AZ43: 48423.63011 | BA43: 0 | BB43: 551878.0845 | BC43: 1722652.812 | BD43: 50189.22872 | BE43: 0
A44: 2052 | B44: 431280.7339 | C44: 1272849.988 | D44: 46421.18658 | E44: 0 | F44: =IndLiab!Q44 -> 0.03440157068 | G44: 0.3605458632 | H44: 0.3303783702 | I44: 0.3935516752 | J44: 432516.5791 | K44: 1276471.302 | L44: 50901.9665 | M44: 0 | N44: 430048.3761 | O44: 1269238.795 | P44: 52550.57761 | Q44: 0 | R44: 428663.0761 | S44: 1265038.406 | T44: 50338.69926 | U44: 0 | V44: 433911.5368 | W44: 1280700.815 | X44: 53141.55517 | Y44: 0 | Z44: 431288.7679 | AA44: 1272879.876 | AB44: 51717.11777 | AC44: 0 | AD44: 431272.6882 | AE44: 1272820.064 | AF44: 51714.81479 | AG44: 0 | AH44: 431615.5358 | AI44: 1273845.905 | AJ44: 51913.68293 | AK44: 0 | AL44: 430946.1216 | AM44: 1271854.636 | AN44: 51519.25121 | AO44: 0 | AP44: 432045.1655 | AQ44: 1275089.278 | AR44: 51738.41204 | AS44: 0 | AT44: 430517.6252 | AU44: 1270614.528 | AV44: 51693.54488 | AW44: 0 | AX44: 431751.2954 | AY44: 1274229.534 | AZ44: 50879.52757 | BA44: 0 | BB44: 430810.6349 | BC44: 1271471.783 | BD44: 52572.99893 | BE44: 0
A45: 2053 | B45: 411277.816 | C45: 1233323.599 | D45: 49270.11841 | E45: 0 | F45: =IndLiab!Q45 -> 0.03452346486 | G45: 0.3485139539 | H45: 0.3185833121 | I45: 0.3813398519 | J45: 412453.2897 | K45: 1236827.007 | L45: 53567.11838 | M45: 0 | N45: 410105.6483 | O45: 1229829.963 | P45: 55120.68891 | Q45: 0 | R45: 408775.7528 | S45: 1225755.161 | T45: 52990.21378 | U45: 0 | V45: 413792.4414 | W45: 1240930.031 | X45: 55723.83252 | Y45: 0 | Z45: 411286.0099 | AA45: 1233353.051 | AB45: 54335.7078 | AC45: 0 | AD45: 411269.6108 | AE45: 1233294.112 | AF45: 54333.2882 | AG45: 0 | AH45: 411597.3899 | AI45: 1234288.074 | AJ45: 54529.55642 | AK45: 0 | AL45: 410958.423 | AM45: 1232359.67 | AN45: 54140.39642 | AO45: 0 | AP45: 412004.4199 | AQ45: 1235489.264 | AR45: 54364.15718 | AS45: 0 | AT45: 410552.4635 | AU45: 1231161.627 | AV45: 54304.86985 | AW45: 0 | AX45: 411725.8771 | AY45: 1234658.947 | AZ45: 53537.52831 | BA45: 0 | BB45: 410830.1943 | BC45: 1231989.547 | BD45: 55150.38136 | BE45: 0
A46: 2054 | B46: 391352.1454 | C46: 1192254.579 | D46: 52370.94313 | E46: 0 | F46: =IndLiab!Q46 -> 0.03463895681 | G46: 0.3368459612 | H46: 0.3071751476 | I46: 0.3694656125 | J46: 392467.9263 | K46: 1195635.89 | L46: 56460.21333 | M46: 0 | N46: 390239.4928 | O46: 1188882.681 | P46: 57908.05051 | Q46: 0 | R46: 388967.6743 | S46: 1184941.294 | T46: 55868.83884 | U46: 0 | V46: 393748.5824 | W46: 1199604.544 | X46: 58524.14532 | Y46: 0 | Z46: 391360.354 | AA46: 1192283.425 | AB46: 57176.84321 | AC46: 0 | AD46: 391343.926 | AE46: 1192225.699 | AF46: 57174.2971 | AG46: 0 | AH46: 391656.3893 | AI46: 1193186.231 | AJ46: 57367.08672 | AK46: 0 | AL46: 391048.0736 | AM46: 1191323.454 | AN46: 56984.96337 | AO46: 0 | AP46: 392041.5287 | AQ46: 1194344.263 | AR46: 57212.98783 | AS46: 0 | AT46: 390663.9446 | AU46: 1190168.45 | AV46: 57138.1921 | AW46: 0 | AX46: 391777.7773 | AY46: 1193543.899 | AZ46: 56422.9116 | BA46: 0 | BB46: 390926.93 | BC46: 1190966.509 | BD46: 57945.54141 | BE46: 0
A47: 2055 | B47: 371531.3103 | C47: 1149715.935 | D47: 55756.40156 | E47: 0 | F47: =IndLiab!Q47 -> 0.03474853802 | G47: 0.3255341262 | H47: 0.2961442087 | I47: 0.3579231153 | J47: 372588.0961 | K47: 1152971.221 | L47: 59610.62526 | M47: 0 | N47: 370477.4788 | O47: 1146469.693 | P47: 60940.56842 | Q47: 0 | R47: 369265.6838 | S47: 1142668.653 | T47: 59003.84948 | U47: 0 | V47: 373808.2979 | W47: 1156798.526 | X47: 61570.49393 | Y47: 0 | Z47: 371539.4184 | AA47: 1149744.034 | AB47: 60269.15516 | AC47: 0 | AD47: 371523.1918 | AE47: 1149687.804 | AF47: 60266.47135 | AG47: 0 | AH47: 371820.1809 | AI47: 1150613.494 | AJ47: 60454.79427 | AK47: 0 | AL47: 371242.6029 | AM47: 1148818.883 | AN47: 60081.69315 | AO47: 0 | AP47: 372184.0443 | AQ47: 1151727.39 | AR47: 60313.61094 | AS47: 0 | AT47: 370879.6917 | AU47: 1147707.895 | AV47: 60222.06588 | AW47: 0 | AX47: 371934.6386 | AY47: 1150957.55 | AZ47: 59564.97326 | BA47: 0 | BB47: 371128.3758 | BC47: 1148475.522 | BD47: 60986.45979 | BE47: 0
A48: 2056 | B48: 360944.6799 | C48: 1469411.374 | D48: 0 | E48: 0 | F48: =IndLiab!Q48 -> 0.03485265091 | G48: 0.3145705101 | H48: 0.2854807461 | I48: 0.3467062491 | J48: 361965.3432 | K48: 1473421.576 | L48: 0 | M48: 0 | N48: 359926.8529 | O48: 1465411.942 | P48: 0 | Q48: 0 | R48: 358750.2234 | S48: 1460712.918 | T48: 0 | U48: 0 | V48: 363150.1091 | W48: 1478152.517 | X48: 0 | Y48: 0 | Z48: 360952.8026 | AA48: 1469446.745 | AB48: 0 | AC48: 0 | AD48: 360936.5471 | AE48: 1469375.964 | AF48: 0 | AG48: 0 | AH48: 361224.3284 | AI48: 1470518.9 | AJ48: 0 | AK48: 0 | AL48: 360665.1887 | AM48: 1468304.456 | AN48: 0 | AO48: 0 | AP48: 361575.0016 | AQ48: 1471889.264 | AR48: 0 | AS48: 0 | AT48: 360315.4285 | AU48: 1466937.552 | AV48: 0 | AW48: 0 | AX48: 361334.3267 | AY48: 1470941.051 | AZ48: 0 | BA48: 0 | BB48: 360555.4115 | BC48: 1467883.136 | BD48: 0 | BE48: 0
A49: 2057 | B49: 335741.2635 | C49: 1195443.823 | D49: 0 | E49: 0 | F49: =IndLiab!Q49 -> 0.03495169485 | G49: 0.3039470457 | H49: 0.2751749768 | I49: 0.335808688 | J49: 336690.6335 | K49: 1198764.342 | L49: 0 | M49: 0 | N49: 334794.5297 | O49: 1192132.363 | P49: 0 | Q49: 0 | R49: 333696.2132 | S49: 1188241.783 | T49: 0 | U49: 0 | V49: 337796.5404 | W49: 1202681.553 | X49: 0 | Y49: 0 | Z49: 335749.0041 | AA49: 1195473.133 | AB49: 0 | AC49: 0 | AD49: 335733.5135 | AE49: 1195414.481 | AF49: 0 | AG49: 0 | AH49: 336001.7915 | AI49: 1196360.806 | AJ49: 0 | AK49: 0 | AL49: 335480.8821 | AM49: 1194527.351 | AN49: 0 | AO49: 0 | AP49: 336327.4986 | AQ49: 1197495.332 | AR49: 0 | AS49: 0 | AT49: 335156.0228 | AU49: 1193395.735 | AV49: 0 | AW49: 0 | AX49: 336103.7525 | AY49: 1196710.616 | AZ49: 0 | BA49: 0 | BB49: 335379.1263 | BC49: 1194178.239 | BD49: 0 | BE49: 0
A50: 2058 | B50: 316472.183 | C50: 1147752.04 | D50: 0 | E50: 0 | F50: =IndLiab!Q50 -> 0.03504603122 | G50: 0.293655583 | H50: 0.2652171263 | I50: 0.3252239395 | J50: 317365.1034 | K50: 1150933.739 | L50: 0 | M50: 0 | N50: 315581.7355 | O50: 1144579.001 | P50: 0 | Q50: 0 | R50: 314545.4697 | S50: 1140848.293 | T50: 0 | U50: 0 | V50: 318408.5193 | W50: 1154689.95 | X50: 0 | Y50: 0 | Z50: 316479.6202 | AA50: 1147780.275 | AB50: 0 | AC50: 0 | AD50: 316464.7369 | AE50: 1147723.773 | AF50: 0 | AG50: 0 | AH50: 316717.5826 | AI50: 1148630.994 | AJ50: 0 | AK50: 0 | AL50: 316226.9213 | AM50: 1146873.573 | AN50: 0 | AO50: 0 | AP50: 317023.5441 | AQ50: 1149717.674 | AR50: 0 | AS50: 0 | AT50: 315921.7544 | AU50: 1145789.674 | AV50: 0 | AW50: 0 | AX50: 316813.1363 | AY50: 1148965.984 | AZ50: 0 | BA50: 0 | BB50: 316131.5597 | BC50: 1146539.252 | BD50: 0 | BE50: 0
A51: 2059 | B51: 297500.3856 | C51: 1098748.517 | D51: 0 | E51: 0 | F51: =IndLiab!Q51 -> 0.03513598786 | G51: 0.2836879274 | H51: 0.2555974633 | I51: 0.3149453857 | J51: 298337.9913 | K51: 1101788.303 | L51: 0 | M51: 0 | N51: 296665.0935 | O51: 1095716.985 | P51: 0 | Q51: 0 | R51: 295690.4967 | S51: 1092150.556 | T51: 0 | U51: 0 | V51: 299319.3024 | W51: 1105379.081 | X51: 0 | Y51: 0 | Z51: 297507.485 | AA51: 1098775.611 | AB51: 0 | AC51: 0 | AD51: 297493.2779 | AE51: 1098721.393 | AF51: 0 | AG51: 0 | AH51: 297730.8734 | AI51: 1099588.512 | AJ51: 0 | AK51: 0 | AL51: 297270.0272 | AM51: 1097908.988 | AN51: 0 | AO51: 0 | AP51: 298017.5946 | AQ51: 1100626.408 | AR51: 0 | AS51: 0 | AT51: 296984.0491 | AU51: 1096873.741 | AV51: 0 | AW51: 0 | AX51: 297820.2154 | AY51: 1099908.391 | AZ51: 0 | BA51: 0 | BB51: 297180.8647 | BC51: 1097589.745 | BD51: 0 | BE51: 0
A52: 2060 | B52: 278875.3502 | C52: 1048542.768 | D52: 0 | E52: 0 | F52: =IndLiab!Q52 -> 0.03522186286 | G52: 0.2740358734 | H52: 0.2463063297 | I52: 0.3049663196 | J52: 279658.9166 | K52: 1051437.945 | L52: 0 | M52: 0 | N52: 278093.9428 | O52: 1045655.435 | P52: 0 | Q52: 0 | R52: 277180.2661 | S52: 1042257.07 | T52: 0 | U52: 0 | V52: 280578.8784 | W52: 1054859.482 | X52: 0 | Y52: 0 | Z52: 278882.0875 | AA52: 1048568.663 | AB52: 0 | AC52: 0 | AD52: 278868.6052 | AE52: 1048516.845 | AF52: 0 | AG52: 0 | AH52: 279091.1977 | AI52: 1049342.992 | AJ52: 0 | AK52: 0 | AL52: 278659.6236 | AM52: 1047742.988 | AN52: 0 | AO52: 0 | AP52: 279359.2034 | AQ52: 1050331.276 | AR52: 0 | AS52: 0 | AT52: 278392.3111 | AU52: 1046757.221 | AV52: 0 | AW52: 0 | AX52: 279174.5344 | AY52: 1049647.518 | AZ52: 0 | BA52: 0 | BB52: 278576.4543 | BC52: 1047439.067 | BD52: 0 | BE52: 0
A53: 2061 | B53: 260632.0936 | C53: 997231.1922 | D53: 0 | E53: 0 | F53: =IndLiab!Q53 -> 0.03530392784 | G53: 0.2646912332 | H53: 0.237334166 | I53: 0.2952799766 | J53: 261362.9953 | K53: 999979.4054 | L53: 0 | M53: 0 | N53: 259903.2009 | O53: 994490.4073 | P53: 0 | Q53: 0 | R53: 259049.4249 | S53: 991263.3669 | T53: 0 | U53: 0 | V53: 262222.636 | W53: 1003228.422 | X53: 0 | Y53: 0 | Z53: 260638.4522 | AA53: 997255.84 | AB53: 0 | AC53: 0 | AD53: 260625.7278 | AE53: 997206.5173 | AF53: 0 | AG53: 0 | AH53: 260833.6135 | AI53: 997990.9374 | AJ53: 0 | AK53: 0 | AL53: 260430.6865 | AM53: 996471.8665 | AN53: 0 | AO53: 0 | AP53: 261083.441 | AQ53: 998928.8761 | AR53: 0 | AS53: 0 | AT53: 260181.5038 | AU53: 995536.3119 | AV53: 0 | AW53: 0 | AX53: 260911.1557 | AY53: 998279.9032 | AZ53: 0 | BA53: 0 | BB53: 260353.2999 | BC53: 996183.474 | BD53: 0 | BE53: 0
A54: 2062 | B54: 242794.9638 | C54: 944903.3693 | D54: 0 | E54: 0 | F54: =IndLiab!Q54 -> 0.03538243088 | G54: 0.2556458612 | H54: 0.2286715325 | I54: 0.2858795617 | J54: 243474.6464 | K54: 947502.5711 | L54: 0 | M54: 0 | N54: 242117.1452 | O54: 942311.1776 | P54: 0 | Q54: 0 | R54: 241322.0826 | S54: 939258.2983 | T54: 0 | U54: 0 | V54: 244275.1631 | W54: 950576.2158 | X54: 0 | Y54: 0 | Z54: 242800.9318 | AA54: 944926.7283 | AB54: 0 | AC54: 0 | AD54: 242788.9892 | AE54: 944879.9846 | AF54: 0 | AG54: 0 | AH54: 242982.4966 | AI54: 945622.0202 | AJ54: 0 | AK54: 0 | AL54: 242607.5358 | AM54: 944185.1144 | AN54: 0 | AO54: 0 | AP54: 243214.6968 | AQ54: 946508.9751 | AR54: 0 | AS54: 0 | AT54: 242375.9338 | AU54: 943300.4092 | AV54: 0 | AW54: 0 | AX54: 243054.4568 | AY54: 945895.2496 | AZ54: 0 | BA54: 0 | BB54: 242535.7198 | BC54: 943912.4264 | BD54: 0 | BE54: 0
A55: 2063 | B55: 225367.2233 | C55: 891638.3125 | D55: 0 | E55: 0 | F55: =IndLiab!Q55 -> 0.03545759893 | G55: 0.2468916752 | H55: 0.220309127 | I55: 0.2767582735 | J55: 225997.1282 | K55: 894086.6953 | L55: 0 | M55: 0 | N55: 224739.0423 | O55: 889196.5193 | P55: 0 | Q55: 0 | R55: 224001.3958 | S55: 886320.2514 | T55: 0 | U55: 0 | V55: 226739.8289 | W55: 896982.5054 | X55: 0 | Y55: 0 | Z55: 225372.7941 | AA55: 891660.3483 | AB55: 0 | AC55: 0 | AD55: 225361.6463 | AE55: 891616.2526 | AF55: 0 | AG55: 0 | AH55: 225541.1204 | AI55: 892315.33 | AJ55: 0 | AK55: 0 | AL55: 225193.4233 | AM55: 890961.6675 | AN55: 0 | AO55: 0 | AP55: 225756.228 | AQ55: 893150.7297 | AR55: 0 | AS55: 0 | AT55: 224978.8688 | AU55: 890128.3823 | AV55: 0 | AW55: 0 | AX55: 225607.7012 | AY55: 892572.6655 | AZ55: 0 | BA55: 0 | BB55: 225126.9757 | BC55: 890704.8411 | BD55: 0 | BE55: 0
A56: 2064 | B56: 208345.6022 | C56: 837524.9243 | D56: 0 | E56: 0 | F56: =IndLiab!Q56 -> 0.0355296401 | G56: 0.2384206745 | H56: 0.2122377999 | I56: 0.2679093249 | J56: 208927.1424 | K56: 839820.9212 | L56: 0 | M56: 0 | N56: 207765.6505 | O56: 835235.0946 | P56: 0 | Q56: 0 | R56: 207084.0747 | S56: 832537.5296 | T56: 0 | U56: 0 | V56: 209613.3833 | W56: 842536.7951 | X56: 0 | Y56: 0 | Z56: 208350.773 | AA56: 837545.6085 | AB56: 0 | AC56: 0 | AD56: 208340.4256 | AE56: 837504.2173 | AF56: 0 | AG56: 0 | AH56: 208506.2163 | AI56: 838159.8444 | AJ56: 0 | AK56: 0 | AL56: 208185.0776 | AM56: 836890.3527 | AN56: 0 | AO56: 0 | AP56: 208704.7474 | AQ56: 838943.1898 | AR56: 0 | AS56: 0 | AT56: 207987.0562 | AU56: 836108.9863 | AV56: 0 | AW56: 0 | AX56: 208567.6081 | AY56: 838401.1465 | AZ56: 0 | BA56: 0 | BB56: 208123.8085 | BC56: 836649.5274 | BD56: 0 | BE56: 0
A57: 2065 | B57: 191722.6861 | C57: 782671.6536 | D57: 0 | E57: 0 | F57: =IndLiab!Q57 -> 0.03559874553 | G57: 0.2302249549 | H57: 0.204448566 | I57: 0.2593259609 | J57: 192257.2251 | K57: 784813.9628 | L57: 0 | M57: 0 | N57: 191189.605 | O57: 780535.0884 | P57: 0 | Q57: 0 | R57: 190562.7371 | S57: 778017.9333 | T57: 0 | U57: 0 | V57: 192888.3797 | W57: 787348.1859 | X57: 0 | Y57: 0 | Z57: 191727.4575 | AA57: 782690.9645 | AB57: 0 | AC57: 0 | AD57: 191717.9095 | AE57: 782652.3217 | AF57: 0 | AG57: 0 | AH57: 191870.3653 | AI57: 783264.0947 | AJ57: 0 | AK57: 0 | AL57: 191575.0891 | AM57: 782079.5374 | AN57: 0 | AO57: 0 | AP57: 192052.8105 | AQ57: 783994.9677 | AR57: 0 | AS57: 0 | AT57: 191393.1116 | AU57: 781350.5074 | AV57: 0 | AW57: 0 | AX57: 191926.7436 | AY57: 783489.2433 | AZ57: 0 | BA57: 0 | BB57: 191518.8234 | BC57: 781854.8329 | BD57: 0 | BE57: 0
A58: 2066 | B58: 175492.4756 | C58: 727213.7463 | D58: 0 | E58: 0 | F58: =IndLiab!Q58 -> 0.03566509108 | G58: 0.222296722 | H58: 0.1969326148 | I58: 0.2510014742 | J58: 175981.3231 | K58: 729201.3795 | L58: 0 | M58: 0 | N58: 175004.9594 | O58: 725231.4334 | P58: 0 | Q58: 0 | R58: 174431.4325 | S58: 722895.9613 | T58: 0 | U58: 0 | V58: 176558.769 | W58: 731552.6735 | X58: 0 | Y58: 0 | Z58: 175496.8507 | AA58: 727231.6681 | AB58: 0 | AC58: 0 | AD58: 175488.0955 | AE58: 727195.805 | AF58: 0 | AG58: 0 | AH58: 175627.5611 | AI58: 727763.4209 | AJ58: 0 | AK58: 0 | AL58: 175357.4651 | AM58: 726664.3726 | AN58: 0 | AO58: 0 | AP58: 175794.3856 | AQ58: 728441.5026 | AR58: 0 | AS58: 0 | AT58: 175191.0676 | AU58: 725987.9979 | AV58: 0 | AW58: 0 | AX58: 175679.087 | AY58: 727972.3216 | AZ58: 0 | BA58: 0 | BB58: 175306.042 | BC58: 726455.8836 | BD58: 0 | BE58: 0
A59: 2067 | B59: 159656.6995 | C59: 671328.149 | D59: 0 | E59: 0 | F59: =IndLiab!Q59 -> 0.03572883884 | G59: 0.214628302 | H59: 0.1896813183 | I59: 0.2429292183 | J59: 160101.1359 | K59: 673160.5564 | L59: 0 | M59: 0 | N59: 159213.4722 | O59: 669500.6387 | P59: 0 | Q59: 0 | R59: 158691.9126 | S59: 667347.6101 | T59: 0 | U59: 0 | V59: 160626.2572 | W59: 675328.1591 | X59: 0 | Y59: 0 | Z59: 159660.6839 | AA59: 671344.6708 | AB59: 0 | AC59: 0 | AD59: 159652.7108 | AE59: 671311.6091 | AF59: 0 | AG59: 0 | AH59: 159779.5296 | AI59: 671834.891 | AJ59: 0 | AK59: 0 | AL59: 159533.9376 | AM59: 670821.6839 | AN59: 0 | AO59: 0 | AP59: 159931.1833 | AQ59: 672460.0081 | AR59: 0 | AS59: 0 | AT59: 159382.6718 | AU59: 670198.1381 | AV59: 0 | AW59: 0 | AX59: 159826.356 | AY59: 672027.4993 | AZ59: 0 | BA59: 0 | BB59: 159487.2046 | BC59: 670629.4547 | BD59: 0 | BE59: 0
A60: 2068 | B60: 144230.1529 | C60: 615247.8234 | D60: 0 | E60: 0 | F60: =IndLiab!Q60 -> 0.03579013847 | G60: 0.2072121505 | H60: 0.1826862369 | I60: 0.2351026196 | J60: 144631.4538 | K60: 616924.9972 | L60: 0 | M60: 0 | N60: 143829.9429 | O60: 613575.1254 | P60: 0 | Q60: 0 | R60: 143358.9343 | S60: 611604.6056 | T60: 0 | U60: 0 | V60: 145105.6773 | W60: 618908.8457 | X60: 0 | Y60: 0 | Z60: 144233.754 | AA60: 615262.942 | AB60: 0 | AC60: 0 | AD60: 144226.5479 | AE60: 615232.6883 | AF60: 0 | AG60: 0 | AH60: 144341.0703 | AI60: 615711.6238 | AJ60: 0 | AK60: 0 | AL60: 144119.2971 | AM60: 614784.2763 | AN60: 0 | AO60: 0 | AP60: 144477.9966 | AQ60: 616283.7819 | AR60: 0 | AS60: 0 | AT60: 143982.7207 | AU60: 614213.5542 | AV60: 0 | AW60: 0 | AX60: 144383.3429 | AY60: 615887.944 | AZ60: 0 | BA60: 0 | BB60: 144077.1087 | BC60: 614608.3027 | BD60: 0 | BE60: 0
A61: 2069 | B61: 129244.2086 | C61: 559271.5192 | D61: 0 | E61: 0 | F61: =IndLiab!Q61 -> 0.03584912833 | G61: 0.20004086 | H61: 0.1759391249 | I61: 0.2275151864 | J61: 129603.6941 | K61: 560794.1742 | L61: 0 | M61: 0 | N61: 128885.6998 | O61: 557752.922 | P61: 0 | Q61: 0 | R61: 128463.7404 | S61: 555964.0875 | T61: 0 | U61: 0 | V61: 130028.5325 | W61: 562595.0999 | X61: 0 | Y61: 0 | Z61: 129247.436 | AA61: 559285.2399 | AB61: 0 | AC61: 0 | AD61: 129240.9777 | AE61: 559257.7835 | AF61: 0 | AG61: 0 | AH61: 129343.5723 | AI61: 559692.5732 | AJ61: 0 | AK61: 0 | AL61: 129144.9 | AM61: 558850.6947 | AN61: 0 | AO61: 0 | AP61: 129466.2266 | AQ61: 560212.0206 | AR61: 0 | AS61: 0 | AT61: 129022.559 | AU61: 558332.5492 | AV61: 0 | AW61: 0 | AX61: 129381.4369 | AY61: 559852.6803 | AZ61: 0 | BA61: 0 | BB61: 129107.1109 | BC61: 558690.9021 | BD61: 0 | BE61: 0
A62: 2070 | B62: 114748.4908 | C62: 503768.9854 | D62: 0 | E62: 0 | F62: =IndLiab!Q62 -> 0.03590593656 | G62: 0.1931071663 | H62: 0.1694319328 | I62: 0.2201605181 | J62: 115067.582 | K62: 505138.7627 | L62: 0 | M62: 0 | N62: 114430.266 | O62: 502402.8537 | P62: 0 | Q62: 0 | R62: 114055.7139 | S62: 500793.7685 | T62: 0 | U62: 0 | V62: 115444.689 | W62: 506758.7165 | X62: 0 | Y62: 0 | Z62: 114751.3559 | AA62: 503781.323 | AB62: 0 | AC62: 0 | AD62: 114745.6225 | AE62: 503756.6343 | AF62: 0 | AG62: 0 | AH62: 114836.6903 | AI62: 504147.7477 | AJ62: 0 | AK62: 0 | AL62: 114660.3401 | AM62: 503390.4294 | AN62: 0 | AO62: 0 | AP62: 114945.5604 | AQ62: 504615.046 | AR62: 0 | AS62: 0 | AT62: 114551.748 | AU62: 502924.3006 | AV62: 0 | AW62: 0 | AX62: 114870.3002 | AY62: 504291.8105 | AZ62: 0 | BA62: 0 | BB62: 114626.7972 | BC62: 503246.6492 | BD62: 0 | BE62: 0
A63: 2071 | B63: 100809.2732 | C63: 449174.6946 | D63: 0 | E63: 0 | F63: =IndLiab!Q63 -> 0.03596068198 | G63: 0.1864039531 | H63: 0.1631568106 | I63: 0.2130323117 | J63: 101089.5465 | K63: 450394.3533 | L63: 0 | M63: 0 | N63: 100529.7606 | O63: 447958.2775 | P63: 0 | Q63: 0 | R63: 100200.7783 | S63: 446525.6789 | T63: 0 | U63: 0 | V63: 101420.7724 | W63: 451836.6218 | X63: 0 | Y63: 0 | Z63: 100811.7897 | AA63: 449185.6746 | AB63: 0 | AC63: 0 | AD63: 100806.754 | AE63: 449163.7026 | AF63: 0 | AG63: 0 | AH63: 100886.7428 | AI63: 449511.9305 | AJ63: 0 | AK63: 0 | AL63: 100731.8466 | AM63: 448837.6421 | AN63: 0 | AO63: 0 | AP63: 100982.3678 | AQ63: 449928.0213 | AR63: 0 | AS63: 0 | AT63: 100636.4655 | AU63: 448422.5912 | AV63: 0 | AW63: 0 | AX63: 100916.2656 | AY63: 449640.2338 | AZ63: 0 | BA63: 0 | BB63: 100702.3825 | BC63: 448709.5902 | BD63: 0 | BE63: 0
A64: 2072 | B64: 87506.65576 | C64: 395979.8893 | D64: 0 | E64: 0 | F64: =IndLiab!Q64 -> 0.03601347495 | G64: 0.1799242554 | H64: 0.1571061084 | I64: 0.2061243678 | J64: 87749.89011 | K64: 397053.4808 | L64: 0 | M64: 0 | N64: 87264.08138 | O64: 394909.147 | P64: 0 | Q64: 0 | R64: 86978.58497 | S64: 393648.2462 | T64: 0 | U64: 0 | V64: 88037.33307 | W64: 398322.8862 | X64: 0 | Y64: 0 | Z64: 87508.83935 | AA64: 395989.5493 | AB64: 0 | AC64: 0 | AD64: 87504.46975 | AE64: 395970.2187 | AF64: 0 | AG64: 0 | AH64: 87573.88641 | AI64: 396276.7224 | AJ64: 0 | AK64: 0 | AL64: 87439.46231 | AM64: 395683.2174 | AN64: 0 | AO64: 0 | AP64: 87656.87413 | AQ64: 396642.9873 | AR64: 0 | AS64: 0 | AT64: 87356.68629 | AU64: 395317.8666 | AV64: 0 | AW64: 0 | AX64: 87599.51011 | AY64: 396389.6861 | AZ64: 0 | BA64: 0 | BB64: 87413.88965 | BC64: 395570.4748 | BD64: 0 | BE64: 0
A65: 2073 | B65: 74934.14474 | C65: 344722.5878 | D65: 0 | E65: 0 | F65: =IndLiab!Q65 -> 0.03606441808 | G65: 0.173661263 | H65: 0.1512723772 | I65: 0.1994305959 | J65: 75142.3683 | K65: 345655.6041 | L65: 0 | M65: 0 | N65: 74726.48595 | O65: 343792.0435 | P65: 0 | Q65: 0 | R65: 74482.09861 | S65: 342696.3625 | T65: 0 | U65: 0 | V65: 75388.42155 | W65: 346758.6694 | X65: 0 | Y65: 0 | Z65: 74936.01346 | AA65: 344730.9782 | AB65: 0 | AC65: 0 | AD65: 74932.27394 | AE65: 344714.1881 | AF65: 0 | AG65: 0 | AH65: 74991.6966 | AI65: 344980.5398 | AJ65: 0 | AK65: 0 | AL65: 74876.62472 | AM65: 344464.7757 | AN65: 0 | AO65: 0 | AP65: 75062.73957 | AQ65: 345298.8517 | AR65: 0 | AS65: 0 | AT65: 74805.76291 | AU65: 344147.2568 | AV65: 0 | AW65: 0 | AX65: 75013.63516 | AY65: 345078.7358 | AZ65: 0 | BA65: 0 | BB65: 74854.72985 | BC65: 344366.7716 | BD65: 0 | BE65: 0
A66: 2074 | B66: 63188.72258 | C66: 295960.5448 | D66: 0 | E66: 0 | F66: =IndLiab!Q66 -> 0.03611360693 | G66: 0.167608322 | H66: 0.1456483684 | I66: 0.1929450179 | J66: 63364.22972 | K66: 296759.9892 | L66: 0 | M66: 0 | N66: 63013.69126 | O66: 295163.2146 | P66: 0 | Q66: 0 | R66: 62807.71835 | S66: 294224.4969 | T66: 0 | U66: 0 | V66: 63571.60633 | W66: 297705.0275 | X66: 0 | Y66: 0 | Z66: 63190.29709 | AA66: 295967.7299 | AB66: 0 | AC66: 0 | AD66: 63187.14633 | AE66: 295953.3518 | AF66: 0 | AG66: 0 | AH66: 63237.22997 | AI66: 296181.5556 | AJ66: 0 | AK66: 0 | AL66: 63140.24202 | AM66: 295739.6536 | AN66: 0 | AO66: 0 | AP66: 63297.11109 | AQ66: 296454.3026 | AR66: 0 | AS66: 0 | AT66: 63080.51352 | AU66: 295467.5849 | AV66: 0 | AW66: 0 | AX66: 63255.7247 | AY66: 296265.7145 | AZ66: 0 | BA66: 0 | BB66: 63121.78411 | BC66: 295655.659 | BD66: 0 | BE66: 0
A67: 2075 | B67: 52369.27455 | C67: 250248.2597 | D67: 0 | E67: 0 | F67: =IndLiab!Q67 -> 0.03616113058 | G67: 0.1617589359 | H67: 0.1402270328 | I67: 0.1866617717 | J67: 52514.63726 | K67: 250922.6506 | L67: 0 | M67: 0 | N67: 52224.3057 | O67: 249575.6486 | P67: 0 | Q67: 0 | R67: 52053.72568 | S67: 248783.8601 | T67: 0 | U67: 0 | V67: 52686.37941 | W67: 251719.7647 | X67: 0 | Y67: 0 | Z67: 52370.57803 | AA67: 250254.3173 | AB67: 0 | AC67: 0 | AD67: 52367.96962 | AE67: 250242.1956 | AF67: 0 | AG67: 0 | AH67: 52409.44865 | AI67: 250434.6881 | AJ67: 0 | AK67: 0 | AL67: 52329.12265 | AM67: 250061.9322 | AN67: 0 | AO67: 0 | AP67: 52459.04544 | AQ67: 250664.775 | AR67: 0 | AS67: 0 | AT67: 52279.65219 | AU67: 249832.4161 | AV67: 0 | AW67: 0 | AX67: 52424.76992 | AY67: 250505.7003 | AZ67: 0 | BA67: 0 | BB67: 52313.83187 | BC67: 249991.0583 | BD67: 0 | BE67: 0
A68: 2076 | B68: 42567.37685 | C68: 208101.4771 | D68: 0 | E68: 0 | F68: =IndLiab!Q68 -> 0.03620707218 | G68: 0.156106767 | H68: 0.1350015192 | I68: 0.1805751133 | J68: 42685.42783 | K68: 208660.748 | L68: 0 | M68: 0 | N68: 42449.64548 | O68: 207543.6784 | P68: 0 | Q68: 0 | R68: 42311.13 | S68: 206887.1255 | T68: 0 | U68: 0 | V68: 42824.88662 | W68: 209321.7115 | X68: 0 | Y68: 0 | Z68: 42568.43487 | AA68: 208106.4975 | AB68: 0 | AC68: 0 | AD68: 42566.31767 | AE68: 208096.4512 | AF68: 0 | AG68: 0 | AH68: 42600.00103 | AI68: 208256.0726 | AJ68: 0 | AK68: 0 | AL68: 42534.7707 | AM68: 207946.9649 | AN68: 0 | AO68: 0 | AP68: 42640.27988 | AQ68: 208446.8873 | AR68: 0 | AS68: 0 | AT68: 42494.59436 | AU68: 207756.6226 | AV68: 0 | AW68: 0 | AX68: 42612.44654 | AY68: 208314.9781 | AZ68: 0 | BA68: 0 | BB68: 42522.34993 | BC68: 207888.1741 | BD68: 0 | BE68: 0
A69: 2077 | B69: 33857.8084 | C69: 169957.3278 | D69: 0 | E69: 0 | F69: =IndLiab!Q69 -> 0.03625150943 | G69: 0.1506456353 | H69: 0.1299651726 | I69: 0.1746794192 | J69: 33951.59526 | K69: 170412.6114 | L69: 0 | M69: 0 | N69: 33764.2752 | O69: 169503.2391 | P69: 0 | Q69: 0 | R69: 33654.24325 | S69: 168968.8232 | T69: 0 | U69: 0 | V69: 34062.37615 | W69: 170950.6122 | X69: 0 | Y69: 0 | Z69: 33858.64845 | AA69: 169961.4122 | AB69: 0 | AC69: 0 | AD69: 33856.96743 | AE69: 169953.2391 | AF69: 0 | AG69: 0 | AH69: 33883.72547 | AI69: 170083.1714 | AJ69: 0 | AK69: 0 | AL69: 33831.90564 | AM69: 169831.552 | AN69: 0 | AO69: 0 | AP69: 33915.72604 | AQ69: 170238.5106 | AR69: 0 | AS69: 0 | AT69: 33799.98643 | AU69: 169676.5961 | AV69: 0 | AW69: 0 | AX69: 33893.61552 | AY69: 170131.1367 | AZ69: 0 | BA69: 0 | BB69: 33822.03524 | BC69: 169783.6797 | BD69: 0 | BE69: 0
A70: 2078 | B70: 26289.30133 | C70: 136137.2111 | D70: 0 | E70: 0 | F70: =IndLiab!Q70 -> 0.03629451504 | G70: 0.1453695191 | H70: 0.1251115314 | I70: 0.1689691875 | J70: 26362.01311 | K70: 136500.5154 | L70: 0 | M70: 0 | N70: 26216.78595 | O70: 135774.8571 | P70: 0 | Q70: 0 | R70: 26131.49063 | S70: 135348.4561 | T70: 0 | U70: 0 | V70: 26447.88861 | W70: 136929.7717 | X70: 0 | Y70: 0 | Z70: 26289.95218 | AA70: 136140.4682 | AB70: 0 | AC70: 0 | AD70: 26288.64976 | AE70: 136133.9505 | AF70: 0 | AG70: 0 | AH70: 26309.39319 | AI70: 136237.625 | AJ70: 0 | AK70: 0 | AL70: 26269.22054 | AM70: 136036.8511 | AN70: 0 | AO70: 0 | AP70: 26334.20337 | AQ70: 136361.5844 | AR70: 0 | AS70: 0 | AT70: 26244.47335 | AU70: 135913.1965 | AV70: 0 | AW70: 0 | AX70: 26317.06299 | AY70: 136275.91 | AZ70: 0 | BA70: 0 | BB70: 26261.56596 | BC70: 135998.6402 | BD70: 0 | BE70: 0
A71: 2079 | B71: 19876.18293 | C71: 106815.4952 | D71: 0 | E71: 0 | F71: =IndLiab!Q71 -> 0.03633615709 | G71: 0.1402725536 | H71: 0.120434325 | I71: 0.1634390385 | J71: 19931.05202 | K71: 107099.2896 | L71: 0 | M71: 0 | N71: 19821.4618 | O71: 106532.4399 | P71: 0 | Q71: 0 | R71: 19757.10587 | S71: 106199.3946 | T71: 0 | U71: 0 | V71: 19995.84533 | W71: 107434.5606 | X71: 0 | Y71: 0 | Z71: 19876.67372 | AA71: 106818.0378 | AB71: 0 | AC71: 0 | AD71: 19875.69159 | AE71: 106812.9498 | AF71: 0 | AG71: 0 | AH71: 19891.3434 | AI71: 106893.9288 | AJ71: 0 | AK71: 0 | AL71: 19861.0308 | AM71: 106737.1035 | AN71: 0 | AO71: 0 | AP71: 19910.06588 | AQ71: 106990.7617 | AR71: 0 | AS71: 0 | AT71: 19842.35578 | AU71: 106640.5077 | AV71: 0 | AW71: 0 | AX71: 19897.13285 | AY71: 106923.8426 | AZ71: 0 | BA71: 0 | BB71: 19855.25282 | BC71: 106707.2473 | BD71: 0 | BE71: 0
A72: 2080 | B72: 14593.98206 | C72: 82002.58851 | D72: 0 | E72: 0 | F72: =IndLiab!Q72 -> 0.03637649943 | G72: 0.1353490297 | H72: 0.1159274708 | I72: 0.1580837156 | J72: 14634.1734 | K72: 82219.34324 | L72: 0 | M72: 0 | N72: 14553.89887 | O72: 81786.39558 | P72: 0 | Q72: 0 | R72: 14506.76516 | S72: 81532.05132 | T72: 0 | U72: 0 | V72: 14681.62712 | W72: 82475.38334 | X72: 0 | Y72: 0 | Z72: 14594.34129 | AA72: 82004.52925 | AB72: 0 | AC72: 0 | AD72: 14593.62242 | AE72: 82000.64567 | AF72: 0 | AG72: 0 | AH72: 14605.08623 | AI72: 82062.4907 | AJ72: 0 | AK72: 0 | AL72: 14582.88399 | AM72: 81942.7182 | AN72: 0 | AO72: 0 | AP72: 14618.8007 | AQ72: 82136.45091 | AR72: 0 | AS72: 0 | AT72: 14569.20421 | AU72: 81868.93821 | AV72: 0 | AW72: 0 | AX72: 14609.32829 | AY72: 82085.34369 | AZ72: 0 | BA72: 0 | BB72: 14578.65032 | BC72: 81919.90909 | BD72: 0 | BE72: 0
A73: 2081 | B73: 10378.99806 | C73: 61544.03939 | D73: 0 | E73: 0 | F73: =IndLiab!Q73 -> 0.03641560196 | G73: =G72/(1+F73) -> 0.1305933927 | H73: 0.1115850706 | I73: 0.152898085 | J73: 10407.4974 | K73: 61705.76318 | L73: 0 | M73: 0 | N73: 10350.57522 | O73: 61382.7324 | P73: 0 | Q73: 0 | R73: 10317.15791 | S73: 61192.98134 | T73: 0 | U73: 0 | V73: 10441.1413 | W73: 61896.77601 | X73: 0 | Y73: 0 | Z73: 10379.2526 | AA73: 61545.48648 | AB73: 0 | AC73: 0 | AD73: 10378.74324 | AE73: 61542.59073 | AF73: 0 | AG73: 0 | AH73: 10386.87136 | AI73: 61588.73092 | AJ73: 0 | AK73: 0 | AL73: 10371.12908 | AM73: 61499.37152 | AN73: 0 | AO73: 0 | AP73: 10396.59643 | AQ73: 61643.915 | AR73: 0 | AS73: 0 | AT73: 10361.42854 | AU73: 61444.32115 | AV73: 0 | AW73: 0 | AX73: 10389.88031 | AY73: 61605.78585 | AZ73: 0 | BA73: 0 | BB73: 10368.12607 | BC73: 61482.34919 | BD73: 0 | BE73: 0
A74: =A73+1 -> 2082 | B74: 7130.274285 | C74: 45129.4048 | D74: 0 | E74: 0 | F74: =IndLiab!Q74 -> 0.03645352097 | G74: 0.1260002403 | H74: =H73/(1+F74+0.25%) -> 0.1074014076 | I74: =I73/(1+F74-0.25%) -> 0.1478771356 | J74: 7149.782643 | K74: 45247.2106 | L74: 0 | M74: 0 | N74: 7110.818122 | O74: 45011.90068 | P74: 0 | Q74: 0 | R74: 7087.946516 | S74: 44873.6912 | T74: 0 | U74: 0 | V74: 7172.809092 | W74: 45386.3363 | X74: 0 | Y74: 0 | Z74: 7130.448388 | AA74: 45130.45828 | AB74: 0 | AC74: 0 | AD74: 7130.099989 | AE74: 45128.35019 | AF74: 0 | AG74: 0 | AH74: 7135.663324 | AI74: 45161.95825 | AJ74: 0 | AK74: 0 | AL74: 7124.888192 | AM74: 45096.86849 | AN74: 0 | AO74: 0 | AP74: 7142.320505 | AQ74: 45202.1574 | AR74: 0 | AS74: 0 | AT74: 7118.247751 | AU74: 45056.76613 | AV74: 0 | AW74: 0 | AX74: 7137.723653 | AY74: 45174.38442 | AZ74: 0 | BA74: 0 | BB74: 7122.83192 | BC74: 45084.46595 | BD74: 0 | BE74: 0
A75: 2083 | B75: 4721.914589 | C75: 32329.75288 | D75: 0 | E75: 0 | F75: =IndLiab!Q75 -> 0.0364903094 | G75: 0.1215643206 | H75: 0.1033709426 | I75: 0.1430159782 | J75: 4734.77674 | K75: 32413.52912 | L75: 0 | M75: 0 | N75: 4709.086715 | O75: 32246.18963 | P75: 0 | Q75: 0 | R75: 4694.009252 | S75: 32147.91172 | T75: 0 | U75: 0 | V75: 4749.956083 | W75: 32512.4563 | X75: 0 | Y75: 0 | Z75: 4722.029287 | AA75: 32330.5016 | AB75: 0 | AC75: 0 | AD75: 4721.799764 | AE75: 32329.00335 | AF75: 0 | AG75: 0 | AH75: 4725.467404 | AI75: 32352.90185 | AJ75: 0 | AK75: 0 | AL75: 4718.363709 | AM75: 32306.61602 | AN75: 0 | AO75: 0 | AP75: 4729.856707 | AQ75: 32381.48968 | AR75: 0 | AS75: 0 | AT75: 4713.9854 | AU75: 32278.09653 | AV75: 0 | AW75: 0 | AX75: 4726.826238 | AY75: 32361.74039 | AZ75: 0 | BA75: 0 | BB75: 4717.007542 | BC75: 32297.79419 | BD75: 0 | BE75: 0
A76: 2084 | B76: 3007.046114 | C76: 22626.26425 | D76: 0 | E76: 0 | F76: =IndLiab!Q76 -> 0.03652601707 | G76: 0.1172805299 | H76: 0.09948831009 | I76: 0.1383098451 | J76: 3015.193228 | K76: 22684.43341 | L76: 0 | M76: 0 | N76: 2998.920607 | O76: 22568.24181 | P76: 0 | Q76: 0 | R76: 2989.371557 | S76: 22500.00868 | T76: 0 | U76: 0 | V76: 3024.80665 | W76: 22753.11564 | X76: 0 | Y76: 0 | Z76: 3007.118709 | AA76: 22626.78382 | AB76: 0 | AC76: 0 | AD76: 3006.973439 | AE76: 22625.74413 | AF76: 0 | AG76: 0 | AH76: 3009.296373 | AI76: 22642.33683 | AJ76: 0 | AK76: 0 | AL76: 3004.797076 | AM76: 22610.20002 | AN76: 0 | AO76: 0 | AP76: 3012.076715 | AQ76: 22662.18695 | AR76: 0 | AS76: 0 | AT76: 3002.023664 | AU76: 22590.39697 | AV76: 0 | AW76: 0 | AX76: 3010.157345 | AY76: 22648.47496 | AZ76: 0 | BA76: 0 | BB76: 3003.937787 | BC76: 22604.07343 | BD76: 0 | BE76: 0
A77: 2085 | B77: 1838.319784 | C77: 15473.88544 | D77: 0 | E77: 0 | F77: =IndLiab!Q77 -> 0.03656069091 | G77: 0.1131439104 | H77: 0.09574831476 | I77: 0.1337540884 | J77: 1843.268168 | K77: 15513.33932 | L77: 0 | M77: 0 | N77: 1833.384445 | O77: 15434.53024 | P77: 0 | Q77: 0 | R77: 1827.58528 | S77: 15388.25355 | T77: 0 | U77: 0 | V77: 1849.106314 | W77: 15559.9194 | X77: 0 | Y77: 0 | Z77: 1838.363842 | AA77: 15474.23764 | AB77: 0 | AC77: 0 | AD77: 1838.275676 | AE77: 15473.53286 | AF77: 0 | AG77: 0 | AH77: 1839.686453 | AI77: 15484.78643 | AJ77: 0 | AK77: 0 | AL77: 1836.953851 | AM77: 15462.99007 | AN77: 0 | AO77: 0 | AP77: 1841.375222 | AQ77: 15498.2503 | AR77: 0 | AS77: 0 | AT77: 1835.269267 | AU77: 15449.55786 | AV77: 0 | AW77: 0 | AX77: 1840.209541 | AY77: 15488.95043 | AZ77: 0 | BA77: 0 | BB77: 1836.431782 | BC77: 15458.83385 | BD77: 0 | BE77: 0
A78: 2086 | B78: 1077.747986 | C78: 10343.31253 | D78: 0 | E78: 0 | F78: =IndLiab!Q78 -> 0.03659437517 | G78: 0.1091496473 | H78: 0.09214592731 | I78: 0.1293441794 | J78: 1080.626497 | K78: 10369.46726 | L78: 0 | M78: 0 | N78: 1074.877009 | O78: 10317.22267 | P78: 0 | Q78: 0 | R78: 1071.503973 | S78: 10286.547 | T78: 0 | U78: 0 | V78: 1084.022126 | W78: 10400.34324 | X78: 0 | Y78: 0 | Z78: 1077.773596 | AA78: 10343.54589 | AB78: 0 | AC78: 0 | AD78: 1077.722347 | AE78: 10343.07893 | AF78: 0 | AG78: 0 | AH78: 1078.54294 | AI78: 10350.53874 | AJ78: 0 | AK78: 0 | AL78: 1076.953458 | AM78: 10336.09003 | AN78: 0 | AO78: 0 | AP78: 1079.525336 | AQ78: 10359.4644 | AR78: 0 | AS78: 0 | AT78: 1075.973477 | AU78: 10327.18518 | AV78: 0 | AW78: 0 | AX78: 1078.847305 | AY78: 10353.29962 | AZ78: 0 | BA78: 0 | BB78: 1076.649681 | BC78: 10333.33427 | BD78: 0 | BE78: 0
A79: 2087 | B79: 605.9728002 | C79: 6756.863738 | D79: 0 | E79: 0 | F79: =IndLiab!Q79 -> 0.03662711164 | G79: 0.1052930664 | H79: 0.08867628058 | I79: 0.1250757068 | J79: 607.5763162 | K79: 6773.814808 | L79: 0 | M79: 0 | N79: 604.3734449 | O79: 6739.954359 | P79: 0 | Q79: 0 | R79: 602.4946287 | S79: 6720.074596 | T79: 0 | U79: 0 | V79: 609.4676646 | W79: 6793.823878 | X79: 0 | Y79: 0 | Z79: 605.9870566 | AA79: 6757.014895 | AB79: 0 | AC79: 0 | AD79: 605.9585283 | AE79: 6756.712422 | AF79: 0 | AG79: 0 | AH79: 606.4156175 | AI79: 6761.546917 | AJ79: 0 | AK79: 0 | AL79: 605.5302187 | AM79: 6752.182942 | AN79: 0 | AO79: 0 | AP79: 606.9628911 | AQ79: 6767.331829 | AR79: 0 | AS79: 0 | AT79: 604.9842795 | AU79: 6746.411406 | AV79: 0 | AW79: 0 | AX79: 606.5852095 | AY79: 6763.336578 | AZ79: 0 | BA79: 0 | BB79: 605.3609524 | BC79: 6750.396576 | BD79: 0 | BE79: 0
A80: 2088 | B80: 327.2635428 | C80: 4310.148658 | D80: 0 | E80: 0 | F80: =IndLiab!Q80 -> 0.03665893975 | G80: 0.1015696314 | H80: 0.08533466555 | I80: 0.1209443752 | J80: 328.120236 | K80: 4320.884666 | L80: 0 | M80: 0 | N80: 326.4090496 | O80: 4299.438854 | P80: 0 | Q80: 0 | R80: 325.4053517 | S80: 4286.848907 | T80: 0 | U80: 0 | V80: 329.1305957 | W80: 4333.556214 | X80: 0 | Y80: 0 | Z80: 327.2711544 | AA80: 4310.244339 | AB80: 0 | AC80: 0 | AD80: 327.255923 | AE80: 4310.052876 | AF80: 0 | AG80: 0 | AH80: 327.5001118 | AI80: 4313.114639 | AJ80: 0 | AK80: 0 | AL80: 327.0270987 | AM80: 4307.184175 | AN80: 0 | AO80: 0 | AP80: 327.7925057 | AQ80: 4316.778612 | AR80: 0 | AS80: 0 | AT80: 326.7354104 | AU80: 4303.52861 | AV80: 0 | AW80: 0 | AX80: 327.5907365 | AY80: 4314.248342 | AZ80: 0 | BA80: 0 | BB80: 326.9366467 | BC80: 4306.052547 | BD80: 0 | BE80: 0
A81: 2089 | B81: 170.3338107 | C81: 2679.516853 | D81: 0 | E81: 0 | F81: =IndLiab!Q81 -> 0.03668989679 | G81: 0.0979749409 | H81: 0.08211652732 | I81: 0.1169460034 | J81: 170.7743155 | K81: 2686.15106 | L81: 0 | M81: 0 | N81: 169.8944237 | O81: 2672.898732 | P81: 0 | Q81: 0 | R81: 169.3783578 | S81: 2665.119593 | T81: 0 | U81: 0 | V81: 171.2937873 | W81: 2693.980468 | X81: 0 | Y81: 0 | Z81: 170.3377222 | AA81: 2679.575942 | AB81: 0 | AC81: 0 | AD81: 170.329895 | AE81: 2679.457701 | AF81: 0 | AG81: 0 | AH81: 170.4554487 | AI81: 2681.349564 | AJ81: 0 | AK81: 0 | AL81: 170.2122363 | AM81: 2677.685062 | AN81: 0 | AO81: 0 | AP81: 170.6057991 | AQ81: 2683.613731 | AR81: 0 | AS81: 0 | AT81: 170.0622444 | AU81: 2675.426057 | AV81: 0 | AW81: 0 | AX81: 170.5020547 | AY81: 2682.050274 | AZ81: 0 | BA81: 0 | BB81: 170.1657183 | BC81: 2676.985629 | BD81: 0 | BE81: 0
A82: 2090 | B82: 85.95686967 | C82: 1618.430949 | D82: 0 | E82: 0 | F82: =IndLiab!Q82 -> 0.03672001804 | G82: 0.09450472567 | H82: 0.07901746108 | I82: 0.1130765228 | J82: 86.17633545 | K82: 1622.419275 | L82: 0 | M82: 0 | N82: 85.73795361 | O82: 1614.452246 | P82: 0 | Q82: 0 | R82: 85.48084977 | S82: 1609.776107 | T82: 0 | U82: 0 | V82: 86.4351258 | W82: 1627.125558 | X82: 0 | Y82: 0 | Z82: 85.95881747 | AA82: 1618.46645 | AB82: 0 | AC82: 0 | AD82: 85.95491979 | AE82: 1618.395411 | AF82: 0 | AG82: 0 | AH82: 86.0174702 | AI82: 1619.53267 | AJ82: 0 | AK82: 0 | AL82: 85.89630044 | AM82: 1617.32978 | AN82: 0 | AO82: 0 | AP82: 86.09237862 | AQ82: 1620.893865 | AR82: 0 | AS82: 0 | AT82: 85.82156835 | AU82: 1615.971672 | AV82: 0 | AW82: 0 | AX82: 86.04069263 | AY82: 1619.954022 | AZ82: 0 | BA82: 0 | BB82: 85.87312138 | BC82: 1616.909192 | BD82: 0 | BE82: 0
A83: 2091 | B83: 42.30132949 | C83: 945.3184776 | D83: 0 | E83: 0 | F83: =IndLiab!Q83 -> 0.0367493369 | G83: 0.09115484554 | H83: 0.07603320808 | I83: 0.1093319751 | J83: 42.40799772 | K83: 947.6402416 | L83: 0 | M83: 0 | N83: 42.19492502 | O83: 943.0022941 | P83: 0 | Q83: 0 | R83: 42.06996483 | S83: 940.2804617 | T83: 0 | U83: 0 | V83: 42.53377269 | W83: 950.3795908 | X83: 0 | Y83: 0 | Z83: 42.30227581 | AA83: 945.3391297 | AB83: 0 | AC83: 0 | AD83: 42.30038217 | AE83: 945.2978039 | AF83: 0 | AG83: 0 | AH83: 42.33078318 | AI83: 945.9597928 | AJ83: 0 | AK83: 0 | AL83: 42.27189085 | AM83: 944.6774823 | AN83: 0 | AO83: 0 | AP83: 42.36719207 | AQ83: 946.7522183 | AR83: 0 | AS83: 0 | AT83: 42.23556657 | AU83: 943.8868472 | AV83: 0 | AW83: 0 | AX83: 42.34207097 | AY83: 946.2051459 | AZ83: 0 | BA83: 0 | BB83: 42.26062393 | BC83: 944.4325727 | BD83: 0 | BE83: 0
A84: 2092 | B84: 18.3018088 | C84: 523.3070947 | D84: 0 | E84: 0 | F84: =IndLiab!Q84 -> 0.03677788501 | G84: 0.08792128657 | H84: 0.07315965169 | I84: 0.1057085109 | J84: 18.34657899 | K84: 524.5860266 | L84: 0 | M84: 0 | N84: 18.25714573 | O84: 522.03122 | P84: 0 | Q84: 0 | R84: 18.20469114 | S84: 520.532081 | T84: 0 | U84: 0 | V84: 18.39937045 | W84: 526.0947891 | X84: 0 | Y84: 0 | Z84: 18.30220589 | AA84: 523.3184631 | AB84: 0 | AC84: 0 | AD84: 18.30141129 | AE84: 523.2957145 | AF84: 0 | AG84: 0 | AH84: 18.3141716 | AI84: 523.6603392 | AJ84: 0 | AK84: 0 | AL84: 18.28945215 | AM84: 522.9540257 | AN84: 0 | AO84: 0 | AP84: 18.32945328 | AQ84: 524.0968538 | AR84: 0 | AS84: 0 | AT84: 18.27420483 | AU84: 522.518492 | AV84: 0 | AW84: 0 | AX84: 18.31890852 | AY84: 523.7955256 | AZ84: 0 | BA84: 0 | BB84: 18.28472376 | BC84: 522.8190825 | BD84: 0 | BE84: 0
A85: 2093 | B85: 9.038286071 | C85: 282.6587283 | D85: 0 | E85: 0 | F85: =IndLiab!Q85 -> 0.03680569237 | G85: 0.08480015804 | H85: 0.07039281342 | I85: 0.1022023873 | J85: 9.060380592 | K85: 283.3495386 | L85: 0 | M85: 0 | N85: 9.016244377 | O85: 281.9695693 | P85: 0 | Q85: 0 | R85: 8.990359182 | S85: 281.1599506 | T85: 0 | U85: 0 | V85: 9.086431968 | W85: 284.1643545 | X85: 0 | Y85: 0 | Z85: 9.038481975 | AA85: 282.6648639 | AB85: 0 | AC85: 0 | AD85: 9.038089962 | AE85: 282.6525863 | AF85: 0 | AG85: 0 | AH85: 9.044387032 | AI85: 282.8495159 | AJ85: 0 | AK85: 0 | AL85: 9.032188141 | AM85: 282.4680355 | AN85: 0 | AO85: 0 | AP85: 9.051928775 | AQ85: 283.0853039 | AR85: 0 | AS85: 0 | AT85: 9.024663344 | AU85: 282.2327772 | AV85: 0 | AW85: 0 | AX85: 9.046725067 | AY85: 282.9225622 | AZ85: 0 | BA85: 0 | BB85: 9.029854313 | BC85: 282.3951206 | BD85: 0 | BE85: 0
A86: 2094 | B86: 4.29527865 | C86: 144.4214731 | D86: 0 | E86: 0 | F86: =IndLiab!Q86 -> 0.03683278743 | G86: 0.08178768946 | H86: 0.067728849 | I86: 0.09880996573 | J86: 4.30577904 | K86: 144.774473 | L86: 0 | M86: 0 | N86: 4.284803368 | O86: 144.0693171 | P86: 0 | Q86: 0 | R86: 4.27250245 | S86: 143.6556785 | T86: 0 | U86: 0 | V86: 4.318158929 | W86: 145.190767 | X86: 0 | Y86: 0 | Z86: 4.295371718 | AA86: 144.4246058 | AB86: 0 | AC86: 0 | AD86: 4.295185486 | AE86: 144.4183372 | AF86: 0 | AG86: 0 | AH86: 4.298178006 | AI86: 144.5189559 | AJ86: 0 | AK86: 0 | AL86: 4.292380734 | AM86: 144.3240387 | AN86: 0 | AO86: 0 | AP86: 4.301762256 | AQ86: 144.6394455 | AR86: 0 | AS86: 0 | AT86: 4.288804539 | AU86: 144.2038198 | AV86: 0 | AW86: 0 | AX86: 4.299289341 | AY86: 144.5562958 | AZ86: 0 | BA86: 0 | BB86: 4.2912714 | BC86: 144.286766 | BD86: 0 | BE86: 0
A87: 2095 | B87: 1.948409611 | C87: 69.35502639 | D87: 0 | E87: 0 | F87: =IndLiab!Q87 -> 0.03685919722 | G87: 0.0788802276 | H87: 0.06516404452 | I87: 0.09552771029 | J87: 1.953173054 | K87: 69.52456522 | L87: 0 | M87: 0 | N87: 1.943657558 | O87: 69.18589291 | P87: 0 | Q87: 0 | R87: 1.938077861 | S87: 68.98726584 | T87: 0 | U87: 0 | V87: 1.958788574 | W87: 69.72446744 | X87: 0 | Y87: 0 | Z87: 1.948451811 | AA87: 69.35652966 | AB87: 0 | AC87: 0 | AD87: 1.948367367 | AE87: 69.35352155 | AF87: 0 | AG87: 0 | AH87: 1.949724823 | AI87: 69.40184126 | AJ87: 0 | AK87: 0 | AL87: 1.947095052 | AM87: 69.30823477 | AN87: 0 | AO87: 0 | AP87: 1.951350823 | AQ87: 69.45971166 | AR87: 0 | AS87: 0 | AT87: 1.945472706 | AU87: 69.25049441 | AV87: 0 | AW87: 0 | AX87: 1.950229078 | AY87: 69.41978158 | AZ87: 0 | BA87: 0 | BB87: 1.946591705 | BC87: 69.29032674 | BD87: 0 | BE87: 0
A88: 2096 | B88: 0.8373683154 | C88: 31.0931034 | D88: 0 | E88: 0 | F88: =IndLiab!Q88 -> 0.03688494742 | G88: 0.0760742335 | H88: 0.06269481262 | I88: 0.09235218526 | J88: 0.8394156536 | K88: 31.16911936 | L88: 0 | M88: 0 | N88: 0.8353258732 | O88: 31.01726922 | P88: 0 | Q88: 0 | R88: 0.8329279909 | S88: 30.92822718 | T88: 0 | U88: 0 | V88: 0.841828931 | W88: 31.25873306 | X88: 0 | Y88: 0 | Z88: 0.8373864425 | AA88: 31.09377684 | AB88: 0 | AC88: 0 | AD88: 0.8373501693 | AE88: 31.09242927 | AF88: 0 | AG88: 0 | AH88: 0.8379335627 | AI88: 31.11409182 | AJ88: 0 | AK88: 0 | AL88: 0.8368033489 | AM88: 31.07212541 | AN88: 0 | AO88: 0 | AP88: 0.8386324345 | AQ88: 31.14003986 | AR88: 0 | AS88: 0 | AT88: 0.8361060477 | AU88: 31.04623568 | AV88: 0 | AW88: 0 | AX88: 0.8381503463 | AY88: 31.12213878 | AZ88: 0 | BA88: 0 | BB88: 0.8365869554 | BC88: 31.06409293 | BD88: 0 | BE88: 0
A89: 2097 | B89: 0.3218524392 | C89: 12.84973868 | D89: 0 | E89: 0 | F89: =IndLiab!Q89 -> 0.03691006242 | G89: 0.07336627954 | H89: 0.06031768874 | I89: 0.08928005306 | J89: 0.3226393876 | K89: 12.881157 | L89: 0 | M89: 0 | N89: 0.3210673727 | O89: 12.81839551 | P89: 0 | Q89: 0 | R89: 0.320145738 | S89: 12.78159983 | T89: 0 | U89: 0 | V89: 0.3235669395 | W89: 12.91818892 | X89: 0 | Y89: 0 | Z89: 0.3218594048 | AA89: 12.85001679 | AB89: 0 | AC89: 0 | AD89: 0.3218454662 | AE89: 12.84946029 | AF89: 0 | AG89: 0 | AH89: 0.3220697004 | AI89: 12.85841269 | AJ89: 0 | AK89: 0 | AL89: 0.3216352859 | AM89: 12.84106899 | AN89: 0 | AO89: 0 | AP89: 0.3223383328 | AQ89: 12.86913762 | AR89: 0 | AS89: 0 | AT89: 0.3213672572 | AU89: 12.83036816 | AV89: 0 | AW89: 0 | AX89: 0.3221530372 | AY89: 12.86173982 | AZ89: 0 | BA89: 0 | BB89: 0.321552099 | BC89: 12.83774784 | BD89: 0 | BE89: 0
A90: 2098 | B90: 0.122812206 | C90: 4.912241175 | D90: 0 | E90: 0 | F90: =IndLiab!Q90 -> 0.03693456545 | G90: 0.07075304651 | H90: 0.05802932743 | I90: 0.0863080721 | J90: 0.1231125243 | K90: 4.924253304 | L90: 0 | M90: 0 | N90: 0.1225126059 | O90: 4.900257775 | P90: 0 | Q90: 0 | R90: 0.1221609538 | S90: 4.886192399 | T90: 0 | U90: 0 | V90: 0.1234664342 | W90: 4.93840899 | X90: 0 | Y90: 0 | Z90: 0.1228148618 | AA90: 4.912347404 | AB90: 0 | AC90: 0 | AD90: 0.1228095473 | AE90: 4.912134834 | AF90: 0 | AG90: 0 | AH90: 0.1228951102 | AI90: 4.915557179 | AJ90: 0 | AK90: 0 | AL90: 0.1227293428 | AM90: 4.908926817 | AN90: 0 | AO90: 0 | AP90: 0.1229976298 | AQ90: 4.919657757 | AR90: 0 | AS90: 0 | AT90: 0.1226270537 | AU90: 4.904835456 | AV90: 0 | AW90: 0 | AX90: 0.1229269261 | AY90: 4.916829749 | AZ90: 0 | BA90: 0 | BB90: 0.1226975843 | BC90: 4.907656538 | BD90: 0 | BE90: 0
A91: 2099 | B91: 0.04265958183 | C91: 1.706380767 | D91: 0 | E91: 0 | F91: =IndLiab!Q91 -> 0.03695847861 | G91: 0.0682313207 | H91: 0.05582649873 | I91: 0.0834330946 | J91: 0.04276391171 | K91: 1.710553957 | L91: 0 | M91: 0 | N91: 0.0425555015 | O91: 1.70221756 | P91: 0 | Q91: 0 | R91: 0.04243336165 | S91: 1.697331974 | T91: 0 | U91: 0 | V91: 0.04288683582 | W91: 1.715470913 | X91: 0 | Y91: 0 | Z91: 0.04266050362 | AA91: 1.706417639 | AB91: 0 | AC91: 0 | AD91: 0.04265865906 | AE91: 1.706343857 | AF91: 0 | AG91: 0 | AH91: 0.04268837982 | AI91: 1.707532685 | AJ91: 0 | AK91: 0 | AL91: 0.04263079813 | AM91: 1.705229421 | AN91: 0 | AO91: 0 | AP91: 0.04272399597 | AQ91: 1.708957329 | AR91: 0 | AS91: 0 | AT91: 0.04259526204 | AU91: 1.70380798 | AV91: 0 | AW91: 0 | AX91: 0.042699437 | AY91: 1.707974972 | AZ91: 0 | BA91: 0 | BB91: 0.04261976086 | BC91: 1.704787931 | BD91: 0 | BE91: 0
A92: 2100 | B92: 0.01336562028 | C92: 0.5346247859 | D92: 0 | E92: 0 | F92: =IndLiab!Q92 -> 0.03698182293 | G92: 0.06579799105 | H92: 0.0537060846 | I92: 0.08065206439 | J92: 0.01339831165 | K92: 0.5359324405 | L92: 0 | M92: 0 | N92: 0.01333300712 | O92: 0.5333202596 | P92: 0 | Q92: 0 | R92: 0.01329474236 | S92: 0.5317896693 | T92: 0 | U92: 0 | V92: 0.01343682212 | W92: 0.5374728591 | X92: 0 | Y92: 0 | Z92: 0.01336590886 | AA92: 0.5346363289 | AB92: 0 | AC92: 0 | AD92: 0.0133653314 | AE92: 0.5346132307 | AF92: 0 | AG92: 0 | AH92: 0.01337464316 | AI92: 0.5349857009 | AJ92: 0 | AK92: 0 | AL92: 0.01335660189 | AM92: 0.53426405 | AN92: 0 | AO92: 0 | AP92: 0.01338580368 | AQ92: 0.5354321217 | AR92: 0 | AS92: 0 | AT92: 0.01334546645 | AU92: 0.5338186328 | AV92: 0 | AW92: 0 | AX92: 0.01337810927 | AY92: 0.5351243454 | AZ92: 0 | BA92: 0 | BB92: 0.01335314201 | BC92: 0.5341256552 | BD92: 0 | BE92: 0
A93: 2101 | B93: 0.003740581839 | C93: 0.1496232733 | D93: 0 | E93: 0 | F93: =IndLiab!Q93 -> 0.03700461849 | G93: 0.06345004629 | H93: 0.05166507551 | I93: 0.07796201482 | J93: 0.00374973213 | K93: 0.149989285 | L93: 0 | M93: 0 | N93: 0.00373145344 | O93: 0.1492581374 | P93: 0 | Q93: 0 | R93: 0.0037207452 | S93: 0.1488298077 | T93: 0 | U93: 0 | V93: 0.003760509134 | W93: 0.1504203651 | X93: 0 | Y93: 0 | Z93: 0.003740662537 | AA93: 0.1496265012 | AB93: 0 | AC93: 0 | AD93: 0.003740501055 | AE93: 0.149620042 | AF93: 0 | AG93: 0 | AH93: 0.003743107094 | AI93: 0.1497242835 | AJ93: 0 | AK93: 0 | AL93: 0.003738057837 | AM93: 0.1495223132 | AN93: 0 | AO93: 0 | AP93: 0.00374623101 | AQ93: 0.1498492402 | AR93: 0 | AS93: 0 | AT93: 0.003734940944 | AU93: 0.1493976375 | AV93: 0 | AW93: 0 | AX93: 0.003744077645 | AY93: 0.1497631055 | AZ93: 0 | BA93: 0 | BB93: 0.003737089034 | BC93: 0.1494835611 | BD93: 0 | BE93: 0
A94: 2102 | B94: 3.793940855e-05 | C94: 0.00151757634 | D94: 0 | E94: 0 | F94: =IndLiab!Q94 -> 0.0370268844 | G94: 0.06118457221 | H94: 0.04970056694 | I94: 0.07536006651 | J94: 3.803222782e-05 | K94: 0.00152128911 | L94: 0 | M94: 0 | N94: 3.78468114e-05 | O94: 0.001513872453 | P94: 0 | Q94: 0 | R94: 3.77382092e-05 | S94: 0.001509528365 | T94: 0 | U94: 0 | V94: 3.814152744e-05 | W94: 0.001525661095 | X94: 0 | Y94: 0 | Z94: 3.79402264e-05 | AA94: 0.001517609053 | AB94: 0 | AC94: 0 | AD94: 3.793858985e-05 | AE94: 0.001517543591 | AF94: 0 | AG94: 0 | AH94: 3.796502194e-05 | AI94: 0.001518600875 | AJ94: 0 | AK94: 0 | AL94: 3.791380789e-05 | AM94: 0.001516552313 | AN94: 0 | AO94: 0 | AP94: 3.799671146e-05 | AQ94: 0.001519868456 | AR94: 0 | AS94: 0 | AT94: 3.788218961e-05 | AU94: 0.001515287582 | AV94: 0 | AW94: 0 | AX94: 3.797487101e-05 | AY94: 0.001518994838 | AZ94: 0 | BA94: 0 | BB94: 3.790397656e-05 | BC94: 0.00151615906 | BD94: 0 | BE94: 0
A95: 2103 | B95: 3.848061033e-07 | C95: 1.539224411e-05 | D95: 0 | E95: 0 | F95: =IndLiab!Q95 -> 0.03704863891 | G95: 0.05899874887 | H95: 0.04780975616 | I95: 0.07284342531 | J95: 3.857476488e-07 | K95: 1.542990593e-05 | L95: 0 | M95: 0 | N95: 3.838668111e-07 | O95: 1.535467242e-05 | P95: 0 | Q95: 0 | R95: 3.827653756e-07 | S95: 1.5310615e-05 | T95: 0 | U95: 0 | V95: 3.868561579e-07 | W95: 1.547424629e-05 | X95: 0 | Y95: 0 | Z95: 3.848143918e-07 | AA95: 1.539257564e-05 | AB95: 0 | AC95: 0 | AD95: 3.847978061e-07 | AE95: 1.539191222e-05 | AF95: 0 | AG95: 0 | AH95: 3.85065897e-07 | AI95: 1.540263585e-05 | AJ95: 0 | AK95: 0 | AL95: 3.845464386e-07 | AM95: 1.538185752e-05 | AN95: 0 | AO95: 0 | AP95: 3.853873607e-07 | AQ95: 1.54154944e-05 | AR95: 0 | AS95: 0 | AT95: 3.842256976e-07 | AU95: 1.536902788e-05 | AV95: 0 | AW95: 0 | AX95: 3.851658445e-07 | AY95: 1.540663375e-05 | AZ95: 0 | BA95: 0 | BB95: 3.844466711e-07 | BC95: 1.537786682e-05 | BD95: 0 | BE95: 0
A96: 2104 | B96: 3.902953229e-09 | C96: 1.561181289e-07 | D96: 0 | E96: 0 | F96: =IndLiab!Q96 -> 0.03706989944 | G96: 0.05688984793 | H96: 0.0459899389 | I96: 0.07040938012 | J96: 3.912504134e-09 | K96: 1.565001651e-07 | L96: 0 | M96: 0 | N96: 3.893425185e-09 | O96: 1.557370071e-07 | P96: 0 | Q96: 0 | R96: 3.882254506e-09 | S96: 1.5529018e-07 | T96: 0 | U96: 0 | V96: 3.923746555e-09 | W96: 1.569498619e-07 | X96: 0 | Y96: 0 | Z96: 3.903037229e-09 | AA96: 1.561214889e-07 | AB96: 0 | AC96: 0 | AD96: 3.902869141e-09 | AE96: 1.561147654e-07 | AF96: 0 | AG96: 0 | AH96: 3.905588288e-09 | AI96: 1.562235313e-07 | AJ96: 0 | AK96: 0 | AL96: 3.90031948e-09 | AM96: 1.560127789e-07 | AN96: 0 | AO96: 0 | AP96: 3.908849269e-09 | AQ96: 1.563539705e-07 | AR96: 0 | AS96: 0 | AT96: 3.897065831e-09 | AU96: 1.55882633e-07 | AV96: 0 | AW96: 0 | AX96: 3.906602546e-09 | AY96: 1.562641016e-07 | AZ96: 0 | BA96: 0 | BB96: 3.899307048e-09 | BC96: 1.559722816e-07 | BD96: 0 | BE96: 0
A97: 2105 | B97: 3.958628457e-11 | C97: 1.58345138e-09 | D97: 0 | E97: 0 | F97: =IndLiab!Q97 -> 0.03709068262 | G97: 0.05485523 | H97: 0.04423850624 | I97: 0.06805530081 | J97: 3.96831676e-11 | K97: 1.587326701e-09 | L97: 0 | M97: 0 | N97: 3.948963347e-11 | O97: 1.579585336e-09 | P97: 0 | Q97: 0 | R97: 3.937634126e-11 | S97: 1.575053648e-09 | T97: 0 | U97: 0 | V97: 3.979718744e-11 | W97: 1.591887495e-09 | X97: 0 | Y97: 0 | Z97: 3.958713587e-11 | AA97: 1.583485432e-09 | AB97: 0 | AC97: 0 | AD97: 3.958543238e-11 | AE97: 1.583417292e-09 | AF97: 0 | AG97: 0 | AH97: 3.961301168e-11 | AI97: 1.584520465e-09 | AJ97: 0 | AK97: 0 | AL97: 3.955957074e-11 | AM97: 1.582382827e-09 | AN97: 0 | AO97: 0 | AP97: 3.964609161e-11 | AQ97: 1.585843662e-09 | AR97: 0 | AS97: 0 | AT97: 3.95265652e-11 | AU97: 1.581062605e-09 | AV97: 0 | AW97: 0 | AX97: 3.962330427e-11 | AY97: 1.584932168e-09 | AZ97: 0 | BA97: 0 | BB97: 3.954929668e-11 | BC97: 1.581971865e-09 | BD97: 0 | BE97: 0
A98: 2106 | B98: 4.015097887e-13 | C98: 1.606039152e-11 | D98: 0 | E98: 0 | F98: =IndLiab!Q98 -> 0.03711100436 | G98: 0.05289234206 | H98: 0.04255294149 | I98: 0.06577863615 | J98: 4.024925564e-13 | K98: 1.609970223e-11 | L98: 0 | M98: 0 | N98: 4.005293738e-13 | O98: 1.602117493e-11 | P98: 0 | Q98: 0 | R98: 3.993803726e-13 | S98: 1.597521488e-11 | T98: 0 | U98: 0 | V98: 4.036489376e-13 | W98: 1.614595748e-11 | X98: 0 | Y98: 0 | Z98: 4.015184162e-13 | AA98: 1.606073662e-11 | AB98: 0 | AC98: 0 | AD98: 4.015011521e-13 | AE98: 1.606004606e-11 | AF98: 0 | AG98: 0 | AH98: 4.017808787e-13 | AI98: 1.607123512e-11 | AJ98: 0 | AK98: 0 | AL98: 4.012388333e-13 | AM98: 1.60495533e-11 | AN98: 0 | AO98: 0 | AP98: 4.02116447e-13 | AQ98: 1.608465785e-11 | AR98: 0 | AS98: 0 | AT98: 4.009040197e-13 | AU98: 1.603616076e-11 | AV98: 0 | AW98: 0 | AX98: 4.01885327e-13 | AY98: 1.607541305e-11 | AZ98: 0 | BA98: 0 | BB98: 4.011345731e-13 | BC98: 1.60453829e-11 | BD98: 0 | BE98: 0

Sheet Census (hidden)
A1: ="INSTRUCTIONS: This sheet is used to provide the data for all plan participants as of "&TEXT(Plan!B3,"[$-409]mmmm d, yyyy;@") -> INSTRUCTIONS: This sheet is used to provide the data for all plan participants as of December 31, 2016
A2: Index Page
A3: ID | B3: Retired | C3: Gender | D3: Date of Birth | E3: Date of Hire | F3: Annual Salary | G3: Date of Retirement | H3: Occupation | I3: Weight
A4: 1 | B4: Y | C4: F | D4: 1950-06-30 | E4: 1979-04-30 | F4: 50000 | G4: 2014-07-31 | H4: II | I4: 0.15
A5: 2 | B5: Y | C5: M | D5: 1955-06-30 | E5: 1980-05-31 | F5: 45000 | G5: 2015-06-30 | H5: I | I5: 0.15
A6: 3 | B6: N | C6: F | D6: 1981-06-30 | E6: 2005-01-31 | F6: 80000 | G6: 2045-06-30 | H6: IV | I6: 0.08
A7: 4 | B7: N | C7: M | D7: 1991-06-30 | E7: 2015-01-31 | F7: 40000 | G7: 2055-06-30 | H7: II | I7: 0.08
A8: 5 | B8: N | C8: M | D8: 1971-06-30 | E8: 2005-01-31 | F8: 120000 | G8: 2035-06-30 | H8: V | I8: 0.08
A9: 6 | B9: N | C9: F | D9: 1961-06-30 | E9: 2000-12-31 | F9: 80000 | G9: 2020-06-30 | H9: II | I9: 0.08
A10: 7 | B10: N | C10: F | D10: 1981-06-30 | E10: 2005-01-31 | F10: 100000 | G10: 2045-06-30 | H10: IV | I10: 0.08
A11: 8 | B11: N | C11: M | D11: 1986-06-30 | E11: 2005-01-31 | F11: 55000 | G11: 2050-06-30 | H11: II | I11: 0.1
A12: 9 | B12: N | C12: M | D12: 1966-06-30 | E12: 1991-01-31 | F12: 95000 | G12: 2030-06-30 | H12: IV | I12: 0.1
A13: 10 | B13: N | C13: F | D13: 1971-06-30 | E13: 1995-01-31 | F13: 50000 | G13: 2035-06-30 | H13: II | I13: 0.1

Sheet Stochastic Liab (hidden)
A1: ="INSTRUCTIONS: This sheet is used to store stochastic and dynamic liability projection from "&TEXT(Plan!B3,"[$-409]mmmm d, yyyy;@") -> INSTRUCTIONS: This sheet is used to store stochastic and dynamic liability projection from December 31, 2016
A2: Index Page | F2: Scenario
A3: Initial Liability Value | E3: Stochastic | F3: 0 | J3: =F3+1 -> 1 | N3: =J3+1 -> 2 | R3: =N3+1 -> 3 | V3: =R3+1 -> 4 | Z3: =V3+1 -> 5 | AD3: =Z3+1 -> 6 | AH3: =AD3+1 -> 7 | AL3: =AH3+1 -> 8 | AP3: =AL3+1 -> 9 | AT3: =AP3+1 -> 10 | AX3: =AT3+1 -> 11 | BB3: =AX3+1 -> 12 | BF3: =BB3+1 -> 13 | BJ3: =BF3+1 -> 14 | BN3: =BJ3+1 -> 15 | BR3: =BN3+1 -> 16 | BV3: =BR3+1 -> 17 | BZ3: =BV3+1 -> 18 | CD3: =BZ3+1 -> 19 | CH3: =CD3+1 -> 20 | CL3: =CH3+1 -> 21 | CP3: =CL3+1 -> 22 | CT3: =CP3+1 -> 23 | CX3: =CT3+1 -> 24 | DB3: =CX3+1 -> 25 | DF3: =DB3+1 -> 26 | DJ3: =DF3+1 -> 27 | DN3: =DJ3+1 -> 28 | DR3: =DN3+1 -> 29 | DV3: =DR3+1 -> 30 | DZ3: =DV3+1 -> 31 | ED3: =DZ3+1 -> 32 | EH3: =ED3+1 -> 33 | EL3: =EH3+1 -> 34 | EP3: =EL3+1 -> 35 | ET3: =EP3+1 -> 36 | EX3: =ET3+1 -> 37 | FB3: =EX3+1 -> 38 | FF3: =FB3+1 -> 39 | FJ3: =FF3+1 -> 40 | FN3: =FJ3+1 -> 41 | FR3: =FN3+1 -> 42 | FV3: =FR3+1 -> 43 | FZ3: =FV3+1 -> 44 | GD3: =FZ3+1 -> 45 | GH3: =GD3+1 -> 46 | GL3: =GH3+1 -> 47 | GP3: =GL3+1 -> 48 | GT3: =GP3+1 -> 49 | GX3: =GT3+1 -> 50 | HB3: =GX3+1 -> 51 | HF3: =HB3+1 -> 52 | HJ3: =HF3+1 -> 53 | HN3: =HJ3+1 -> 54 | HR3: =HN3+1 -> 55 | HV3: =HR3+1 -> 56 | HZ3: =HV3+1 -> 57 | ID3: =HZ3+1 -> 58 | IH3: =ID3+1 -> 59 | IL3: =IH3+1 -> 60 | IP3: =IL3+1 -> 61 | IT3: =IP3+1 -> 62 | IX3: =IT3+1 -> 63 | JB3: =IX3+1 -> 64 | JF3: =JB3+1 -> 65 | JJ3: =JF3+1 -> 66 | JN3: =JJ3+1 -> 67 | JR3: =JN3+1 -> 68 | JV3: =JR3+1 -> 69 | JZ3: =JV3+1 -> 70 | KD3: =JZ3+1 -> 71 | KH3: =KD3+1 -> 72 | KL3: =KH3+1 -> 73 | KP3: =KL3+1 -> 74 | KT3: =KP3+1 -> 75 | KX3: =KT3+1 -> 76 | LB3: =KX3+1 -> 77 | LF3: =LB3+1 -> 78 | LJ3: =LF3+1 -> 79 | LN3: =LJ3+1 -> 80 | LR3: =LN3+1 -> 81 | LV3: =LR3+1 -> 82 | LZ3: =LV3+1 -> 83 | MD3: =LZ3+1 -> 84 | MH3: =MD3+1 -> 85 | ML3: =MH3+1 -> 86 | MP3: =ML3+1 -> 87 | MT3: =MP3+1 -> 88 | MX3: =MT3+1 -> 89 | NB3: =MX3+1 -> 90 | NF3: =NB3+1 -> 91 | NJ3: =NF3+1 -> 92 | NN3: =NJ3+1 -> 93 | NR3: =NN3+1 -> 94 | NV3: =NR3+1 -> 95 | NZ3: =NV3+1 -> 96 | OD3: =NZ3+1 -> 97 | OH3: =OD3+1 -> 98 | OL3: =OH3+1 -> 99 | OP3: =OL3+1 -> 100
